Workbook

Sheet Read Me
I8: =IF(Documentation!$H$527=TRUE,"Version:","Please check structural errors on Documentation sheet before proceeding") -> Version: | J8: 2019-11-13
B10: Purpose
C11: The tool decomposes per capita output growth into four components - contributions of productivity growth, employment
C12: growth, labor force growth, and change in working age population - using the Shapley decomposition method. The aim
C13: of the analysis is to understand the roles of productivity and employment growth in driving a country's overall growth.
C14: To understand a country's job structure, the tool calculates different sectors' contributions to aggregate productivity and
C15: employment growth. The tool helps the user make growth projections and analyze the consistency of such projections in
C16: terms of historical data as well as UN population projections. By using the Country Comparison feature, the user can select
C17: five countries and compare results.
B19: Data
C20: The tool uses sectoral value added, population and employment data from the WDI database.
C21: The user can also manually enter his or her own data.
C22: World DataBank: | E22: http://databank.worldbank.org/data/home.aspx | H22: ='Existing Data_WDI'!$B$6 -> WDI Data Accessed 03 Oct 2019
C24: In the Projection-feature, the user can also select to use population projection data from the UN:
C25: UN Projected Data: | E25: http://esa.un.org/unpd/wpp/DVD/ | H25: ='Existing Data_ProjUN'!A6 -> File version: PPOP/DB/WPP/Rev.2019/POP/F07-1 (Aug 2019)
B27: Step-by-Step
C28: Follow the Step-by-Step instructions from sheet to sheet:
D30: Select Country
D31: Select Data
D32: Select Period
D33: Select Other Assumptions | F33: =Projection!$Z$19 -> 
D34: Review Results
D35: Country Comparison
D36: Export Results
B38: Color coding
C39: 123-ABC | D39: Cells filled by the tool and can be modified by the user
D41: All other cells filled by the tool and CANNOT be modified by the user
D43: 123-ABC | E43: Do not modify | F43: 123-ABC | G43: Do not modify
D44: 123-ABC | E44: Do not modify | F44: 123-ABC | G44: Do not modify
D45: 123-ABC | E45: Do not modify | F45: 123-ABC | G45: Do not modify
D46: 123-ABC | E46: Do not modify | F46: 123-ABC | G46: Do not modify
D47: 123-ABC | E47: Do not modify | F47: 123-ABC | G47: Do not modify
B49: Password Protection
C50: To prevent the user from inadvertently overwriting formulas, a password is used protect all sheets.
C51: If it becomes necessary to revise the structure of the file, use these buttons:
C52: ="NB! The password is '"&Macro_Password&"' and must not be changed as it is included in macros." -> NB! The password is 'GROWTH' and must not be changed as it is included in macros.
B54: Contact Details
C55: Dino Merotto (dmerotto@worldbank.org)

Sheet Main Menu
A1: World Bank Group - Jobs Group
A2: JobStructure Tool | N2: Equivalent in Tool: | O2: =IFERROR(INDEX('Manual Data'!$L$1:$L$6,MATCH(Country,'Manual Data'!$J$1:$J$6,0),1),"-") -> -
A3: Main Menu
A4: =IF(Macro_Overall_Structural_Check=TRUE,"No errors reported in structural check","Please check errors on Documentation sheet before proceeding") -> No errors reported in structural check | N4: Value Added Options | O4: Dates | Q4: Currency
N5: Manual (Major Sectors) | O5: - | Q5: ='Existing Data_WDI'!$F$8 -> constant 2010 USD
A6: Step 1 | B6: Select Country | C6: Uganda | F6: =INDEX(Documentation!$D$629:$D$860,MATCH(Country,Documentation!$C$629:$C$860,0),1) -> UGA | N6: Manual (Sub Sectors) | O6: - | Q6: ='Manual Data'!$D$8 -> 2010 USD
N7: WDI | O7: ='Existing Data_WDI'!B6 -> WDI Data Accessed 03 Oct 2019 | Q7: =IF(Macro_Data_Value=Macro_Data_WDI,Q5,Q6) -> constant 2010 USD
A8: Step 2 | B8: A. Select Value Added Data | C8: WDI | E8: ="Select: Manual or "&$N$7 -> Select: Manual or WDI | G8: =IF(OR($C$8=$N$5,$C$8=$N$6),"Click to Add Manual Data","") ->  | I8: =IF(OR($C$8=$N$5,$C$8=$N$6),"","Click to View Data Sheet") -> Click to View Data Sheet | N8: Population Options
C9: ='Selected Data_Value'!$N$14 -> Note: From WDI Gross Domestic Product (GDP) represents Total Value Added. Years with no GDP data are excluded. Because Uganda reports Value Added at Basic prices (VAB), the shares of Value Added by sector are calculated from the data series on Gross Value Added (GVA) and subsequently multiplied by GDP. | K9: Help? | N9: 1,000 people
N10: million people
B12: B. Select Employment Data | N12: LOG factor for DataBank | O12: LOG factor for Manual
B13: 1. Employment by Sector | C13: WDI | E13: ="Select: Manual or "&$N$7 -> Select: Manual or WDI | G13: =IF(OR($C$13=$N$5,$C$13=$N$6),"Click to Add Manual Data","") ->  | I13: =IF(OR($C$13=$N$5,$C$13=$N$6),"","Click to View Data Sheet") -> Click to View Data Sheet | N13: =IF(ISERROR(FIND("million",'Existing Data_WDI'!$AL$8)),IF(ISERROR(FIND("thousand",'Existing Data_WDI'!$AL$8)),IF(ISERROR(FIND("000",'Existing Data_WDI'!$AL$8)),1,1000),1000),1000000) -> 1000000 | O13: =IF(ISERROR(FIND("million",'Manual Data'!$AG$12)),IF(ISERROR(FIND("thousand",'Manual Data'!$AG$12)),IF(ISERROR(FIND("000",'Manual Data'!$AG$12)),1,1000),1000),1000000) -> 1000000
B14: 2. Total Employment | C14: WDI | N14: =IF(ISERROR(FIND("million",'Existing Data_WDI'!$AP$8)),IF(ISERROR(FIND("thousand",'Existing Data_WDI'!$AP$8)),IF(ISERROR(FIND("000",'Existing Data_WDI'!$AP$8)),1,1000),1000),1000000) -> 1000 | O14: =IF(ISERROR(FIND("million",'Manual Data'!$AQ$12)),IF(ISERROR(FIND("thousand",'Manual Data'!$AQ$12)),IF(ISERROR(FIND("000",'Manual Data'!$AQ$12)),1,1000),1000),1000000) -> 1000 | P14: Number of people in data
B15: 3. Population Data | C15: WDI | N15: =N13/N14 -> 1000 | O15: =O13/O14 -> 1000 | P15: =IF(Macro_Data_Value=Macro_Data_WDI,N15,O15) -> 1000
A18: Step 3 | B18: Select Years | C18: Both Data Sets | G18: Available Data: | H18: Value-Added | I18: Employment | J18: Combined | N18: Value Added | O18: Employment | P18: Combined | Q18: Notes
B19: First Year | C19: 2000 | D19: =IF(OR($P$19=0,$P$20=0,$P$19=$P$20),"("&$R$19&")","(between "&$P$19&"-"&$P$20-1&")"&" "&$R$19) -> (between 1991-2017) | G19: First Year | H19: =N19 -> 1990 | I19: =O19 -> 1991 | J19: =P19 -> 1991 | N19: ='Selected Data_Value'!$AJ$22 -> 1990 | O19: ='Selected Data_Employment'!$AT$20 -> 1991 | P19: =MAX('Selected Data_Value'!AK22,'Selected Data_Employment'!AU20) -> 1991 | Q19: =IF(OR(N19=0,N20=0,N19=N20),"Please add Value Added data",".") -> . | R19: =IF(Q19=".",IF(Q20=".",IF(Q21=".","",Q21),Q20),IF(Q20=".",Q19,IF(Q21=".",Q21,"Please add Value Added and employment data"))) -> 
B20: Last Year | C20: 2018 | D20: =IF(OR($P$19=0,$P$20=0,$P$19=$P$20),"("&$R$19&")","(between "&$P$19+1&"-"&$P$20&")"&" "&$R$19) -> (between 1992-2018) | G20: Last Year | H20: =N20 -> 2018 | I20: 2018 | J20: =P20 -> 2018 | N20: ='Selected Data_Value'!$AJ$23 -> 2018 | O20: ='Selected Data_Employment'!$AT$21 -> 2018 | P20: =MIN('Selected Data_Value'!AK23,'Selected Data_Employment'!AU21) -> 2018 | Q20: =IF(OR(O19=0,O20=0,O19=O20),"Please add employment data",".") -> . | R20: =IF(OR($C$19<$P$19,$C$19>$P$20,$C$19>=$C$20,$C$20<$P$19,$C$20>$P$20,$C$20<=$C$19),TRUE,FALSE) -> FALSE
Q21: =IF(OR(P19=0,P20=0,P19=O20),"Please add data",".") -> .
B22: Period Break-down? | C22: Yes | F22: Period break-down (optional) | G22: Total Period | H22: =IF(AND(H23="",H24=""),"(Add years)",O22) -> Period 1 | I22: =IF(AND(I23="",I24=""),"(Add years)",P22) -> Period 2 | J22: =IF(AND(J23="",J24=""),"(Add years)",Q22) -> Period 3 | N22: First/Last | O22: Period 1 | P22: Period 2 | Q22: Period 3 | R22: Periods
F23: Start | G23: =Macro_FirstYear -> 2000 | H23: 2000 | I23: 2002 | J23: 2012 | K23: (year or blank) | N23: ='Main Menu'!$R$20 -> FALSE | O23: =IF(AND(H23="",H24=""),FALSE,IF(AND(H23>=$G23,H23<=$G24,H23<H24),FALSE,TRUE)) -> FALSE | P23: =IF(AND(I23="",I24=""),FALSE,IF(AND(I23>=$G23,I23<=$G24,I23<I24),FALSE,TRUE)) -> FALSE | Q23: =IF(AND(J23="",J24=""),FALSE,IF(AND(J23>=$G23,J23<=$G24,J23<J24),FALSE,TRUE)) -> FALSE | R23: =IF(COUNTIF(O23:Q23,TRUE)>0,TRUE,FALSE) -> FALSE
F24: End | G24: =Macro_LastYear -> 2018 | H24: 2002 | I24: 2012 | J24: 2018 | K24: (year or blank) | O24: =IF(AND(H23="",H24=""),FALSE,IF(AND(H24>=$G23,H24<=$G24,H24>H23),FALSE,TRUE)) -> FALSE | P24: =IF(AND(I23="",I24=""),FALSE,IF(AND(I24>=$G23,I24<=$G24,I24>I23),FALSE,TRUE)) -> FALSE | Q24: =IF(AND(J23="",J24=""),FALSE,IF(AND(J24>=$G23,J24<=$G24,J24>J23),FALSE,TRUE)) -> FALSE | R24: =IF(COUNTIF(O24:Q24,TRUE)>0,TRUE,FALSE) -> FALSE
O25: =IF(COUNTIF(O23:O24,TRUE)>0,TRUE,FALSE) -> FALSE | P25: =IF(COUNTIF(P23:P24,TRUE)>0,TRUE,FALSE) -> FALSE | Q25: FALSE | R25: =IF(COUNTIF(O25:Q25,TRUE)>0,TRUE,FALSE) -> FALSE
A27: Step 4 | B27: Other Assumptions | C27: Projection Year | G27: 2025 | H27: ="(select a year > "&$C$20&")" -> (select a year > 2018) | J27: Go To "Projection" Sheet | N27: Projection turned on? | O27: =IF(ISNUMBER($G$27)=FALSE,FALSE,IF(G27<=$C$20,FALSE,TRUE)) -> TRUE
G28: =Projection!D20 -> 
C29: Method of growth decomposition by Sector: | G29: Canonical | H29: ="Select: '"&Sectoral_1&"' or '"&Sectoral_2&"'" -> Select: 'Shift-Share' or 'Canonical' | K29: Help?
N30: Sub Sectors Available?
A31: Step 5 | B31: Main Results | C31: Click to see more Tables | F31: Click to see more Charts | N31: Employment | O31: Value | P31: Total
B32: =Tables!B165 -> Decomposition of Growth in per capita Value Added, Uganda | K32: Help? | N32: =SUM('Selected Data_Value'!$V$25:$AB$61)>0 -> FALSE | O32: =SUM('Selected Data_Employment'!$AA$23:$AG$59)>0 -> FALSE | P32: =COUNTIF(N32:O32,FALSE)=0 -> FALSE
E33: =Tables!F167 -> 2000-2018 | H33: =Tables!G167 -> 2018-2025 (p)
B34: =Tables!B167 -> constant 2010 USD per person | E34: Change | F34: =Tables!$I$166 -> % of total change | G34: =Tables!$O$166 -> % Yearly Contribution to Growth | H34: Change | I34: =Tables!$I$166 -> % of total change | J34: =Tables!$O$166 -> % Yearly Contribution to Growth
B35: =Tables!B168 -> Change in per capita value added | E35: =Tables!F168 -> 290.6877606 | F35: =Tables!L168 -> 100 | G35: =Tables!R168 -> 2.970919207 | H35: =Tables!G168 -> 99.48640547 | I35: =Tables!M168 -> 100 | J35: =Tables!S168 -> 1.891857116
B36: =Tables!B169 -> due to changes in productivity | E36: =Tables!F169 -> 242.5302171 | F36: =Tables!L169 -> 83.43324004 | G36: =Tables!R169 -> 2.478734153 | H36: =Tables!G169 -> 9.709449253 | I36: =Tables!M169 -> 9.75957389 | J36: =Tables!S169 -> 0.1846371932
B37: =Tables!B170 -> of which:
B38: =Tables!B171 -> Within-sector | E38: =Tables!F171 -> 255.0506063 | F38: =Tables!L171 -> 87.74040081 | G38: =Tables!R171 -> 2.60669642 | H38: =Tables!G171 -> 124.6564271 | I38: =Tables!M171 -> 125.2999608 | J38: =Tables!S171 -> 2.370496225
B39: =Tables!B172 -> Intersectoral reallocation | E39: =Tables!F172 -> -12.52038918 | F39: =Tables!L172 -> -4.307160768 | G39: =Tables!R172 -> -0.1279622665 | H39: =Tables!G172 -> -114.9469778 | I39: =Tables!M172 -> -115.5403869 | J39: =Tables!S172 -> -2.185859032
B40: =Tables!B173 -> of which:
B41: =Tables!B174 -> Static reallocation | E41: =Tables!F174 -> -5.540496184 | F41: =Tables!L174 -> -1.905995688 | G41: =Tables!R174 -> -0.05662559199 | H41: =Tables!G174 -> -84.58211354 | I41: =Tables!M174 -> -85.01876526 | J41: =Tables!S174 -> -1.608433561
B42: =Tables!B175 -> Dynamic reallocation | E42: =Tables!F175 -> -6.979892998 | F42: =Tables!L175 -> -2.401165079 | G42: =Tables!R175 -> -0.07133667453 | H42: =Tables!G175 -> -30.36486426 | I42: =Tables!M175 -> -30.52162164 | J42: =Tables!S175 -> -0.577425471
B44: =Tables!B176 -> due to changes in employment rate | E44: =Tables!F176 -> 6.257399032 | F44: =Tables!L176 -> 2.152618679 | G44: =Tables!R176 -> 0.06395256178 | H44: =Tables!G176 -> 1.807490033 | I44: =Tables!M176 -> 1.816821127 | J44: =Tables!S176 -> 0.03437165978
B45: =Tables!B177 -> due to changes in participation rate | E45: =Tables!F177 -> 7.21477965 | F45: =Tables!L177 -> 2.481968843 | G45: =Tables!R177 -> 0.07373728908 | H45: =Tables!G177 -> 39.50287229 | I45: =Tables!M177 -> 39.70680427 | J45: =Tables!S177 -> 0.7511960022
B46: =Tables!B178 -> due to changes in share of working age population | E46: =Tables!F178 -> 34.68536485 | F46: =Tables!L178 -> 11.93217244 | G46: =Tables!R178 -> 0.3544952027 | H46: =Tables!G178 -> 48.46659389 | I46: =Tables!M178 -> 48.71680072 | J46: =Tables!S178 -> 0.9216522612
B47: =Tables!$B$28 -> Source for Total Value Added (WDI): Gross Domestic Product (2000-2018)
B49: =Charts!$W$26 -> Population and Employment, Uganda | F49: =Charts!$AK$212 -> Decomposition of Growth in per capita Value Added, Uganda
B66: =Charts!AK234 -> Productivity Change Decomposition. Annual Contribution to per capita Value Added Growth by Major Sector | F66: =Charts!AK258 -> Decomposition of Growth in per capita Value Added with Employment rate change by Major Sector, Uganda
C83: Click to see more Tables | F83: Click to see more Charts
A85: Step 6 | B85: Country Comparison | C85: Go To "Country Comparison" Sheet

Sheet Selected Data_Value
A1: ='Main Menu'!$A$1 -> World Bank Group - Jobs Group | AJ1: For Conditional Formatting | AR1: Selected Period
A2: ='Main Menu'!$A$2 -> JobStructure Tool | AJ2: Selected | AK2: ='Main Menu'!$C$8 -> WDI | AL2: Projection on? | AR2: ='Main Menu'!$C$19 -> 2000
A3: ='Main Menu'!$C$6 -> Uganda | C3: =Projection!$Z$19 ->  | AJ3: Manual opt. 1 | AK3: ='Main Menu'!$N$5 -> Manual (Major Sectors) | AL3: ='Main Menu'!$O$27 -> TRUE | AR3: ='Main Menu'!$C$20 -> 2018
A4: =IF(Macro_Overall_Structural_Check=TRUE,"No errors reported in structural check","Please check errors on Documentation sheet before proceeding") -> No errors reported in structural check | AJ4: Manual opt. 2 | AK4: ='Main Menu'!$N$6 -> Manual (Sub Sectors)
A5: Step 2 A
A6: Value Added Data by Sector
A7: Selected: | B7: Value Added | C7: ='Main Menu'!C8 -> WDI
AJ8: For Note
AJ9: =Country -> Uganda | AK9: =INDEX(Documentation!$G$629:$G$860,MATCH(Country,Documentation!$C$629:$C$860,0),1) -> VAB | AL9: =IF(AK9="VAB","Value Added at Basic prices (VAB)","Value added at producer prices (VAP)") -> Value Added at Basic prices (VAB)
AJ10: Value: | AK10: =IF(AK9="VAB","GVA","GDP") -> GVA | AL10: =IF(AK10="GVA","Gross Value Added (GVA)","Gross Domestic Product (GDP)") -> Gross Value Added (GVA)
AJ11: Excluded data: | AK11: =IF(AK9="VAP","GVA","GDP") -> GDP | AL11: =IF(AK11="GVA","Gross Value Added (GVA)","Gross Domestic Product (GDP)") -> Gross Domestic Product (GDP)
N13: If GVA or GDP is used for value added depending on SNA Price Valuation.
N14: ="Note: From WDI Gross Domestic Product (GDP) represents Total Value Added. Years with no GDP data are excluded. "&IF($AK$9="VAP","Value Added by sector adds up to Total GDP."," Because "&Country&" reports "&$AL$9&", the shares of Value Added by sector are calculated from the data series on "&$AL$10&" and subsequently multiplied by GDP.") -> Note: From WDI Gross Domestic Product (GDP) represents Total Value Added. Years with no GDP data are excluded. Because Uganda reports Value Added at Basic prices (VAB), the shares of Value Added by sector are calculated from the data series on Gross Value Added (GVA) and subsequently multiplied by GDP.
N18: ='Existing Data_WDI'!$AL$5 -> Note: If "Services" data are missing, it is the balancing amount. Otherwise, the statistical Discrepancy is prorated across all 3 sectors. | AR18: WDI - VA source for Selected Period
B19: Manual Data | N19: ="Existing Data "&O23 -> Existing Data WDI | U19: Currently Selected Data | AH19: Available Data Period | AR19: =concatenaterange(AR20:AT20,", ") -> GDP (2000-2018)
A20: =Documentation!$E$589 -> Main Sector | B20: ='Manual Data'!AG13 -> Agriculture | C20: ='Manual Data'!AH13 -> Industry | D20: ='Manual Data'!AI13 -> Industry | E20: ='Manual Data'!AJ13 -> Industry | F20: ='Manual Data'!AK13 -> Services | G20: ='Manual Data'!AL13 -> Services | H20: ='Manual Data'!AM13 -> Services | I20: Total | J20: ='Manual Data'!AN13 -> Agriculture | K20: ='Manual Data'!AO13 -> Industry | L20: ='Manual Data'!AP13 -> Services | N20: =$A20 -> Main Sector | O20: ='Existing Data_WDI'!AL9 -> Total | P20: ='Existing Data_WDI'!AM9 -> Agriculture | Q20: ='Existing Data_WDI'!AN9 -> Industry | R20: ='Existing Data_WDI'!AO9 -> Services | S20: Source for Total Value Added | U20: =A20 -> Main Sector | V20: Agriculture | W20: Industry | X20: Industry | Y20: Industry | Z20: Services | AA20: Services | AB20: Services | AC20: Total | AD20: Agriculture | AE20: Industry | AF20: Services | AG20: Source for Total Value Added | AR20: =IF(COUNT(AR$24:AR$63)=0,"",IF(COUNT(AR$24:AR$63)=1,AR$24&" ("&MIN(AR$24:AR$63)&")",AR$24&" ("&MIN(AR$24:AR$63)&"-"&MAX(AR$24:AR$63)&")")) -> GDP (2000-2018) | AS20: =IF(COUNT(AS$24:AS$63)=0,"",IF(COUNT(AS$24:AS$63)=1,AS$24&" ("&MIN(AS$24:AS$63)&")",AS$24&" ("&MIN(AS$24:AS$63)&"-"&MAX(AS$24:AS$63)&")")) ->  | AT20: =IF(COUNT(AT$24:AT$63)=0,"",IF(COUNT(AT$24:AT$63)=1,AT$24&" ("&MIN(AT$24:AT$63)&")",AT$24&" ("&MIN(AT$24:AT$63)&"-"&MAX(AT$24:AT$63)&")")) -> 
A21: Description | B21: ='Manual Data'!AG14 -> Agriculture | C21: ='Manual Data'!AH14 -> Mining & Utilities | D21: ='Manual Data'!AI14 -> Manufacturing | E21: ='Manual Data'!AJ14 -> Construction | F21: ='Manual Data'!AK14 -> Wholesale & Retail | G21: ='Manual Data'!AL14 -> Transport & Communications | H21: ='Manual Data'!AM14 -> Other Activities etc. | I21: Total | J21: ='Manual Data'!AN14 -> Agriculture | K21: ='Manual Data'!AO14 -> Industry | L21: ='Manual Data'!AP14 -> Services | N21: =$A21 -> Description | O21: ='Existing Data_WDI'!AL10 -> Value Added | P21: ='Existing Data_WDI'!AM10 -> Agriculture, value added | Q21: ='Existing Data_WDI'!AN10 -> Industry, value added | R21: ='Existing Data_WDI'!AO10 -> Services, value added | U21: Description | V21: Agriculture | W21: Mining & Utilities | X21: Manufacturing | Y21: Construction | Z21: Wholesale & Retail | AA21: Transport & Communications | AB21: Other Activities etc. | AC21: Total | AD21: Agriculture | AE21: Industry | AF21: Services | AJ21: Max Available Value Added Data Range | AK21: Combined Available Data Range | AP21: ='Selected Data_Employment'!AZ21 -> Parallel Data Check: 0=No Value added + Employment sector data available. 1=Value added + Employment sector data available | AR21: =concatenaterange(AR22:AT22,", ") -> Gross Domestic Product (2000-2018)
A22: Unit | B22: ='Manual Data'!AG12 -> million 2010 USD | N22: Unit | O22: ='Existing Data_WDI'!AL8 -> million constant 2010 USD | U22: =A22 -> Unit | V22: =IF(OR('Main Menu'!$C$8='Main Menu'!$N$5,'Main Menu'!$C$8='Main Menu'!$N$6),B22,'Existing Data_WDI'!$AL$8) -> million constant 2010 USD | AH22: =AK22 -> 1991 | AJ22: =MIN(AJ$25:AJ$61) -> 1990 | AK22: =MIN(AK$25:AK$61) -> 1991 | AR22: =IF(COUNT(AR$24:AR$63)=0,"",IF(COUNT(AR$24:AR$63)=1,AR$23&" ("&MIN(AR$24:AR$63)&")",AR$23&" ("&MIN(AR$24:AR$63)&"-"&MAX(AR$24:AR$63)&")")) -> Gross Domestic Product (2000-2018) | AS22: =IF(COUNT(AS$24:AS$63)=0,"",IF(COUNT(AS$24:AS$63)=1,AS$23&" ("&MIN(AS$24:AS$63)&")",AS$23&" ("&MIN(AS$24:AS$63)&"-"&MAX(AS$24:AS$63)&")")) ->  | AT22: =IF(COUNT(AT$24:AT$63)=0,"",IF(COUNT(AT$24:AT$63)=1,AT$23&" ("&MIN(AT$24:AT$63)&")",AT$23&" ("&MIN(AT$24:AT$63)&"-"&MAX(AT$24:AT$63)&")")) -> 
A23: Source | B23: Manual Data | N23: Source | O23: ='Main Menu'!$N$7 -> WDI | S23: Help? | U23: =A23 -> Source | V23: ='Main Menu'!$C$8 -> WDI | AG23: Help? | AH23: =AK23 -> 2018 | AJ23: =MAX(AJ$25:AJ$61) -> 2018 | AK23: =MAX(AK$25:AK$61) -> 2018 | AL23: Major Sector Check | AM23: Sub Sector Check | AN23: Check Total | AO23: Check Sum of sub sectors = major sector | AR23: Gross Domestic Product | AS23: Gross Value Added | AT23: Sum of Major Sectors
A24: Year | B24: ='Manual Data'!AG15 -> Agric | C24: ='Manual Data'!AH15 -> Min | D24: ='Manual Data'!AI15 -> Man | E24: ='Manual Data'!AJ15 -> Con | F24: ='Manual Data'!AK15 -> W&R | G24: ='Manual Data'!AL15 -> T&C | H24: ='Manual Data'!AM15 -> Other etc. | I24: Total | J24: ='Manual Data'!AN15 -> Agric | K24: ='Manual Data'!AO15 -> Ind | L24: ='Manual Data'!AP15 -> Serv | N24: Year | O24: ='Existing Data_WDI'!AL12 -> Total | P24: ='Existing Data_WDI'!AM12 -> Agric | Q24: ='Existing Data_WDI'!AN12 -> Ind | R24: ='Existing Data_WDI'!AO12 -> Serv | S24: Source | U24: =A24 -> Year | V24: =B24 -> Agric | W24: Min | X24: Man | Y24: Con | Z24: W&R | AA24: T&C | AB24: Other etc. | AC24: =I24 -> Total | AD24: =J24 -> Agric | AE24: =K24 -> Ind | AF24: =L24 -> Serv | AG24: Source | AH24: =AH19 -> Available Data Period | AJ24: Available | AK24: Available | AN24: =ROUND(SUM(AN25:AN61),5)=0 -> TRUE | AO24: =ROUND(SUM(AO25:AO61),5)=0 -> TRUE | AP24: ='Selected Data_Employment'!BJ22 -> Sub Sectors | AQ24: ='Selected Data_Employment'!BK22 -> Major Sectors | AR24: GDP | AS24: GVA | AT24: SUM
A25: 1990 | B25: ='Manual Data'!AG16 -> . | C25: ='Manual Data'!AH16 -> . | D25: ='Manual Data'!AI16 -> . | E25: ='Manual Data'!AJ16 -> . | F25: ='Manual Data'!AK16 -> . | G25: ='Manual Data'!AL16 -> . | H25: ='Manual Data'!AM16 -> . | I25: =IF($AK$2=$AK$3,IF(SUM(J25:L25)=0,".",ROUND(SUM(J25:L25),10)),IF(SUM(B25:H25)=0,".",ROUND(SUM(B25:H25),10))) -> . | J25: ='Manual Data'!AN16 -> . | K25: ='Manual Data'!AO16 -> . | L25: ='Manual Data'!AP16 -> . | N25: 1990 | O25: ='Existing Data_WDI'!AL13 -> 5268.749668 | P25: ='Existing Data_WDI'!AM13 -> 2610.297097 | Q25: ='Existing Data_WDI'!AN13 -> 478.2519154 | R25: ='Existing Data_WDI'!AO13 -> 2180.200656 | S25: ='Existing Data_WDI'!AW13 -> GDP | U25: =$A25 -> 1990 | V25: =IF('Main Menu'!$C$8='Main Menu'!$N$5,".",IF('Main Menu'!$C$8='Main Menu'!$N$6,IF(ISNUMBER(B25)=FALSE,".",B25),".")) -> . | W25: =IF('Main Menu'!$C$8='Main Menu'!$N$5,".",IF('Main Menu'!$C$8='Main Menu'!$N$6,IF(ISNUMBER(C25)=FALSE,".",C25),".")) -> . | X25: =IF('Main Menu'!$C$8='Main Menu'!$N$5,".",IF('Main Menu'!$C$8='Main Menu'!$N$6,IF(ISNUMBER(D25)=FALSE,".",D25),".")) -> . | Y25: =IF('Main Menu'!$C$8='Main Menu'!$N$5,".",IF('Main Menu'!$C$8='Main Menu'!$N$6,IF(ISNUMBER(E25)=FALSE,".",E25),".")) -> . | Z25: =IF('Main Menu'!$C$8='Main Menu'!$N$5,".",IF('Main Menu'!$C$8='Main Menu'!$N$6,IF(ISNUMBER(F25)=FALSE,".",F25),".")) -> . | AA25: =IF('Main Menu'!$C$8='Main Menu'!$N$5,".",IF('Main Menu'!$C$8='Main Menu'!$N$6,IF(ISNUMBER(G25)=FALSE,".",G25),".")) -> . | AB25: =IF('Main Menu'!$C$8='Main Menu'!$N$5,".",IF('Main Menu'!$C$8='Main Menu'!$N$6,IF(ISNUMBER(H25)=FALSE,".",H25),".")) -> . | AC25: =IF(OR('Main Menu'!$C$8='Main Menu'!$N$5,'Main Menu'!$C$8='Main Menu'!$N$6),IF(ISNUMBER(I25)=FALSE,".",I25),O25) -> 5268.749668 | AD25: =IF(OR('Main Menu'!$C$8='Main Menu'!$N$5,'Main Menu'!$C$8='Main Menu'!$N$6),IF(ISNUMBER(J25)=FALSE,".",J25),P25) -> 2610.297097 | AE25: =IF(OR('Main Menu'!$C$8='Main Menu'!$N$5,'Main Menu'!$C$8='Main Menu'!$N$6),IF(ISNUMBER(K25)=FALSE,".",K25),Q25) -> 478.2519154 | AF25: =IF(OR('Main Menu'!$C$8='Main Menu'!$N$5,'Main Menu'!$C$8='Main Menu'!$N$6),IF(ISNUMBER(L25)=FALSE,".",L25),R25) -> 2180.200656 | AG25: =IF(OR('Main Menu'!$C$8='Main Menu'!$N$5,'Main Menu'!$C$8='Main Menu'!$N$6),"Manual",S25) -> GDP | AH25: =IF(OR($U25<$AH$22,$U25>$AH$23),0,1) -> 0 | AJ25: =IF(OR('Main Menu'!$C$8='Main Menu'!$N$5,'Main Menu'!$C$8='Main Menu'!$N$7),IF(ISNUMBER($AD25*$AE25*$AF25)=FALSE,".",IF($AC25=".",".",$U25)),IF(ISNUMBER($V25*$W25*$X25*$Y25*$Z25*$AA25*$AB25)=FALSE,".",IF($AC25=".",".",$U25))) -> 1990 | AK25: =IF(AJ25=".",".",IF(SUM(AP25:AQ25)=0,".",AJ25)) -> . | AL25: =IF(ISERROR(SUM(AD25:AF25)-AC25),0,IF(SUM(AD25:AF25)=0,0,ROUND(SUM(AD25:AF25)-AC25,5))) -> 0 | AM25: =IF(ISERROR((V25+W25+X25+Y25+Z25+AA25+AB25-AC25)),0,IF((V25+W25+X25+Y25+Z25+AA25+AB25)=0,0,(V25+W25+X25+Y25+Z25+AA25+AB25-AC25))) -> 0 | AN25: =IF(OR('Main Menu'!$C$8='Main Menu'!$N$5,'Main Menu'!$C$8='Main Menu'!$N$7),AL25,AM25) -> 0 | AO25: =IF(OR('Main Menu'!$C$8='Main Menu'!$N$5,'Main Menu'!$C$8='Main Menu'!$N$7),0,IF(ISERROR(V25+W25+X25+Y25+Z25+AA25+AB25-AD25-AE25-AF25),0,ROUND(V25+W25+X25+Y25+Z25+AA25+AB25-AD25-AE25-AF25,6))) -> 0 | AP25: ='Selected Data_Employment'!BJ23 -> 0 | AQ25: ='Selected Data_Employment'!BK23 -> 0 | AR25: =IF(AND($AJ25>=$AR$2,$AJ25<=$AR$3),IF($AG25=AR$24,$AJ25,"."),".") -> . | AS25: . | AT25: .
A26: =A25+1 -> 1991 | B26: ='Manual Data'!AG17 -> . | C26: ='Manual Data'!AH17 -> . | D26: ='Manual Data'!AI17 -> . | E26: ='Manual Data'!AJ17 -> . | F26: ='Manual Data'!AK17 -> . | G26: ='Manual Data'!AL17 -> . | H26: ='Manual Data'!AM17 -> . | I26: . | J26: ='Manual Data'!AN17 -> . | K26: ='Manual Data'!AO17 -> . | L26: ='Manual Data'!AP17 -> . | N26: 1991 | O26: ='Existing Data_WDI'!AL14 -> 5561.381056 | P26: ='Existing Data_WDI'!AM14 -> 2694.381767 | Q26: ='Existing Data_WDI'!AN14 -> 519.1999489 | R26: ='Existing Data_WDI'!AO14 -> 2347.79934 | S26: ='Existing Data_WDI'!AW14 -> GDP | U26: 1991 | V26: =IF('Main Menu'!$C$8='Main Menu'!$N$5,".",IF('Main Menu'!$C$8='Main Menu'!$N$6,IF(ISNUMBER(B26)=FALSE,".",B26),".")) -> . | W26: =IF('Main Menu'!$C$8='Main Menu'!$N$5,".",IF('Main Menu'!$C$8='Main Menu'!$N$6,IF(ISNUMBER(C26)=FALSE,".",C26),".")) -> . | X26: =IF('Main Menu'!$C$8='Main Menu'!$N$5,".",IF('Main Menu'!$C$8='Main Menu'!$N$6,IF(ISNUMBER(D26)=FALSE,".",D26),".")) -> . | Y26: =IF('Main Menu'!$C$8='Main Menu'!$N$5,".",IF('Main Menu'!$C$8='Main Menu'!$N$6,IF(ISNUMBER(E26)=FALSE,".",E26),".")) -> . | Z26: =IF('Main Menu'!$C$8='Main Menu'!$N$5,".",IF('Main Menu'!$C$8='Main Menu'!$N$6,IF(ISNUMBER(F26)=FALSE,".",F26),".")) -> . | AA26: =IF('Main Menu'!$C$8='Main Menu'!$N$5,".",IF('Main Menu'!$C$8='Main Menu'!$N$6,IF(ISNUMBER(G26)=FALSE,".",G26),".")) -> . | AB26: =IF('Main Menu'!$C$8='Main Menu'!$N$5,".",IF('Main Menu'!$C$8='Main Menu'!$N$6,IF(ISNUMBER(H26)=FALSE,".",H26),".")) -> . | AC26: =IF(OR('Main Menu'!$C$8='Main Menu'!$N$5,'Main Menu'!$C$8='Main Menu'!$N$6),IF(ISNUMBER(I26)=FALSE,".",I26),O26) -> 5561.381056 | AD26: =IF(OR('Main Menu'!$C$8='Main Menu'!$N$5,'Main Menu'!$C$8='Main Menu'!$N$6),IF(ISNUMBER(J26)=FALSE,".",J26),P26) -> 2694.381767 | AE26: =IF(OR('Main Menu'!$C$8='Main Menu'!$N$5,'Main Menu'!$C$8='Main Menu'!$N$6),IF(ISNUMBER(K26)=FALSE,".",K26),Q26) -> 519.1999489 | AF26: =IF(OR('Main Menu'!$C$8='Main Menu'!$N$5,'Main Menu'!$C$8='Main Menu'!$N$6),IF(ISNUMBER(L26)=FALSE,".",L26),R26) -> 2347.79934 | AG26: =IF(OR('Main Menu'!$C$8='Main Menu'!$N$5,'Main Menu'!$C$8='Main Menu'!$N$6),"Manual",S26) -> GDP | AH26: 1 | AJ26: =IF(OR('Main Menu'!$C$8='Main Menu'!$N$5,'Main Menu'!$C$8='Main Menu'!$N$7),IF(ISNUMBER($AD26*$AE26*$AF26)=FALSE,".",IF($AC26=".",".",$U26)),IF(ISNUMBER($V26*$W26*$X26*$Y26*$Z26*$AA26*$AB26)=FALSE,".",IF($AC26=".",".",$U26))) -> 1991 | AK26: 1991 | AL26: 0 | AM26: 0 | AN26: =IF(OR('Main Menu'!$C$8='Main Menu'!$N$5,'Main Menu'!$C$8='Main Menu'!$N$7),AL26,AM26) -> 0 | AO26: =IF(OR('Main Menu'!$C$8='Main Menu'!$N$5,'Main Menu'!$C$8='Main Menu'!$N$7),0,IF(ISERROR(V26+W26+X26+Y26+Z26+AA26+AB26-AD26-AE26-AF26),0,ROUND(V26+W26+X26+Y26+Z26+AA26+AB26-AD26-AE26-AF26,6))) -> 0 | AP26: ='Selected Data_Employment'!BJ24 -> 0 | AQ26: ='Selected Data_Employment'!BK24 -> 1 | AR26: . | AS26: . | AT26: .
A27: 1992 | B27: ='Manual Data'!AG18 -> . | C27: ='Manual Data'!AH18 -> . | D27: ='Manual Data'!AI18 -> . | E27: ='Manual Data'!AJ18 -> . | F27: ='Manual Data'!AK18 -> . | G27: ='Manual Data'!AL18 -> . | H27: ='Manual Data'!AM18 -> . | I27: . | J27: ='Manual Data'!AN18 -> . | K27: ='Manual Data'!AO18 -> . | L27: ='Manual Data'!AP18 -> . | N27: 1992 | O27: ='Existing Data_WDI'!AL15 -> 5751.488908 | P27: ='Existing Data_WDI'!AM15 -> 2670.797974 | Q27: ='Existing Data_WDI'!AN15 -> 563.5130135 | R27: ='Existing Data_WDI'!AO15 -> 2517.177921 | S27: ='Existing Data_WDI'!AW15 -> GDP | U27: 1992 | V27: =IF('Main Menu'!$C$8='Main Menu'!$N$5,".",IF('Main Menu'!$C$8='Main Menu'!$N$6,IF(ISNUMBER(B27)=FALSE,".",B27),".")) -> . | W27: =IF('Main Menu'!$C$8='Main Menu'!$N$5,".",IF('Main Menu'!$C$8='Main Menu'!$N$6,IF(ISNUMBER(C27)=FALSE,".",C27),".")) -> . | X27: =IF('Main Menu'!$C$8='Main Menu'!$N$5,".",IF('Main Menu'!$C$8='Main Menu'!$N$6,IF(ISNUMBER(D27)=FALSE,".",D27),".")) -> . | Y27: =IF('Main Menu'!$C$8='Main Menu'!$N$5,".",IF('Main Menu'!$C$8='Main Menu'!$N$6,IF(ISNUMBER(E27)=FALSE,".",E27),".")) -> . | Z27: =IF('Main Menu'!$C$8='Main Menu'!$N$5,".",IF('Main Menu'!$C$8='Main Menu'!$N$6,IF(ISNUMBER(F27)=FALSE,".",F27),".")) -> . | AA27: =IF('Main Menu'!$C$8='Main Menu'!$N$5,".",IF('Main Menu'!$C$8='Main Menu'!$N$6,IF(ISNUMBER(G27)=FALSE,".",G27),".")) -> . | AB27: =IF('Main Menu'!$C$8='Main Menu'!$N$5,".",IF('Main Menu'!$C$8='Main Menu'!$N$6,IF(ISNUMBER(H27)=FALSE,".",H27),".")) -> . | AC27: =IF(OR('Main Menu'!$C$8='Main Menu'!$N$5,'Main Menu'!$C$8='Main Menu'!$N$6),IF(ISNUMBER(I27)=FALSE,".",I27),O27) -> 5751.488908 | AD27: =IF(OR('Main Menu'!$C$8='Main Menu'!$N$5,'Main Menu'!$C$8='Main Menu'!$N$6),IF(ISNUMBER(J27)=FALSE,".",J27),P27) -> 2670.797974 | AE27: =IF(OR('Main Menu'!$C$8='Main Menu'!$N$5,'Main Menu'!$C$8='Main Menu'!$N$6),IF(ISNUMBER(K27)=FALSE,".",K27),Q27) -> 563.5130135 | AF27: =IF(OR('Main Menu'!$C$8='Main Menu'!$N$5,'Main Menu'!$C$8='Main Menu'!$N$6),IF(ISNUMBER(L27)=FALSE,".",L27),R27) -> 2517.177921 | AG27: =IF(OR('Main Menu'!$C$8='Main Menu'!$N$5,'Main Menu'!$C$8='Main Menu'!$N$6),"Manual",S27) -> GDP | AH27: 1 | AJ27: =IF(OR('Main Menu'!$C$8='Main Menu'!$N$5,'Main Menu'!$C$8='Main Menu'!$N$7),IF(ISNUMBER($AD27*$AE27*$AF27)=FALSE,".",IF($AC27=".",".",$U27)),IF(ISNUMBER($V27*$W27*$X27*$Y27*$Z27*$AA27*$AB27)=FALSE,".",IF($AC27=".",".",$U27))) -> 1992 | AK27: 1992 | AL27: 0 | AM27: 0 | AN27: =IF(OR('Main Menu'!$C$8='Main Menu'!$N$5,'Main Menu'!$C$8='Main Menu'!$N$7),AL27,AM27) -> 0 | AO27: =IF(OR('Main Menu'!$C$8='Main Menu'!$N$5,'Main Menu'!$C$8='Main Menu'!$N$7),0,IF(ISERROR(V27+W27+X27+Y27+Z27+AA27+AB27-AD27-AE27-AF27),0,ROUND(V27+W27+X27+Y27+Z27+AA27+AB27-AD27-AE27-AF27,6))) -> 0 | AP27: ='Selected Data_Employment'!BJ25 -> 0 | AQ27: ='Selected Data_Employment'!BK25 -> 1 | AR27: . | AS27: . | AT27: .
A28: 1993 | B28: ='Manual Data'!AG19 -> . | C28: ='Manual Data'!AH19 -> . | D28: ='Manual Data'!AI19 -> . | E28: ='Manual Data'!AJ19 -> . | F28: ='Manual Data'!AK19 -> . | G28: ='Manual Data'!AL19 -> . | H28: ='Manual Data'!AM19 -> . | I28: . | J28: ='Manual Data'!AN19 -> . | K28: ='Manual Data'!AO19 -> . | L28: ='Manual Data'!AP19 -> . | N28: 1993 | O28: ='Existing Data_WDI'!AL16 -> 6230.374699 | P28: ='Existing Data_WDI'!AM16 -> 2913.920809 | Q28: ='Existing Data_WDI'!AN16 -> 609.5047253 | R28: ='Existing Data_WDI'!AO16 -> 2706.949165 | S28: ='Existing Data_WDI'!AW16 -> GDP | U28: 1993 | V28: =IF('Main Menu'!$C$8='Main Menu'!$N$5,".",IF('Main Menu'!$C$8='Main Menu'!$N$6,IF(ISNUMBER(B28)=FALSE,".",B28),".")) -> . | W28: =IF('Main Menu'!$C$8='Main Menu'!$N$5,".",IF('Main Menu'!$C$8='Main Menu'!$N$6,IF(ISNUMBER(C28)=FALSE,".",C28),".")) -> . | X28: =IF('Main Menu'!$C$8='Main Menu'!$N$5,".",IF('Main Menu'!$C$8='Main Menu'!$N$6,IF(ISNUMBER(D28)=FALSE,".",D28),".")) -> . | Y28: =IF('Main Menu'!$C$8='Main Menu'!$N$5,".",IF('Main Menu'!$C$8='Main Menu'!$N$6,IF(ISNUMBER(E28)=FALSE,".",E28),".")) -> . | Z28: =IF('Main Menu'!$C$8='Main Menu'!$N$5,".",IF('Main Menu'!$C$8='Main Menu'!$N$6,IF(ISNUMBER(F28)=FALSE,".",F28),".")) -> . | AA28: =IF('Main Menu'!$C$8='Main Menu'!$N$5,".",IF('Main Menu'!$C$8='Main Menu'!$N$6,IF(ISNUMBER(G28)=FALSE,".",G28),".")) -> . | AB28: =IF('Main Menu'!$C$8='Main Menu'!$N$5,".",IF('Main Menu'!$C$8='Main Menu'!$N$6,IF(ISNUMBER(H28)=FALSE,".",H28),".")) -> . | AC28: =IF(OR('Main Menu'!$C$8='Main Menu'!$N$5,'Main Menu'!$C$8='Main Menu'!$N$6),IF(ISNUMBER(I28)=FALSE,".",I28),O28) -> 6230.374699 | AD28: =IF(OR('Main Menu'!$C$8='Main Menu'!$N$5,'Main Menu'!$C$8='Main Menu'!$N$6),IF(ISNUMBER(J28)=FALSE,".",J28),P28) -> 2913.920809 | AE28: =IF(OR('Main Menu'!$C$8='Main Menu'!$N$5,'Main Menu'!$C$8='Main Menu'!$N$6),IF(ISNUMBER(K28)=FALSE,".",K28),Q28) -> 609.5047253 | AF28: =IF(OR('Main Menu'!$C$8='Main Menu'!$N$5,'Main Menu'!$C$8='Main Menu'!$N$6),IF(ISNUMBER(L28)=FALSE,".",L28),R28) -> 2706.949165 | AG28: =IF(OR('Main Menu'!$C$8='Main Menu'!$N$5,'Main Menu'!$C$8='Main Menu'!$N$6),"Manual",S28) -> GDP | AH28: 1 | AJ28: =IF(OR('Main Menu'!$C$8='Main Menu'!$N$5,'Main Menu'!$C$8='Main Menu'!$N$7),IF(ISNUMBER($AD28*$AE28*$AF28)=FALSE,".",IF($AC28=".",".",$U28)),IF(ISNUMBER($V28*$W28*$X28*$Y28*$Z28*$AA28*$AB28)=FALSE,".",IF($AC28=".",".",$U28))) -> 1993 | AK28: 1993 | AL28: 0 | AM28: 0 | AN28: =IF(OR('Main Menu'!$C$8='Main Menu'!$N$5,'Main Menu'!$C$8='Main Menu'!$N$7),AL28,AM28) -> 0 | AO28: =IF(OR('Main Menu'!$C$8='Main Menu'!$N$5,'Main Menu'!$C$8='Main Menu'!$N$7),0,IF(ISERROR(V28+W28+X28+Y28+Z28+AA28+AB28-AD28-AE28-AF28),0,ROUND(V28+W28+X28+Y28+Z28+AA28+AB28-AD28-AE28-AF28,6))) -> 0 | AP28: ='Selected Data_Employment'!BJ26 -> 0 | AQ28: ='Selected Data_Employment'!BK26 -> 1 | AR28: . | AS28: . | AT28: .
A29: 1994 | B29: ='Manual Data'!AG20 -> . | C29: ='Manual Data'!AH20 -> . | D29: ='Manual Data'!AI20 -> . | E29: ='Manual Data'!AJ20 -> . | F29: ='Manual Data'!AK20 -> . | G29: ='Manual Data'!AL20 -> . | H29: ='Manual Data'!AM20 -> . | I29: . | J29: ='Manual Data'!AN20 -> . | K29: ='Manual Data'!AO20 -> . | L29: ='Manual Data'!AP20 -> . | N29: 1994 | O29: ='Existing Data_WDI'!AL17 -> 6629.3452 | P29: ='Existing Data_WDI'!AM17 -> 2925.064778 | Q29: ='Existing Data_WDI'!AN17 -> 679.6658138 | R29: ='Existing Data_WDI'!AO17 -> 3024.614609 | S29: ='Existing Data_WDI'!AW17 -> GDP | U29: 1994 | V29: =IF('Main Menu'!$C$8='Main Menu'!$N$5,".",IF('Main Menu'!$C$8='Main Menu'!$N$6,IF(ISNUMBER(B29)=FALSE,".",B29),".")) -> . | W29: =IF('Main Menu'!$C$8='Main Menu'!$N$5,".",IF('Main Menu'!$C$8='Main Menu'!$N$6,IF(ISNUMBER(C29)=FALSE,".",C29),".")) -> . | X29: =IF('Main Menu'!$C$8='Main Menu'!$N$5,".",IF('Main Menu'!$C$8='Main Menu'!$N$6,IF(ISNUMBER(D29)=FALSE,".",D29),".")) -> . | Y29: =IF('Main Menu'!$C$8='Main Menu'!$N$5,".",IF('Main Menu'!$C$8='Main Menu'!$N$6,IF(ISNUMBER(E29)=FALSE,".",E29),".")) -> . | Z29: =IF('Main Menu'!$C$8='Main Menu'!$N$5,".",IF('Main Menu'!$C$8='Main Menu'!$N$6,IF(ISNUMBER(F29)=FALSE,".",F29),".")) -> . | AA29: =IF('Main Menu'!$C$8='Main Menu'!$N$5,".",IF('Main Menu'!$C$8='Main Menu'!$N$6,IF(ISNUMBER(G29)=FALSE,".",G29),".")) -> . | AB29: =IF('Main Menu'!$C$8='Main Menu'!$N$5,".",IF('Main Menu'!$C$8='Main Menu'!$N$6,IF(ISNUMBER(H29)=FALSE,".",H29),".")) -> . | AC29: =IF(OR('Main Menu'!$C$8='Main Menu'!$N$5,'Main Menu'!$C$8='Main Menu'!$N$6),IF(ISNUMBER(I29)=FALSE,".",I29),O29) -> 6629.3452 | AD29: =IF(OR('Main Menu'!$C$8='Main Menu'!$N$5,'Main Menu'!$C$8='Main Menu'!$N$6),IF(ISNUMBER(J29)=FALSE,".",J29),P29) -> 2925.064778 | AE29: =IF(OR('Main Menu'!$C$8='Main Menu'!$N$5,'Main Menu'!$C$8='Main Menu'!$N$6),IF(ISNUMBER(K29)=FALSE,".",K29),Q29) -> 679.6658138 | AF29: =IF(OR('Main Menu'!$C$8='Main Menu'!$N$5,'Main Menu'!$C$8='Main Menu'!$N$6),IF(ISNUMBER(L29)=FALSE,".",L29),R29) -> 3024.614609 | AG29: =IF(OR('Main Menu'!$C$8='Main Menu'!$N$5,'Main Menu'!$C$8='Main Menu'!$N$6),"Manual",S29) -> GDP | AH29: 1 | AJ29: =IF(OR('Main Menu'!$C$8='Main Menu'!$N$5,'Main Menu'!$C$8='Main Menu'!$N$7),IF(ISNUMBER($AD29*$AE29*$AF29)=FALSE,".",IF($AC29=".",".",$U29)),IF(ISNUMBER($V29*$W29*$X29*$Y29*$Z29*$AA29*$AB29)=FALSE,".",IF($AC29=".",".",$U29))) -> 1994 | AK29: 1994 | AL29: 0 | AM29: 0 | AN29: =IF(OR('Main Menu'!$C$8='Main Menu'!$N$5,'Main Menu'!$C$8='Main Menu'!$N$7),AL29,AM29) -> 0 | AO29: =IF(OR('Main Menu'!$C$8='Main Menu'!$N$5,'Main Menu'!$C$8='Main Menu'!$N$7),0,IF(ISERROR(V29+W29+X29+Y29+Z29+AA29+AB29-AD29-AE29-AF29),0,ROUND(V29+W29+X29+Y29+Z29+AA29+AB29-AD29-AE29-AF29,6))) -> 0 | AP29: ='Selected Data_Employment'!BJ27 -> 0 | AQ29: ='Selected Data_Employment'!BK27 -> 1 | AR29: . | AS29: . | AT29: .
A30: 1995 | B30: ='Manual Data'!AG21 -> . | C30: ='Manual Data'!AH21 -> . | D30: ='Manual Data'!AI21 -> . | E30: ='Manual Data'!AJ21 -> . | F30: ='Manual Data'!AK21 -> . | G30: ='Manual Data'!AL21 -> . | H30: ='Manual Data'!AM21 -> . | I30: . | J30: ='Manual Data'!AN21 -> . | K30: ='Manual Data'!AO21 -> . | L30: ='Manual Data'!AP21 -> . | N30: 1995 | O30: ='Existing Data_WDI'!AL18 -> 7393.260811 | P30: ='Existing Data_WDI'!AM18 -> 3181.193391 | Q30: ='Existing Data_WDI'!AN18 -> 839.4024803 | R30: ='Existing Data_WDI'!AO18 -> 3372.66494 | S30: ='Existing Data_WDI'!AW18 -> GDP | U30: 1995 | V30: =IF('Main Menu'!$C$8='Main Menu'!$N$5,".",IF('Main Menu'!$C$8='Main Menu'!$N$6,IF(ISNUMBER(B30)=FALSE,".",B30),".")) -> . | W30: =IF('Main Menu'!$C$8='Main Menu'!$N$5,".",IF('Main Menu'!$C$8='Main Menu'!$N$6,IF(ISNUMBER(C30)=FALSE,".",C30),".")) -> . | X30: =IF('Main Menu'!$C$8='Main Menu'!$N$5,".",IF('Main Menu'!$C$8='Main Menu'!$N$6,IF(ISNUMBER(D30)=FALSE,".",D30),".")) -> . | Y30: =IF('Main Menu'!$C$8='Main Menu'!$N$5,".",IF('Main Menu'!$C$8='Main Menu'!$N$6,IF(ISNUMBER(E30)=FALSE,".",E30),".")) -> . | Z30: =IF('Main Menu'!$C$8='Main Menu'!$N$5,".",IF('Main Menu'!$C$8='Main Menu'!$N$6,IF(ISNUMBER(F30)=FALSE,".",F30),".")) -> . | AA30: =IF('Main Menu'!$C$8='Main Menu'!$N$5,".",IF('Main Menu'!$C$8='Main Menu'!$N$6,IF(ISNUMBER(G30)=FALSE,".",G30),".")) -> . | AB30: =IF('Main Menu'!$C$8='Main Menu'!$N$5,".",IF('Main Menu'!$C$8='Main Menu'!$N$6,IF(ISNUMBER(H30)=FALSE,".",H30),".")) -> . | AC30: =IF(OR('Main Menu'!$C$8='Main Menu'!$N$5,'Main Menu'!$C$8='Main Menu'!$N$6),IF(ISNUMBER(I30)=FALSE,".",I30),O30) -> 7393.260811 | AD30: =IF(OR('Main Menu'!$C$8='Main Menu'!$N$5,'Main Menu'!$C$8='Main Menu'!$N$6),IF(ISNUMBER(J30)=FALSE,".",J30),P30) -> 3181.193391 | AE30: =IF(OR('Main Menu'!$C$8='Main Menu'!$N$5,'Main Menu'!$C$8='Main Menu'!$N$6),IF(ISNUMBER(K30)=FALSE,".",K30),Q30) -> 839.4024803 | AF30: =IF(OR('Main Menu'!$C$8='Main Menu'!$N$5,'Main Menu'!$C$8='Main Menu'!$N$6),IF(ISNUMBER(L30)=FALSE,".",L30),R30) -> 3372.66494 | AG30: =IF(OR('Main Menu'!$C$8='Main Menu'!$N$5,'Main Menu'!$C$8='Main Menu'!$N$6),"Manual",S30) -> GDP | AH30: 1 | AJ30: =IF(OR('Main Menu'!$C$8='Main Menu'!$N$5,'Main Menu'!$C$8='Main Menu'!$N$7),IF(ISNUMBER($AD30*$AE30*$AF30)=FALSE,".",IF($AC30=".",".",$U30)),IF(ISNUMBER($V30*$W30*$X30*$Y30*$Z30*$AA30*$AB30)=FALSE,".",IF($AC30=".",".",$U30))) -> 1995 | AK30: 1995 | AL30: 0 | AM30: 0 | AN30: =IF(OR('Main Menu'!$C$8='Main Menu'!$N$5,'Main Menu'!$C$8='Main Menu'!$N$7),AL30,AM30) -> 0 | AO30: =IF(OR('Main Menu'!$C$8='Main Menu'!$N$5,'Main Menu'!$C$8='Main Menu'!$N$7),0,IF(ISERROR(V30+W30+X30+Y30+Z30+AA30+AB30-AD30-AE30-AF30),0,ROUND(V30+W30+X30+Y30+Z30+AA30+AB30-AD30-AE30-AF30,6))) -> 0 | AP30: ='Selected Data_Employment'!BJ28 -> 0 | AQ30: ='Selected Data_Employment'!BK28 -> 1 | AR30: . | AS30: . | AT30: .
A31: 1996 | B31: ='Manual Data'!AG22 -> . | C31: ='Manual Data'!AH22 -> . | D31: ='Manual Data'!AI22 -> . | E31: ='Manual Data'!AJ22 -> . | F31: ='Manual Data'!AK22 -> . | G31: ='Manual Data'!AL22 -> . | H31: ='Manual Data'!AM22 -> . | I31: . | J31: ='Manual Data'!AN22 -> . | K31: ='Manual Data'!AO22 -> . | L31: ='Manual Data'!AP22 -> . | N31: 1996 | O31: ='Existing Data_WDI'!AL19 -> 8063.985903 | P31: ='Existing Data_WDI'!AM19 -> 3402.910139 | Q31: ='Existing Data_WDI'!AN19 -> 1003.926073 | R31: ='Existing Data_WDI'!AO19 -> 3657.149691 | S31: ='Existing Data_WDI'!AW19 -> GDP | U31: 1996 | V31: =IF('Main Menu'!$C$8='Main Menu'!$N$5,".",IF('Main Menu'!$C$8='Main Menu'!$N$6,IF(ISNUMBER(B31)=FALSE,".",B31),".")) -> . | W31: =IF('Main Menu'!$C$8='Main Menu'!$N$5,".",IF('Main Menu'!$C$8='Main Menu'!$N$6,IF(ISNUMBER(C31)=FALSE,".",C31),".")) -> . | X31: =IF('Main Menu'!$C$8='Main Menu'!$N$5,".",IF('Main Menu'!$C$8='Main Menu'!$N$6,IF(ISNUMBER(D31)=FALSE,".",D31),".")) -> . | Y31: =IF('Main Menu'!$C$8='Main Menu'!$N$5,".",IF('Main Menu'!$C$8='Main Menu'!$N$6,IF(ISNUMBER(E31)=FALSE,".",E31),".")) -> . | Z31: =IF('Main Menu'!$C$8='Main Menu'!$N$5,".",IF('Main Menu'!$C$8='Main Menu'!$N$6,IF(ISNUMBER(F31)=FALSE,".",F31),".")) -> . | AA31: =IF('Main Menu'!$C$8='Main Menu'!$N$5,".",IF('Main Menu'!$C$8='Main Menu'!$N$6,IF(ISNUMBER(G31)=FALSE,".",G31),".")) -> . | AB31: =IF('Main Menu'!$C$8='Main Menu'!$N$5,".",IF('Main Menu'!$C$8='Main Menu'!$N$6,IF(ISNUMBER(H31)=FALSE,".",H31),".")) -> . | AC31: =IF(OR('Main Menu'!$C$8='Main Menu'!$N$5,'Main Menu'!$C$8='Main Menu'!$N$6),IF(ISNUMBER(I31)=FALSE,".",I31),O31) -> 8063.985903 | AD31: =IF(OR('Main Menu'!$C$8='Main Menu'!$N$5,'Main Menu'!$C$8='Main Menu'!$N$6),IF(ISNUMBER(J31)=FALSE,".",J31),P31) -> 3402.910139 | AE31: =IF(OR('Main Menu'!$C$8='Main Menu'!$N$5,'Main Menu'!$C$8='Main Menu'!$N$6),IF(ISNUMBER(K31)=FALSE,".",K31),Q31) -> 1003.926073 | AF31: =IF(OR('Main Menu'!$C$8='Main Menu'!$N$5,'Main Menu'!$C$8='Main Menu'!$N$6),IF(ISNUMBER(L31)=FALSE,".",L31),R31) -> 3657.149691 | AG31: =IF(OR('Main Menu'!$C$8='Main Menu'!$N$5,'Main Menu'!$C$8='Main Menu'!$N$6),"Manual",S31) -> GDP | AH31: 1 | AJ31: =IF(OR('Main Menu'!$C$8='Main Menu'!$N$5,'Main Menu'!$C$8='Main Menu'!$N$7),IF(ISNUMBER($AD31*$AE31*$AF31)=FALSE,".",IF($AC31=".",".",$U31)),IF(ISNUMBER($V31*$W31*$X31*$Y31*$Z31*$AA31*$AB31)=FALSE,".",IF($AC31=".",".",$U31))) -> 1996 | AK31: 1996 | AL31: 0 | AM31: 0 | AN31: =IF(OR('Main Menu'!$C$8='Main Menu'!$N$5,'Main Menu'!$C$8='Main Menu'!$N$7),AL31,AM31) -> 0 | AO31: =IF(OR('Main Menu'!$C$8='Main Menu'!$N$5,'Main Menu'!$C$8='Main Menu'!$N$7),0,IF(ISERROR(V31+W31+X31+Y31+Z31+AA31+AB31-AD31-AE31-AF31),0,ROUND(V31+W31+X31+Y31+Z31+AA31+AB31-AD31-AE31-AF31,6))) -> 0 | AP31: ='Selected Data_Employment'!BJ29 -> 0 | AQ31: ='Selected Data_Employment'!BK29 -> 1 | AR31: . | AS31: . | AT31: .
A32: 1997 | B32: ='Manual Data'!AG23 -> . | C32: ='Manual Data'!AH23 -> . | D32: ='Manual Data'!AI23 -> . | E32: ='Manual Data'!AJ23 -> . | F32: ='Manual Data'!AK23 -> . | G32: ='Manual Data'!AL23 -> . | H32: ='Manual Data'!AM23 -> . | I32: . | J32: ='Manual Data'!AN23 -> . | K32: ='Manual Data'!AO23 -> . | L32: ='Manual Data'!AP23 -> . | N32: 1997 | O32: ='Existing Data_WDI'!AL20 -> 8475.249334 | P32: ='Existing Data_WDI'!AM20 -> 3419.669529 | Q32: ='Existing Data_WDI'!AN20 -> 1111.369474 | R32: ='Existing Data_WDI'!AO20 -> 3944.210332 | S32: ='Existing Data_WDI'!AW20 -> GDP | U32: 1997 | V32: =IF('Main Menu'!$C$8='Main Menu'!$N$5,".",IF('Main Menu'!$C$8='Main Menu'!$N$6,IF(ISNUMBER(B32)=FALSE,".",B32),".")) -> . | W32: =IF('Main Menu'!$C$8='Main Menu'!$N$5,".",IF('Main Menu'!$C$8='Main Menu'!$N$6,IF(ISNUMBER(C32)=FALSE,".",C32),".")) -> . | X32: =IF('Main Menu'!$C$8='Main Menu'!$N$5,".",IF('Main Menu'!$C$8='Main Menu'!$N$6,IF(ISNUMBER(D32)=FALSE,".",D32),".")) -> . | Y32: =IF('Main Menu'!$C$8='Main Menu'!$N$5,".",IF('Main Menu'!$C$8='Main Menu'!$N$6,IF(ISNUMBER(E32)=FALSE,".",E32),".")) -> . | Z32: =IF('Main Menu'!$C$8='Main Menu'!$N$5,".",IF('Main Menu'!$C$8='Main Menu'!$N$6,IF(ISNUMBER(F32)=FALSE,".",F32),".")) -> . | AA32: =IF('Main Menu'!$C$8='Main Menu'!$N$5,".",IF('Main Menu'!$C$8='Main Menu'!$N$6,IF(ISNUMBER(G32)=FALSE,".",G32),".")) -> . | AB32: =IF('Main Menu'!$C$8='Main Menu'!$N$5,".",IF('Main Menu'!$C$8='Main Menu'!$N$6,IF(ISNUMBER(H32)=FALSE,".",H32),".")) -> . | AC32: =IF(OR('Main Menu'!$C$8='Main Menu'!$N$5,'Main Menu'!$C$8='Main Menu'!$N$6),IF(ISNUMBER(I32)=FALSE,".",I32),O32) -> 8475.249334 | AD32: =IF(OR('Main Menu'!$C$8='Main Menu'!$N$5,'Main Menu'!$C$8='Main Menu'!$N$6),IF(ISNUMBER(J32)=FALSE,".",J32),P32) -> 3419.669529 | AE32: =IF(OR('Main Menu'!$C$8='Main Menu'!$N$5,'Main Menu'!$C$8='Main Menu'!$N$6),IF(ISNUMBER(K32)=FALSE,".",K32),Q32) -> 1111.369474 | AF32: =IF(OR('Main Menu'!$C$8='Main Menu'!$N$5,'Main Menu'!$C$8='Main Menu'!$N$6),IF(ISNUMBER(L32)=FALSE,".",L32),R32) -> 3944.210332 | AG32: =IF(OR('Main Menu'!$C$8='Main Menu'!$N$5,'Main Menu'!$C$8='Main Menu'!$N$6),"Manual",S32) -> GDP | AH32: 1 | AJ32: =IF(OR('Main Menu'!$C$8='Main Menu'!$N$5,'Main Menu'!$C$8='Main Menu'!$N$7),IF(ISNUMBER($AD32*$AE32*$AF32)=FALSE,".",IF($AC32=".",".",$U32)),IF(ISNUMBER($V32*$W32*$X32*$Y32*$Z32*$AA32*$AB32)=FALSE,".",IF($AC32=".",".",$U32))) -> 1997 | AK32: 1997 | AL32: 0 | AM32: 0 | AN32: =IF(OR('Main Menu'!$C$8='Main Menu'!$N$5,'Main Menu'!$C$8='Main Menu'!$N$7),AL32,AM32) -> 0 | AO32: =IF(OR('Main Menu'!$C$8='Main Menu'!$N$5,'Main Menu'!$C$8='Main Menu'!$N$7),0,IF(ISERROR(V32+W32+X32+Y32+Z32+AA32+AB32-AD32-AE32-AF32),0,ROUND(V32+W32+X32+Y32+Z32+AA32+AB32-AD32-AE32-AF32,6))) -> 0 | AP32: ='Selected Data_Employment'!BJ30 -> 0 | AQ32: ='Selected Data_Employment'!BK30 -> 1 | AR32: . | AS32: . | AT32: .
A33: 1998 | B33: ='Manual Data'!AG24 -> . | C33: ='Manual Data'!AH24 -> . | D33: ='Manual Data'!AI24 -> . | E33: ='Manual Data'!AJ24 -> . | F33: ='Manual Data'!AK24 -> . | G33: ='Manual Data'!AL24 -> . | H33: ='Manual Data'!AM24 -> . | I33: . | J33: ='Manual Data'!AN24 -> . | K33: ='Manual Data'!AO24 -> . | L33: ='Manual Data'!AP24 -> . | N33: 1998 | O33: ='Existing Data_WDI'!AL21 -> 8890.982815 | P33: ='Existing Data_WDI'!AM21 -> 3471.695555 | Q33: ='Existing Data_WDI'!AN21 -> 1205.257672 | R33: ='Existing Data_WDI'!AO21 -> 4214.029587 | S33: ='Existing Data_WDI'!AW21 -> GDP | U33: 1998 | V33: =IF('Main Menu'!$C$8='Main Menu'!$N$5,".",IF('Main Menu'!$C$8='Main Menu'!$N$6,IF(ISNUMBER(B33)=FALSE,".",B33),".")) -> . | W33: =IF('Main Menu'!$C$8='Main Menu'!$N$5,".",IF('Main Menu'!$C$8='Main Menu'!$N$6,IF(ISNUMBER(C33)=FALSE,".",C33),".")) -> . | X33: =IF('Main Menu'!$C$8='Main Menu'!$N$5,".",IF('Main Menu'!$C$8='Main Menu'!$N$6,IF(ISNUMBER(D33)=FALSE,".",D33),".")) -> . | Y33: =IF('Main Menu'!$C$8='Main Menu'!$N$5,".",IF('Main Menu'!$C$8='Main Menu'!$N$6,IF(ISNUMBER(E33)=FALSE,".",E33),".")) -> . | Z33: =IF('Main Menu'!$C$8='Main Menu'!$N$5,".",IF('Main Menu'!$C$8='Main Menu'!$N$6,IF(ISNUMBER(F33)=FALSE,".",F33),".")) -> . | AA33: =IF('Main Menu'!$C$8='Main Menu'!$N$5,".",IF('Main Menu'!$C$8='Main Menu'!$N$6,IF(ISNUMBER(G33)=FALSE,".",G33),".")) -> . | AB33: =IF('Main Menu'!$C$8='Main Menu'!$N$5,".",IF('Main Menu'!$C$8='Main Menu'!$N$6,IF(ISNUMBER(H33)=FALSE,".",H33),".")) -> . | AC33: =IF(OR('Main Menu'!$C$8='Main Menu'!$N$5,'Main Menu'!$C$8='Main Menu'!$N$6),IF(ISNUMBER(I33)=FALSE,".",I33),O33) -> 8890.982815 | AD33: =IF(OR('Main Menu'!$C$8='Main Menu'!$N$5,'Main Menu'!$C$8='Main Menu'!$N$6),IF(ISNUMBER(J33)=FALSE,".",J33),P33) -> 3471.695555 | AE33: =IF(OR('Main Menu'!$C$8='Main Menu'!$N$5,'Main Menu'!$C$8='Main Menu'!$N$6),IF(ISNUMBER(K33)=FALSE,".",K33),Q33) -> 1205.257672 | AF33: =IF(OR('Main Menu'!$C$8='Main Menu'!$N$5,'Main Menu'!$C$8='Main Menu'!$N$6),IF(ISNUMBER(L33)=FALSE,".",L33),R33) -> 4214.029587 | AG33: =IF(OR('Main Menu'!$C$8='Main Menu'!$N$5,'Main Menu'!$C$8='Main Menu'!$N$6),"Manual",S33) -> GDP | AH33: 1 | AJ33: =IF(OR('Main Menu'!$C$8='Main Menu'!$N$5,'Main Menu'!$C$8='Main Menu'!$N$7),IF(ISNUMBER($AD33*$AE33*$AF33)=FALSE,".",IF($AC33=".",".",$U33)),IF(ISNUMBER($V33*$W33*$X33*$Y33*$Z33*$AA33*$AB33)=FALSE,".",IF($AC33=".",".",$U33))) -> 1998 | AK33: 1998 | AL33: 0 | AM33: 0 | AN33: =IF(OR('Main Menu'!$C$8='Main Menu'!$N$5,'Main Menu'!$C$8='Main Menu'!$N$7),AL33,AM33) -> 0 | AO33: =IF(OR('Main Menu'!$C$8='Main Menu'!$N$5,'Main Menu'!$C$8='Main Menu'!$N$7),0,IF(ISERROR(V33+W33+X33+Y33+Z33+AA33+AB33-AD33-AE33-AF33),0,ROUND(V33+W33+X33+Y33+Z33+AA33+AB33-AD33-AE33-AF33,6))) -> 0 | AP33: ='Selected Data_Employment'!BJ31 -> 0 | AQ33: ='Selected Data_Employment'!BK31 -> 1 | AR33: . | AS33: . | AT33: .
A34: 1999 | B34: ='Manual Data'!AG25 -> . | C34: ='Manual Data'!AH25 -> . | D34: ='Manual Data'!AI25 -> . | E34: ='Manual Data'!AJ25 -> . | F34: ='Manual Data'!AK25 -> . | G34: ='Manual Data'!AL25 -> . | H34: ='Manual Data'!AM25 -> . | I34: . | J34: ='Manual Data'!AN25 -> . | K34: ='Manual Data'!AO25 -> . | L34: ='Manual Data'!AP25 -> . | N34: 1999 | O34: ='Existing Data_WDI'!AL22 -> 9607.057981 | P34: ='Existing Data_WDI'!AM22 -> 3710.773953 | Q34: ='Existing Data_WDI'!AN22 -> 1343.796927 | R34: ='Existing Data_WDI'!AO22 -> 4552.487101 | S34: ='Existing Data_WDI'!AW22 -> GDP | U34: 1999 | V34: =IF('Main Menu'!$C$8='Main Menu'!$N$5,".",IF('Main Menu'!$C$8='Main Menu'!$N$6,IF(ISNUMBER(B34)=FALSE,".",B34),".")) -> . | W34: =IF('Main Menu'!$C$8='Main Menu'!$N$5,".",IF('Main Menu'!$C$8='Main Menu'!$N$6,IF(ISNUMBER(C34)=FALSE,".",C34),".")) -> . | X34: =IF('Main Menu'!$C$8='Main Menu'!$N$5,".",IF('Main Menu'!$C$8='Main Menu'!$N$6,IF(ISNUMBER(D34)=FALSE,".",D34),".")) -> . | Y34: =IF('Main Menu'!$C$8='Main Menu'!$N$5,".",IF('Main Menu'!$C$8='Main Menu'!$N$6,IF(ISNUMBER(E34)=FALSE,".",E34),".")) -> . | Z34: =IF('Main Menu'!$C$8='Main Menu'!$N$5,".",IF('Main Menu'!$C$8='Main Menu'!$N$6,IF(ISNUMBER(F34)=FALSE,".",F34),".")) -> . | AA34: =IF('Main Menu'!$C$8='Main Menu'!$N$5,".",IF('Main Menu'!$C$8='Main Menu'!$N$6,IF(ISNUMBER(G34)=FALSE,".",G34),".")) -> . | AB34: =IF('Main Menu'!$C$8='Main Menu'!$N$5,".",IF('Main Menu'!$C$8='Main Menu'!$N$6,IF(ISNUMBER(H34)=FALSE,".",H34),".")) -> . | AC34: =IF(OR('Main Menu'!$C$8='Main Menu'!$N$5,'Main Menu'!$C$8='Main Menu'!$N$6),IF(ISNUMBER(I34)=FALSE,".",I34),O34) -> 9607.057981 | AD34: =IF(OR('Main Menu'!$C$8='Main Menu'!$N$5,'Main Menu'!$C$8='Main Menu'!$N$6),IF(ISNUMBER(J34)=FALSE,".",J34),P34) -> 3710.773953 | AE34: =IF(OR('Main Menu'!$C$8='Main Menu'!$N$5,'Main Menu'!$C$8='Main Menu'!$N$6),IF(ISNUMBER(K34)=FALSE,".",K34),Q34) -> 1343.796927 | AF34: =IF(OR('Main Menu'!$C$8='Main Menu'!$N$5,'Main Menu'!$C$8='Main Menu'!$N$6),IF(ISNUMBER(L34)=FALSE,".",L34),R34) -> 4552.487101 | AG34: =IF(OR('Main Menu'!$C$8='Main Menu'!$N$5,'Main Menu'!$C$8='Main Menu'!$N$6),"Manual",S34) -> GDP | AH34: 1 | AJ34: =IF(OR('Main Menu'!$C$8='Main Menu'!$N$5,'Main Menu'!$C$8='Main Menu'!$N$7),IF(ISNUMBER($AD34*$AE34*$AF34)=FALSE,".",IF($AC34=".",".",$U34)),IF(ISNUMBER($V34*$W34*$X34*$Y34*$Z34*$AA34*$AB34)=FALSE,".",IF($AC34=".",".",$U34))) -> 1999 | AK34: 1999 | AL34: 0 | AM34: 0 | AN34: =IF(OR('Main Menu'!$C$8='Main Menu'!$N$5,'Main Menu'!$C$8='Main Menu'!$N$7),AL34,AM34) -> 0 | AO34: =IF(OR('Main Menu'!$C$8='Main Menu'!$N$5,'Main Menu'!$C$8='Main Menu'!$N$7),0,IF(ISERROR(V34+W34+X34+Y34+Z34+AA34+AB34-AD34-AE34-AF34),0,ROUND(V34+W34+X34+Y34+Z34+AA34+AB34-AD34-AE34-AF34,6))) -> 0 | AP34: ='Selected Data_Employment'!BJ32 -> 0 | AQ34: ='Selected Data_Employment'!BK32 -> 1 | AR34: . | AS34: . | AT34: .
A35: 2000 | B35: ='Manual Data'!AG26 -> . | C35: ='Manual Data'!AH26 -> . | D35: ='Manual Data'!AI26 -> . | E35: ='Manual Data'!AJ26 -> . | F35: ='Manual Data'!AK26 -> . | G35: ='Manual Data'!AL26 -> . | H35: ='Manual Data'!AM26 -> . | I35: . | J35: ='Manual Data'!AN26 -> . | K35: ='Manual Data'!AO26 -> . | L35: ='Manual Data'!AP26 -> . | N35: 2000 | O35: ='Existing Data_WDI'!AL23 -> 9908.90284 | P35: ='Existing Data_WDI'!AM23 -> 3679.616446 | Q35: ='Existing Data_WDI'!AN23 -> 1474.563439 | R35: ='Existing Data_WDI'!AO23 -> 4754.722956 | S35: ='Existing Data_WDI'!AW23 -> GDP | U35: 2000 | V35: =IF('Main Menu'!$C$8='Main Menu'!$N$5,".",IF('Main Menu'!$C$8='Main Menu'!$N$6,IF(ISNUMBER(B35)=FALSE,".",B35),".")) -> . | W35: =IF('Main Menu'!$C$8='Main Menu'!$N$5,".",IF('Main Menu'!$C$8='Main Menu'!$N$6,IF(ISNUMBER(C35)=FALSE,".",C35),".")) -> . | X35: =IF('Main Menu'!$C$8='Main Menu'!$N$5,".",IF('Main Menu'!$C$8='Main Menu'!$N$6,IF(ISNUMBER(D35)=FALSE,".",D35),".")) -> . | Y35: =IF('Main Menu'!$C$8='Main Menu'!$N$5,".",IF('Main Menu'!$C$8='Main Menu'!$N$6,IF(ISNUMBER(E35)=FALSE,".",E35),".")) -> . | Z35: =IF('Main Menu'!$C$8='Main Menu'!$N$5,".",IF('Main Menu'!$C$8='Main Menu'!$N$6,IF(ISNUMBER(F35)=FALSE,".",F35),".")) -> . | AA35: =IF('Main Menu'!$C$8='Main Menu'!$N$5,".",IF('Main Menu'!$C$8='Main Menu'!$N$6,IF(ISNUMBER(G35)=FALSE,".",G35),".")) -> . | AB35: =IF('Main Menu'!$C$8='Main Menu'!$N$5,".",IF('Main Menu'!$C$8='Main Menu'!$N$6,IF(ISNUMBER(H35)=FALSE,".",H35),".")) -> . | AC35: =IF(OR('Main Menu'!$C$8='Main Menu'!$N$5,'Main Menu'!$C$8='Main Menu'!$N$6),IF(ISNUMBER(I35)=FALSE,".",I35),O35) -> 9908.90284 | AD35: =IF(OR('Main Menu'!$C$8='Main Menu'!$N$5,'Main Menu'!$C$8='Main Menu'!$N$6),IF(ISNUMBER(J35)=FALSE,".",J35),P35) -> 3679.616446 | AE35: =IF(OR('Main Menu'!$C$8='Main Menu'!$N$5,'Main Menu'!$C$8='Main Menu'!$N$6),IF(ISNUMBER(K35)=FALSE,".",K35),Q35) -> 1474.563439 | AF35: =IF(OR('Main Menu'!$C$8='Main Menu'!$N$5,'Main Menu'!$C$8='Main Menu'!$N$6),IF(ISNUMBER(L35)=FALSE,".",L35),R35) -> 4754.722956 | AG35: =IF(OR('Main Menu'!$C$8='Main Menu'!$N$5,'Main Menu'!$C$8='Main Menu'!$N$6),"Manual",S35) -> GDP | AH35: 1 | AJ35: =IF(OR('Main Menu'!$C$8='Main Menu'!$N$5,'Main Menu'!$C$8='Main Menu'!$N$7),IF(ISNUMBER($AD35*$AE35*$AF35)=FALSE,".",IF($AC35=".",".",$U35)),IF(ISNUMBER($V35*$W35*$X35*$Y35*$Z35*$AA35*$AB35)=FALSE,".",IF($AC35=".",".",$U35))) -> 2000 | AK35: 2000 | AL35: 0 | AM35: 0 | AN35: =IF(OR('Main Menu'!$C$8='Main Menu'!$N$5,'Main Menu'!$C$8='Main Menu'!$N$7),AL35,AM35) -> 0 | AO35: =IF(OR('Main Menu'!$C$8='Main Menu'!$N$5,'Main Menu'!$C$8='Main Menu'!$N$7),0,IF(ISERROR(V35+W35+X35+Y35+Z35+AA35+AB35-AD35-AE35-AF35),0,ROUND(V35+W35+X35+Y35+Z35+AA35+AB35-AD35-AE35-AF35,6))) -> 0 | AP35: ='Selected Data_Employment'!BJ33 -> 0 | AQ35: ='Selected Data_Employment'!BK33 -> 1 | AR35: 2000 | AS35: . | AT35: .
A36: 2001 | B36: ='Manual Data'!AG27 -> . | C36: ='Manual Data'!AH27 -> . | D36: ='Manual Data'!AI27 -> . | E36: ='Manual Data'!AJ27 -> . | F36: ='Manual Data'!AK27 -> . | G36: ='Manual Data'!AL27 -> . | H36: ='Manual Data'!AM27 -> . | I36: . | J36: ='Manual Data'!AN27 -> . | K36: ='Manual Data'!AO27 -> . | L36: ='Manual Data'!AP27 -> . | N36: 2001 | O36: ='Existing Data_WDI'!AL24 -> 10422.54678 | P36: ='Existing Data_WDI'!AM24 -> 3841.315948 | Q36: ='Existing Data_WDI'!AN24 -> 1473.750133 | R36: ='Existing Data_WDI'!AO24 -> 5107.480703 | S36: ='Existing Data_WDI'!AW24 -> GDP | U36: 2001 | V36: =IF('Main Menu'!$C$8='Main Menu'!$N$5,".",IF('Main Menu'!$C$8='Main Menu'!$N$6,IF(ISNUMBER(B36)=FALSE,".",B36),".")) -> . | W36: =IF('Main Menu'!$C$8='Main Menu'!$N$5,".",IF('Main Menu'!$C$8='Main Menu'!$N$6,IF(ISNUMBER(C36)=FALSE,".",C36),".")) -> . | X36: =IF('Main Menu'!$C$8='Main Menu'!$N$5,".",IF('Main Menu'!$C$8='Main Menu'!$N$6,IF(ISNUMBER(D36)=FALSE,".",D36),".")) -> . | Y36: =IF('Main Menu'!$C$8='Main Menu'!$N$5,".",IF('Main Menu'!$C$8='Main Menu'!$N$6,IF(ISNUMBER(E36)=FALSE,".",E36),".")) -> . | Z36: =IF('Main Menu'!$C$8='Main Menu'!$N$5,".",IF('Main Menu'!$C$8='Main Menu'!$N$6,IF(ISNUMBER(F36)=FALSE,".",F36),".")) -> . | AA36: =IF('Main Menu'!$C$8='Main Menu'!$N$5,".",IF('Main Menu'!$C$8='Main Menu'!$N$6,IF(ISNUMBER(G36)=FALSE,".",G36),".")) -> . | AB36: =IF('Main Menu'!$C$8='Main Menu'!$N$5,".",IF('Main Menu'!$C$8='Main Menu'!$N$6,IF(ISNUMBER(H36)=FALSE,".",H36),".")) -> . | AC36: =IF(OR('Main Menu'!$C$8='Main Menu'!$N$5,'Main Menu'!$C$8='Main Menu'!$N$6),IF(ISNUMBER(I36)=FALSE,".",I36),O36) -> 10422.54678 | AD36: =IF(OR('Main Menu'!$C$8='Main Menu'!$N$5,'Main Menu'!$C$8='Main Menu'!$N$6),IF(ISNUMBER(J36)=FALSE,".",J36),P36) -> 3841.315948 | AE36: =IF(OR('Main Menu'!$C$8='Main Menu'!$N$5,'Main Menu'!$C$8='Main Menu'!$N$6),IF(ISNUMBER(K36)=FALSE,".",K36),Q36) -> 1473.750133 | AF36: =IF(OR('Main Menu'!$C$8='Main Menu'!$N$5,'Main Menu'!$C$8='Main Menu'!$N$6),IF(ISNUMBER(L36)=FALSE,".",L36),R36) -> 5107.480703 | AG36: =IF(OR('Main Menu'!$C$8='Main Menu'!$N$5,'Main Menu'!$C$8='Main Menu'!$N$6),"Manual",S36) -> GDP | AH36: 1 | AJ36: =IF(OR('Main Menu'!$C$8='Main Menu'!$N$5,'Main Menu'!$C$8='Main Menu'!$N$7),IF(ISNUMBER($AD36*$AE36*$AF36)=FALSE,".",IF($AC36=".",".",$U36)),IF(ISNUMBER($V36*$W36*$X36*$Y36*$Z36*$AA36*$AB36)=FALSE,".",IF($AC36=".",".",$U36))) -> 2001 | AK36: 2001 | AL36: 0 | AM36: 0 | AN36: =IF(OR('Main Menu'!$C$8='Main Menu'!$N$5,'Main Menu'!$C$8='Main Menu'!$N$7),AL36,AM36) -> 0 | AO36: =IF(OR('Main Menu'!$C$8='Main Menu'!$N$5,'Main Menu'!$C$8='Main Menu'!$N$7),0,IF(ISERROR(V36+W36+X36+Y36+Z36+AA36+AB36-AD36-AE36-AF36),0,ROUND(V36+W36+X36+Y36+Z36+AA36+AB36-AD36-AE36-AF36,6))) -> 0 | AP36: ='Selected Data_Employment'!BJ34 -> 0 | AQ36: ='Selected Data_Employment'!BK34 -> 1 | AR36: 2001 | AS36: . | AT36: .
A37: 2002 | B37: ='Manual Data'!AG28 -> . | C37: ='Manual Data'!AH28 -> . | D37: ='Manual Data'!AI28 -> . | E37: ='Manual Data'!AJ28 -> . | F37: ='Manual Data'!AK28 -> . | G37: ='Manual Data'!AL28 -> . | H37: ='Manual Data'!AM28 -> . | I37: . | J37: ='Manual Data'!AN28 -> . | K37: ='Manual Data'!AO28 -> . | L37: ='Manual Data'!AP28 -> . | N37: 2002 | O37: ='Existing Data_WDI'!AL25 -> 11332.71504 | P37: ='Existing Data_WDI'!AM25 -> 4169.192283 | Q37: ='Existing Data_WDI'!AN25 -> 1604.766036 | R37: ='Existing Data_WDI'!AO25 -> 5558.756726 | S37: ='Existing Data_WDI'!AW25 -> GDP | U37: 2002 | V37: =IF('Main Menu'!$C$8='Main Menu'!$N$5,".",IF('Main Menu'!$C$8='Main Menu'!$N$6,IF(ISNUMBER(B37)=FALSE,".",B37),".")) -> . | W37: =IF('Main Menu'!$C$8='Main Menu'!$N$5,".",IF('Main Menu'!$C$8='Main Menu'!$N$6,IF(ISNUMBER(C37)=FALSE,".",C37),".")) -> . | X37: =IF('Main Menu'!$C$8='Main Menu'!$N$5,".",IF('Main Menu'!$C$8='Main Menu'!$N$6,IF(ISNUMBER(D37)=FALSE,".",D37),".")) -> . | Y37: =IF('Main Menu'!$C$8='Main Menu'!$N$5,".",IF('Main Menu'!$C$8='Main Menu'!$N$6,IF(ISNUMBER(E37)=FALSE,".",E37),".")) -> . | Z37: =IF('Main Menu'!$C$8='Main Menu'!$N$5,".",IF('Main Menu'!$C$8='Main Menu'!$N$6,IF(ISNUMBER(F37)=FALSE,".",F37),".")) -> . | AA37: =IF('Main Menu'!$C$8='Main Menu'!$N$5,".",IF('Main Menu'!$C$8='Main Menu'!$N$6,IF(ISNUMBER(G37)=FALSE,".",G37),".")) -> . | AB37: =IF('Main Menu'!$C$8='Main Menu'!$N$5,".",IF('Main Menu'!$C$8='Main Menu'!$N$6,IF(ISNUMBER(H37)=FALSE,".",H37),".")) -> . | AC37: =IF(OR('Main Menu'!$C$8='Main Menu'!$N$5,'Main Menu'!$C$8='Main Menu'!$N$6),IF(ISNUMBER(I37)=FALSE,".",I37),O37) -> 11332.71504 | AD37: =IF(OR('Main Menu'!$C$8='Main Menu'!$N$5,'Main Menu'!$C$8='Main Menu'!$N$6),IF(ISNUMBER(J37)=FALSE,".",J37),P37) -> 4169.192283 | AE37: =IF(OR('Main Menu'!$C$8='Main Menu'!$N$5,'Main Menu'!$C$8='Main Menu'!$N$6),IF(ISNUMBER(K37)=FALSE,".",K37),Q37) -> 1604.766036 | AF37: =IF(OR('Main Menu'!$C$8='Main Menu'!$N$5,'Main Menu'!$C$8='Main Menu'!$N$6),IF(ISNUMBER(L37)=FALSE,".",L37),R37) -> 5558.756726 | AG37: =IF(OR('Main Menu'!$C$8='Main Menu'!$N$5,'Main Menu'!$C$8='Main Menu'!$N$6),"Manual",S37) -> GDP | AH37: 1 | AJ37: =IF(OR('Main Menu'!$C$8='Main Menu'!$N$5,'Main Menu'!$C$8='Main Menu'!$N$7),IF(ISNUMBER($AD37*$AE37*$AF37)=FALSE,".",IF($AC37=".",".",$U37)),IF(ISNUMBER($V37*$W37*$X37*$Y37*$Z37*$AA37*$AB37)=FALSE,".",IF($AC37=".",".",$U37))) -> 2002 | AK37: 2002 | AL37: 0 | AM37: 0 | AN37: =IF(OR('Main Menu'!$C$8='Main Menu'!$N$5,'Main Menu'!$C$8='Main Menu'!$N$7),AL37,AM37) -> 0 | AO37: =IF(OR('Main Menu'!$C$8='Main Menu'!$N$5,'Main Menu'!$C$8='Main Menu'!$N$7),0,IF(ISERROR(V37+W37+X37+Y37+Z37+AA37+AB37-AD37-AE37-AF37),0,ROUND(V37+W37+X37+Y37+Z37+AA37+AB37-AD37-AE37-AF37,6))) -> 0 | AP37: ='Selected Data_Employment'!BJ35 -> 0 | AQ37: ='Selected Data_Employment'!BK35 -> 1 | AR37: 2002 | AS37: . | AT37: .
A38: 2003 | B38: ='Manual Data'!AG29 -> . | C38: ='Manual Data'!AH29 -> . | D38: ='Manual Data'!AI29 -> . | E38: ='Manual Data'!AJ29 -> . | F38: ='Manual Data'!AK29 -> . | G38: ='Manual Data'!AL29 -> . | H38: ='Manual Data'!AM29 -> . | I38: . | J38: ='Manual Data'!AN29 -> . | K38: ='Manual Data'!AO29 -> . | L38: ='Manual Data'!AP29 -> . | N38: 2003 | O38: ='Existing Data_WDI'!AL26 -> 12066.311 | P38: ='Existing Data_WDI'!AM26 -> 4278.222391 | Q38: ='Existing Data_WDI'!AN26 -> 1764.890984 | R38: ='Existing Data_WDI'!AO26 -> 6023.197628 | S38: ='Existing Data_WDI'!AW26 -> GDP | U38: 2003 | V38: =IF('Main Menu'!$C$8='Main Menu'!$N$5,".",IF('Main Menu'!$C$8='Main Menu'!$N$6,IF(ISNUMBER(B38)=FALSE,".",B38),".")) -> . | W38: =IF('Main Menu'!$C$8='Main Menu'!$N$5,".",IF('Main Menu'!$C$8='Main Menu'!$N$6,IF(ISNUMBER(C38)=FALSE,".",C38),".")) -> . | X38: =IF('Main Menu'!$C$8='Main Menu'!$N$5,".",IF('Main Menu'!$C$8='Main Menu'!$N$6,IF(ISNUMBER(D38)=FALSE,".",D38),".")) -> . | Y38: =IF('Main Menu'!$C$8='Main Menu'!$N$5,".",IF('Main Menu'!$C$8='Main Menu'!$N$6,IF(ISNUMBER(E38)=FALSE,".",E38),".")) -> . | Z38: =IF('Main Menu'!$C$8='Main Menu'!$N$5,".",IF('Main Menu'!$C$8='Main Menu'!$N$6,IF(ISNUMBER(F38)=FALSE,".",F38),".")) -> . | AA38: =IF('Main Menu'!$C$8='Main Menu'!$N$5,".",IF('Main Menu'!$C$8='Main Menu'!$N$6,IF(ISNUMBER(G38)=FALSE,".",G38),".")) -> . | AB38: =IF('Main Menu'!$C$8='Main Menu'!$N$5,".",IF('Main Menu'!$C$8='Main Menu'!$N$6,IF(ISNUMBER(H38)=FALSE,".",H38),".")) -> . | AC38: =IF(OR('Main Menu'!$C$8='Main Menu'!$N$5,'Main Menu'!$C$8='Main Menu'!$N$6),IF(ISNUMBER(I38)=FALSE,".",I38),O38) -> 12066.311 | AD38: =IF(OR('Main Menu'!$C$8='Main Menu'!$N$5,'Main Menu'!$C$8='Main Menu'!$N$6),IF(ISNUMBER(J38)=FALSE,".",J38),P38) -> 4278.222391 | AE38: =IF(OR('Main Menu'!$C$8='Main Menu'!$N$5,'Main Menu'!$C$8='Main Menu'!$N$6),IF(ISNUMBER(K38)=FALSE,".",K38),Q38) -> 1764.890984 | AF38: =IF(OR('Main Menu'!$C$8='Main Menu'!$N$5,'Main Menu'!$C$8='Main Menu'!$N$6),IF(ISNUMBER(L38)=FALSE,".",L38),R38) -> 6023.197628 | AG38: =IF(OR('Main Menu'!$C$8='Main Menu'!$N$5,'Main Menu'!$C$8='Main Menu'!$N$6),"Manual",S38) -> GDP | AH38: 1 | AJ38: =IF(OR('Main Menu'!$C$8='Main Menu'!$N$5,'Main Menu'!$C$8='Main Menu'!$N$7),IF(ISNUMBER($AD38*$AE38*$AF38)=FALSE,".",IF($AC38=".",".",$U38)),IF(ISNUMBER($V38*$W38*$X38*$Y38*$Z38*$AA38*$AB38)=FALSE,".",IF($AC38=".",".",$U38))) -> 2003 | AK38: 2003 | AL38: 0 | AM38: 0 | AN38: =IF(OR('Main Menu'!$C$8='Main Menu'!$N$5,'Main Menu'!$C$8='Main Menu'!$N$7),AL38,AM38) -> 0 | AO38: =IF(OR('Main Menu'!$C$8='Main Menu'!$N$5,'Main Menu'!$C$8='Main Menu'!$N$7),0,IF(ISERROR(V38+W38+X38+Y38+Z38+AA38+AB38-AD38-AE38-AF38),0,ROUND(V38+W38+X38+Y38+Z38+AA38+AB38-AD38-AE38-AF38,6))) -> 0 | AP38: ='Selected Data_Employment'!BJ36 -> 0 | AQ38: ='Selected Data_Employment'!BK36 -> 1 | AR38: 2003 | AS38: . | AT38: .
A39: 2004 | B39: ='Manual Data'!AG30 -> . | C39: ='Manual Data'!AH30 -> . | D39: ='Manual Data'!AI30 -> . | E39: ='Manual Data'!AJ30 -> . | F39: ='Manual Data'!AK30 -> . | G39: ='Manual Data'!AL30 -> . | H39: ='Manual Data'!AM30 -> . | I39: . | J39: ='Manual Data'!AN30 -> . | K39: ='Manual Data'!AO30 -> . | L39: ='Manual Data'!AP30 -> . | N39: 2004 | O39: ='Existing Data_WDI'!AL27 -> 12887.69295 | P39: ='Existing Data_WDI'!AM27 -> 4428.924877 | Q39: ='Existing Data_WDI'!AN27 -> 1942.740317 | R39: ='Existing Data_WDI'!AO27 -> 6516.027756 | S39: ='Existing Data_WDI'!AW27 -> GDP | U39: 2004 | V39: =IF('Main Menu'!$C$8='Main Menu'!$N$5,".",IF('Main Menu'!$C$8='Main Menu'!$N$6,IF(ISNUMBER(B39)=FALSE,".",B39),".")) -> . | W39: =IF('Main Menu'!$C$8='Main Menu'!$N$5,".",IF('Main Menu'!$C$8='Main Menu'!$N$6,IF(ISNUMBER(C39)=FALSE,".",C39),".")) -> . | X39: =IF('Main Menu'!$C$8='Main Menu'!$N$5,".",IF('Main Menu'!$C$8='Main Menu'!$N$6,IF(ISNUMBER(D39)=FALSE,".",D39),".")) -> . | Y39: =IF('Main Menu'!$C$8='Main Menu'!$N$5,".",IF('Main Menu'!$C$8='Main Menu'!$N$6,IF(ISNUMBER(E39)=FALSE,".",E39),".")) -> . | Z39: =IF('Main Menu'!$C$8='Main Menu'!$N$5,".",IF('Main Menu'!$C$8='Main Menu'!$N$6,IF(ISNUMBER(F39)=FALSE,".",F39),".")) -> . | AA39: =IF('Main Menu'!$C$8='Main Menu'!$N$5,".",IF('Main Menu'!$C$8='Main Menu'!$N$6,IF(ISNUMBER(G39)=FALSE,".",G39),".")) -> . | AB39: =IF('Main Menu'!$C$8='Main Menu'!$N$5,".",IF('Main Menu'!$C$8='Main Menu'!$N$6,IF(ISNUMBER(H39)=FALSE,".",H39),".")) -> . | AC39: =IF(OR('Main Menu'!$C$8='Main Menu'!$N$5,'Main Menu'!$C$8='Main Menu'!$N$6),IF(ISNUMBER(I39)=FALSE,".",I39),O39) -> 12887.69295 | AD39: =IF(OR('Main Menu'!$C$8='Main Menu'!$N$5,'Main Menu'!$C$8='Main Menu'!$N$6),IF(ISNUMBER(J39)=FALSE,".",J39),P39) -> 4428.924877 | AE39: =IF(OR('Main Menu'!$C$8='Main Menu'!$N$5,'Main Menu'!$C$8='Main Menu'!$N$6),IF(ISNUMBER(K39)=FALSE,".",K39),Q39) -> 1942.740317 | AF39: =IF(OR('Main Menu'!$C$8='Main Menu'!$N$5,'Main Menu'!$C$8='Main Menu'!$N$6),IF(ISNUMBER(L39)=FALSE,".",L39),R39) -> 6516.027756 | AG39: =IF(OR('Main Menu'!$C$8='Main Menu'!$N$5,'Main Menu'!$C$8='Main Menu'!$N$6),"Manual",S39) -> GDP | AH39: 1 | AJ39: =IF(OR('Main Menu'!$C$8='Main Menu'!$N$5,'Main Menu'!$C$8='Main Menu'!$N$7),IF(ISNUMBER($AD39*$AE39*$AF39)=FALSE,".",IF($AC39=".",".",$U39)),IF(ISNUMBER($V39*$W39*$X39*$Y39*$Z39*$AA39*$AB39)=FALSE,".",IF($AC39=".",".",$U39))) -> 2004 | AK39: 2004 | AL39: 0 | AM39: 0 | AN39: =IF(OR('Main Menu'!$C$8='Main Menu'!$N$5,'Main Menu'!$C$8='Main Menu'!$N$7),AL39,AM39) -> 0 | AO39: =IF(OR('Main Menu'!$C$8='Main Menu'!$N$5,'Main Menu'!$C$8='Main Menu'!$N$7),0,IF(ISERROR(V39+W39+X39+Y39+Z39+AA39+AB39-AD39-AE39-AF39),0,ROUND(V39+W39+X39+Y39+Z39+AA39+AB39-AD39-AE39-AF39,6))) -> 0 | AP39: ='Selected Data_Employment'!BJ37 -> 0 | AQ39: ='Selected Data_Employment'!BK37 -> 1 | AR39: 2004 | AS39: . | AT39: .
A40: 2005 | B40: ='Manual Data'!AG31 -> . | C40: ='Manual Data'!AH31 -> . | D40: ='Manual Data'!AI31 -> . | E40: ='Manual Data'!AJ31 -> . | F40: ='Manual Data'!AK31 -> . | G40: ='Manual Data'!AL31 -> . | H40: ='Manual Data'!AM31 -> . | I40: . | J40: ='Manual Data'!AN31 -> . | K40: ='Manual Data'!AO31 -> . | L40: ='Manual Data'!AP31 -> . | N40: 2005 | O40: ='Existing Data_WDI'!AL28 -> 13703.8145 | P40: ='Existing Data_WDI'!AM28 -> 4425.311861 | Q40: ='Existing Data_WDI'!AN28 -> 2122.027853 | R40: ='Existing Data_WDI'!AO28 -> 7156.474784 | S40: ='Existing Data_WDI'!AW28 -> GDP | U40: 2005 | V40: =IF('Main Menu'!$C$8='Main Menu'!$N$5,".",IF('Main Menu'!$C$8='Main Menu'!$N$6,IF(ISNUMBER(B40)=FALSE,".",B40),".")) -> . | W40: =IF('Main Menu'!$C$8='Main Menu'!$N$5,".",IF('Main Menu'!$C$8='Main Menu'!$N$6,IF(ISNUMBER(C40)=FALSE,".",C40),".")) -> . | X40: =IF('Main Menu'!$C$8='Main Menu'!$N$5,".",IF('Main Menu'!$C$8='Main Menu'!$N$6,IF(ISNUMBER(D40)=FALSE,".",D40),".")) -> . | Y40: =IF('Main Menu'!$C$8='Main Menu'!$N$5,".",IF('Main Menu'!$C$8='Main Menu'!$N$6,IF(ISNUMBER(E40)=FALSE,".",E40),".")) -> . | Z40: =IF('Main Menu'!$C$8='Main Menu'!$N$5,".",IF('Main Menu'!$C$8='Main Menu'!$N$6,IF(ISNUMBER(F40)=FALSE,".",F40),".")) -> . | AA40: =IF('Main Menu'!$C$8='Main Menu'!$N$5,".",IF('Main Menu'!$C$8='Main Menu'!$N$6,IF(ISNUMBER(G40)=FALSE,".",G40),".")) -> . | AB40: =IF('Main Menu'!$C$8='Main Menu'!$N$5,".",IF('Main Menu'!$C$8='Main Menu'!$N$6,IF(ISNUMBER(H40)=FALSE,".",H40),".")) -> . | AC40: =IF(OR('Main Menu'!$C$8='Main Menu'!$N$5,'Main Menu'!$C$8='Main Menu'!$N$6),IF(ISNUMBER(I40)=FALSE,".",I40),O40) -> 13703.8145 | AD40: =IF(OR('Main Menu'!$C$8='Main Menu'!$N$5,'Main Menu'!$C$8='Main Menu'!$N$6),IF(ISNUMBER(J40)=FALSE,".",J40),P40) -> 4425.311861 | AE40: =IF(OR('Main Menu'!$C$8='Main Menu'!$N$5,'Main Menu'!$C$8='Main Menu'!$N$6),IF(ISNUMBER(K40)=FALSE,".",K40),Q40) -> 2122.027853 | AF40: =IF(OR('Main Menu'!$C$8='Main Menu'!$N$5,'Main Menu'!$C$8='Main Menu'!$N$6),IF(ISNUMBER(L40)=FALSE,".",L40),R40) -> 7156.474784 | AG40: =IF(OR('Main Menu'!$C$8='Main Menu'!$N$5,'Main Menu'!$C$8='Main Menu'!$N$6),"Manual",S40) -> GDP | AH40: 1 | AJ40: =IF(OR('Main Menu'!$C$8='Main Menu'!$N$5,'Main Menu'!$C$8='Main Menu'!$N$7),IF(ISNUMBER($AD40*$AE40*$AF40)=FALSE,".",IF($AC40=".",".",$U40)),IF(ISNUMBER($V40*$W40*$X40*$Y40*$Z40*$AA40*$AB40)=FALSE,".",IF($AC40=".",".",$U40))) -> 2005 | AK40: 2005 | AL40: 0 | AM40: 0 | AN40: =IF(OR('Main Menu'!$C$8='Main Menu'!$N$5,'Main Menu'!$C$8='Main Menu'!$N$7),AL40,AM40) -> 0 | AO40: =IF(OR('Main Menu'!$C$8='Main Menu'!$N$5,'Main Menu'!$C$8='Main Menu'!$N$7),0,IF(ISERROR(V40+W40+X40+Y40+Z40+AA40+AB40-AD40-AE40-AF40),0,ROUND(V40+W40+X40+Y40+Z40+AA40+AB40-AD40-AE40-AF40,6))) -> 0 | AP40: ='Selected Data_Employment'!BJ38 -> 0 | AQ40: ='Selected Data_Employment'!BK38 -> 1 | AR40: 2005 | AS40: . | AT40: .
A41: 2006 | B41: ='Manual Data'!AG32 -> . | C41: ='Manual Data'!AH32 -> . | D41: ='Manual Data'!AI32 -> . | E41: ='Manual Data'!AJ32 -> . | F41: ='Manual Data'!AK32 -> . | G41: ='Manual Data'!AL32 -> . | H41: ='Manual Data'!AM32 -> . | I41: . | J41: ='Manual Data'!AN32 -> . | K41: ='Manual Data'!AO32 -> . | L41: ='Manual Data'!AP32 -> . | N41: 2006 | O41: ='Existing Data_WDI'!AL29 -> 15181.73586 | P41: ='Existing Data_WDI'!AM29 -> 4618.701513 | Q41: ='Existing Data_WDI'!AN29 -> 2529.503703 | R41: ='Existing Data_WDI'!AO29 -> 8033.530646 | S41: ='Existing Data_WDI'!AW29 -> GDP | U41: 2006 | V41: =IF('Main Menu'!$C$8='Main Menu'!$N$5,".",IF('Main Menu'!$C$8='Main Menu'!$N$6,IF(ISNUMBER(B41)=FALSE,".",B41),".")) -> . | W41: =IF('Main Menu'!$C$8='Main Menu'!$N$5,".",IF('Main Menu'!$C$8='Main Menu'!$N$6,IF(ISNUMBER(C41)=FALSE,".",C41),".")) -> . | X41: =IF('Main Menu'!$C$8='Main Menu'!$N$5,".",IF('Main Menu'!$C$8='Main Menu'!$N$6,IF(ISNUMBER(D41)=FALSE,".",D41),".")) -> . | Y41: =IF('Main Menu'!$C$8='Main Menu'!$N$5,".",IF('Main Menu'!$C$8='Main Menu'!$N$6,IF(ISNUMBER(E41)=FALSE,".",E41),".")) -> . | Z41: =IF('Main Menu'!$C$8='Main Menu'!$N$5,".",IF('Main Menu'!$C$8='Main Menu'!$N$6,IF(ISNUMBER(F41)=FALSE,".",F41),".")) -> . | AA41: =IF('Main Menu'!$C$8='Main Menu'!$N$5,".",IF('Main Menu'!$C$8='Main Menu'!$N$6,IF(ISNUMBER(G41)=FALSE,".",G41),".")) -> . | AB41: =IF('Main Menu'!$C$8='Main Menu'!$N$5,".",IF('Main Menu'!$C$8='Main Menu'!$N$6,IF(ISNUMBER(H41)=FALSE,".",H41),".")) -> . | AC41: =IF(OR('Main Menu'!$C$8='Main Menu'!$N$5,'Main Menu'!$C$8='Main Menu'!$N$6),IF(ISNUMBER(I41)=FALSE,".",I41),O41) -> 15181.73586 | AD41: =IF(OR('Main Menu'!$C$8='Main Menu'!$N$5,'Main Menu'!$C$8='Main Menu'!$N$6),IF(ISNUMBER(J41)=FALSE,".",J41),P41) -> 4618.701513 | AE41: =IF(OR('Main Menu'!$C$8='Main Menu'!$N$5,'Main Menu'!$C$8='Main Menu'!$N$6),IF(ISNUMBER(K41)=FALSE,".",K41),Q41) -> 2529.503703 | AF41: =IF(OR('Main Menu'!$C$8='Main Menu'!$N$5,'Main Menu'!$C$8='Main Menu'!$N$6),IF(ISNUMBER(L41)=FALSE,".",L41),R41) -> 8033.530646 | AG41: =IF(OR('Main Menu'!$C$8='Main Menu'!$N$5,'Main Menu'!$C$8='Main Menu'!$N$6),"Manual",S41) -> GDP | AH41: 1 | AJ41: =IF(OR('Main Menu'!$C$8='Main Menu'!$N$5,'Main Menu'!$C$8='Main Menu'!$N$7),IF(ISNUMBER($AD41*$AE41*$AF41)=FALSE,".",IF($AC41=".",".",$U41)),IF(ISNUMBER($V41*$W41*$X41*$Y41*$Z41*$AA41*$AB41)=FALSE,".",IF($AC41=".",".",$U41))) -> 2006 | AK41: 2006 | AL41: 0 | AM41: 0 | AN41: =IF(OR('Main Menu'!$C$8='Main Menu'!$N$5,'Main Menu'!$C$8='Main Menu'!$N$7),AL41,AM41) -> 0 | AO41: =IF(OR('Main Menu'!$C$8='Main Menu'!$N$5,'Main Menu'!$C$8='Main Menu'!$N$7),0,IF(ISERROR(V41+W41+X41+Y41+Z41+AA41+AB41-AD41-AE41-AF41),0,ROUND(V41+W41+X41+Y41+Z41+AA41+AB41-AD41-AE41-AF41,6))) -> 0 | AP41: ='Selected Data_Employment'!BJ39 -> 0 | AQ41: ='Selected Data_Employment'!BK39 -> 1 | AR41: 2006 | AS41: . | AT41: .
A42: 2007 | B42: ='Manual Data'!AG33 -> . | C42: ='Manual Data'!AH33 -> . | D42: ='Manual Data'!AI33 -> . | E42: ='Manual Data'!AJ33 -> . | F42: ='Manual Data'!AK33 -> . | G42: ='Manual Data'!AL33 -> . | H42: ='Manual Data'!AM33 -> . | I42: . | J42: ='Manual Data'!AN33 -> . | K42: ='Manual Data'!AO33 -> . | L42: ='Manual Data'!AP33 -> . | N42: 2007 | O42: ='Existing Data_WDI'!AL30 -> 16458.88815 | P42: ='Existing Data_WDI'!AM30 -> 4696.272665 | Q42: ='Existing Data_WDI'!AN30 -> 2815.603348 | R42: ='Existing Data_WDI'!AO30 -> 8947.012139 | S42: ='Existing Data_WDI'!AW30 -> GDP | U42: 2007 | V42: =IF('Main Menu'!$C$8='Main Menu'!$N$5,".",IF('Main Menu'!$C$8='Main Menu'!$N$6,IF(ISNUMBER(B42)=FALSE,".",B42),".")) -> . | W42: =IF('Main Menu'!$C$8='Main Menu'!$N$5,".",IF('Main Menu'!$C$8='Main Menu'!$N$6,IF(ISNUMBER(C42)=FALSE,".",C42),".")) -> . | X42: =IF('Main Menu'!$C$8='Main Menu'!$N$5,".",IF('Main Menu'!$C$8='Main Menu'!$N$6,IF(ISNUMBER(D42)=FALSE,".",D42),".")) -> . | Y42: =IF('Main Menu'!$C$8='Main Menu'!$N$5,".",IF('Main Menu'!$C$8='Main Menu'!$N$6,IF(ISNUMBER(E42)=FALSE,".",E42),".")) -> . | Z42: =IF('Main Menu'!$C$8='Main Menu'!$N$5,".",IF('Main Menu'!$C$8='Main Menu'!$N$6,IF(ISNUMBER(F42)=FALSE,".",F42),".")) -> . | AA42: =IF('Main Menu'!$C$8='Main Menu'!$N$5,".",IF('Main Menu'!$C$8='Main Menu'!$N$6,IF(ISNUMBER(G42)=FALSE,".",G42),".")) -> . | AB42: =IF('Main Menu'!$C$8='Main Menu'!$N$5,".",IF('Main Menu'!$C$8='Main Menu'!$N$6,IF(ISNUMBER(H42)=FALSE,".",H42),".")) -> . | AC42: =IF(OR('Main Menu'!$C$8='Main Menu'!$N$5,'Main Menu'!$C$8='Main Menu'!$N$6),IF(ISNUMBER(I42)=FALSE,".",I42),O42) -> 16458.88815 | AD42: =IF(OR('Main Menu'!$C$8='Main Menu'!$N$5,'Main Menu'!$C$8='Main Menu'!$N$6),IF(ISNUMBER(J42)=FALSE,".",J42),P42) -> 4696.272665 | AE42: =IF(OR('Main Menu'!$C$8='Main Menu'!$N$5,'Main Menu'!$C$8='Main Menu'!$N$6),IF(ISNUMBER(K42)=FALSE,".",K42),Q42) -> 2815.603348 | AF42: =IF(OR('Main Menu'!$C$8='Main Menu'!$N$5,'Main Menu'!$C$8='Main Menu'!$N$6),IF(ISNUMBER(L42)=FALSE,".",L42),R42) -> 8947.012139 | AG42: =IF(OR('Main Menu'!$C$8='Main Menu'!$N$5,'Main Menu'!$C$8='Main Menu'!$N$6),"Manual",S42) -> GDP | AH42: 1 | AJ42: =IF(OR('Main Menu'!$C$8='Main Menu'!$N$5,'Main Menu'!$C$8='Main Menu'!$N$7),IF(ISNUMBER($AD42*$AE42*$AF42)=FALSE,".",IF($AC42=".",".",$U42)),IF(ISNUMBER($V42*$W42*$X42*$Y42*$Z42*$AA42*$AB42)=FALSE,".",IF($AC42=".",".",$U42))) -> 2007 | AK42: 2007 | AL42: 0 | AM42: 0 | AN42: =IF(OR('Main Menu'!$C$8='Main Menu'!$N$5,'Main Menu'!$C$8='Main Menu'!$N$7),AL42,AM42) -> 0 | AO42: =IF(OR('Main Menu'!$C$8='Main Menu'!$N$5,'Main Menu'!$C$8='Main Menu'!$N$7),0,IF(ISERROR(V42+W42+X42+Y42+Z42+AA42+AB42-AD42-AE42-AF42),0,ROUND(V42+W42+X42+Y42+Z42+AA42+AB42-AD42-AE42-AF42,6))) -> 0 | AP42: ='Selected Data_Employment'!BJ40 -> 0 | AQ42: ='Selected Data_Employment'!BK40 -> 1 | AR42: 2007 | AS42: . | AT42: .
A43: 2008 | B43: ='Manual Data'!AG34 -> . | C43: ='Manual Data'!AH34 -> . | D43: ='Manual Data'!AI34 -> . | E43: ='Manual Data'!AJ34 -> . | F43: ='Manual Data'!AK34 -> . | G43: ='Manual Data'!AL34 -> . | H43: ='Manual Data'!AM34 -> . | I43: . | J43: ='Manual Data'!AN34 -> . | K43: ='Manual Data'!AO34 -> . | L43: ='Manual Data'!AP34 -> . | N43: 2008 | O43: ='Existing Data_WDI'!AL31 -> 17892.25189 | P43: ='Existing Data_WDI'!AM31 -> 5328.377954 | Q43: ='Existing Data_WDI'!AN31 -> 3430.152718 | R43: ='Existing Data_WDI'!AO31 -> 9133.721215 | S43: ='Existing Data_WDI'!AW31 -> GDP | U43: 2008 | V43: =IF('Main Menu'!$C$8='Main Menu'!$N$5,".",IF('Main Menu'!$C$8='Main Menu'!$N$6,IF(ISNUMBER(B43)=FALSE,".",B43),".")) -> . | W43: =IF('Main Menu'!$C$8='Main Menu'!$N$5,".",IF('Main Menu'!$C$8='Main Menu'!$N$6,IF(ISNUMBER(C43)=FALSE,".",C43),".")) -> . | X43: =IF('Main Menu'!$C$8='Main Menu'!$N$5,".",IF('Main Menu'!$C$8='Main Menu'!$N$6,IF(ISNUMBER(D43)=FALSE,".",D43),".")) -> . | Y43: =IF('Main Menu'!$C$8='Main Menu'!$N$5,".",IF('Main Menu'!$C$8='Main Menu'!$N$6,IF(ISNUMBER(E43)=FALSE,".",E43),".")) -> . | Z43: =IF('Main Menu'!$C$8='Main Menu'!$N$5,".",IF('Main Menu'!$C$8='Main Menu'!$N$6,IF(ISNUMBER(F43)=FALSE,".",F43),".")) -> . | AA43: =IF('Main Menu'!$C$8='Main Menu'!$N$5,".",IF('Main Menu'!$C$8='Main Menu'!$N$6,IF(ISNUMBER(G43)=FALSE,".",G43),".")) -> . | AB43: =IF('Main Menu'!$C$8='Main Menu'!$N$5,".",IF('Main Menu'!$C$8='Main Menu'!$N$6,IF(ISNUMBER(H43)=FALSE,".",H43),".")) -> . | AC43: =IF(OR('Main Menu'!$C$8='Main Menu'!$N$5,'Main Menu'!$C$8='Main Menu'!$N$6),IF(ISNUMBER(I43)=FALSE,".",I43),O43) -> 17892.25189 | AD43: =IF(OR('Main Menu'!$C$8='Main Menu'!$N$5,'Main Menu'!$C$8='Main Menu'!$N$6),IF(ISNUMBER(J43)=FALSE,".",J43),P43) -> 5328.377954 | AE43: =IF(OR('Main Menu'!$C$8='Main Menu'!$N$5,'Main Menu'!$C$8='Main Menu'!$N$6),IF(ISNUMBER(K43)=FALSE,".",K43),Q43) -> 3430.152718 | AF43: =IF(OR('Main Menu'!$C$8='Main Menu'!$N$5,'Main Menu'!$C$8='Main Menu'!$N$6),IF(ISNUMBER(L43)=FALSE,".",L43),R43) -> 9133.721215 | AG43: =IF(OR('Main Menu'!$C$8='Main Menu'!$N$5,'Main Menu'!$C$8='Main Menu'!$N$6),"Manual",S43) -> GDP | AH43: 1 | AJ43: =IF(OR('Main Menu'!$C$8='Main Menu'!$N$5,'Main Menu'!$C$8='Main Menu'!$N$7),IF(ISNUMBER($AD43*$AE43*$AF43)=FALSE,".",IF($AC43=".",".",$U43)),IF(ISNUMBER($V43*$W43*$X43*$Y43*$Z43*$AA43*$AB43)=FALSE,".",IF($AC43=".",".",$U43))) -> 2008 | AK43: 2008 | AL43: 0 | AM43: 0 | AN43: =IF(OR('Main Menu'!$C$8='Main Menu'!$N$5,'Main Menu'!$C$8='Main Menu'!$N$7),AL43,AM43) -> 0 | AO43: =IF(OR('Main Menu'!$C$8='Main Menu'!$N$5,'Main Menu'!$C$8='Main Menu'!$N$7),0,IF(ISERROR(V43+W43+X43+Y43+Z43+AA43+AB43-AD43-AE43-AF43),0,ROUND(V43+W43+X43+Y43+Z43+AA43+AB43-AD43-AE43-AF43,6))) -> 0 | AP43: ='Selected Data_Employment'!BJ41 -> 0 | AQ43: ='Selected Data_Employment'!BK41 -> 1 | AR43: 2008 | AS43: . | AT43: .
A44: 2009 | B44: ='Manual Data'!AG35 -> . | C44: ='Manual Data'!AH35 -> . | D44: ='Manual Data'!AI35 -> . | E44: ='Manual Data'!AJ35 -> . | F44: ='Manual Data'!AK35 -> . | G44: ='Manual Data'!AL35 -> . | H44: ='Manual Data'!AM35 -> . | I44: . | J44: ='Manual Data'!AN35 -> . | K44: ='Manual Data'!AO35 -> . | L44: ='Manual Data'!AP35 -> . | N44: 2009 | O44: ='Existing Data_WDI'!AL32 -> 19109.1965 | P44: ='Existing Data_WDI'!AM32 -> 5562.858145 | Q44: ='Existing Data_WDI'!AN32 -> 3665.785608 | R44: ='Existing Data_WDI'!AO32 -> 9880.55275 | S44: ='Existing Data_WDI'!AW32 -> GDP | U44: 2009 | V44: =IF('Main Menu'!$C$8='Main Menu'!$N$5,".",IF('Main Menu'!$C$8='Main Menu'!$N$6,IF(ISNUMBER(B44)=FALSE,".",B44),".")) -> . | W44: =IF('Main Menu'!$C$8='Main Menu'!$N$5,".",IF('Main Menu'!$C$8='Main Menu'!$N$6,IF(ISNUMBER(C44)=FALSE,".",C44),".")) -> . | X44: =IF('Main Menu'!$C$8='Main Menu'!$N$5,".",IF('Main Menu'!$C$8='Main Menu'!$N$6,IF(ISNUMBER(D44)=FALSE,".",D44),".")) -> . | Y44: =IF('Main Menu'!$C$8='Main Menu'!$N$5,".",IF('Main Menu'!$C$8='Main Menu'!$N$6,IF(ISNUMBER(E44)=FALSE,".",E44),".")) -> . | Z44: =IF('Main Menu'!$C$8='Main Menu'!$N$5,".",IF('Main Menu'!$C$8='Main Menu'!$N$6,IF(ISNUMBER(F44)=FALSE,".",F44),".")) -> . | AA44: =IF('Main Menu'!$C$8='Main Menu'!$N$5,".",IF('Main Menu'!$C$8='Main Menu'!$N$6,IF(ISNUMBER(G44)=FALSE,".",G44),".")) -> . | AB44: =IF('Main Menu'!$C$8='Main Menu'!$N$5,".",IF('Main Menu'!$C$8='Main Menu'!$N$6,IF(ISNUMBER(H44)=FALSE,".",H44),".")) -> . | AC44: =IF(OR('Main Menu'!$C$8='Main Menu'!$N$5,'Main Menu'!$C$8='Main Menu'!$N$6),IF(ISNUMBER(I44)=FALSE,".",I44),O44) -> 19109.1965 | AD44: =IF(OR('Main Menu'!$C$8='Main Menu'!$N$5,'Main Menu'!$C$8='Main Menu'!$N$6),IF(ISNUMBER(J44)=FALSE,".",J44),P44) -> 5562.858145 | AE44: =IF(OR('Main Menu'!$C$8='Main Menu'!$N$5,'Main Menu'!$C$8='Main Menu'!$N$6),IF(ISNUMBER(K44)=FALSE,".",K44),Q44) -> 3665.785608 | AF44: =IF(OR('Main Menu'!$C$8='Main Menu'!$N$5,'Main Menu'!$C$8='Main Menu'!$N$6),IF(ISNUMBER(L44)=FALSE,".",L44),R44) -> 9880.55275 | AG44: =IF(OR('Main Menu'!$C$8='Main Menu'!$N$5,'Main Menu'!$C$8='Main Menu'!$N$6),"Manual",S44) -> GDP | AH44: 1 | AJ44: =IF(OR('Main Menu'!$C$8='Main Menu'!$N$5,'Main Menu'!$C$8='Main Menu'!$N$7),IF(ISNUMBER($AD44*$AE44*$AF44)=FALSE,".",IF($AC44=".",".",$U44)),IF(ISNUMBER($V44*$W44*$X44*$Y44*$Z44*$AA44*$AB44)=FALSE,".",IF($AC44=".",".",$U44))) -> 2009 | AK44: 2009 | AL44: 0 | AM44: 0 | AN44: =IF(OR('Main Menu'!$C$8='Main Menu'!$N$5,'Main Menu'!$C$8='Main Menu'!$N$7),AL44,AM44) -> 0 | AO44: =IF(OR('Main Menu'!$C$8='Main Menu'!$N$5,'Main Menu'!$C$8='Main Menu'!$N$7),0,IF(ISERROR(V44+W44+X44+Y44+Z44+AA44+AB44-AD44-AE44-AF44),0,ROUND(V44+W44+X44+Y44+Z44+AA44+AB44-AD44-AE44-AF44,6))) -> 0 | AP44: ='Selected Data_Employment'!BJ42 -> 0 | AQ44: ='Selected Data_Employment'!BK42 -> 1 | AR44: 2009 | AS44: . | AT44: .
A45: 2010 | B45: ='Manual Data'!AG36 -> . | C45: ='Manual Data'!AH36 -> . | D45: ='Manual Data'!AI36 -> . | E45: ='Manual Data'!AJ36 -> . | F45: ='Manual Data'!AK36 -> . | G45: ='Manual Data'!AL36 -> . | H45: ='Manual Data'!AM36 -> . | I45: . | J45: ='Manual Data'!AN36 -> . | K45: ='Manual Data'!AO36 -> . | L45: ='Manual Data'!AP36 -> . | N45: 2010 | O45: ='Existing Data_WDI'!AL33 -> 20186.49653 | P45: ='Existing Data_WDI'!AM33 -> 5704.045932 | Q45: ='Existing Data_WDI'!AN33 -> 3941.117914 | R45: ='Existing Data_WDI'!AO33 -> 10541.33268 | S45: ='Existing Data_WDI'!AW33 -> GDP | U45: 2010 | V45: =IF('Main Menu'!$C$8='Main Menu'!$N$5,".",IF('Main Menu'!$C$8='Main Menu'!$N$6,IF(ISNUMBER(B45)=FALSE,".",B45),".")) -> . | W45: =IF('Main Menu'!$C$8='Main Menu'!$N$5,".",IF('Main Menu'!$C$8='Main Menu'!$N$6,IF(ISNUMBER(C45)=FALSE,".",C45),".")) -> . | X45: =IF('Main Menu'!$C$8='Main Menu'!$N$5,".",IF('Main Menu'!$C$8='Main Menu'!$N$6,IF(ISNUMBER(D45)=FALSE,".",D45),".")) -> . | Y45: =IF('Main Menu'!$C$8='Main Menu'!$N$5,".",IF('Main Menu'!$C$8='Main Menu'!$N$6,IF(ISNUMBER(E45)=FALSE,".",E45),".")) -> . | Z45: =IF('Main Menu'!$C$8='Main Menu'!$N$5,".",IF('Main Menu'!$C$8='Main Menu'!$N$6,IF(ISNUMBER(F45)=FALSE,".",F45),".")) -> . | AA45: =IF('Main Menu'!$C$8='Main Menu'!$N$5,".",IF('Main Menu'!$C$8='Main Menu'!$N$6,IF(ISNUMBER(G45)=FALSE,".",G45),".")) -> . | AB45: =IF('Main Menu'!$C$8='Main Menu'!$N$5,".",IF('Main Menu'!$C$8='Main Menu'!$N$6,IF(ISNUMBER(H45)=FALSE,".",H45),".")) -> . | AC45: =IF(OR('Main Menu'!$C$8='Main Menu'!$N$5,'Main Menu'!$C$8='Main Menu'!$N$6),IF(ISNUMBER(I45)=FALSE,".",I45),O45) -> 20186.49653 | AD45: =IF(OR('Main Menu'!$C$8='Main Menu'!$N$5,'Main Menu'!$C$8='Main Menu'!$N$6),IF(ISNUMBER(J45)=FALSE,".",J45),P45) -> 5704.045932 | AE45: =IF(OR('Main Menu'!$C$8='Main Menu'!$N$5,'Main Menu'!$C$8='Main Menu'!$N$6),IF(ISNUMBER(K45)=FALSE,".",K45),Q45) -> 3941.117914 | AF45: =IF(OR('Main Menu'!$C$8='Main Menu'!$N$5,'Main Menu'!$C$8='Main Menu'!$N$6),IF(ISNUMBER(L45)=FALSE,".",L45),R45) -> 10541.33268 | AG45: =IF(OR('Main Menu'!$C$8='Main Menu'!$N$5,'Main Menu'!$C$8='Main Menu'!$N$6),"Manual",S45) -> GDP | AH45: 1 | AJ45: =IF(OR('Main Menu'!$C$8='Main Menu'!$N$5,'Main Menu'!$C$8='Main Menu'!$N$7),IF(ISNUMBER($AD45*$AE45*$AF45)=FALSE,".",IF($AC45=".",".",$U45)),IF(ISNUMBER($V45*$W45*$X45*$Y45*$Z45*$AA45*$AB45)=FALSE,".",IF($AC45=".",".",$U45))) -> 2010 | AK45: 2010 | AL45: 0 | AM45: 0 | AN45: =IF(OR('Main Menu'!$C$8='Main Menu'!$N$5,'Main Menu'!$C$8='Main Menu'!$N$7),AL45,AM45) -> 0 | AO45: =IF(OR('Main Menu'!$C$8='Main Menu'!$N$5,'Main Menu'!$C$8='Main Menu'!$N$7),0,IF(ISERROR(V45+W45+X45+Y45+Z45+AA45+AB45-AD45-AE45-AF45),0,ROUND(V45+W45+X45+Y45+Z45+AA45+AB45-AD45-AE45-AF45,6))) -> 0 | AP45: ='Selected Data_Employment'!BJ43 -> 0 | AQ45: ='Selected Data_Employment'!BK43 -> 1 | AR45: =IF(AND($AJ45>=$AR$2,$AJ45<=$AR$3),IF($AG45=AR$24,$AJ45,"."),".") -> 2010 | AS45: . | AT45: .
A46: 2011 | B46: ='Manual Data'!AG37 -> . | C46: ='Manual Data'!AH37 -> . | D46: ='Manual Data'!AI37 -> . | E46: ='Manual Data'!AJ37 -> . | F46: ='Manual Data'!AK37 -> . | G46: ='Manual Data'!AL37 -> . | H46: ='Manual Data'!AM37 -> . | I46: . | J46: ='Manual Data'!AN37 -> . | K46: ='Manual Data'!AO37 -> . | L46: ='Manual Data'!AP37 -> . | N46: 2011 | O46: ='Existing Data_WDI'!AL34 -> 22082.34521 | P46: ='Existing Data_WDI'!AM34 -> 5891.900621 | Q46: ='Existing Data_WDI'!AN34 -> 4394.145825 | R46: ='Existing Data_WDI'!AO34 -> 11796.29876 | S46: ='Existing Data_WDI'!AW34 -> GDP | U46: 2011 | V46: =IF('Main Menu'!$C$8='Main Menu'!$N$5,".",IF('Main Menu'!$C$8='Main Menu'!$N$6,IF(ISNUMBER(B46)=FALSE,".",B46),".")) -> . | W46: =IF('Main Menu'!$C$8='Main Menu'!$N$5,".",IF('Main Menu'!$C$8='Main Menu'!$N$6,IF(ISNUMBER(C46)=FALSE,".",C46),".")) -> . | X46: =IF('Main Menu'!$C$8='Main Menu'!$N$5,".",IF('Main Menu'!$C$8='Main Menu'!$N$6,IF(ISNUMBER(D46)=FALSE,".",D46),".")) -> . | Y46: =IF('Main Menu'!$C$8='Main Menu'!$N$5,".",IF('Main Menu'!$C$8='Main Menu'!$N$6,IF(ISNUMBER(E46)=FALSE,".",E46),".")) -> . | Z46: =IF('Main Menu'!$C$8='Main Menu'!$N$5,".",IF('Main Menu'!$C$8='Main Menu'!$N$6,IF(ISNUMBER(F46)=FALSE,".",F46),".")) -> . | AA46: =IF('Main Menu'!$C$8='Main Menu'!$N$5,".",IF('Main Menu'!$C$8='Main Menu'!$N$6,IF(ISNUMBER(G46)=FALSE,".",G46),".")) -> . | AB46: =IF('Main Menu'!$C$8='Main Menu'!$N$5,".",IF('Main Menu'!$C$8='Main Menu'!$N$6,IF(ISNUMBER(H46)=FALSE,".",H46),".")) -> . | AC46: =IF(OR('Main Menu'!$C$8='Main Menu'!$N$5,'Main Menu'!$C$8='Main Menu'!$N$6),IF(ISNUMBER(I46)=FALSE,".",I46),O46) -> 22082.34521 | AD46: =IF(OR('Main Menu'!$C$8='Main Menu'!$N$5,'Main Menu'!$C$8='Main Menu'!$N$6),IF(ISNUMBER(J46)=FALSE,".",J46),P46) -> 5891.900621 | AE46: =IF(OR('Main Menu'!$C$8='Main Menu'!$N$5,'Main Menu'!$C$8='Main Menu'!$N$6),IF(ISNUMBER(K46)=FALSE,".",K46),Q46) -> 4394.145825 | AF46: =IF(OR('Main Menu'!$C$8='Main Menu'!$N$5,'Main Menu'!$C$8='Main Menu'!$N$6),IF(ISNUMBER(L46)=FALSE,".",L46),R46) -> 11796.29876 | AG46: =IF(OR('Main Menu'!$C$8='Main Menu'!$N$5,'Main Menu'!$C$8='Main Menu'!$N$6),"Manual",S46) -> GDP | AH46: 1 | AJ46: =IF(OR('Main Menu'!$C$8='Main Menu'!$N$5,'Main Menu'!$C$8='Main Menu'!$N$7),IF(ISNUMBER($AD46*$AE46*$AF46)=FALSE,".",IF($AC46=".",".",$U46)),IF(ISNUMBER($V46*$W46*$X46*$Y46*$Z46*$AA46*$AB46)=FALSE,".",IF($AC46=".",".",$U46))) -> 2011 | AK46: 2011 | AL46: 0 | AM46: 0 | AN46: =IF(OR('Main Menu'!$C$8='Main Menu'!$N$5,'Main Menu'!$C$8='Main Menu'!$N$7),AL46,AM46) -> 0 | AO46: =IF(OR('Main Menu'!$C$8='Main Menu'!$N$5,'Main Menu'!$C$8='Main Menu'!$N$7),0,IF(ISERROR(V46+W46+X46+Y46+Z46+AA46+AB46-AD46-AE46-AF46),0,ROUND(V46+W46+X46+Y46+Z46+AA46+AB46-AD46-AE46-AF46,6))) -> 0 | AP46: ='Selected Data_Employment'!BJ44 -> 0 | AQ46: ='Selected Data_Employment'!BK44 -> 1 | AR46: 2011 | AS46: . | AT46: .
A47: 2012 | B47: ='Manual Data'!AG38 -> . | C47: ='Manual Data'!AH38 -> . | D47: ='Manual Data'!AI38 -> . | E47: ='Manual Data'!AJ38 -> . | F47: ='Manual Data'!AK38 -> . | G47: ='Manual Data'!AL38 -> . | H47: ='Manual Data'!AM38 -> . | I47: . | J47: ='Manual Data'!AN38 -> . | K47: ='Manual Data'!AO38 -> . | L47: ='Manual Data'!AP38 -> . | N47: 2012 | O47: ='Existing Data_WDI'!AL35 -> 22929.74541 | P47: ='Existing Data_WDI'!AM35 -> 5979.197418 | Q47: ='Existing Data_WDI'!AN35 -> 4568.409161 | R47: ='Existing Data_WDI'!AO35 -> 12382.13883 | S47: ='Existing Data_WDI'!AW35 -> GDP | U47: 2012 | V47: =IF('Main Menu'!$C$8='Main Menu'!$N$5,".",IF('Main Menu'!$C$8='Main Menu'!$N$6,IF(ISNUMBER(B47)=FALSE,".",B47),".")) -> . | W47: =IF('Main Menu'!$C$8='Main Menu'!$N$5,".",IF('Main Menu'!$C$8='Main Menu'!$N$6,IF(ISNUMBER(C47)=FALSE,".",C47),".")) -> . | X47: =IF('Main Menu'!$C$8='Main Menu'!$N$5,".",IF('Main Menu'!$C$8='Main Menu'!$N$6,IF(ISNUMBER(D47)=FALSE,".",D47),".")) -> . | Y47: =IF('Main Menu'!$C$8='Main Menu'!$N$5,".",IF('Main Menu'!$C$8='Main Menu'!$N$6,IF(ISNUMBER(E47)=FALSE,".",E47),".")) -> . | Z47: =IF('Main Menu'!$C$8='Main Menu'!$N$5,".",IF('Main Menu'!$C$8='Main Menu'!$N$6,IF(ISNUMBER(F47)=FALSE,".",F47),".")) -> . | AA47: =IF('Main Menu'!$C$8='Main Menu'!$N$5,".",IF('Main Menu'!$C$8='Main Menu'!$N$6,IF(ISNUMBER(G47)=FALSE,".",G47),".")) -> . | AB47: =IF('Main Menu'!$C$8='Main Menu'!$N$5,".",IF('Main Menu'!$C$8='Main Menu'!$N$6,IF(ISNUMBER(H47)=FALSE,".",H47),".")) -> . | AC47: =IF(OR('Main Menu'!$C$8='Main Menu'!$N$5,'Main Menu'!$C$8='Main Menu'!$N$6),IF(ISNUMBER(I47)=FALSE,".",I47),O47) -> 22929.74541 | AD47: =IF(OR('Main Menu'!$C$8='Main Menu'!$N$5,'Main Menu'!$C$8='Main Menu'!$N$6),IF(ISNUMBER(J47)=FALSE,".",J47),P47) -> 5979.197418 | AE47: =IF(OR('Main Menu'!$C$8='Main Menu'!$N$5,'Main Menu'!$C$8='Main Menu'!$N$6),IF(ISNUMBER(K47)=FALSE,".",K47),Q47) -> 4568.409161 | AF47: =IF(OR('Main Menu'!$C$8='Main Menu'!$N$5,'Main Menu'!$C$8='Main Menu'!$N$6),IF(ISNUMBER(L47)=FALSE,".",L47),R47) -> 12382.13883 | AG47: =IF(OR('Main Menu'!$C$8='Main Menu'!$N$5,'Main Menu'!$C$8='Main Menu'!$N$6),"Manual",S47) -> GDP | AH47: 1 | AJ47: =IF(OR('Main Menu'!$C$8='Main Menu'!$N$5,'Main Menu'!$C$8='Main Menu'!$N$7),IF(ISNUMBER($AD47*$AE47*$AF47)=FALSE,".",IF($AC47=".",".",$U47)),IF(ISNUMBER($V47*$W47*$X47*$Y47*$Z47*$AA47*$AB47)=FALSE,".",IF($AC47=".",".",$U47))) -> 2012 | AK47: 2012 | AL47: 0 | AM47: 0 | AN47: =IF(OR('Main Menu'!$C$8='Main Menu'!$N$5,'Main Menu'!$C$8='Main Menu'!$N$7),AL47,AM47) -> 0 | AO47: =IF(OR('Main Menu'!$C$8='Main Menu'!$N$5,'Main Menu'!$C$8='Main Menu'!$N$7),0,IF(ISERROR(V47+W47+X47+Y47+Z47+AA47+AB47-AD47-AE47-AF47),0,ROUND(V47+W47+X47+Y47+Z47+AA47+AB47-AD47-AE47-AF47,6))) -> 0 | AP47: ='Selected Data_Employment'!BJ45 -> 0 | AQ47: ='Selected Data_Employment'!BK45 -> 1 | AR47: 2012 | AS47: . | AT47: .
A48: 2013 | B48: ='Manual Data'!AG39 -> . | C48: ='Manual Data'!AH39 -> . | D48: ='Manual Data'!AI39 -> . | E48: ='Manual Data'!AJ39 -> . | F48: ='Manual Data'!AK39 -> . | G48: ='Manual Data'!AL39 -> . | H48: ='Manual Data'!AM39 -> . | I48: . | J48: ='Manual Data'!AN39 -> . | K48: ='Manual Data'!AO39 -> . | L48: ='Manual Data'!AP39 -> . | N48: 2013 | O48: ='Existing Data_WDI'!AL36 -> 23752.21378 | P48: ='Existing Data_WDI'!AM36 -> 6075.331767 | Q48: ='Existing Data_WDI'!AN36 -> 4654.644372 | R48: ='Existing Data_WDI'!AO36 -> 13022.23764 | S48: ='Existing Data_WDI'!AW36 -> GDP | U48: 2013 | V48: =IF('Main Menu'!$C$8='Main Menu'!$N$5,".",IF('Main Menu'!$C$8='Main Menu'!$N$6,IF(ISNUMBER(B48)=FALSE,".",B48),".")) -> . | W48: =IF('Main Menu'!$C$8='Main Menu'!$N$5,".",IF('Main Menu'!$C$8='Main Menu'!$N$6,IF(ISNUMBER(C48)=FALSE,".",C48),".")) -> . | X48: =IF('Main Menu'!$C$8='Main Menu'!$N$5,".",IF('Main Menu'!$C$8='Main Menu'!$N$6,IF(ISNUMBER(D48)=FALSE,".",D48),".")) -> . | Y48: =IF('Main Menu'!$C$8='Main Menu'!$N$5,".",IF('Main Menu'!$C$8='Main Menu'!$N$6,IF(ISNUMBER(E48)=FALSE,".",E48),".")) -> . | Z48: =IF('Main Menu'!$C$8='Main Menu'!$N$5,".",IF('Main Menu'!$C$8='Main Menu'!$N$6,IF(ISNUMBER(F48)=FALSE,".",F48),".")) -> . | AA48: =IF('Main Menu'!$C$8='Main Menu'!$N$5,".",IF('Main Menu'!$C$8='Main Menu'!$N$6,IF(ISNUMBER(G48)=FALSE,".",G48),".")) -> . | AB48: =IF('Main Menu'!$C$8='Main Menu'!$N$5,".",IF('Main Menu'!$C$8='Main Menu'!$N$6,IF(ISNUMBER(H48)=FALSE,".",H48),".")) -> . | AC48: =IF(OR('Main Menu'!$C$8='Main Menu'!$N$5,'Main Menu'!$C$8='Main Menu'!$N$6),IF(ISNUMBER(I48)=FALSE,".",I48),O48) -> 23752.21378 | AD48: =IF(OR('Main Menu'!$C$8='Main Menu'!$N$5,'Main Menu'!$C$8='Main Menu'!$N$6),IF(ISNUMBER(J48)=FALSE,".",J48),P48) -> 6075.331767 | AE48: =IF(OR('Main Menu'!$C$8='Main Menu'!$N$5,'Main Menu'!$C$8='Main Menu'!$N$6),IF(ISNUMBER(K48)=FALSE,".",K48),Q48) -> 4654.644372 | AF48: =IF(OR('Main Menu'!$C$8='Main Menu'!$N$5,'Main Menu'!$C$8='Main Menu'!$N$6),IF(ISNUMBER(L48)=FALSE,".",L48),R48) -> 13022.23764 | AG48: =IF(OR('Main Menu'!$C$8='Main Menu'!$N$5,'Main Menu'!$C$8='Main Menu'!$N$6),"Manual",S48) -> GDP | AH48: 1 | AJ48: =IF(OR('Main Menu'!$C$8='Main Menu'!$N$5,'Main Menu'!$C$8='Main Menu'!$N$7),IF(ISNUMBER($AD48*$AE48*$AF48)=FALSE,".",IF($AC48=".",".",$U48)),IF(ISNUMBER($V48*$W48*$X48*$Y48*$Z48*$AA48*$AB48)=FALSE,".",IF($AC48=".",".",$U48))) -> 2013 | AK48: 2013 | AL48: 0 | AM48: 0 | AN48: =IF(OR('Main Menu'!$C$8='Main Menu'!$N$5,'Main Menu'!$C$8='Main Menu'!$N$7),AL48,AM48) -> 0 | AO48: =IF(OR('Main Menu'!$C$8='Main Menu'!$N$5,'Main Menu'!$C$8='Main Menu'!$N$7),0,IF(ISERROR(V48+W48+X48+Y48+Z48+AA48+AB48-AD48-AE48-AF48),0,ROUND(V48+W48+X48+Y48+Z48+AA48+AB48-AD48-AE48-AF48,6))) -> 0 | AP48: ='Selected Data_Employment'!BJ46 -> 0 | AQ48: ='Selected Data_Employment'!BK46 -> 1 | AR48: 2013 | AS48: . | AT48: .
A49: 2014 | B49: ='Manual Data'!AG40 -> . | C49: ='Manual Data'!AH40 -> . | D49: ='Manual Data'!AI40 -> . | E49: ='Manual Data'!AJ40 -> . | F49: ='Manual Data'!AK40 -> . | G49: ='Manual Data'!AL40 -> . | H49: ='Manual Data'!AM40 -> . | I49: . | J49: ='Manual Data'!AN40 -> . | K49: ='Manual Data'!AO40 -> . | L49: ='Manual Data'!AP40 -> . | N49: 2014 | O49: ='Existing Data_WDI'!AL37 -> 24965.07481 | P49: ='Existing Data_WDI'!AM37 -> 6251.220445 | Q49: ='Existing Data_WDI'!AN37 -> 4959.346672 | R49: ='Existing Data_WDI'!AO37 -> 13754.50769 | S49: ='Existing Data_WDI'!AW37 -> GDP | U49: 2014 | V49: =IF('Main Menu'!$C$8='Main Menu'!$N$5,".",IF('Main Menu'!$C$8='Main Menu'!$N$6,IF(ISNUMBER(B49)=FALSE,".",B49),".")) -> . | W49: =IF('Main Menu'!$C$8='Main Menu'!$N$5,".",IF('Main Menu'!$C$8='Main Menu'!$N$6,IF(ISNUMBER(C49)=FALSE,".",C49),".")) -> . | X49: =IF('Main Menu'!$C$8='Main Menu'!$N$5,".",IF('Main Menu'!$C$8='Main Menu'!$N$6,IF(ISNUMBER(D49)=FALSE,".",D49),".")) -> . | Y49: =IF('Main Menu'!$C$8='Main Menu'!$N$5,".",IF('Main Menu'!$C$8='Main Menu'!$N$6,IF(ISNUMBER(E49)=FALSE,".",E49),".")) -> . | Z49: =IF('Main Menu'!$C$8='Main Menu'!$N$5,".",IF('Main Menu'!$C$8='Main Menu'!$N$6,IF(ISNUMBER(F49)=FALSE,".",F49),".")) -> . | AA49: =IF('Main Menu'!$C$8='Main Menu'!$N$5,".",IF('Main Menu'!$C$8='Main Menu'!$N$6,IF(ISNUMBER(G49)=FALSE,".",G49),".")) -> . | AB49: =IF('Main Menu'!$C$8='Main Menu'!$N$5,".",IF('Main Menu'!$C$8='Main Menu'!$N$6,IF(ISNUMBER(H49)=FALSE,".",H49),".")) -> . | AC49: =IF(OR('Main Menu'!$C$8='Main Menu'!$N$5,'Main Menu'!$C$8='Main Menu'!$N$6),IF(ISNUMBER(I49)=FALSE,".",I49),O49) -> 24965.07481 | AD49: =IF(OR('Main Menu'!$C$8='Main Menu'!$N$5,'Main Menu'!$C$8='Main Menu'!$N$6),IF(ISNUMBER(J49)=FALSE,".",J49),P49) -> 6251.220445 | AE49: =IF(OR('Main Menu'!$C$8='Main Menu'!$N$5,'Main Menu'!$C$8='Main Menu'!$N$6),IF(ISNUMBER(K49)=FALSE,".",K49),Q49) -> 4959.346672 | AF49: =IF(OR('Main Menu'!$C$8='Main Menu'!$N$5,'Main Menu'!$C$8='Main Menu'!$N$6),IF(ISNUMBER(L49)=FALSE,".",L49),R49) -> 13754.50769 | AG49: =IF(OR('Main Menu'!$C$8='Main Menu'!$N$5,'Main Menu'!$C$8='Main Menu'!$N$6),"Manual",S49) -> GDP | AH49: 1 | AJ49: =IF(OR('Main Menu'!$C$8='Main Menu'!$N$5,'Main Menu'!$C$8='Main Menu'!$N$7),IF(ISNUMBER($AD49*$AE49*$AF49)=FALSE,".",IF($AC49=".",".",$U49)),IF(ISNUMBER($V49*$W49*$X49*$Y49*$Z49*$AA49*$AB49)=FALSE,".",IF($AC49=".",".",$U49))) -> 2014 | AK49: 2014 | AL49: 0 | AM49: 0 | AN49: =IF(OR('Main Menu'!$C$8='Main Menu'!$N$5,'Main Menu'!$C$8='Main Menu'!$N$7),AL49,AM49) -> 0 | AO49: =IF(OR('Main Menu'!$C$8='Main Menu'!$N$5,'Main Menu'!$C$8='Main Menu'!$N$7),0,IF(ISERROR(V49+W49+X49+Y49+Z49+AA49+AB49-AD49-AE49-AF49),0,ROUND(V49+W49+X49+Y49+Z49+AA49+AB49-AD49-AE49-AF49,6))) -> 0 | AP49: ='Selected Data_Employment'!BJ47 -> 0 | AQ49: ='Selected Data_Employment'!BK47 -> 1 | AR49: 2014 | AS49: . | AT49: .
A50: 2015 | B50: ='Manual Data'!AG41 -> . | C50: ='Manual Data'!AH41 -> . | D50: ='Manual Data'!AI41 -> . | E50: ='Manual Data'!AJ41 -> . | F50: ='Manual Data'!AK41 -> . | G50: ='Manual Data'!AL41 -> . | H50: ='Manual Data'!AM41 -> . | I50: . | J50: ='Manual Data'!AN41 -> . | K50: ='Manual Data'!AO41 -> . | L50: ='Manual Data'!AP41 -> . | N50: 2015 | O50: ='Existing Data_WDI'!AL38 -> 26260.22791 | P50: ='Existing Data_WDI'!AM38 -> 6423.026122 | Q50: ='Existing Data_WDI'!AN38 -> 5364.900622 | R50: ='Existing Data_WDI'!AO38 -> 14472.30116 | S50: ='Existing Data_WDI'!AW38 -> GDP | U50: 2015 | V50: =IF('Main Menu'!$C$8='Main Menu'!$N$5,".",IF('Main Menu'!$C$8='Main Menu'!$N$6,IF(ISNUMBER(B50)=FALSE,".",B50),".")) -> . | W50: =IF('Main Menu'!$C$8='Main Menu'!$N$5,".",IF('Main Menu'!$C$8='Main Menu'!$N$6,IF(ISNUMBER(C50)=FALSE,".",C50),".")) -> . | X50: =IF('Main Menu'!$C$8='Main Menu'!$N$5,".",IF('Main Menu'!$C$8='Main Menu'!$N$6,IF(ISNUMBER(D50)=FALSE,".",D50),".")) -> . | Y50: =IF('Main Menu'!$C$8='Main Menu'!$N$5,".",IF('Main Menu'!$C$8='Main Menu'!$N$6,IF(ISNUMBER(E50)=FALSE,".",E50),".")) -> . | Z50: =IF('Main Menu'!$C$8='Main Menu'!$N$5,".",IF('Main Menu'!$C$8='Main Menu'!$N$6,IF(ISNUMBER(F50)=FALSE,".",F50),".")) -> . | AA50: =IF('Main Menu'!$C$8='Main Menu'!$N$5,".",IF('Main Menu'!$C$8='Main Menu'!$N$6,IF(ISNUMBER(G50)=FALSE,".",G50),".")) -> . | AB50: =IF('Main Menu'!$C$8='Main Menu'!$N$5,".",IF('Main Menu'!$C$8='Main Menu'!$N$6,IF(ISNUMBER(H50)=FALSE,".",H50),".")) -> . | AC50: =IF(OR('Main Menu'!$C$8='Main Menu'!$N$5,'Main Menu'!$C$8='Main Menu'!$N$6),IF(ISNUMBER(I50)=FALSE,".",I50),O50) -> 26260.22791 | AD50: =IF(OR('Main Menu'!$C$8='Main Menu'!$N$5,'Main Menu'!$C$8='Main Menu'!$N$6),IF(ISNUMBER(J50)=FALSE,".",J50),P50) -> 6423.026122 | AE50: =IF(OR('Main Menu'!$C$8='Main Menu'!$N$5,'Main Menu'!$C$8='Main Menu'!$N$6),IF(ISNUMBER(K50)=FALSE,".",K50),Q50) -> 5364.900622 | AF50: =IF(OR('Main Menu'!$C$8='Main Menu'!$N$5,'Main Menu'!$C$8='Main Menu'!$N$6),IF(ISNUMBER(L50)=FALSE,".",L50),R50) -> 14472.30116 | AG50: =IF(OR('Main Menu'!$C$8='Main Menu'!$N$5,'Main Menu'!$C$8='Main Menu'!$N$6),"Manual",S50) -> GDP | AH50: 1 | AJ50: =IF(OR('Main Menu'!$C$8='Main Menu'!$N$5,'Main Menu'!$C$8='Main Menu'!$N$7),IF(ISNUMBER($AD50*$AE50*$AF50)=FALSE,".",IF($AC50=".",".",$U50)),IF(ISNUMBER($V50*$W50*$X50*$Y50*$Z50*$AA50*$AB50)=FALSE,".",IF($AC50=".",".",$U50))) -> 2015 | AK50: =IF(AJ50=".",".",IF(SUM(AP50:AQ50)=0,".",AJ50)) -> 2015 | AL50: =IF(ISERROR(SUM(AD50:AF50)-AC50),0,IF(SUM(AD50:AF50)=0,0,ROUND(SUM(AD50:AF50)-AC50,5))) -> 0 | AM50: =IF(ISERROR((V50+W50+X50+Y50+Z50+AA50+AB50-AC50)),0,IF((V50+W50+X50+Y50+Z50+AA50+AB50)=0,0,(V50+W50+X50+Y50+Z50+AA50+AB50-AC50))) -> 0 | AN50: =IF(OR('Main Menu'!$C$8='Main Menu'!$N$5,'Main Menu'!$C$8='Main Menu'!$N$7),AL50,AM50) -> 0 | AO50: =IF(OR('Main Menu'!$C$8='Main Menu'!$N$5,'Main Menu'!$C$8='Main Menu'!$N$7),0,IF(ISERROR(V50+W50+X50+Y50+Z50+AA50+AB50-AD50-AE50-AF50),0,ROUND(V50+W50+X50+Y50+Z50+AA50+AB50-AD50-AE50-AF50,6))) -> 0 | AP50: ='Selected Data_Employment'!BJ48 -> 0 | AQ50: ='Selected Data_Employment'!BK48 -> 1 | AR50: 2015 | AS50: . | AT50: .
A51: 2016 | B51: ='Manual Data'!AG42 -> . | C51: ='Manual Data'!AH42 -> . | D51: ='Manual Data'!AI42 -> . | E51: ='Manual Data'!AJ42 -> . | F51: ='Manual Data'!AK42 -> . | G51: ='Manual Data'!AL42 -> . | H51: ='Manual Data'!AM42 -> . | I51: =IF($AK$2=$AK$3,IF(SUM(J51:L51)=0,".",ROUND(SUM(J51:L51),10)),IF(SUM(B51:H51)=0,".",ROUND(SUM(B51:H51),10))) -> . | J51: ='Manual Data'!AN42 -> . | K51: ='Manual Data'!AO42 -> . | L51: ='Manual Data'!AP42 -> . | N51: 2016 | O51: ='Existing Data_WDI'!AL39 -> 27515.72948 | P51: ='Existing Data_WDI'!AM39 -> 6588.250998 | Q51: ='Existing Data_WDI'!AN39 -> 5596.215931 | R51: ='Existing Data_WDI'!AO39 -> 15331.26255 | S51: ='Existing Data_WDI'!AW39 -> GDP | U51: 2016 | V51: =IF('Main Menu'!$C$8='Main Menu'!$N$5,".",IF('Main Menu'!$C$8='Main Menu'!$N$6,IF(ISNUMBER(B51)=FALSE,".",B51),".")) -> . | W51: =IF('Main Menu'!$C$8='Main Menu'!$N$5,".",IF('Main Menu'!$C$8='Main Menu'!$N$6,IF(ISNUMBER(C51)=FALSE,".",C51),".")) -> . | X51: =IF('Main Menu'!$C$8='Main Menu'!$N$5,".",IF('Main Menu'!$C$8='Main Menu'!$N$6,IF(ISNUMBER(D51)=FALSE,".",D51),".")) -> . | Y51: =IF('Main Menu'!$C$8='Main Menu'!$N$5,".",IF('Main Menu'!$C$8='Main Menu'!$N$6,IF(ISNUMBER(E51)=FALSE,".",E51),".")) -> . | Z51: =IF('Main Menu'!$C$8='Main Menu'!$N$5,".",IF('Main Menu'!$C$8='Main Menu'!$N$6,IF(ISNUMBER(F51)=FALSE,".",F51),".")) -> . | AA51: =IF('Main Menu'!$C$8='Main Menu'!$N$5,".",IF('Main Menu'!$C$8='Main Menu'!$N$6,IF(ISNUMBER(G51)=FALSE,".",G51),".")) -> . | AB51: =IF('Main Menu'!$C$8='Main Menu'!$N$5,".",IF('Main Menu'!$C$8='Main Menu'!$N$6,IF(ISNUMBER(H51)=FALSE,".",H51),".")) -> . | AC51: =IF(OR('Main Menu'!$C$8='Main Menu'!$N$5,'Main Menu'!$C$8='Main Menu'!$N$6),IF(ISNUMBER(I51)=FALSE,".",I51),O51) -> 27515.72948 | AD51: =IF(OR('Main Menu'!$C$8='Main Menu'!$N$5,'Main Menu'!$C$8='Main Menu'!$N$6),IF(ISNUMBER(J51)=FALSE,".",J51),P51) -> 6588.250998 | AE51: =IF(OR('Main Menu'!$C$8='Main Menu'!$N$5,'Main Menu'!$C$8='Main Menu'!$N$6),IF(ISNUMBER(K51)=FALSE,".",K51),Q51) -> 5596.215931 | AF51: =IF(OR('Main Menu'!$C$8='Main Menu'!$N$5,'Main Menu'!$C$8='Main Menu'!$N$6),IF(ISNUMBER(L51)=FALSE,".",L51),R51) -> 15331.26255 | AG51: =IF(OR('Main Menu'!$C$8='Main Menu'!$N$5,'Main Menu'!$C$8='Main Menu'!$N$6),"Manual",S51) -> GDP | AH51: 1 | AJ51: =IF(OR('Main Menu'!$C$8='Main Menu'!$N$5,'Main Menu'!$C$8='Main Menu'!$N$7),IF(ISNUMBER($AD51*$AE51*$AF51)=FALSE,".",IF($AC51=".",".",$U51)),IF(ISNUMBER($V51*$W51*$X51*$Y51*$Z51*$AA51*$AB51)=FALSE,".",IF($AC51=".",".",$U51))) -> 2016 | AK51: 2016 | AL51: 0 | AM51: 0 | AN51: =IF(OR('Main Menu'!$C$8='Main Menu'!$N$5,'Main Menu'!$C$8='Main Menu'!$N$7),AL51,AM51) -> 0 | AO51: =IF(OR('Main Menu'!$C$8='Main Menu'!$N$5,'Main Menu'!$C$8='Main Menu'!$N$7),0,IF(ISERROR(V51+W51+X51+Y51+Z51+AA51+AB51-AD51-AE51-AF51),0,ROUND(V51+W51+X51+Y51+Z51+AA51+AB51-AD51-AE51-AF51,6))) -> 0 | AP51: ='Selected Data_Employment'!BJ49 -> 0 | AQ51: ='Selected Data_Employment'!BK49 -> 1 | AR51: 2016 | AS51: . | AT51: .
A52: 2017 | B52: ='Manual Data'!AG43 -> . | C52: ='Manual Data'!AH43 -> . | D52: ='Manual Data'!AI43 -> . | E52: ='Manual Data'!AJ43 -> . | F52: ='Manual Data'!AK43 -> . | G52: ='Manual Data'!AL43 -> . | H52: ='Manual Data'!AM43 -> . | I52: =IF($AK$2=$AK$3,IF(SUM(J52:L52)=0,".",ROUND(SUM(J52:L52),10)),IF(SUM(B52:H52)=0,".",ROUND(SUM(B52:H52),10))) -> . | J52: ='Manual Data'!AN43 -> . | K52: ='Manual Data'!AO43 -> . | L52: ='Manual Data'!AP43 -> . | N52: 2017 | O52: ='Existing Data_WDI'!AL40 -> 28578.66865 | P52: ='Existing Data_WDI'!AM40 -> 6679.349818 | Q52: ='Existing Data_WDI'!AN40 -> 5773.327207 | R52: ='Existing Data_WDI'!AO40 -> 16125.99162 | S52: ='Existing Data_WDI'!AW40 -> GDP | U52: 2017 | V52: =IF('Main Menu'!$C$8='Main Menu'!$N$5,".",IF('Main Menu'!$C$8='Main Menu'!$N$6,IF(ISNUMBER(B52)=FALSE,".",B52),".")) -> . | W52: =IF('Main Menu'!$C$8='Main Menu'!$N$5,".",IF('Main Menu'!$C$8='Main Menu'!$N$6,IF(ISNUMBER(C52)=FALSE,".",C52),".")) -> . | X52: =IF('Main Menu'!$C$8='Main Menu'!$N$5,".",IF('Main Menu'!$C$8='Main Menu'!$N$6,IF(ISNUMBER(D52)=FALSE,".",D52),".")) -> . | Y52: =IF('Main Menu'!$C$8='Main Menu'!$N$5,".",IF('Main Menu'!$C$8='Main Menu'!$N$6,IF(ISNUMBER(E52)=FALSE,".",E52),".")) -> . | Z52: =IF('Main Menu'!$C$8='Main Menu'!$N$5,".",IF('Main Menu'!$C$8='Main Menu'!$N$6,IF(ISNUMBER(F52)=FALSE,".",F52),".")) -> . | AA52: =IF('Main Menu'!$C$8='Main Menu'!$N$5,".",IF('Main Menu'!$C$8='Main Menu'!$N$6,IF(ISNUMBER(G52)=FALSE,".",G52),".")) -> . | AB52: =IF('Main Menu'!$C$8='Main Menu'!$N$5,".",IF('Main Menu'!$C$8='Main Menu'!$N$6,IF(ISNUMBER(H52)=FALSE,".",H52),".")) -> . | AC52: =IF(OR('Main Menu'!$C$8='Main Menu'!$N$5,'Main Menu'!$C$8='Main Menu'!$N$6),IF(ISNUMBER(I52)=FALSE,".",I52),O52) -> 28578.66865 | AD52: =IF(OR('Main Menu'!$C$8='Main Menu'!$N$5,'Main Menu'!$C$8='Main Menu'!$N$6),IF(ISNUMBER(J52)=FALSE,".",J52),P52) -> 6679.349818 | AE52: =IF(OR('Main Menu'!$C$8='Main Menu'!$N$5,'Main Menu'!$C$8='Main Menu'!$N$6),IF(ISNUMBER(K52)=FALSE,".",K52),Q52) -> 5773.327207 | AF52: =IF(OR('Main Menu'!$C$8='Main Menu'!$N$5,'Main Menu'!$C$8='Main Menu'!$N$6),IF(ISNUMBER(L52)=FALSE,".",L52),R52) -> 16125.99162 | AG52: =IF(OR('Main Menu'!$C$8='Main Menu'!$N$5,'Main Menu'!$C$8='Main Menu'!$N$6),"Manual",S52) -> GDP | AH52: 1 | AJ52: =IF(OR('Main Menu'!$C$8='Main Menu'!$N$5,'Main Menu'!$C$8='Main Menu'!$N$7),IF(ISNUMBER($AD52*$AE52*$AF52)=FALSE,".",IF($AC52=".",".",$U52)),IF(ISNUMBER($V52*$W52*$X52*$Y52*$Z52*$AA52*$AB52)=FALSE,".",IF($AC52=".",".",$U52))) -> 2017 | AK52: 2017 | AL52: 0 | AM52: 0 | AN52: =IF(OR('Main Menu'!$C$8='Main Menu'!$N$5,'Main Menu'!$C$8='Main Menu'!$N$7),AL52,AM52) -> 0 | AO52: =IF(OR('Main Menu'!$C$8='Main Menu'!$N$5,'Main Menu'!$C$8='Main Menu'!$N$7),0,IF(ISERROR(V52+W52+X52+Y52+Z52+AA52+AB52-AD52-AE52-AF52),0,ROUND(V52+W52+X52+Y52+Z52+AA52+AB52-AD52-AE52-AF52,6))) -> 0 | AP52: ='Selected Data_Employment'!BJ50 -> 0 | AQ52: ='Selected Data_Employment'!BK50 -> 1 | AR52: 2017 | AS52: . | AT52: .
A53: 2018 | B53: ='Manual Data'!AG44 -> . | C53: ='Manual Data'!AH44 -> . | D53: ='Manual Data'!AI44 -> . | E53: ='Manual Data'!AJ44 -> . | F53: ='Manual Data'!AK44 -> . | G53: ='Manual Data'!AL44 -> . | H53: ='Manual Data'!AM44 -> . | I53: =IF($AK$2=$AK$3,IF(SUM(J53:L53)=0,".",ROUND(SUM(J53:L53),10)),IF(SUM(B53:H53)=0,".",ROUND(SUM(B53:H53),10))) -> . | J53: ='Manual Data'!AN44 -> . | K53: ='Manual Data'!AO44 -> . | L53: ='Manual Data'!AP44 -> . | N53: 2018 | O53: ='Existing Data_WDI'!AL41 -> 30319.15088 | P53: ='Existing Data_WDI'!AM41 -> 6908.478641 | Q53: ='Existing Data_WDI'!AN41 -> 6104.35691 | R53: ='Existing Data_WDI'!AO41 -> 17306.31533 | S53: ='Existing Data_WDI'!AW41 -> GDP | U53: 2018 | V53: =IF('Main Menu'!$C$8='Main Menu'!$N$5,".",IF('Main Menu'!$C$8='Main Menu'!$N$6,IF(ISNUMBER(B53)=FALSE,".",B53),".")) -> . | W53: =IF('Main Menu'!$C$8='Main Menu'!$N$5,".",IF('Main Menu'!$C$8='Main Menu'!$N$6,IF(ISNUMBER(C53)=FALSE,".",C53),".")) -> . | X53: =IF('Main Menu'!$C$8='Main Menu'!$N$5,".",IF('Main Menu'!$C$8='Main Menu'!$N$6,IF(ISNUMBER(D53)=FALSE,".",D53),".")) -> . | Y53: =IF('Main Menu'!$C$8='Main Menu'!$N$5,".",IF('Main Menu'!$C$8='Main Menu'!$N$6,IF(ISNUMBER(E53)=FALSE,".",E53),".")) -> . | Z53: =IF('Main Menu'!$C$8='Main Menu'!$N$5,".",IF('Main Menu'!$C$8='Main Menu'!$N$6,IF(ISNUMBER(F53)=FALSE,".",F53),".")) -> . | AA53: =IF('Main Menu'!$C$8='Main Menu'!$N$5,".",IF('Main Menu'!$C$8='Main Menu'!$N$6,IF(ISNUMBER(G53)=FALSE,".",G53),".")) -> . | AB53: =IF('Main Menu'!$C$8='Main Menu'!$N$5,".",IF('Main Menu'!$C$8='Main Menu'!$N$6,IF(ISNUMBER(H53)=FALSE,".",H53),".")) -> . | AC53: =IF(OR('Main Menu'!$C$8='Main Menu'!$N$5,'Main Menu'!$C$8='Main Menu'!$N$6),IF(ISNUMBER(I53)=FALSE,".",I53),O53) -> 30319.15088 | AD53: =IF(OR('Main Menu'!$C$8='Main Menu'!$N$5,'Main Menu'!$C$8='Main Menu'!$N$6),IF(ISNUMBER(J53)=FALSE,".",J53),P53) -> 6908.478641 | AE53: =IF(OR('Main Menu'!$C$8='Main Menu'!$N$5,'Main Menu'!$C$8='Main Menu'!$N$6),IF(ISNUMBER(K53)=FALSE,".",K53),Q53) -> 6104.35691 | AF53: =IF(OR('Main Menu'!$C$8='Main Menu'!$N$5,'Main Menu'!$C$8='Main Menu'!$N$6),IF(ISNUMBER(L53)=FALSE,".",L53),R53) -> 17306.31533 | AG53: =IF(OR('Main Menu'!$C$8='Main Menu'!$N$5,'Main Menu'!$C$8='Main Menu'!$N$6),"Manual",S53) -> GDP | AH53: 1 | AJ53: =IF(OR('Main Menu'!$C$8='Main Menu'!$N$5,'Main Menu'!$C$8='Main Menu'!$N$7),IF(ISNUMBER($AD53*$AE53*$AF53)=FALSE,".",IF($AC53=".",".",$U53)),IF(ISNUMBER($V53*$W53*$X53*$Y53*$Z53*$AA53*$AB53)=FALSE,".",IF($AC53=".",".",$U53))) -> 2018 | AK53: 2018 | AL53: 0 | AM53: 0 | AN53: =IF(OR('Main Menu'!$C$8='Main Menu'!$N$5,'Main Menu'!$C$8='Main Menu'!$N$7),AL53,AM53) -> 0 | AO53: =IF(OR('Main Menu'!$C$8='Main Menu'!$N$5,'Main Menu'!$C$8='Main Menu'!$N$7),0,IF(ISERROR(V53+W53+X53+Y53+Z53+AA53+AB53-AD53-AE53-AF53),0,ROUND(V53+W53+X53+Y53+Z53+AA53+AB53-AD53-AE53-AF53,6))) -> 0 | AP53: ='Selected Data_Employment'!BJ51 -> 0 | AQ53: ='Selected Data_Employment'!BK51 -> 1 | AR53: 2018 | AS53: . | AT53: .
A54: 2019 | B54: ='Manual Data'!AG45 -> . | C54: ='Manual Data'!AH45 -> . | D54: ='Manual Data'!AI45 -> . | E54: ='Manual Data'!AJ45 -> . | F54: ='Manual Data'!AK45 -> . | G54: ='Manual Data'!AL45 -> . | H54: ='Manual Data'!AM45 -> . | I54: =IF($AK$2=$AK$3,IF(SUM(J54:L54)=0,".",ROUND(SUM(J54:L54),10)),IF(SUM(B54:H54)=0,".",ROUND(SUM(B54:H54),10))) -> . | J54: ='Manual Data'!AN45 -> . | K54: ='Manual Data'!AO45 -> . | L54: ='Manual Data'!AP45 -> . | N54: 2019 | O54: ='Existing Data_WDI'!AL42 -> . | P54: ='Existing Data_WDI'!AM42 -> . | Q54: ='Existing Data_WDI'!AN42 -> . | R54: ='Existing Data_WDI'!AO42 -> . | S54: ='Existing Data_WDI'!AW42 -> . | U54: 2019 | V54: =IF('Main Menu'!$C$8='Main Menu'!$N$5,".",IF('Main Menu'!$C$8='Main Menu'!$N$6,IF(ISNUMBER(B54)=FALSE,".",B54),".")) -> . | W54: =IF('Main Menu'!$C$8='Main Menu'!$N$5,".",IF('Main Menu'!$C$8='Main Menu'!$N$6,IF(ISNUMBER(C54)=FALSE,".",C54),".")) -> . | X54: =IF('Main Menu'!$C$8='Main Menu'!$N$5,".",IF('Main Menu'!$C$8='Main Menu'!$N$6,IF(ISNUMBER(D54)=FALSE,".",D54),".")) -> . | Y54: =IF('Main Menu'!$C$8='Main Menu'!$N$5,".",IF('Main Menu'!$C$8='Main Menu'!$N$6,IF(ISNUMBER(E54)=FALSE,".",E54),".")) -> . | Z54: =IF('Main Menu'!$C$8='Main Menu'!$N$5,".",IF('Main Menu'!$C$8='Main Menu'!$N$6,IF(ISNUMBER(F54)=FALSE,".",F54),".")) -> . | AA54: =IF('Main Menu'!$C$8='Main Menu'!$N$5,".",IF('Main Menu'!$C$8='Main Menu'!$N$6,IF(ISNUMBER(G54)=FALSE,".",G54),".")) -> . | AB54: =IF('Main Menu'!$C$8='Main Menu'!$N$5,".",IF('Main Menu'!$C$8='Main Menu'!$N$6,IF(ISNUMBER(H54)=FALSE,".",H54),".")) -> . | AC54: =IF(OR('Main Menu'!$C$8='Main Menu'!$N$5,'Main Menu'!$C$8='Main Menu'!$N$6),IF(ISNUMBER(I54)=FALSE,".",I54),O54) -> . | AD54: =IF(OR('Main Menu'!$C$8='Main Menu'!$N$5,'Main Menu'!$C$8='Main Menu'!$N$6),IF(ISNUMBER(J54)=FALSE,".",J54),P54) -> . | AE54: =IF(OR('Main Menu'!$C$8='Main Menu'!$N$5,'Main Menu'!$C$8='Main Menu'!$N$6),IF(ISNUMBER(K54)=FALSE,".",K54),Q54) -> . | AF54: =IF(OR('Main Menu'!$C$8='Main Menu'!$N$5,'Main Menu'!$C$8='Main Menu'!$N$6),IF(ISNUMBER(L54)=FALSE,".",L54),R54) -> . | AG54: =IF(OR('Main Menu'!$C$8='Main Menu'!$N$5,'Main Menu'!$C$8='Main Menu'!$N$6),"Manual",S54) -> . | AH54: 0 | AJ54: =IF(OR('Main Menu'!$C$8='Main Menu'!$N$5,'Main Menu'!$C$8='Main Menu'!$N$7),IF(ISNUMBER($AD54*$AE54*$AF54)=FALSE,".",IF($AC54=".",".",$U54)),IF(ISNUMBER($V54*$W54*$X54*$Y54*$Z54*$AA54*$AB54)=FALSE,".",IF($AC54=".",".",$U54))) -> . | AK54: . | AL54: 0 | AM54: 0 | AN54: =IF(OR('Main Menu'!$C$8='Main Menu'!$N$5,'Main Menu'!$C$8='Main Menu'!$N$7),AL54,AM54) -> 0 | AO54: =IF(OR('Main Menu'!$C$8='Main Menu'!$N$5,'Main Menu'!$C$8='Main Menu'!$N$7),0,IF(ISERROR(V54+W54+X54+Y54+Z54+AA54+AB54-AD54-AE54-AF54),0,ROUND(V54+W54+X54+Y54+Z54+AA54+AB54-AD54-AE54-AF54,6))) -> 0 | AP54: ='Selected Data_Employment'!BJ52 -> 0 | AQ54: ='Selected Data_Employment'!BK52 -> 0 | AR54: . | AS54: . | AT54: .
A55: 2020 | B55: ='Manual Data'!AG46 -> . | C55: ='Manual Data'!AH46 -> . | D55: ='Manual Data'!AI46 -> . | E55: ='Manual Data'!AJ46 -> . | F55: ='Manual Data'!AK46 -> . | G55: ='Manual Data'!AL46 -> . | H55: ='Manual Data'!AM46 -> . | I55: =IF($AK$2=$AK$3,IF(SUM(J55:L55)=0,".",ROUND(SUM(J55:L55),10)),IF(SUM(B55:H55)=0,".",ROUND(SUM(B55:H55),10))) -> . | J55: ='Manual Data'!AN46 -> . | K55: ='Manual Data'!AO46 -> . | L55: ='Manual Data'!AP46 -> . | N55: 2020 | O55: ='Existing Data_WDI'!AL43 -> . | P55: ='Existing Data_WDI'!AM43 -> . | Q55: ='Existing Data_WDI'!AN43 -> . | R55: ='Existing Data_WDI'!AO43 -> . | S55: ='Existing Data_WDI'!AW43 -> . | U55: 2020 | V55: =IF('Main Menu'!$C$8='Main Menu'!$N$5,".",IF('Main Menu'!$C$8='Main Menu'!$N$6,IF(ISNUMBER(B55)=FALSE,".",B55),".")) -> . | W55: =IF('Main Menu'!$C$8='Main Menu'!$N$5,".",IF('Main Menu'!$C$8='Main Menu'!$N$6,IF(ISNUMBER(C55)=FALSE,".",C55),".")) -> . | X55: =IF('Main Menu'!$C$8='Main Menu'!$N$5,".",IF('Main Menu'!$C$8='Main Menu'!$N$6,IF(ISNUMBER(D55)=FALSE,".",D55),".")) -> . | Y55: =IF('Main Menu'!$C$8='Main Menu'!$N$5,".",IF('Main Menu'!$C$8='Main Menu'!$N$6,IF(ISNUMBER(E55)=FALSE,".",E55),".")) -> . | Z55: =IF('Main Menu'!$C$8='Main Menu'!$N$5,".",IF('Main Menu'!$C$8='Main Menu'!$N$6,IF(ISNUMBER(F55)=FALSE,".",F55),".")) -> . | AA55: =IF('Main Menu'!$C$8='Main Menu'!$N$5,".",IF('Main Menu'!$C$8='Main Menu'!$N$6,IF(ISNUMBER(G55)=FALSE,".",G55),".")) -> . | AB55: =IF('Main Menu'!$C$8='Main Menu'!$N$5,".",IF('Main Menu'!$C$8='Main Menu'!$N$6,IF(ISNUMBER(H55)=FALSE,".",H55),".")) -> . | AC55: =IF(OR('Main Menu'!$C$8='Main Menu'!$N$5,'Main Menu'!$C$8='Main Menu'!$N$6),IF(ISNUMBER(I55)=FALSE,".",I55),O55) -> . | AD55: =IF(OR('Main Menu'!$C$8='Main Menu'!$N$5,'Main Menu'!$C$8='Main Menu'!$N$6),IF(ISNUMBER(J55)=FALSE,".",J55),P55) -> . | AE55: =IF(OR('Main Menu'!$C$8='Main Menu'!$N$5,'Main Menu'!$C$8='Main Menu'!$N$6),IF(ISNUMBER(K55)=FALSE,".",K55),Q55) -> . | AF55: =IF(OR('Main Menu'!$C$8='Main Menu'!$N$5,'Main Menu'!$C$8='Main Menu'!$N$6),IF(ISNUMBER(L55)=FALSE,".",L55),R55) -> . | AG55: =IF(OR('Main Menu'!$C$8='Main Menu'!$N$5,'Main Menu'!$C$8='Main Menu'!$N$6),"Manual",S55) -> . | AH55: 0 | AJ55: =IF(OR('Main Menu'!$C$8='Main Menu'!$N$5,'Main Menu'!$C$8='Main Menu'!$N$7),IF(ISNUMBER($AD55*$AE55*$AF55)=FALSE,".",IF($AC55=".",".",$U55)),IF(ISNUMBER($V55*$W55*$X55*$Y55*$Z55*$AA55*$AB55)=FALSE,".",IF($AC55=".",".",$U55))) -> . | AK55: . | AL55: 0 | AM55: 0 | AN55: =IF(OR('Main Menu'!$C$8='Main Menu'!$N$5,'Main Menu'!$C$8='Main Menu'!$N$7),AL55,AM55) -> 0 | AO55: =IF(OR('Main Menu'!$C$8='Main Menu'!$N$5,'Main Menu'!$C$8='Main Menu'!$N$7),0,IF(ISERROR(V55+W55+X55+Y55+Z55+AA55+AB55-AD55-AE55-AF55),0,ROUND(V55+W55+X55+Y55+Z55+AA55+AB55-AD55-AE55-AF55,6))) -> 0 | AP55: ='Selected Data_Employment'!BJ53 -> 0 | AQ55: ='Selected Data_Employment'!BK53 -> 0 | AR55: . | AS55: . | AT55: .
A56: 2021 | B56: ='Manual Data'!AG47 -> . | C56: ='Manual Data'!AH47 -> . | D56: ='Manual Data'!AI47 -> . | E56: ='Manual Data'!AJ47 -> . | F56: ='Manual Data'!AK47 -> . | G56: ='Manual Data'!AL47 -> . | H56: ='Manual Data'!AM47 -> . | I56: =IF($AK$2=$AK$3,IF(SUM(J56:L56)=0,".",ROUND(SUM(J56:L56),10)),IF(SUM(B56:H56)=0,".",ROUND(SUM(B56:H56),10))) -> . | J56: ='Manual Data'!AN47 -> . | K56: ='Manual Data'!AO47 -> . | L56: ='Manual Data'!AP47 -> . | N56: 2021 | O56: ='Existing Data_WDI'!AL44 -> . | P56: ='Existing Data_WDI'!AM44 -> . | Q56: ='Existing Data_WDI'!AN44 -> . | R56: ='Existing Data_WDI'!AO44 -> . | S56: ='Existing Data_WDI'!AW44 -> . | U56: 2021 | V56: =IF('Main Menu'!$C$8='Main Menu'!$N$5,".",IF('Main Menu'!$C$8='Main Menu'!$N$6,IF(ISNUMBER(B56)=FALSE,".",B56),".")) -> . | W56: =IF('Main Menu'!$C$8='Main Menu'!$N$5,".",IF('Main Menu'!$C$8='Main Menu'!$N$6,IF(ISNUMBER(C56)=FALSE,".",C56),".")) -> . | X56: =IF('Main Menu'!$C$8='Main Menu'!$N$5,".",IF('Main Menu'!$C$8='Main Menu'!$N$6,IF(ISNUMBER(D56)=FALSE,".",D56),".")) -> . | Y56: =IF('Main Menu'!$C$8='Main Menu'!$N$5,".",IF('Main Menu'!$C$8='Main Menu'!$N$6,IF(ISNUMBER(E56)=FALSE,".",E56),".")) -> . | Z56: =IF('Main Menu'!$C$8='Main Menu'!$N$5,".",IF('Main Menu'!$C$8='Main Menu'!$N$6,IF(ISNUMBER(F56)=FALSE,".",F56),".")) -> . | AA56: =IF('Main Menu'!$C$8='Main Menu'!$N$5,".",IF('Main Menu'!$C$8='Main Menu'!$N$6,IF(ISNUMBER(G56)=FALSE,".",G56),".")) -> . | AB56: =IF('Main Menu'!$C$8='Main Menu'!$N$5,".",IF('Main Menu'!$C$8='Main Menu'!$N$6,IF(ISNUMBER(H56)=FALSE,".",H56),".")) -> . | AC56: =IF(OR('Main Menu'!$C$8='Main Menu'!$N$5,'Main Menu'!$C$8='Main Menu'!$N$6),IF(ISNUMBER(I56)=FALSE,".",I56),O56) -> . | AD56: =IF(OR('Main Menu'!$C$8='Main Menu'!$N$5,'Main Menu'!$C$8='Main Menu'!$N$6),IF(ISNUMBER(J56)=FALSE,".",J56),P56) -> . | AE56: =IF(OR('Main Menu'!$C$8='Main Menu'!$N$5,'Main Menu'!$C$8='Main Menu'!$N$6),IF(ISNUMBER(K56)=FALSE,".",K56),Q56) -> . | AF56: =IF(OR('Main Menu'!$C$8='Main Menu'!$N$5,'Main Menu'!$C$8='Main Menu'!$N$6),IF(ISNUMBER(L56)=FALSE,".",L56),R56) -> . | AG56: =IF(OR('Main Menu'!$C$8='Main Menu'!$N$5,'Main Menu'!$C$8='Main Menu'!$N$6),"Manual",S56) -> . | AH56: 0 | AJ56: =IF(OR('Main Menu'!$C$8='Main Menu'!$N$5,'Main Menu'!$C$8='Main Menu'!$N$7),IF(ISNUMBER($AD56*$AE56*$AF56)=FALSE,".",IF($AC56=".",".",$U56)),IF(ISNUMBER($V56*$W56*$X56*$Y56*$Z56*$AA56*$AB56)=FALSE,".",IF($AC56=".",".",$U56))) -> . | AK56: =IF(AJ56=".",".",IF(SUM(AP56:AQ56)=0,".",AJ56)) -> . | AL56: =IF(ISERROR(SUM(AD56:AF56)-AC56),0,IF(SUM(AD56:AF56)=0,0,ROUND(SUM(AD56:AF56)-AC56,5))) -> 0 | AM56: =IF(ISERROR((V56+W56+X56+Y56+Z56+AA56+AB56-AC56)),0,IF((V56+W56+X56+Y56+Z56+AA56+AB56)=0,0,(V56+W56+X56+Y56+Z56+AA56+AB56-AC56))) -> 0 | AN56: =IF(OR('Main Menu'!$C$8='Main Menu'!$N$5,'Main Menu'!$C$8='Main Menu'!$N$7),AL56,AM56) -> 0 | AO56: =IF(OR('Main Menu'!$C$8='Main Menu'!$N$5,'Main Menu'!$C$8='Main Menu'!$N$7),0,IF(ISERROR(V56+W56+X56+Y56+Z56+AA56+AB56-AD56-AE56-AF56),0,ROUND(V56+W56+X56+Y56+Z56+AA56+AB56-AD56-AE56-AF56,6))) -> 0 | AP56: ='Selected Data_Employment'!BJ59 -> 0 | AQ56: ='Selected Data_Employment'!BK59 -> 0 | AR56: . | AS56: . | AT56: .
A57: 2022 | B57: ='Manual Data'!AG48 -> . | C57: ='Manual Data'!AH48 -> . | D57: ='Manual Data'!AI48 -> . | E57: ='Manual Data'!AJ48 -> . | F57: ='Manual Data'!AK48 -> . | G57: ='Manual Data'!AL48 -> . | H57: ='Manual Data'!AM48 -> . | I57: =IF($AK$2=$AK$3,IF(SUM(J57:L57)=0,".",ROUND(SUM(J57:L57),10)),IF(SUM(B57:H57)=0,".",ROUND(SUM(B57:H57),10))) -> . | J57: ='Manual Data'!AN48 -> . | K57: ='Manual Data'!AO48 -> . | L57: ='Manual Data'!AP48 -> . | N57: 2022 | O57: ='Existing Data_WDI'!AL45 -> . | P57: ='Existing Data_WDI'!AM45 -> . | Q57: ='Existing Data_WDI'!AN45 -> . | R57: ='Existing Data_WDI'!AO45 -> . | S57: ='Existing Data_WDI'!AW45 -> . | U57: 2022 | V57: =IF('Main Menu'!$C$8='Main Menu'!$N$5,".",IF('Main Menu'!$C$8='Main Menu'!$N$6,IF(ISNUMBER(B57)=FALSE,".",B57),".")) -> . | W57: =IF('Main Menu'!$C$8='Main Menu'!$N$5,".",IF('Main Menu'!$C$8='Main Menu'!$N$6,IF(ISNUMBER(C57)=FALSE,".",C57),".")) -> . | X57: =IF('Main Menu'!$C$8='Main Menu'!$N$5,".",IF('Main Menu'!$C$8='Main Menu'!$N$6,IF(ISNUMBER(D57)=FALSE,".",D57),".")) -> . | Y57: =IF('Main Menu'!$C$8='Main Menu'!$N$5,".",IF('Main Menu'!$C$8='Main Menu'!$N$6,IF(ISNUMBER(E57)=FALSE,".",E57),".")) -> . | Z57: =IF('Main Menu'!$C$8='Main Menu'!$N$5,".",IF('Main Menu'!$C$8='Main Menu'!$N$6,IF(ISNUMBER(F57)=FALSE,".",F57),".")) -> . | AA57: =IF('Main Menu'!$C$8='Main Menu'!$N$5,".",IF('Main Menu'!$C$8='Main Menu'!$N$6,IF(ISNUMBER(G57)=FALSE,".",G57),".")) -> . | AB57: =IF('Main Menu'!$C$8='Main Menu'!$N$5,".",IF('Main Menu'!$C$8='Main Menu'!$N$6,IF(ISNUMBER(H57)=FALSE,".",H57),".")) -> . | AC57: =IF(OR('Main Menu'!$C$8='Main Menu'!$N$5,'Main Menu'!$C$8='Main Menu'!$N$6),IF(ISNUMBER(I57)=FALSE,".",I57),O57) -> . | AD57: =IF(OR('Main Menu'!$C$8='Main Menu'!$N$5,'Main Menu'!$C$8='Main Menu'!$N$6),IF(ISNUMBER(J57)=FALSE,".",J57),P57) -> . | AE57: =IF(OR('Main Menu'!$C$8='Main Menu'!$N$5,'Main Menu'!$C$8='Main Menu'!$N$6),IF(ISNUMBER(K57)=FALSE,".",K57),Q57) -> . | AF57: =IF(OR('Main Menu'!$C$8='Main Menu'!$N$5,'Main Menu'!$C$8='Main Menu'!$N$6),IF(ISNUMBER(L57)=FALSE,".",L57),R57) -> . | AG57: =IF(OR('Main Menu'!$C$8='Main Menu'!$N$5,'Main Menu'!$C$8='Main Menu'!$N$6),"Manual",S57) -> . | AH57: 0 | AJ57: =IF(OR('Main Menu'!$C$8='Main Menu'!$N$5,'Main Menu'!$C$8='Main Menu'!$N$7),IF(ISNUMBER($AD57*$AE57*$AF57)=FALSE,".",IF($AC57=".",".",$U57)),IF(ISNUMBER($V57*$W57*$X57*$Y57*$Z57*$AA57*$AB57)=FALSE,".",IF($AC57=".",".",$U57))) -> . | AK57: =IF(AJ57=".",".",IF(SUM(AP57:AQ57)=0,".",AJ57)) -> . | AL57: =IF(ISERROR(SUM(AD57:AF57)-AC57),0,IF(SUM(AD57:AF57)=0,0,ROUND(SUM(AD57:AF57)-AC57,5))) -> 0 | AM57: =IF(ISERROR((V57+W57+X57+Y57+Z57+AA57+AB57-AC57)),0,IF((V57+W57+X57+Y57+Z57+AA57+AB57)=0,0,(V57+W57+X57+Y57+Z57+AA57+AB57-AC57))) -> 0 | AN57: =IF(OR('Main Menu'!$C$8='Main Menu'!$N$5,'Main Menu'!$C$8='Main Menu'!$N$7),AL57,AM57) -> 0 | AO57: =IF(OR('Main Menu'!$C$8='Main Menu'!$N$5,'Main Menu'!$C$8='Main Menu'!$N$7),0,IF(ISERROR(V57+W57+X57+Y57+Z57+AA57+AB57-AD57-AE57-AF57),0,ROUND(V57+W57+X57+Y57+Z57+AA57+AB57-AD57-AE57-AF57,6))) -> 0 | AP57: ='Selected Data_Employment'!BJ60 -> 0 | AQ57: ='Selected Data_Employment'!BK60 -> 0 | AR57: . | AS57: . | AT57: .
A58: 2023 | B58: ='Manual Data'!AG49 -> . | C58: ='Manual Data'!AH49 -> . | D58: ='Manual Data'!AI49 -> . | E58: ='Manual Data'!AJ49 -> . | F58: ='Manual Data'!AK49 -> . | G58: ='Manual Data'!AL49 -> . | H58: ='Manual Data'!AM49 -> . | I58: =IF($AK$2=$AK$3,IF(SUM(J58:L58)=0,".",ROUND(SUM(J58:L58),10)),IF(SUM(B58:H58)=0,".",ROUND(SUM(B58:H58),10))) -> . | J58: ='Manual Data'!AN49 -> . | K58: ='Manual Data'!AO49 -> . | L58: ='Manual Data'!AP49 -> . | N58: 2023 | O58: ='Existing Data_WDI'!AL46 -> . | P58: ='Existing Data_WDI'!AM46 -> . | Q58: ='Existing Data_WDI'!AN46 -> . | R58: ='Existing Data_WDI'!AO46 -> . | S58: ='Existing Data_WDI'!AW46 -> . | U58: 2023 | V58: =IF('Main Menu'!$C$8='Main Menu'!$N$5,".",IF('Main Menu'!$C$8='Main Menu'!$N$6,IF(ISNUMBER(B58)=FALSE,".",B58),".")) -> . | W58: =IF('Main Menu'!$C$8='Main Menu'!$N$5,".",IF('Main Menu'!$C$8='Main Menu'!$N$6,IF(ISNUMBER(C58)=FALSE,".",C58),".")) -> . | X58: =IF('Main Menu'!$C$8='Main Menu'!$N$5,".",IF('Main Menu'!$C$8='Main Menu'!$N$6,IF(ISNUMBER(D58)=FALSE,".",D58),".")) -> . | Y58: =IF('Main Menu'!$C$8='Main Menu'!$N$5,".",IF('Main Menu'!$C$8='Main Menu'!$N$6,IF(ISNUMBER(E58)=FALSE,".",E58),".")) -> . | Z58: =IF('Main Menu'!$C$8='Main Menu'!$N$5,".",IF('Main Menu'!$C$8='Main Menu'!$N$6,IF(ISNUMBER(F58)=FALSE,".",F58),".")) -> . | AA58: =IF('Main Menu'!$C$8='Main Menu'!$N$5,".",IF('Main Menu'!$C$8='Main Menu'!$N$6,IF(ISNUMBER(G58)=FALSE,".",G58),".")) -> . | AB58: =IF('Main Menu'!$C$8='Main Menu'!$N$5,".",IF('Main Menu'!$C$8='Main Menu'!$N$6,IF(ISNUMBER(H58)=FALSE,".",H58),".")) -> . | AC58: =IF(OR('Main Menu'!$C$8='Main Menu'!$N$5,'Main Menu'!$C$8='Main Menu'!$N$6),IF(ISNUMBER(I58)=FALSE,".",I58),O58) -> . | AD58: =IF(OR('Main Menu'!$C$8='Main Menu'!$N$5,'Main Menu'!$C$8='Main Menu'!$N$6),IF(ISNUMBER(J58)=FALSE,".",J58),P58) -> . | AE58: =IF(OR('Main Menu'!$C$8='Main Menu'!$N$5,'Main Menu'!$C$8='Main Menu'!$N$6),IF(ISNUMBER(K58)=FALSE,".",K58),Q58) -> . | AF58: =IF(OR('Main Menu'!$C$8='Main Menu'!$N$5,'Main Menu'!$C$8='Main Menu'!$N$6),IF(ISNUMBER(L58)=FALSE,".",L58),R58) -> . | AG58: =IF(OR('Main Menu'!$C$8='Main Menu'!$N$5,'Main Menu'!$C$8='Main Menu'!$N$6),"Manual",S58) -> . | AH58: 0 | AJ58: =IF(OR('Main Menu'!$C$8='Main Menu'!$N$5,'Main Menu'!$C$8='Main Menu'!$N$7),IF(ISNUMBER($AD58*$AE58*$AF58)=FALSE,".",IF($AC58=".",".",$U58)),IF(ISNUMBER($V58*$W58*$X58*$Y58*$Z58*$AA58*$AB58)=FALSE,".",IF($AC58=".",".",$U58))) -> . | AK58: =IF(AJ58=".",".",IF(SUM(AP58:AQ58)=0,".",AJ58)) -> . | AL58: =IF(ISERROR(SUM(AD58:AF58)-AC58),0,IF(SUM(AD58:AF58)=0,0,ROUND(SUM(AD58:AF58)-AC58,5))) -> 0 | AM58: =IF(ISERROR((V58+W58+X58+Y58+Z58+AA58+AB58-AC58)),0,IF((V58+W58+X58+Y58+Z58+AA58+AB58)=0,0,(V58+W58+X58+Y58+Z58+AA58+AB58-AC58))) -> 0 | AN58: =IF(OR('Main Menu'!$C$8='Main Menu'!$N$5,'Main Menu'!$C$8='Main Menu'!$N$7),AL58,AM58) -> 0 | AO58: =IF(OR('Main Menu'!$C$8='Main Menu'!$N$5,'Main Menu'!$C$8='Main Menu'!$N$7),0,IF(ISERROR(V58+W58+X58+Y58+Z58+AA58+AB58-AD58-AE58-AF58),0,ROUND(V58+W58+X58+Y58+Z58+AA58+AB58-AD58-AE58-AF58,6))) -> 0 | AP58: ='Selected Data_Employment'!BJ61 -> 0 | AQ58: ='Selected Data_Employment'!BK61 -> 0 | AR58: . | AS58: . | AT58: .
A59: 2024 | B59: ='Manual Data'!AG50 -> . | C59: ='Manual Data'!AH50 -> . | D59: ='Manual Data'!AI50 -> . | E59: ='Manual Data'!AJ50 -> . | F59: ='Manual Data'!AK50 -> . | G59: ='Manual Data'!AL50 -> . | H59: ='Manual Data'!AM50 -> . | I59: =IF($AK$2=$AK$3,IF(SUM(J59:L59)=0,".",ROUND(SUM(J59:L59),10)),IF(SUM(B59:H59)=0,".",ROUND(SUM(B59:H59),10))) -> . | J59: ='Manual Data'!AN50 -> . | K59: ='Manual Data'!AO50 -> . | L59: ='Manual Data'!AP50 -> . | N59: 2024 | O59: ='Existing Data_WDI'!AL47 -> . | P59: ='Existing Data_WDI'!AM47 -> . | Q59: ='Existing Data_WDI'!AN47 -> . | R59: ='Existing Data_WDI'!AO47 -> . | S59: ='Existing Data_WDI'!AW47 -> . | U59: 2024 | V59: =IF('Main Menu'!$C$8='Main Menu'!$N$5,".",IF('Main Menu'!$C$8='Main Menu'!$N$6,IF(ISNUMBER(B59)=FALSE,".",B59),".")) -> . | W59: =IF('Main Menu'!$C$8='Main Menu'!$N$5,".",IF('Main Menu'!$C$8='Main Menu'!$N$6,IF(ISNUMBER(C59)=FALSE,".",C59),".")) -> . | X59: =IF('Main Menu'!$C$8='Main Menu'!$N$5,".",IF('Main Menu'!$C$8='Main Menu'!$N$6,IF(ISNUMBER(D59)=FALSE,".",D59),".")) -> . | Y59: =IF('Main Menu'!$C$8='Main Menu'!$N$5,".",IF('Main Menu'!$C$8='Main Menu'!$N$6,IF(ISNUMBER(E59)=FALSE,".",E59),".")) -> . | Z59: =IF('Main Menu'!$C$8='Main Menu'!$N$5,".",IF('Main Menu'!$C$8='Main Menu'!$N$6,IF(ISNUMBER(F59)=FALSE,".",F59),".")) -> . | AA59: =IF('Main Menu'!$C$8='Main Menu'!$N$5,".",IF('Main Menu'!$C$8='Main Menu'!$N$6,IF(ISNUMBER(G59)=FALSE,".",G59),".")) -> . | AB59: =IF('Main Menu'!$C$8='Main Menu'!$N$5,".",IF('Main Menu'!$C$8='Main Menu'!$N$6,IF(ISNUMBER(H59)=FALSE,".",H59),".")) -> . | AC59: =IF(OR('Main Menu'!$C$8='Main Menu'!$N$5,'Main Menu'!$C$8='Main Menu'!$N$6),IF(ISNUMBER(I59)=FALSE,".",I59),O59) -> . | AD59: =IF(OR('Main Menu'!$C$8='Main Menu'!$N$5,'Main Menu'!$C$8='Main Menu'!$N$6),IF(ISNUMBER(J59)=FALSE,".",J59),P59) -> . | AE59: =IF(OR('Main Menu'!$C$8='Main Menu'!$N$5,'Main Menu'!$C$8='Main Menu'!$N$6),IF(ISNUMBER(K59)=FALSE,".",K59),Q59) -> . | AF59: =IF(OR('Main Menu'!$C$8='Main Menu'!$N$5,'Main Menu'!$C$8='Main Menu'!$N$6),IF(ISNUMBER(L59)=FALSE,".",L59),R59) -> . | AG59: =IF(OR('Main Menu'!$C$8='Main Menu'!$N$5,'Main Menu'!$C$8='Main Menu'!$N$6),"Manual",S59) -> . | AH59: 0 | AJ59: =IF(OR('Main Menu'!$C$8='Main Menu'!$N$5,'Main Menu'!$C$8='Main Menu'!$N$7),IF(ISNUMBER($AD59*$AE59*$AF59)=FALSE,".",IF($AC59=".",".",$U59)),IF(ISNUMBER($V59*$W59*$X59*$Y59*$Z59*$AA59*$AB59)=FALSE,".",IF($AC59=".",".",$U59))) -> . | AK59: =IF(AJ59=".",".",IF(SUM(AP59:AQ59)=0,".",AJ59)) -> . | AL59: =IF(ISERROR(SUM(AD59:AF59)-AC59),0,IF(SUM(AD59:AF59)=0,0,ROUND(SUM(AD59:AF59)-AC59,5))) -> 0 | AM59: =IF(ISERROR((V59+W59+X59+Y59+Z59+AA59+AB59-AC59)),0,IF((V59+W59+X59+Y59+Z59+AA59+AB59)=0,0,(V59+W59+X59+Y59+Z59+AA59+AB59-AC59))) -> 0 | AN59: =IF(OR('Main Menu'!$C$8='Main Menu'!$N$5,'Main Menu'!$C$8='Main Menu'!$N$7),AL59,AM59) -> 0 | AO59: =IF(OR('Main Menu'!$C$8='Main Menu'!$N$5,'Main Menu'!$C$8='Main Menu'!$N$7),0,IF(ISERROR(V59+W59+X59+Y59+Z59+AA59+AB59-AD59-AE59-AF59),0,ROUND(V59+W59+X59+Y59+Z59+AA59+AB59-AD59-AE59-AF59,6))) -> 0 | AP59: ='Selected Data_Employment'!BJ62 -> 0 | AQ59: ='Selected Data_Employment'!BK62 -> 0 | AR59: . | AS59: . | AT59: .
A60: 2025 | B60: ='Manual Data'!AG51 -> . | C60: ='Manual Data'!AH51 -> . | D60: ='Manual Data'!AI51 -> . | E60: ='Manual Data'!AJ51 -> . | F60: ='Manual Data'!AK51 -> . | G60: ='Manual Data'!AL51 -> . | H60: ='Manual Data'!AM51 -> . | I60: =IF($AK$2=$AK$3,IF(SUM(J60:L60)=0,".",ROUND(SUM(J60:L60),10)),IF(SUM(B60:H60)=0,".",ROUND(SUM(B60:H60),10))) -> . | J60: ='Manual Data'!AN51 -> . | K60: ='Manual Data'!AO51 -> . | L60: ='Manual Data'!AP51 -> . | N60: 2025 | O60: ='Existing Data_WDI'!AL48 -> . | P60: ='Existing Data_WDI'!AM48 -> . | Q60: ='Existing Data_WDI'!AN48 -> . | R60: ='Existing Data_WDI'!AO48 -> . | S60: ='Existing Data_WDI'!AW48 -> . | U60: 2025 | V60: =IF('Main Menu'!$C$8='Main Menu'!$N$5,".",IF('Main Menu'!$C$8='Main Menu'!$N$6,IF(ISNUMBER(B60)=FALSE,".",B60),".")) -> . | W60: =IF('Main Menu'!$C$8='Main Menu'!$N$5,".",IF('Main Menu'!$C$8='Main Menu'!$N$6,IF(ISNUMBER(C60)=FALSE,".",C60),".")) -> . | X60: =IF('Main Menu'!$C$8='Main Menu'!$N$5,".",IF('Main Menu'!$C$8='Main Menu'!$N$6,IF(ISNUMBER(D60)=FALSE,".",D60),".")) -> . | Y60: =IF('Main Menu'!$C$8='Main Menu'!$N$5,".",IF('Main Menu'!$C$8='Main Menu'!$N$6,IF(ISNUMBER(E60)=FALSE,".",E60),".")) -> . | Z60: =IF('Main Menu'!$C$8='Main Menu'!$N$5,".",IF('Main Menu'!$C$8='Main Menu'!$N$6,IF(ISNUMBER(F60)=FALSE,".",F60),".")) -> . | AA60: =IF('Main Menu'!$C$8='Main Menu'!$N$5,".",IF('Main Menu'!$C$8='Main Menu'!$N$6,IF(ISNUMBER(G60)=FALSE,".",G60),".")) -> . | AB60: =IF('Main Menu'!$C$8='Main Menu'!$N$5,".",IF('Main Menu'!$C$8='Main Menu'!$N$6,IF(ISNUMBER(H60)=FALSE,".",H60),".")) -> . | AC60: =IF(OR('Main Menu'!$C$8='Main Menu'!$N$5,'Main Menu'!$C$8='Main Menu'!$N$6),IF(ISNUMBER(I60)=FALSE,".",I60),O60) -> . | AD60: =IF(OR('Main Menu'!$C$8='Main Menu'!$N$5,'Main Menu'!$C$8='Main Menu'!$N$6),IF(ISNUMBER(J60)=FALSE,".",J60),P60) -> . | AE60: =IF(OR('Main Menu'!$C$8='Main Menu'!$N$5,'Main Menu'!$C$8='Main Menu'!$N$6),IF(ISNUMBER(K60)=FALSE,".",K60),Q60) -> . | AF60: =IF(OR('Main Menu'!$C$8='Main Menu'!$N$5,'Main Menu'!$C$8='Main Menu'!$N$6),IF(ISNUMBER(L60)=FALSE,".",L60),R60) -> . | AG60: =IF(OR('Main Menu'!$C$8='Main Menu'!$N$5,'Main Menu'!$C$8='Main Menu'!$N$6),"Manual",S60) -> . | AH60: 0 | AJ60: =IF(OR('Main Menu'!$C$8='Main Menu'!$N$5,'Main Menu'!$C$8='Main Menu'!$N$7),IF(ISNUMBER($AD60*$AE60*$AF60)=FALSE,".",IF($AC60=".",".",$U60)),IF(ISNUMBER($V60*$W60*$X60*$Y60*$Z60*$AA60*$AB60)=FALSE,".",IF($AC60=".",".",$U60))) -> . | AK60: =IF(AJ60=".",".",IF(SUM(AP60:AQ60)=0,".",AJ60)) -> . | AL60: =IF(ISERROR(SUM(AD60:AF60)-AC60),0,IF(SUM(AD60:AF60)=0,0,ROUND(SUM(AD60:AF60)-AC60,5))) -> 0 | AM60: =IF(ISERROR((V60+W60+X60+Y60+Z60+AA60+AB60-AC60)),0,IF((V60+W60+X60+Y60+Z60+AA60+AB60)=0,0,(V60+W60+X60+Y60+Z60+AA60+AB60-AC60))) -> 0 | AN60: =IF(OR('Main Menu'!$C$8='Main Menu'!$N$5,'Main Menu'!$C$8='Main Menu'!$N$7),AL60,AM60) -> 0 | AO60: =IF(OR('Main Menu'!$C$8='Main Menu'!$N$5,'Main Menu'!$C$8='Main Menu'!$N$7),0,IF(ISERROR(V60+W60+X60+Y60+Z60+AA60+AB60-AD60-AE60-AF60),0,ROUND(V60+W60+X60+Y60+Z60+AA60+AB60-AD60-AE60-AF60,6))) -> 0 | AP60: ='Selected Data_Employment'!BJ63 -> 0 | AQ60: ='Selected Data_Employment'!BK63 -> 0 | AR60: . | AS60: . | AT60: .
A61: End

Sheet Selected Data_Employment
A1: ='Main Menu'!$A$1 -> World Bank Group - Jobs Group
A2: ='Main Menu'!$A$2 -> JobStructure Tool
A3: ='Main Menu'!$C$6 -> Uganda
A4: =IF(Macro_Overall_Structural_Check=TRUE,"No errors reported in structural check","Please check errors on Documentation sheet before proceeding") -> No errors reported in structural check
A5: Step 2 B | F5: Annual Population and Employment Data (Major Sectors) | L5: Annual Population and Employment Data (Sub Sectors) | AT5: Sector Data Sources | AU5: Dates
A6: Employment Data by Sector | AT6: ='Main Menu'!N5 -> Manual (Major Sectors) | AU6: - | AV6: Selected:
A7: Seelcted: | B7: ='Main Menu'!B13 -> 1. Employment by Sector | D7: ='Main Menu'!C13 -> WDI | AT7: ='Main Menu'!N6 -> Manual (Sub Sectors) | AU7: - | AV7: ='Main Menu'!C13 -> WDI
B8: ='Main Menu'!B14 -> 2. Total Employment | D8: ='Main Menu'!C14 -> WDI | AT8: ='Main Menu'!N7 -> WDI | AU8: ='Existing Data_WDI'!$B$6 -> WDI Data Accessed 03 Oct 2019 | AV8: ='Main Menu'!C14 -> WDI
B9: ='Main Menu'!B15 -> 3. Population Data | D9: ='Main Menu'!C15 -> WDI | AV9: ='Main Menu'!C15 -> WDI
B10: =Documentation!B581 -> Working Age Population (WAP) | AT10: Total Empl. Sources: | AU10: Dates
D11: =Documentation!B582 -> 15-64 | E11: age group | AT11: Manual | AU11: -
AT12: =$AT$8 -> WDI | AU12: ='Existing Data_WDI'!$B$6 -> WDI Data Accessed 03 Oct 2019 | AV12: Projection on?
AT13: Population Sources: | AU13: Dates | AV13: ='Main Menu'!$O$27 -> TRUE
AT14: Manual | AU14: -
AT15: =$AT$8 -> WDI | AU15: ='Existing Data_WDI'!$B$6 -> WDI Data Accessed 03 Oct 2019
T16: ='Existing Data_WDI'!$AP$5 -> Note: Statistical Discrepancy is included in "Services"
B17: Manual Data | Q17: ="Existing Data "&R21 -> Existing Data WDI | Z17: Currently Selected Data
A18: =Documentation!$E$589 -> Main Sector | B18: ='Manual Data'!AQ13 -> Agriculture | C18: ='Manual Data'!AR13 -> Industry | D18: ='Manual Data'!AS13 -> Industry | E18: ='Manual Data'!AT13 -> Industry | F18: ='Manual Data'!AU13 -> Services | G18: ='Manual Data'!AV13 -> Services | H18: ='Manual Data'!AW13 -> Services | I18: Total | J18: ='Manual Data'!AX13 -> Agriculture | K18: ='Manual Data'!AY13 -> Industry | L18: ='Manual Data'!AZ13 -> Services | M18: ='Manual Data'!BA13 -> Total | N18: ='Manual Data'!BB13 -> Total | O18: ='Manual Data'!BC13 -> Total | Q18: =$A18 -> Main Sector | R18: ='Existing Data_WDI'!AP9 -> Total | S18: ='Existing Data_WDI'!AQ9 -> Agriculture | T18: ='Existing Data_WDI'!AR9 -> Industry | U18: ='Existing Data_WDI'!AS9 -> Services | V18: ='Existing Data_WDI'!AT9 -> Total | W18: ='Existing Data_WDI'!AU9 -> Total | X18: ='Existing Data_WDI'!AV9 -> Total | Z18: =A18 -> Main Sector | AA18: Agriculture | AB18: Industry | AC18: Industry | AD18: Industry | AE18: Services | AF18: Services | AG18: Services | AH18: Total | AI18: Agriculture | AJ18: Industry | AK18: Services | AL18: Total | AM18: Total | AN18: Total | AP18: For Chart (NA is not plotted, "." is plotted)
A19: Description | B19: ='Manual Data'!AQ14 -> Agriculture | C19: ='Manual Data'!AR14 -> Mining & Utilities | D19: ='Manual Data'!AS14 -> Manufacturing | E19: ='Manual Data'!AT14 -> Construction | F19: ='Manual Data'!AU14 -> Wholesale & Retail | G19: ='Manual Data'!AV14 -> Transport & Communications | H19: ='Manual Data'!AW14 -> Other Activities etc. | I19: =R19 -> Employment ages 15-64 | J19: ='Manual Data'!AX14 -> Agriculture | K19: ='Manual Data'!AY14 -> Industry | L19: ='Manual Data'!AZ14 -> Services | M19: ='Manual Data'!BA14 -> Labor force ages 15-64 | N19: ='Manual Data'!BB14 -> Population ages 15-64 | O19: ='Manual Data'!BC14 -> Population, total | Q19: Description | R19: ='Existing Data_WDI'!AP10 -> Employment ages 15-64 | S19: ='Existing Data_WDI'!AQ10 -> Employment in agriculture | T19: ='Existing Data_WDI'!AR10 -> Employment in industry | U19: ='Existing Data_WDI'!AS10 -> Employment in services | V19: ='Existing Data_WDI'!AT10 -> Labor force ages 15-64 | W19: ='Existing Data_WDI'!AU10 -> Population ages 15-64 | X19: ='Existing Data_WDI'!AV10 -> Population, total | Z19: Description | AA19: Agriculture | AB19: Mining & Utilities | AC19: Manufacturing | AD19: Construction | AE19: Wholesale & Retail | AF19: Transport & Communications | AG19: Other Activities etc. | AH19: Employment ages 15-64 | AI19: Agriculture | AJ19: Industry | AK19: Services | AL19: Labor force ages 15-64 | AM19: Population ages 15-64 | AN19: Population, total | AP19: ='Existing Data_WDI'!AP11 -> Employment 15-64 | AQ19: =AM19 -> Population ages 15-64 | AR19: Available Data Period | AT19: Max Available Employment Data Range | AU19: Combined Available Data Range
A20: Unit | B20: ='Manual Data'!AQ12 -> 1,000 people | C20: ='Manual Data'!AR12 -> 1,000 people | D20: ='Manual Data'!AS12 -> 1,000 people | E20: ='Manual Data'!AT12 -> 1,000 people | F20: ='Manual Data'!AU12 -> 1,000 people | G20: ='Manual Data'!AV12 -> 1,000 people | H20: ='Manual Data'!AW12 -> 1,000 people | I20: =H20 -> 1,000 people | J20: ='Manual Data'!AX12 -> 1,000 people | K20: ='Manual Data'!AY12 -> 1,000 people | L20: ='Manual Data'!AZ12 -> 1,000 people | M20: ='Manual Data'!BA12 -> 1,000 people | N20: ='Manual Data'!BB12 -> 1,000 people | O20: ='Manual Data'!BC12 -> 1,000 people | Q20: Unit | R20: ='Existing Data_WDI'!AP8 -> 1000 people | S20: ='Existing Data_WDI'!AQ8 -> 1000 people | T20: ='Existing Data_WDI'!AR8 -> 1000 people | U20: ='Existing Data_WDI'!AS8 -> 1000 people | V20: ='Existing Data_WDI'!AT8 -> 1000 people | W20: ='Existing Data_WDI'!AU8 -> 1000 people | X20: ='Existing Data_WDI'!AV8 -> 1000 people | Z20: =A20 -> Unit | AA20: =IF($D$8=$AT$11,B$20,'Existing Data_WDI'!$AP$8) -> 1000 people | AB20: =IF($D$8=$AT$11,C$20,'Existing Data_WDI'!$AP$8) -> 1000 people | AC20: =IF($D$8=$AT$11,D$20,'Existing Data_WDI'!$AP$8) -> 1000 people | AD20: =IF($D$8=$AT$11,E$20,'Existing Data_WDI'!$AP$8) -> 1000 people | AE20: =IF($D$8=$AT$11,F$20,'Existing Data_WDI'!$AP$8) -> 1000 people | AF20: =IF($D$8=$AT$11,G$20,'Existing Data_WDI'!$AP$8) -> 1000 people | AG20: =IF($D$8=$AT$11,H$20,'Existing Data_WDI'!$AP$8) -> 1000 people | AH20: =IF($D$8=$AT$11,I$20,'Existing Data_WDI'!$AP$8) -> 1000 people | AI20: =IF($D$8=$AT$11,J$20,'Existing Data_WDI'!$AP$8) -> 1000 people | AJ20: =IF($D$8=$AT$11,K$20,'Existing Data_WDI'!$AP$8) -> 1000 people | AK20: =IF($D$8=$AT$11,L$20,'Existing Data_WDI'!$AP$8) -> 1000 people | AL20: =IF($D$8=$AT$11,M$20,'Existing Data_WDI'!AT8) -> 1000 people | AM20: =IF($D$8=$AT$11,N$20,'Existing Data_WDI'!AU8) -> 1000 people | AN20: =IF($D$8=$AT$11,O$20,'Existing Data_WDI'!AV8) -> 1000 people | AP20: =AH20 -> 1000 people | AQ20: =AM20 -> 1000 people | AR20: =AU20 -> 1991 | AT20: =MIN(AT$23:AT$59) -> 1991 | AU20: =MIN(AU$23:AU$59) -> 1991
A21: Source | B21: Manual Data | Q21: Source | R21: =$AT$8 -> WDI | Z21: =A21 -> Source | AA21: =$D$7&" * "&$D$8 -> WDI * WDI | AB21: WDI * WDI | AC21: WDI * WDI | AD21: WDI * WDI | AE21: WDI * WDI | AF21: WDI * WDI | AG21: WDI * WDI | AH21: =$D$8 -> WDI | AI21: =$D$7&" * "&$D$8 -> WDI * WDI | AJ21: =$D$7&" * "&$D$8 -> WDI * WDI | AK21: =$D$7&" * "&$D$8 -> WDI * WDI | AL21: =$D$9 -> WDI | AM21: =$D$9 -> WDI | AN21: =$D$9 -> WDI | AP21: WDI | AQ21: =AM21 -> WDI | AR21: =AU21 -> 2018 | AT21: =MAX(AT$23:AT$59) -> 2018 | AU21: =MAX(AU$23:AU$59) -> 2018 | AV21: Major Sector Check | AW21: Sub Sector Check | AX21: Check Total | AY21: Check Sum of sub sectors = major sector | AZ21: Parallel Data Check: 0=No Value added + Employment sector data available. 1=Value added + Employment sector data available
A22: Year | B22: ='Manual Data'!AQ15 -> Agric | C22: ='Manual Data'!AR15 -> Min | D22: ='Manual Data'!AS15 -> Man | E22: ='Manual Data'!AT15 -> Con | F22: ='Manual Data'!AU15 -> W&R | G22: ='Manual Data'!AV15 -> T&C | H22: ='Manual Data'!AW15 -> Other etc. | I22: Total | J22: ='Manual Data'!AX15 -> Agric | K22: ='Manual Data'!AY15 -> Ind | L22: ='Manual Data'!AZ15 -> Serv | M22: ='Manual Data'!BA15 -> LF 15-64 | N22: ='Manual Data'!BB15 -> WAP 15-64 | O22: ='Manual Data'!BC15 -> POP | Q22: Year | R22: ='Existing Data_WDI'!AP12 -> E 15-64 | S22: ='Existing Data_WDI'!AQ12 -> Agric | T22: ='Existing Data_WDI'!AR12 -> Ind | U22: ='Existing Data_WDI'!AS12 -> Serv | V22: ='Existing Data_WDI'!AT12 -> LF 15-64 | W22: ='Existing Data_WDI'!AU12 -> WAP 15-64 | X22: ='Existing Data_WDI'!AV12 -> POP | Z22: =A22 -> Year | AA22: =B22 -> Agric | AB22: Min | AC22: Man | AD22: Con | AE22: W&R | AF22: T&C | AG22: Other etc. | AH22: Total | AI22: Agric | AJ22: Ind | AK22: Serv | AL22: LF 15-64 | AM22: WAP 15-64 | AN22: POP | AP22: ="Employment, "&$AP$21 -> Employment, WDI | AQ22: =$AQ$19&", "&$AQ$21 -> Population ages 15-64, WDI | AR22: =AR19 -> Available Data Period | AT22: Available | AU22: Available | AX22: =ROUND(SUM(AX23:AX59),5)=0 -> TRUE | AY22: =ROUND(SUM(AY23:AY59),5)=0 -> TRUE | AZ22: =AA22 -> Agric | BA22: Min | BB22: Man | BC22: Con | BD22: W&R | BE22: T&C | BF22: Other etc. | BG22: =AI22 -> Agric | BH22: =AJ22 -> Ind | BI22: =AK22 -> Serv | BJ22: Sub Sectors | BK22: Major Sectors
A23: 1990 | B23: ='Manual Data'!AQ16 -> . | C23: ='Manual Data'!AR16 -> . | D23: ='Manual Data'!AS16 -> . | E23: ='Manual Data'!AT16 -> . | F23: ='Manual Data'!AU16 -> . | G23: ='Manual Data'!AV16 -> . | H23: ='Manual Data'!AW16 -> . | I23: =IF($D$7=$AT$6,IF(SUM(J23:L23)=0,".",ROUND(SUM(J23:L23),10)),IF(SUM(B23:H23)=0,".",ROUND(SUM(B23:H23),10))) -> . | J23: ='Manual Data'!AX16 -> . | K23: ='Manual Data'!AY16 -> . | L23: ='Manual Data'!AZ16 -> . | M23: ='Manual Data'!BA16 -> . | N23: ='Manual Data'!BB16 -> . | O23: ='Manual Data'!BC16 -> . | Q23: =$A23 -> 1990 | R23: ='Existing Data_WDI'!AP13 -> . | S23: ='Existing Data_WDI'!AQ13 -> . | T23: ='Existing Data_WDI'!AR13 -> . | U23: ='Existing Data_WDI'!AS13 -> . | V23: ='Existing Data_WDI'!AT13 -> 6075.717456 | W23: ='Existing Data_WDI'!AU13 -> 8575.103 | X23: ='Existing Data_WDI'!AV13 -> 17354.392 | Z23: =$A23 -> 1990 | AA23: =IF($AH23=".",".",IF($D$7=$AT$6,".",IF($D$7=$AT$7,IF(ISNUMBER(B23)=FALSE,".",IF(SUM($B23,$C23:$H23)=0,".",B23/SUM($B23,$C23:$H23)*$AH23)),"."))) -> . | AB23: =IF($AH23=".",".",IF($D$7=$AT$6,".",IF($D$7=$AT$7,IF(ISNUMBER(C23)=FALSE,".",IF(SUM($B23,$C23:$H23)=0,".",C23/SUM($B23,$C23:$H23)*$AH23)),"."))) -> . | AC23: =IF($AH23=".",".",IF($D$7=$AT$6,".",IF($D$7=$AT$7,IF(ISNUMBER(D23)=FALSE,".",IF(SUM($B23,$C23:$H23)=0,".",D23/SUM($B23,$C23:$H23)*$AH23)),"."))) -> . | AD23: =IF($AH23=".",".",IF($D$7=$AT$6,".",IF($D$7=$AT$7,IF(ISNUMBER(E23)=FALSE,".",IF(SUM($B23,$C23:$H23)=0,".",E23/SUM($B23,$C23:$H23)*$AH23)),"."))) -> . | AE23: =IF($AH23=".",".",IF($D$7=$AT$6,".",IF($D$7=$AT$7,IF(ISNUMBER(F23)=FALSE,".",IF(SUM($B23,$C23:$H23)=0,".",F23/SUM($B23,$C23:$H23)*$AH23)),"."))) -> . | AF23: =IF($AH23=".",".",IF($D$7=$AT$6,".",IF($D$7=$AT$7,IF(ISNUMBER(G23)=FALSE,".",IF(SUM($B23,$C23:$H23)=0,".",G23/SUM($B23,$C23:$H23)*$AH23)),"."))) -> . | AG23: =IF($AH23=".",".",IF($D$7=$AT$6,".",IF($D$7=$AT$7,IF(ISNUMBER(H23)=FALSE,".",IF(SUM($B23,$C23:$H23)=0,".",H23/SUM($B23,$C23:$H23)*$AH23)),"."))) -> . | AH23: =IF($D$8=$AT$11,IF(ISNUMBER(I23)=FALSE,".",I23),R23) -> . | AI23: =IF($AH23=".",".",IF($D$7=$AT$6,IF(ISNUMBER(J23)=FALSE,".",IF(SUM($J23:$L23)=0,".",J23/SUM($J23:$L23)*$AH23)),IF($D$7=$AT$7,SUMIF($AA$18:$AG$18,AI$18,$AA23:$AG23),IF(ISERROR(S23/$R23),".",S23/$R23*$AH23)))) -> . | AJ23: =IF($AH23=".",".",IF($D$7=$AT$6,IF(ISNUMBER(K23)=FALSE,".",IF(SUM($J23:$L23)=0,".",K23/SUM($J23:$L23)*$AH23)),IF($D$7=$AT$7,SUMIF($AA$18:$AG$18,AJ$18,$AA23:$AG23),IF(ISERROR(T23/$R23),".",T23/$R23*$AH23)))) -> . | AK23: =IF($AH23=".",".",IF($D$7=$AT$6,IF(ISNUMBER(L23)=FALSE,".",IF(SUM($J23:$L23)=0,".",L23/SUM($J23:$L23)*$AH23)),IF($D$7=$AT$7,SUMIF($AA$18:$AG$18,AK$18,$AA23:$AG23),IF(ISERROR(U23/$R23),".",U23/$R23*$AH23)))) -> . | AL23: =IF($D$9=$AT$14,IF(ISNUMBER(M23)=FALSE,".",M23),V23) -> 6075.717456 | AM23: =IF($D$9=$AT$14,IF(ISNUMBER(N23)=FALSE,".",N23),W23) -> 8575.103 | AN23: =IF($D$9=$AT$14,IF(ISNUMBER(O23)=FALSE,".",O23),X23) -> 17354.392 | AP23: =IF('Existing Data_WDI'!AP13=0,NA(),IF(ISNUMBER('Existing Data_WDI'!AP13)=FALSE,NA(),'Existing Data_WDI'!AP13)) ->  | AQ23: =IF(ISNUMBER(AM23)=FALSE,NA(),AM23) -> 8575.103 | AR23: =IF(OR($Z23<$AR$20,$Z23>$AR$21),0,1) -> 0 | AT23: =IF(OR($D$7=$AT$6,$D$7=$AT$8),IF(ISNUMBER($AI23*$AJ23*$AK23*$AL23*$AM23*$AN23)=FALSE,".",IF($AH23=".",".",$Z23)),IF(ISNUMBER($AA23*$AB23*$AC23*$AD23*$AE23*$AF23*$AG23*$AL23*$AM23*$AN23)=FALSE,".",IF($AH23=".",".",$Z23))) -> . | AU23: =IF(AT23=".",".",IF(SUM(BJ23:BK23)=0,".",AT23)) -> . | AV23: =IF(ISERROR(SUM(AI23:AK23,-AH23)),0,IF(SUM(AI23:AK23)=0,0,ROUND(SUM(AI23:AK23,-AH23),5))) -> 0 | AW23: =IF(ISERROR(SUM(AA23:AG23,-AH23)),0,IF(SUM(AA23:AG23)=0,0,SUM(AA23:AG23,-AH23))) -> 0 | AX23: =IF(OR($D$7=$AT$6,$D$7=$AT$8),AV23,AW23) -> 0 | AY23: =IF(OR($D$7=$AT$6,$D$7=$AT$8),0,IF(ISERROR(AA23+AB23+AC23+AD23+AE23+AF23+AG23-AI23-AJ23-AK23),0,ROUND(AA23+AB23+AC23+AD23+AE23+AF23+AG23-AI23-AJ23-AK23,6))) -> 0 | AZ23: =IF(OR(ISERROR(AA23*'Selected Data_Value'!V25),ISNUMBER(AA23)=FALSE,ISNUMBER('Selected Data_Value'!V25)=FALSE),0,IF(AND(AA23=0,'Selected Data_Value'!V25=0),1,IF(AA23*'Selected Data_Value'!V25=0,0,1))) -> 0 | BA23: =IF(OR(ISERROR(AB23*'Selected Data_Value'!W25),ISNUMBER(AB23)=FALSE,ISNUMBER('Selected Data_Value'!W25)=FALSE),0,IF(AND(AB23=0,'Selected Data_Value'!W25=0),1,IF(AB23*'Selected Data_Value'!W25=0,0,1))) -> 0 | BB23: =IF(OR(ISERROR(AC23*'Selected Data_Value'!X25),ISNUMBER(AC23)=FALSE,ISNUMBER('Selected Data_Value'!X25)=FALSE),0,IF(AND(AC23=0,'Selected Data_Value'!X25=0),1,IF(AC23*'Selected Data_Value'!X25=0,0,1))) -> 0 | BC23: =IF(OR(ISERROR(AD23*'Selected Data_Value'!Y25),ISNUMBER(AD23)=FALSE,ISNUMBER('Selected Data_Value'!Y25)=FALSE),0,IF(AND(AD23=0,'Selected Data_Value'!Y25=0),1,IF(AD23*'Selected Data_Value'!Y25=0,0,1))) -> 0 | BD23: =IF(OR(ISERROR(AE23*'Selected Data_Value'!Z25),ISNUMBER(AE23)=FALSE,ISNUMBER('Selected Data_Value'!Z25)=FALSE),0,IF(AND(AE23=0,'Selected Data_Value'!Z25=0),1,IF(AE23*'Selected Data_Value'!Z25=0,0,1))) -> 0 | BE23: =IF(OR(ISERROR(AF23*'Selected Data_Value'!AA25),ISNUMBER(AF23)=FALSE,ISNUMBER('Selected Data_Value'!AA25)=FALSE),0,IF(AND(AF23=0,'Selected Data_Value'!AA25=0),1,IF(AF23*'Selected Data_Value'!AA25=0,0,1))) -> 0 | BF23: =IF(OR(ISERROR(AG23*'Selected Data_Value'!AB25),ISNUMBER(AG23)=FALSE,ISNUMBER('Selected Data_Value'!AB25)=FALSE),0,IF(AND(AG23=0,'Selected Data_Value'!AB25=0),1,IF(AG23*'Selected Data_Value'!AB25=0,0,1))) -> 0 | BG23: =IF(OR(ISERROR(AI23*'Selected Data_Value'!AD25),ISNUMBER(AI23)=FALSE,ISNUMBER('Selected Data_Value'!AD25)=FALSE),0,IF(AND(AI23=0,'Selected Data_Value'!AD25=0),1,IF(AI23*'Selected Data_Value'!AD25=0,0,1))) -> 0 | BH23: =IF(OR(ISERROR(AJ23*'Selected Data_Value'!AE25),ISNUMBER(AJ23)=FALSE,ISNUMBER('Selected Data_Value'!AE25)=FALSE),0,IF(AND(AJ23=0,'Selected Data_Value'!AE25=0),1,IF(AJ23*'Selected Data_Value'!AE25=0,0,1))) -> 0 | BI23: =IF(OR(ISERROR(AK23*'Selected Data_Value'!AF25),ISNUMBER(AK23)=FALSE,ISNUMBER('Selected Data_Value'!AF25)=FALSE),0,IF(AND(AK23=0,'Selected Data_Value'!AF25=0),1,IF(AK23*'Selected Data_Value'!AF25=0,0,1))) -> 0 | BJ23: =IF(COUNTIF(AZ23:BF23,0)>0,0,1) -> 0 | BK23: =IF(COUNTIF(BG23:BI23,0)>0,0,1) -> 0
A24: =A23+1 -> 1991 | B24: ='Manual Data'!AQ17 -> . | C24: ='Manual Data'!AR17 -> . | D24: ='Manual Data'!AS17 -> . | E24: ='Manual Data'!AT17 -> . | F24: ='Manual Data'!AU17 -> . | G24: ='Manual Data'!AV17 -> . | H24: ='Manual Data'!AW17 -> . | I24: . | J24: ='Manual Data'!AX17 -> . | K24: ='Manual Data'!AY17 -> . | L24: ='Manual Data'!AZ17 -> . | M24: ='Manual Data'!BA17 -> . | N24: ='Manual Data'!BB17 -> . | O24: ='Manual Data'!BC17 -> . | Q24: 1991 | R24: ='Existing Data_WDI'!AP14 -> 6188.573471 | S24: ='Existing Data_WDI'!AQ14 -> 4581.277162 | T24: ='Existing Data_WDI'!AR14 -> 370.3861305 | U24: ='Existing Data_WDI'!AS14 -> 1236.910179 | V24: ='Existing Data_WDI'!AT14 -> 6247.298073 | W24: ='Existing Data_WDI'!AU14 -> 8818.76 | X24: ='Existing Data_WDI'!AV14 -> 17953.531 | Z24: 1991 | AA24: . | AB24: . | AC24: . | AD24: . | AE24: . | AF24: . | AG24: . | AH24: 6188.573471 | AI24: 4581.277162 | AJ24: 370.3861305 | AK24: 1236.910179 | AL24: 6247.298073 | AM24: 8818.76 | AN24: 17953.531 | AP24: =IF('Existing Data_WDI'!AP14=0,NA(),IF(ISNUMBER('Existing Data_WDI'!AP14)=FALSE,NA(),'Existing Data_WDI'!AP14)) -> 6188.573471 | AQ24: 8818.76 | AR24: 1 | AT24: 1991 | AU24: 1991 | AV24: 0 | AW24: 0 | AX24: 0 | AY24: 0 | AZ24: =IF(OR(ISERROR(AA24*'Selected Data_Value'!V26),ISNUMBER(AA24)=FALSE,ISNUMBER('Selected Data_Value'!V26)=FALSE),0,IF(AND(AA24=0,'Selected Data_Value'!V26=0),1,IF(AA24*'Selected Data_Value'!V26=0,0,1))) -> 0 | BA24: =IF(OR(ISERROR(AB24*'Selected Data_Value'!W26),ISNUMBER(AB24)=FALSE,ISNUMBER('Selected Data_Value'!W26)=FALSE),0,IF(AND(AB24=0,'Selected Data_Value'!W26=0),1,IF(AB24*'Selected Data_Value'!W26=0,0,1))) -> 0 | BB24: =IF(OR(ISERROR(AC24*'Selected Data_Value'!X26),ISNUMBER(AC24)=FALSE,ISNUMBER('Selected Data_Value'!X26)=FALSE),0,IF(AND(AC24=0,'Selected Data_Value'!X26=0),1,IF(AC24*'Selected Data_Value'!X26=0,0,1))) -> 0 | BC24: =IF(OR(ISERROR(AD24*'Selected Data_Value'!Y26),ISNUMBER(AD24)=FALSE,ISNUMBER('Selected Data_Value'!Y26)=FALSE),0,IF(AND(AD24=0,'Selected Data_Value'!Y26=0),1,IF(AD24*'Selected Data_Value'!Y26=0,0,1))) -> 0 | BD24: =IF(OR(ISERROR(AE24*'Selected Data_Value'!Z26),ISNUMBER(AE24)=FALSE,ISNUMBER('Selected Data_Value'!Z26)=FALSE),0,IF(AND(AE24=0,'Selected Data_Value'!Z26=0),1,IF(AE24*'Selected Data_Value'!Z26=0,0,1))) -> 0 | BE24: =IF(OR(ISERROR(AF24*'Selected Data_Value'!AA26),ISNUMBER(AF24)=FALSE,ISNUMBER('Selected Data_Value'!AA26)=FALSE),0,IF(AND(AF24=0,'Selected Data_Value'!AA26=0),1,IF(AF24*'Selected Data_Value'!AA26=0,0,1))) -> 0 | BF24: =IF(OR(ISERROR(AG24*'Selected Data_Value'!AB26),ISNUMBER(AG24)=FALSE,ISNUMBER('Selected Data_Value'!AB26)=FALSE),0,IF(AND(AG24=0,'Selected Data_Value'!AB26=0),1,IF(AG24*'Selected Data_Value'!AB26=0,0,1))) -> 0 | BG24: =IF(OR(ISERROR(AI24*'Selected Data_Value'!AD26),ISNUMBER(AI24)=FALSE,ISNUMBER('Selected Data_Value'!AD26)=FALSE),0,IF(AND(AI24=0,'Selected Data_Value'!AD26=0),1,IF(AI24*'Selected Data_Value'!AD26=0,0,1))) -> 1 | BH24: =IF(OR(ISERROR(AJ24*'Selected Data_Value'!AE26),ISNUMBER(AJ24)=FALSE,ISNUMBER('Selected Data_Value'!AE26)=FALSE),0,IF(AND(AJ24=0,'Selected Data_Value'!AE26=0),1,IF(AJ24*'Selected Data_Value'!AE26=0,0,1))) -> 1 | BI24: =IF(OR(ISERROR(AK24*'Selected Data_Value'!AF26),ISNUMBER(AK24)=FALSE,ISNUMBER('Selected Data_Value'!AF26)=FALSE),0,IF(AND(AK24=0,'Selected Data_Value'!AF26=0),1,IF(AK24*'Selected Data_Value'!AF26=0,0,1))) -> 1 | BJ24: 0 | BK24: 1
A25: 1992 | B25: ='Manual Data'!AQ18 -> . | C25: ='Manual Data'!AR18 -> . | D25: ='Manual Data'!AS18 -> . | E25: ='Manual Data'!AT18 -> . | F25: ='Manual Data'!AU18 -> . | G25: ='Manual Data'!AV18 -> . | H25: ='Manual Data'!AW18 -> . | I25: . | J25: ='Manual Data'!AX18 -> . | K25: ='Manual Data'!AY18 -> . | L25: ='Manual Data'!AZ18 -> . | M25: ='Manual Data'!BA18 -> . | N25: ='Manual Data'!BB18 -> . | O25: ='Manual Data'!BC18 -> . | Q25: 1992 | R25: ='Existing Data_WDI'!AP15 -> 6372.542473 | S25: ='Existing Data_WDI'!AQ15 -> 4719.568491 | T25: ='Existing Data_WDI'!AR15 -> 385.6025526 | U25: ='Existing Data_WDI'!AS15 -> 1267.37143 | V25: ='Existing Data_WDI'!AT15 -> 6431.714245 | W25: ='Existing Data_WDI'!AU15 -> 9076.65 | X25: ='Existing Data_WDI'!AV15 -> 18561.674 | Z25: 1992 | AA25: . | AB25: . | AC25: . | AD25: . | AE25: . | AF25: . | AG25: . | AH25: 6372.542473 | AI25: 4719.568491 | AJ25: 385.6025526 | AK25: 1267.37143 | AL25: 6431.714245 | AM25: 9076.65 | AN25: 18561.674 | AP25: =IF('Existing Data_WDI'!AP15=0,NA(),IF(ISNUMBER('Existing Data_WDI'!AP15)=FALSE,NA(),'Existing Data_WDI'!AP15)) -> 6372.542473 | AQ25: 9076.65 | AR25: 1 | AT25: 1992 | AU25: 1992 | AV25: 0 | AW25: 0 | AX25: 0 | AY25: 0 | AZ25: =IF(OR(ISERROR(AA25*'Selected Data_Value'!V27),ISNUMBER(AA25)=FALSE,ISNUMBER('Selected Data_Value'!V27)=FALSE),0,IF(AND(AA25=0,'Selected Data_Value'!V27=0),1,IF(AA25*'Selected Data_Value'!V27=0,0,1))) -> 0 | BA25: =IF(OR(ISERROR(AB25*'Selected Data_Value'!W27),ISNUMBER(AB25)=FALSE,ISNUMBER('Selected Data_Value'!W27)=FALSE),0,IF(AND(AB25=0,'Selected Data_Value'!W27=0),1,IF(AB25*'Selected Data_Value'!W27=0,0,1))) -> 0 | BB25: =IF(OR(ISERROR(AC25*'Selected Data_Value'!X27),ISNUMBER(AC25)=FALSE,ISNUMBER('Selected Data_Value'!X27)=FALSE),0,IF(AND(AC25=0,'Selected Data_Value'!X27=0),1,IF(AC25*'Selected Data_Value'!X27=0,0,1))) -> 0 | BC25: =IF(OR(ISERROR(AD25*'Selected Data_Value'!Y27),ISNUMBER(AD25)=FALSE,ISNUMBER('Selected Data_Value'!Y27)=FALSE),0,IF(AND(AD25=0,'Selected Data_Value'!Y27=0),1,IF(AD25*'Selected Data_Value'!Y27=0,0,1))) -> 0 | BD25: =IF(OR(ISERROR(AE25*'Selected Data_Value'!Z27),ISNUMBER(AE25)=FALSE,ISNUMBER('Selected Data_Value'!Z27)=FALSE),0,IF(AND(AE25=0,'Selected Data_Value'!Z27=0),1,IF(AE25*'Selected Data_Value'!Z27=0,0,1))) -> 0 | BE25: =IF(OR(ISERROR(AF25*'Selected Data_Value'!AA27),ISNUMBER(AF25)=FALSE,ISNUMBER('Selected Data_Value'!AA27)=FALSE),0,IF(AND(AF25=0,'Selected Data_Value'!AA27=0),1,IF(AF25*'Selected Data_Value'!AA27=0,0,1))) -> 0 | BF25: =IF(OR(ISERROR(AG25*'Selected Data_Value'!AB27),ISNUMBER(AG25)=FALSE,ISNUMBER('Selected Data_Value'!AB27)=FALSE),0,IF(AND(AG25=0,'Selected Data_Value'!AB27=0),1,IF(AG25*'Selected Data_Value'!AB27=0,0,1))) -> 0 | BG25: =IF(OR(ISERROR(AI25*'Selected Data_Value'!AD27),ISNUMBER(AI25)=FALSE,ISNUMBER('Selected Data_Value'!AD27)=FALSE),0,IF(AND(AI25=0,'Selected Data_Value'!AD27=0),1,IF(AI25*'Selected Data_Value'!AD27=0,0,1))) -> 1 | BH25: =IF(OR(ISERROR(AJ25*'Selected Data_Value'!AE27),ISNUMBER(AJ25)=FALSE,ISNUMBER('Selected Data_Value'!AE27)=FALSE),0,IF(AND(AJ25=0,'Selected Data_Value'!AE27=0),1,IF(AJ25*'Selected Data_Value'!AE27=0,0,1))) -> 1 | BI25: =IF(OR(ISERROR(AK25*'Selected Data_Value'!AF27),ISNUMBER(AK25)=FALSE,ISNUMBER('Selected Data_Value'!AF27)=FALSE),0,IF(AND(AK25=0,'Selected Data_Value'!AF27=0),1,IF(AK25*'Selected Data_Value'!AF27=0,0,1))) -> 1 | BJ25: 0 | BK25: 1
A26: 1993 | B26: ='Manual Data'!AQ19 -> . | C26: ='Manual Data'!AR19 -> . | D26: ='Manual Data'!AS19 -> . | E26: ='Manual Data'!AT19 -> . | F26: ='Manual Data'!AU19 -> . | G26: ='Manual Data'!AV19 -> . | H26: ='Manual Data'!AW19 -> . | I26: . | J26: ='Manual Data'!AX19 -> . | K26: ='Manual Data'!AY19 -> . | L26: ='Manual Data'!AZ19 -> . | M26: ='Manual Data'!BA19 -> . | N26: ='Manual Data'!BB19 -> . | O26: ='Manual Data'!BC19 -> . | Q26: 1993 | R26: ='Existing Data_WDI'!AP16 -> 6547.461374 | S26: ='Existing Data_WDI'!AQ16 -> 4784.360883 | T26: ='Existing Data_WDI'!AR16 -> 411.6389083 | U26: ='Existing Data_WDI'!AS16 -> 1351.461582 | V26: ='Existing Data_WDI'!AT16 -> 6624.906533 | W26: ='Existing Data_WDI'!AU16 -> 9346.52 | X26: ='Existing Data_WDI'!AV16 -> 19175.988 | Z26: 1993 | AA26: . | AB26: . | AC26: . | AD26: . | AE26: . | AF26: . | AG26: . | AH26: 6547.461374 | AI26: 4784.360883 | AJ26: 411.6389083 | AK26: 1351.461582 | AL26: 6624.906533 | AM26: 9346.52 | AN26: 19175.988 | AP26: =IF('Existing Data_WDI'!AP16=0,NA(),IF(ISNUMBER('Existing Data_WDI'!AP16)=FALSE,NA(),'Existing Data_WDI'!AP16)) -> 6547.461374 | AQ26: 9346.52 | AR26: 1 | AT26: 1993 | AU26: 1993 | AV26: 0 | AW26: 0 | AX26: 0 | AY26: 0 | AZ26: =IF(OR(ISERROR(AA26*'Selected Data_Value'!V28),ISNUMBER(AA26)=FALSE,ISNUMBER('Selected Data_Value'!V28)=FALSE),0,IF(AND(AA26=0,'Selected Data_Value'!V28=0),1,IF(AA26*'Selected Data_Value'!V28=0,0,1))) -> 0 | BA26: =IF(OR(ISERROR(AB26*'Selected Data_Value'!W28),ISNUMBER(AB26)=FALSE,ISNUMBER('Selected Data_Value'!W28)=FALSE),0,IF(AND(AB26=0,'Selected Data_Value'!W28=0),1,IF(AB26*'Selected Data_Value'!W28=0,0,1))) -> 0 | BB26: =IF(OR(ISERROR(AC26*'Selected Data_Value'!X28),ISNUMBER(AC26)=FALSE,ISNUMBER('Selected Data_Value'!X28)=FALSE),0,IF(AND(AC26=0,'Selected Data_Value'!X28=0),1,IF(AC26*'Selected Data_Value'!X28=0,0,1))) -> 0 | BC26: =IF(OR(ISERROR(AD26*'Selected Data_Value'!Y28),ISNUMBER(AD26)=FALSE,ISNUMBER('Selected Data_Value'!Y28)=FALSE),0,IF(AND(AD26=0,'Selected Data_Value'!Y28=0),1,IF(AD26*'Selected Data_Value'!Y28=0,0,1))) -> 0 | BD26: =IF(OR(ISERROR(AE26*'Selected Data_Value'!Z28),ISNUMBER(AE26)=FALSE,ISNUMBER('Selected Data_Value'!Z28)=FALSE),0,IF(AND(AE26=0,'Selected Data_Value'!Z28=0),1,IF(AE26*'Selected Data_Value'!Z28=0,0,1))) -> 0 | BE26: =IF(OR(ISERROR(AF26*'Selected Data_Value'!AA28),ISNUMBER(AF26)=FALSE,ISNUMBER('Selected Data_Value'!AA28)=FALSE),0,IF(AND(AF26=0,'Selected Data_Value'!AA28=0),1,IF(AF26*'Selected Data_Value'!AA28=0,0,1))) -> 0 | BF26: =IF(OR(ISERROR(AG26*'Selected Data_Value'!AB28),ISNUMBER(AG26)=FALSE,ISNUMBER('Selected Data_Value'!AB28)=FALSE),0,IF(AND(AG26=0,'Selected Data_Value'!AB28=0),1,IF(AG26*'Selected Data_Value'!AB28=0,0,1))) -> 0 | BG26: =IF(OR(ISERROR(AI26*'Selected Data_Value'!AD28),ISNUMBER(AI26)=FALSE,ISNUMBER('Selected Data_Value'!AD28)=FALSE),0,IF(AND(AI26=0,'Selected Data_Value'!AD28=0),1,IF(AI26*'Selected Data_Value'!AD28=0,0,1))) -> 1 | BH26: =IF(OR(ISERROR(AJ26*'Selected Data_Value'!AE28),ISNUMBER(AJ26)=FALSE,ISNUMBER('Selected Data_Value'!AE28)=FALSE),0,IF(AND(AJ26=0,'Selected Data_Value'!AE28=0),1,IF(AJ26*'Selected Data_Value'!AE28=0,0,1))) -> 1 | BI26: =IF(OR(ISERROR(AK26*'Selected Data_Value'!AF28),ISNUMBER(AK26)=FALSE,ISNUMBER('Selected Data_Value'!AF28)=FALSE),0,IF(AND(AK26=0,'Selected Data_Value'!AF28=0),1,IF(AK26*'Selected Data_Value'!AF28=0,0,1))) -> 1 | BJ26: 0 | BK26: 1
A27: 1994 | B27: ='Manual Data'!AQ20 -> . | C27: ='Manual Data'!AR20 -> . | D27: ='Manual Data'!AS20 -> . | E27: ='Manual Data'!AT20 -> . | F27: ='Manual Data'!AU20 -> . | G27: ='Manual Data'!AV20 -> . | H27: ='Manual Data'!AW20 -> . | I27: . | J27: ='Manual Data'!AX20 -> . | K27: ='Manual Data'!AY20 -> . | L27: ='Manual Data'!AZ20 -> . | M27: ='Manual Data'!BA20 -> . | N27: ='Manual Data'!BB20 -> . | O27: ='Manual Data'!BC20 -> . | Q27: 1994 | R27: ='Existing Data_WDI'!AP17 -> 6728.305153 | S27: ='Existing Data_WDI'!AQ17 -> 4926.868591 | T27: ='Existing Data_WDI'!AR17 -> 431.0152373 | U27: ='Existing Data_WDI'!AS17 -> 1370.421324 | V27: ='Existing Data_WDI'!AT17 -> 6825.500278 | W27: ='Existing Data_WDI'!AU17 -> 9625.854 | X27: ='Existing Data_WDI'!AV17 -> 19793.541 | Z27: 1994 | AA27: . | AB27: . | AC27: . | AD27: . | AE27: . | AF27: . | AG27: . | AH27: 6728.305153 | AI27: 4926.868591 | AJ27: 431.0152373 | AK27: 1370.421324 | AL27: 6825.500278 | AM27: 9625.854 | AN27: 19793.541 | AP27: =IF('Existing Data_WDI'!AP17=0,NA(),IF(ISNUMBER('Existing Data_WDI'!AP17)=FALSE,NA(),'Existing Data_WDI'!AP17)) -> 6728.305153 | AQ27: 9625.854 | AR27: 1 | AT27: 1994 | AU27: 1994 | AV27: 0 | AW27: 0 | AX27: 0 | AY27: 0 | AZ27: =IF(OR(ISERROR(AA27*'Selected Data_Value'!V29),ISNUMBER(AA27)=FALSE,ISNUMBER('Selected Data_Value'!V29)=FALSE),0,IF(AND(AA27=0,'Selected Data_Value'!V29=0),1,IF(AA27*'Selected Data_Value'!V29=0,0,1))) -> 0 | BA27: =IF(OR(ISERROR(AB27*'Selected Data_Value'!W29),ISNUMBER(AB27)=FALSE,ISNUMBER('Selected Data_Value'!W29)=FALSE),0,IF(AND(AB27=0,'Selected Data_Value'!W29=0),1,IF(AB27*'Selected Data_Value'!W29=0,0,1))) -> 0 | BB27: =IF(OR(ISERROR(AC27*'Selected Data_Value'!X29),ISNUMBER(AC27)=FALSE,ISNUMBER('Selected Data_Value'!X29)=FALSE),0,IF(AND(AC27=0,'Selected Data_Value'!X29=0),1,IF(AC27*'Selected Data_Value'!X29=0,0,1))) -> 0 | BC27: =IF(OR(ISERROR(AD27*'Selected Data_Value'!Y29),ISNUMBER(AD27)=FALSE,ISNUMBER('Selected Data_Value'!Y29)=FALSE),0,IF(AND(AD27=0,'Selected Data_Value'!Y29=0),1,IF(AD27*'Selected Data_Value'!Y29=0,0,1))) -> 0 | BD27: =IF(OR(ISERROR(AE27*'Selected Data_Value'!Z29),ISNUMBER(AE27)=FALSE,ISNUMBER('Selected Data_Value'!Z29)=FALSE),0,IF(AND(AE27=0,'Selected Data_Value'!Z29=0),1,IF(AE27*'Selected Data_Value'!Z29=0,0,1))) -> 0 | BE27: =IF(OR(ISERROR(AF27*'Selected Data_Value'!AA29),ISNUMBER(AF27)=FALSE,ISNUMBER('Selected Data_Value'!AA29)=FALSE),0,IF(AND(AF27=0,'Selected Data_Value'!AA29=0),1,IF(AF27*'Selected Data_Value'!AA29=0,0,1))) -> 0 | BF27: =IF(OR(ISERROR(AG27*'Selected Data_Value'!AB29),ISNUMBER(AG27)=FALSE,ISNUMBER('Selected Data_Value'!AB29)=FALSE),0,IF(AND(AG27=0,'Selected Data_Value'!AB29=0),1,IF(AG27*'Selected Data_Value'!AB29=0,0,1))) -> 0 | BG27: =IF(OR(ISERROR(AI27*'Selected Data_Value'!AD29),ISNUMBER(AI27)=FALSE,ISNUMBER('Selected Data_Value'!AD29)=FALSE),0,IF(AND(AI27=0,'Selected Data_Value'!AD29=0),1,IF(AI27*'Selected Data_Value'!AD29=0,0,1))) -> 1 | BH27: =IF(OR(ISERROR(AJ27*'Selected Data_Value'!AE29),ISNUMBER(AJ27)=FALSE,ISNUMBER('Selected Data_Value'!AE29)=FALSE),0,IF(AND(AJ27=0,'Selected Data_Value'!AE29=0),1,IF(AJ27*'Selected Data_Value'!AE29=0,0,1))) -> 1 | BI27: =IF(OR(ISERROR(AK27*'Selected Data_Value'!AF29),ISNUMBER(AK27)=FALSE,ISNUMBER('Selected Data_Value'!AF29)=FALSE),0,IF(AND(AK27=0,'Selected Data_Value'!AF29=0),1,IF(AK27*'Selected Data_Value'!AF29=0,0,1))) -> 1 | BJ27: 0 | BK27: 1
A28: 1995 | B28: ='Manual Data'!AQ21 -> . | C28: ='Manual Data'!AR21 -> . | D28: ='Manual Data'!AS21 -> . | E28: ='Manual Data'!AT21 -> . | F28: ='Manual Data'!AU21 -> . | G28: ='Manual Data'!AV21 -> . | H28: ='Manual Data'!AW21 -> . | I28: . | J28: ='Manual Data'!AX21 -> . | K28: ='Manual Data'!AY21 -> . | L28: ='Manual Data'!AZ21 -> . | M28: ='Manual Data'!BA21 -> . | N28: ='Manual Data'!BB21 -> . | O28: ='Manual Data'!BC21 -> . | Q28: 1995 | R28: ='Existing Data_WDI'!AP18 -> 6918.261452 | S28: ='Existing Data_WDI'!AQ18 -> 4985.57614 | T28: ='Existing Data_WDI'!AR18 -> 468.6430424 | U28: ='Existing Data_WDI'!AS18 -> 1464.04227 | V28: ='Existing Data_WDI'!AT18 -> 7033.326679 | W28: ='Existing Data_WDI'!AU18 -> 9914.472 | X28: ='Existing Data_WDI'!AV18 -> 20413.152 | Z28: 1995 | AA28: . | AB28: . | AC28: . | AD28: . | AE28: . | AF28: . | AG28: . | AH28: 6918.261452 | AI28: 4985.57614 | AJ28: 468.6430424 | AK28: 1464.04227 | AL28: 7033.326679 | AM28: 9914.472 | AN28: 20413.152 | AP28: =IF('Existing Data_WDI'!AP18=0,NA(),IF(ISNUMBER('Existing Data_WDI'!AP18)=FALSE,NA(),'Existing Data_WDI'!AP18)) -> 6918.261452 | AQ28: 9914.472 | AR28: 1 | AT28: 1995 | AU28: 1995 | AV28: 0 | AW28: 0 | AX28: 0 | AY28: 0 | AZ28: =IF(OR(ISERROR(AA28*'Selected Data_Value'!V30),ISNUMBER(AA28)=FALSE,ISNUMBER('Selected Data_Value'!V30)=FALSE),0,IF(AND(AA28=0,'Selected Data_Value'!V30=0),1,IF(AA28*'Selected Data_Value'!V30=0,0,1))) -> 0 | BA28: =IF(OR(ISERROR(AB28*'Selected Data_Value'!W30),ISNUMBER(AB28)=FALSE,ISNUMBER('Selected Data_Value'!W30)=FALSE),0,IF(AND(AB28=0,'Selected Data_Value'!W30=0),1,IF(AB28*'Selected Data_Value'!W30=0,0,1))) -> 0 | BB28: =IF(OR(ISERROR(AC28*'Selected Data_Value'!X30),ISNUMBER(AC28)=FALSE,ISNUMBER('Selected Data_Value'!X30)=FALSE),0,IF(AND(AC28=0,'Selected Data_Value'!X30=0),1,IF(AC28*'Selected Data_Value'!X30=0,0,1))) -> 0 | BC28: =IF(OR(ISERROR(AD28*'Selected Data_Value'!Y30),ISNUMBER(AD28)=FALSE,ISNUMBER('Selected Data_Value'!Y30)=FALSE),0,IF(AND(AD28=0,'Selected Data_Value'!Y30=0),1,IF(AD28*'Selected Data_Value'!Y30=0,0,1))) -> 0 | BD28: =IF(OR(ISERROR(AE28*'Selected Data_Value'!Z30),ISNUMBER(AE28)=FALSE,ISNUMBER('Selected Data_Value'!Z30)=FALSE),0,IF(AND(AE28=0,'Selected Data_Value'!Z30=0),1,IF(AE28*'Selected Data_Value'!Z30=0,0,1))) -> 0 | BE28: =IF(OR(ISERROR(AF28*'Selected Data_Value'!AA30),ISNUMBER(AF28)=FALSE,ISNUMBER('Selected Data_Value'!AA30)=FALSE),0,IF(AND(AF28=0,'Selected Data_Value'!AA30=0),1,IF(AF28*'Selected Data_Value'!AA30=0,0,1))) -> 0 | BF28: =IF(OR(ISERROR(AG28*'Selected Data_Value'!AB30),ISNUMBER(AG28)=FALSE,ISNUMBER('Selected Data_Value'!AB30)=FALSE),0,IF(AND(AG28=0,'Selected Data_Value'!AB30=0),1,IF(AG28*'Selected Data_Value'!AB30=0,0,1))) -> 0 | BG28: =IF(OR(ISERROR(AI28*'Selected Data_Value'!AD30),ISNUMBER(AI28)=FALSE,ISNUMBER('Selected Data_Value'!AD30)=FALSE),0,IF(AND(AI28=0,'Selected Data_Value'!AD30=0),1,IF(AI28*'Selected Data_Value'!AD30=0,0,1))) -> 1 | BH28: =IF(OR(ISERROR(AJ28*'Selected Data_Value'!AE30),ISNUMBER(AJ28)=FALSE,ISNUMBER('Selected Data_Value'!AE30)=FALSE),0,IF(AND(AJ28=0,'Selected Data_Value'!AE30=0),1,IF(AJ28*'Selected Data_Value'!AE30=0,0,1))) -> 1 | BI28: =IF(OR(ISERROR(AK28*'Selected Data_Value'!AF30),ISNUMBER(AK28)=FALSE,ISNUMBER('Selected Data_Value'!AF30)=FALSE),0,IF(AND(AK28=0,'Selected Data_Value'!AF30=0),1,IF(AK28*'Selected Data_Value'!AF30=0,0,1))) -> 1 | BJ28: 0 | BK28: 1
A29: 1996 | B29: ='Manual Data'!AQ22 -> . | C29: ='Manual Data'!AR22 -> . | D29: ='Manual Data'!AS22 -> . | E29: ='Manual Data'!AT22 -> . | F29: ='Manual Data'!AU22 -> . | G29: ='Manual Data'!AV22 -> . | H29: ='Manual Data'!AW22 -> . | I29: . | J29: ='Manual Data'!AX22 -> . | K29: ='Manual Data'!AY22 -> . | L29: ='Manual Data'!AZ22 -> . | M29: ='Manual Data'!BA22 -> . | N29: ='Manual Data'!BB22 -> . | O29: ='Manual Data'!BC22 -> . | Q29: 1996 | R29: ='Existing Data_WDI'!AP19 -> 7082.56849 | S29: ='Existing Data_WDI'!AQ19 -> 5037.972886 | T29: ='Existing Data_WDI'!AR19 -> 499.7460491 | U29: ='Existing Data_WDI'!AS19 -> 1544.849555 | V29: ='Existing Data_WDI'!AT19 -> 7214.448607 | W29: ='Existing Data_WDI'!AU19 -> 10166.78 | X29: ='Existing Data_WDI'!AV19 -> 21032.821 | Z29: 1996 | AA29: . | AB29: . | AC29: . | AD29: . | AE29: . | AF29: . | AG29: . | AH29: 7082.56849 | AI29: 5037.972886 | AJ29: 499.7460491 | AK29: 1544.849555 | AL29: 7214.448607 | AM29: 10166.78 | AN29: 21032.821 | AP29: =IF('Existing Data_WDI'!AP19=0,NA(),IF(ISNUMBER('Existing Data_WDI'!AP19)=FALSE,NA(),'Existing Data_WDI'!AP19)) -> 7082.56849 | AQ29: 10166.78 | AR29: 1 | AT29: 1996 | AU29: 1996 | AV29: 0 | AW29: 0 | AX29: 0 | AY29: 0 | AZ29: =IF(OR(ISERROR(AA29*'Selected Data_Value'!V31),ISNUMBER(AA29)=FALSE,ISNUMBER('Selected Data_Value'!V31)=FALSE),0,IF(AND(AA29=0,'Selected Data_Value'!V31=0),1,IF(AA29*'Selected Data_Value'!V31=0,0,1))) -> 0 | BA29: =IF(OR(ISERROR(AB29*'Selected Data_Value'!W31),ISNUMBER(AB29)=FALSE,ISNUMBER('Selected Data_Value'!W31)=FALSE),0,IF(AND(AB29=0,'Selected Data_Value'!W31=0),1,IF(AB29*'Selected Data_Value'!W31=0,0,1))) -> 0 | BB29: =IF(OR(ISERROR(AC29*'Selected Data_Value'!X31),ISNUMBER(AC29)=FALSE,ISNUMBER('Selected Data_Value'!X31)=FALSE),0,IF(AND(AC29=0,'Selected Data_Value'!X31=0),1,IF(AC29*'Selected Data_Value'!X31=0,0,1))) -> 0 | BC29: =IF(OR(ISERROR(AD29*'Selected Data_Value'!Y31),ISNUMBER(AD29)=FALSE,ISNUMBER('Selected Data_Value'!Y31)=FALSE),0,IF(AND(AD29=0,'Selected Data_Value'!Y31=0),1,IF(AD29*'Selected Data_Value'!Y31=0,0,1))) -> 0 | BD29: =IF(OR(ISERROR(AE29*'Selected Data_Value'!Z31),ISNUMBER(AE29)=FALSE,ISNUMBER('Selected Data_Value'!Z31)=FALSE),0,IF(AND(AE29=0,'Selected Data_Value'!Z31=0),1,IF(AE29*'Selected Data_Value'!Z31=0,0,1))) -> 0 | BE29: =IF(OR(ISERROR(AF29*'Selected Data_Value'!AA31),ISNUMBER(AF29)=FALSE,ISNUMBER('Selected Data_Value'!AA31)=FALSE),0,IF(AND(AF29=0,'Selected Data_Value'!AA31=0),1,IF(AF29*'Selected Data_Value'!AA31=0,0,1))) -> 0 | BF29: =IF(OR(ISERROR(AG29*'Selected Data_Value'!AB31),ISNUMBER(AG29)=FALSE,ISNUMBER('Selected Data_Value'!AB31)=FALSE),0,IF(AND(AG29=0,'Selected Data_Value'!AB31=0),1,IF(AG29*'Selected Data_Value'!AB31=0,0,1))) -> 0 | BG29: =IF(OR(ISERROR(AI29*'Selected Data_Value'!AD31),ISNUMBER(AI29)=FALSE,ISNUMBER('Selected Data_Value'!AD31)=FALSE),0,IF(AND(AI29=0,'Selected Data_Value'!AD31=0),1,IF(AI29*'Selected Data_Value'!AD31=0,0,1))) -> 1 | BH29: =IF(OR(ISERROR(AJ29*'Selected Data_Value'!AE31),ISNUMBER(AJ29)=FALSE,ISNUMBER('Selected Data_Value'!AE31)=FALSE),0,IF(AND(AJ29=0,'Selected Data_Value'!AE31=0),1,IF(AJ29*'Selected Data_Value'!AE31=0,0,1))) -> 1 | BI29: =IF(OR(ISERROR(AK29*'Selected Data_Value'!AF31),ISNUMBER(AK29)=FALSE,ISNUMBER('Selected Data_Value'!AF31)=FALSE),0,IF(AND(AK29=0,'Selected Data_Value'!AF31=0),1,IF(AK29*'Selected Data_Value'!AF31=0,0,1))) -> 1 | BJ29: 0 | BK29: 1
A30: 1997 | B30: ='Manual Data'!AQ23 -> . | C30: ='Manual Data'!AR23 -> . | D30: ='Manual Data'!AS23 -> . | E30: ='Manual Data'!AT23 -> . | F30: ='Manual Data'!AU23 -> . | G30: ='Manual Data'!AV23 -> . | H30: ='Manual Data'!AW23 -> . | I30: . | J30: ='Manual Data'!AX23 -> . | K30: ='Manual Data'!AY23 -> . | L30: ='Manual Data'!AZ23 -> . | M30: ='Manual Data'!BA23 -> . | N30: ='Manual Data'!BB23 -> . | O30: ='Manual Data'!BC23 -> . | Q30: 1997 | R30: ='Existing Data_WDI'!AP20 -> 7249.878967 | S30: ='Existing Data_WDI'!AQ20 -> 5147.921832 | T30: ='Existing Data_WDI'!AR20 -> 520.4688038 | U30: ='Existing Data_WDI'!AS20 -> 1581.488331 | V30: ='Existing Data_WDI'!AT20 -> 7405.31656 | W30: ='Existing Data_WDI'!AU20 -> 10432.521 | X30: ='Existing Data_WDI'!AV20 -> 21655.398 | Z30: 1997 | AA30: . | AB30: . | AC30: . | AD30: . | AE30: . | AF30: . | AG30: . | AH30: 7249.878967 | AI30: 5147.921832 | AJ30: 520.4688038 | AK30: 1581.488331 | AL30: 7405.31656 | AM30: 10432.521 | AN30: 21655.398 | AP30: =IF('Existing Data_WDI'!AP20=0,NA(),IF(ISNUMBER('Existing Data_WDI'!AP20)=FALSE,NA(),'Existing Data_WDI'!AP20)) -> 7249.878967 | AQ30: 10432.521 | AR30: 1 | AT30: 1997 | AU30: 1997 | AV30: 0 | AW30: 0 | AX30: 0 | AY30: 0 | AZ30: =IF(OR(ISERROR(AA30*'Selected Data_Value'!V32),ISNUMBER(AA30)=FALSE,ISNUMBER('Selected Data_Value'!V32)=FALSE),0,IF(AND(AA30=0,'Selected Data_Value'!V32=0),1,IF(AA30*'Selected Data_Value'!V32=0,0,1))) -> 0 | BA30: =IF(OR(ISERROR(AB30*'Selected Data_Value'!W32),ISNUMBER(AB30)=FALSE,ISNUMBER('Selected Data_Value'!W32)=FALSE),0,IF(AND(AB30=0,'Selected Data_Value'!W32=0),1,IF(AB30*'Selected Data_Value'!W32=0,0,1))) -> 0 | BB30: =IF(OR(ISERROR(AC30*'Selected Data_Value'!X32),ISNUMBER(AC30)=FALSE,ISNUMBER('Selected Data_Value'!X32)=FALSE),0,IF(AND(AC30=0,'Selected Data_Value'!X32=0),1,IF(AC30*'Selected Data_Value'!X32=0,0,1))) -> 0 | BC30: =IF(OR(ISERROR(AD30*'Selected Data_Value'!Y32),ISNUMBER(AD30)=FALSE,ISNUMBER('Selected Data_Value'!Y32)=FALSE),0,IF(AND(AD30=0,'Selected Data_Value'!Y32=0),1,IF(AD30*'Selected Data_Value'!Y32=0,0,1))) -> 0 | BD30: =IF(OR(ISERROR(AE30*'Selected Data_Value'!Z32),ISNUMBER(AE30)=FALSE,ISNUMBER('Selected Data_Value'!Z32)=FALSE),0,IF(AND(AE30=0,'Selected Data_Value'!Z32=0),1,IF(AE30*'Selected Data_Value'!Z32=0,0,1))) -> 0 | BE30: =IF(OR(ISERROR(AF30*'Selected Data_Value'!AA32),ISNUMBER(AF30)=FALSE,ISNUMBER('Selected Data_Value'!AA32)=FALSE),0,IF(AND(AF30=0,'Selected Data_Value'!AA32=0),1,IF(AF30*'Selected Data_Value'!AA32=0,0,1))) -> 0 | BF30: =IF(OR(ISERROR(AG30*'Selected Data_Value'!AB32),ISNUMBER(AG30)=FALSE,ISNUMBER('Selected Data_Value'!AB32)=FALSE),0,IF(AND(AG30=0,'Selected Data_Value'!AB32=0),1,IF(AG30*'Selected Data_Value'!AB32=0,0,1))) -> 0 | BG30: =IF(OR(ISERROR(AI30*'Selected Data_Value'!AD32),ISNUMBER(AI30)=FALSE,ISNUMBER('Selected Data_Value'!AD32)=FALSE),0,IF(AND(AI30=0,'Selected Data_Value'!AD32=0),1,IF(AI30*'Selected Data_Value'!AD32=0,0,1))) -> 1 | BH30: =IF(OR(ISERROR(AJ30*'Selected Data_Value'!AE32),ISNUMBER(AJ30)=FALSE,ISNUMBER('Selected Data_Value'!AE32)=FALSE),0,IF(AND(AJ30=0,'Selected Data_Value'!AE32=0),1,IF(AJ30*'Selected Data_Value'!AE32=0,0,1))) -> 1 | BI30: =IF(OR(ISERROR(AK30*'Selected Data_Value'!AF32),ISNUMBER(AK30)=FALSE,ISNUMBER('Selected Data_Value'!AF32)=FALSE),0,IF(AND(AK30=0,'Selected Data_Value'!AF32=0),1,IF(AK30*'Selected Data_Value'!AF32=0,0,1))) -> 1 | BJ30: 0 | BK30: 1
A31: 1998 | B31: ='Manual Data'!AQ24 -> . | C31: ='Manual Data'!AR24 -> . | D31: ='Manual Data'!AS24 -> . | E31: ='Manual Data'!AT24 -> . | F31: ='Manual Data'!AU24 -> . | G31: ='Manual Data'!AV24 -> . | H31: ='Manual Data'!AW24 -> . | I31: . | J31: ='Manual Data'!AX24 -> . | K31: ='Manual Data'!AY24 -> . | L31: ='Manual Data'!AZ24 -> . | M31: ='Manual Data'!BA24 -> . | N31: ='Manual Data'!BB24 -> . | O31: ='Manual Data'!BC24 -> . | Q31: 1998 | R31: ='Existing Data_WDI'!AP21 -> 7430.726212 | S31: ='Existing Data_WDI'!AQ21 -> 5252.929074 | T31: ='Existing Data_WDI'!AR21 -> 539.2477989 | U31: ='Existing Data_WDI'!AS21 -> 1638.549339 | V31: ='Existing Data_WDI'!AT21 -> 7609.862379 | W31: ='Existing Data_WDI'!AU21 -> 10716.908 | X31: ='Existing Data_WDI'!AV21 -> 22290.78 | Z31: 1998 | AA31: . | AB31: . | AC31: . | AD31: . | AE31: . | AF31: . | AG31: . | AH31: 7430.726212 | AI31: 5252.929074 | AJ31: 539.2477989 | AK31: 1638.549339 | AL31: 7609.862379 | AM31: 10716.908 | AN31: 22290.78 | AP31: =IF('Existing Data_WDI'!AP21=0,NA(),IF(ISNUMBER('Existing Data_WDI'!AP21)=FALSE,NA(),'Existing Data_WDI'!AP21)) -> 7430.726212 | AQ31: 10716.908 | AR31: 1 | AT31: 1998 | AU31: 1998 | AV31: 0 | AW31: 0 | AX31: 0 | AY31: 0 | AZ31: =IF(OR(ISERROR(AA31*'Selected Data_Value'!V33),ISNUMBER(AA31)=FALSE,ISNUMBER('Selected Data_Value'!V33)=FALSE),0,IF(AND(AA31=0,'Selected Data_Value'!V33=0),1,IF(AA31*'Selected Data_Value'!V33=0,0,1))) -> 0 | BA31: =IF(OR(ISERROR(AB31*'Selected Data_Value'!W33),ISNUMBER(AB31)=FALSE,ISNUMBER('Selected Data_Value'!W33)=FALSE),0,IF(AND(AB31=0,'Selected Data_Value'!W33=0),1,IF(AB31*'Selected Data_Value'!W33=0,0,1))) -> 0 | BB31: =IF(OR(ISERROR(AC31*'Selected Data_Value'!X33),ISNUMBER(AC31)=FALSE,ISNUMBER('Selected Data_Value'!X33)=FALSE),0,IF(AND(AC31=0,'Selected Data_Value'!X33=0),1,IF(AC31*'Selected Data_Value'!X33=0,0,1))) -> 0 | BC31: =IF(OR(ISERROR(AD31*'Selected Data_Value'!Y33),ISNUMBER(AD31)=FALSE,ISNUMBER('Selected Data_Value'!Y33)=FALSE),0,IF(AND(AD31=0,'Selected Data_Value'!Y33=0),1,IF(AD31*'Selected Data_Value'!Y33=0,0,1))) -> 0 | BD31: =IF(OR(ISERROR(AE31*'Selected Data_Value'!Z33),ISNUMBER(AE31)=FALSE,ISNUMBER('Selected Data_Value'!Z33)=FALSE),0,IF(AND(AE31=0,'Selected Data_Value'!Z33=0),1,IF(AE31*'Selected Data_Value'!Z33=0,0,1))) -> 0 | BE31: =IF(OR(ISERROR(AF31*'Selected Data_Value'!AA33),ISNUMBER(AF31)=FALSE,ISNUMBER('Selected Data_Value'!AA33)=FALSE),0,IF(AND(AF31=0,'Selected Data_Value'!AA33=0),1,IF(AF31*'Selected Data_Value'!AA33=0,0,1))) -> 0 | BF31: =IF(OR(ISERROR(AG31*'Selected Data_Value'!AB33),ISNUMBER(AG31)=FALSE,ISNUMBER('Selected Data_Value'!AB33)=FALSE),0,IF(AND(AG31=0,'Selected Data_Value'!AB33=0),1,IF(AG31*'Selected Data_Value'!AB33=0,0,1))) -> 0 | BG31: =IF(OR(ISERROR(AI31*'Selected Data_Value'!AD33),ISNUMBER(AI31)=FALSE,ISNUMBER('Selected Data_Value'!AD33)=FALSE),0,IF(AND(AI31=0,'Selected Data_Value'!AD33=0),1,IF(AI31*'Selected Data_Value'!AD33=0,0,1))) -> 1 | BH31: =IF(OR(ISERROR(AJ31*'Selected Data_Value'!AE33),ISNUMBER(AJ31)=FALSE,ISNUMBER('Selected Data_Value'!AE33)=FALSE),0,IF(AND(AJ31=0,'Selected Data_Value'!AE33=0),1,IF(AJ31*'Selected Data_Value'!AE33=0,0,1))) -> 1 | BI31: =IF(OR(ISERROR(AK31*'Selected Data_Value'!AF33),ISNUMBER(AK31)=FALSE,ISNUMBER('Selected Data_Value'!AF33)=FALSE),0,IF(AND(AK31=0,'Selected Data_Value'!AF33=0),1,IF(AK31*'Selected Data_Value'!AF33=0,0,1))) -> 1 | BJ31: 0 | BK31: 1
A32: 1999 | B32: ='Manual Data'!AQ25 -> . | C32: ='Manual Data'!AR25 -> . | D32: ='Manual Data'!AS25 -> . | E32: ='Manual Data'!AT25 -> . | F32: ='Manual Data'!AU25 -> . | G32: ='Manual Data'!AV25 -> . | H32: ='Manual Data'!AW25 -> . | I32: . | J32: ='Manual Data'!AX25 -> . | K32: ='Manual Data'!AY25 -> . | L32: ='Manual Data'!AZ25 -> . | M32: ='Manual Data'!BA25 -> . | N32: ='Manual Data'!BB25 -> . | O32: ='Manual Data'!BC25 -> . | Q32: 1999 | R32: ='Existing Data_WDI'!AP22 -> 7620.961782 | S32: ='Existing Data_WDI'!AQ22 -> 5344.809373 | T32: ='Existing Data_WDI'!AR22 -> 569.74309 | U32: ='Existing Data_WDI'!AS22 -> 1706.409319 | V32: ='Existing Data_WDI'!AT22 -> 7833.001124 | W32: ='Existing Data_WDI'!AU22 -> 11026.339 | X32: ='Existing Data_WDI'!AV22 -> 22952.41 | Z32: 1999 | AA32: . | AB32: . | AC32: . | AD32: . | AE32: . | AF32: . | AG32: . | AH32: 7620.961782 | AI32: 5344.809373 | AJ32: 569.74309 | AK32: 1706.409319 | AL32: 7833.001124 | AM32: 11026.339 | AN32: 22952.41 | AP32: =IF('Existing Data_WDI'!AP22=0,NA(),IF(ISNUMBER('Existing Data_WDI'!AP22)=FALSE,NA(),'Existing Data_WDI'!AP22)) -> 7620.961782 | AQ32: 11026.339 | AR32: 1 | AT32: 1999 | AU32: 1999 | AV32: 0 | AW32: 0 | AX32: 0 | AY32: 0 | AZ32: =IF(OR(ISERROR(AA32*'Selected Data_Value'!V34),ISNUMBER(AA32)=FALSE,ISNUMBER('Selected Data_Value'!V34)=FALSE),0,IF(AND(AA32=0,'Selected Data_Value'!V34=0),1,IF(AA32*'Selected Data_Value'!V34=0,0,1))) -> 0 | BA32: =IF(OR(ISERROR(AB32*'Selected Data_Value'!W34),ISNUMBER(AB32)=FALSE,ISNUMBER('Selected Data_Value'!W34)=FALSE),0,IF(AND(AB32=0,'Selected Data_Value'!W34=0),1,IF(AB32*'Selected Data_Value'!W34=0,0,1))) -> 0 | BB32: =IF(OR(ISERROR(AC32*'Selected Data_Value'!X34),ISNUMBER(AC32)=FALSE,ISNUMBER('Selected Data_Value'!X34)=FALSE),0,IF(AND(AC32=0,'Selected Data_Value'!X34=0),1,IF(AC32*'Selected Data_Value'!X34=0,0,1))) -> 0 | BC32: =IF(OR(ISERROR(AD32*'Selected Data_Value'!Y34),ISNUMBER(AD32)=FALSE,ISNUMBER('Selected Data_Value'!Y34)=FALSE),0,IF(AND(AD32=0,'Selected Data_Value'!Y34=0),1,IF(AD32*'Selected Data_Value'!Y34=0,0,1))) -> 0 | BD32: =IF(OR(ISERROR(AE32*'Selected Data_Value'!Z34),ISNUMBER(AE32)=FALSE,ISNUMBER('Selected Data_Value'!Z34)=FALSE),0,IF(AND(AE32=0,'Selected Data_Value'!Z34=0),1,IF(AE32*'Selected Data_Value'!Z34=0,0,1))) -> 0 | BE32: =IF(OR(ISERROR(AF32*'Selected Data_Value'!AA34),ISNUMBER(AF32)=FALSE,ISNUMBER('Selected Data_Value'!AA34)=FALSE),0,IF(AND(AF32=0,'Selected Data_Value'!AA34=0),1,IF(AF32*'Selected Data_Value'!AA34=0,0,1))) -> 0 | BF32: =IF(OR(ISERROR(AG32*'Selected Data_Value'!AB34),ISNUMBER(AG32)=FALSE,ISNUMBER('Selected Data_Value'!AB34)=FALSE),0,IF(AND(AG32=0,'Selected Data_Value'!AB34=0),1,IF(AG32*'Selected Data_Value'!AB34=0,0,1))) -> 0 | BG32: =IF(OR(ISERROR(AI32*'Selected Data_Value'!AD34),ISNUMBER(AI32)=FALSE,ISNUMBER('Selected Data_Value'!AD34)=FALSE),0,IF(AND(AI32=0,'Selected Data_Value'!AD34=0),1,IF(AI32*'Selected Data_Value'!AD34=0,0,1))) -> 1 | BH32: =IF(OR(ISERROR(AJ32*'Selected Data_Value'!AE34),ISNUMBER(AJ32)=FALSE,ISNUMBER('Selected Data_Value'!AE34)=FALSE),0,IF(AND(AJ32=0,'Selected Data_Value'!AE34=0),1,IF(AJ32*'Selected Data_Value'!AE34=0,0,1))) -> 1 | BI32: =IF(OR(ISERROR(AK32*'Selected Data_Value'!AF34),ISNUMBER(AK32)=FALSE,ISNUMBER('Selected Data_Value'!AF34)=FALSE),0,IF(AND(AK32=0,'Selected Data_Value'!AF34=0),1,IF(AK32*'Selected Data_Value'!AF34=0,0,1))) -> 1 | BJ32: 0 | BK32: 1
A33: 2000 | B33: ='Manual Data'!AQ26 -> . | C33: ='Manual Data'!AR26 -> . | D33: ='Manual Data'!AS26 -> . | E33: ='Manual Data'!AT26 -> . | F33: ='Manual Data'!AU26 -> . | G33: ='Manual Data'!AV26 -> . | H33: ='Manual Data'!AW26 -> . | I33: . | J33: ='Manual Data'!AX26 -> . | K33: ='Manual Data'!AY26 -> . | L33: ='Manual Data'!AZ26 -> . | M33: ='Manual Data'!BA26 -> . | N33: ='Manual Data'!BB26 -> . | O33: ='Manual Data'!BC26 -> . | Q33: 2000 | R33: ='Existing Data_WDI'!AP23 -> 7848.752677 | S33: ='Existing Data_WDI'!AQ23 -> 5490.987301 | T33: ='Existing Data_WDI'!AR23 -> 585.8309175 | U33: ='Existing Data_WDI'!AS23 -> 1771.934459 | V33: ='Existing Data_WDI'!AT23 -> 8077.590821 | W33: ='Existing Data_WDI'!AU23 -> 11364.724 | X33: ='Existing Data_WDI'!AV23 -> 23650.172 | Z33: 2000 | AA33: . | AB33: . | AC33: . | AD33: . | AE33: . | AF33: . | AG33: . | AH33: 7848.752677 | AI33: 5490.987301 | AJ33: 585.8309175 | AK33: =IF($AH33=".",".",IF($D$7=$AT$6,IF(ISNUMBER(L33)=FALSE,".",IF(SUM($J33:$L33)=0,".",L33/SUM($J33:$L33)*$AH33)),IF($D$7=$AT$7,SUMIF($AA$18:$AG$18,AK$18,$AA33:$AG33),IF(ISERROR(U33/$R33),".",U33/$R33*$AH33)))) -> 1771.934459 | AL33: 8077.590821 | AM33: 11364.724 | AN33: 23650.172 | AP33: =IF('Existing Data_WDI'!AP23=0,NA(),IF(ISNUMBER('Existing Data_WDI'!AP23)=FALSE,NA(),'Existing Data_WDI'!AP23)) -> 7848.752677 | AQ33: 11364.724 | AR33: 1 | AT33: 2000 | AU33: 2000 | AV33: 0 | AW33: 0 | AX33: 0 | AY33: 0 | AZ33: =IF(OR(ISERROR(AA33*'Selected Data_Value'!V35),ISNUMBER(AA33)=FALSE,ISNUMBER('Selected Data_Value'!V35)=FALSE),0,IF(AND(AA33=0,'Selected Data_Value'!V35=0),1,IF(AA33*'Selected Data_Value'!V35=0,0,1))) -> 0 | BA33: =IF(OR(ISERROR(AB33*'Selected Data_Value'!W35),ISNUMBER(AB33)=FALSE,ISNUMBER('Selected Data_Value'!W35)=FALSE),0,IF(AND(AB33=0,'Selected Data_Value'!W35=0),1,IF(AB33*'Selected Data_Value'!W35=0,0,1))) -> 0 | BB33: =IF(OR(ISERROR(AC33*'Selected Data_Value'!X35),ISNUMBER(AC33)=FALSE,ISNUMBER('Selected Data_Value'!X35)=FALSE),0,IF(AND(AC33=0,'Selected Data_Value'!X35=0),1,IF(AC33*'Selected Data_Value'!X35=0,0,1))) -> 0 | BC33: =IF(OR(ISERROR(AD33*'Selected Data_Value'!Y35),ISNUMBER(AD33)=FALSE,ISNUMBER('Selected Data_Value'!Y35)=FALSE),0,IF(AND(AD33=0,'Selected Data_Value'!Y35=0),1,IF(AD33*'Selected Data_Value'!Y35=0,0,1))) -> 0 | BD33: =IF(OR(ISERROR(AE33*'Selected Data_Value'!Z35),ISNUMBER(AE33)=FALSE,ISNUMBER('Selected Data_Value'!Z35)=FALSE),0,IF(AND(AE33=0,'Selected Data_Value'!Z35=0),1,IF(AE33*'Selected Data_Value'!Z35=0,0,1))) -> 0 | BE33: =IF(OR(ISERROR(AF33*'Selected Data_Value'!AA35),ISNUMBER(AF33)=FALSE,ISNUMBER('Selected Data_Value'!AA35)=FALSE),0,IF(AND(AF33=0,'Selected Data_Value'!AA35=0),1,IF(AF33*'Selected Data_Value'!AA35=0,0,1))) -> 0 | BF33: =IF(OR(ISERROR(AG33*'Selected Data_Value'!AB35),ISNUMBER(AG33)=FALSE,ISNUMBER('Selected Data_Value'!AB35)=FALSE),0,IF(AND(AG33=0,'Selected Data_Value'!AB35=0),1,IF(AG33*'Selected Data_Value'!AB35=0,0,1))) -> 0 | BG33: =IF(OR(ISERROR(AI33*'Selected Data_Value'!AD35),ISNUMBER(AI33)=FALSE,ISNUMBER('Selected Data_Value'!AD35)=FALSE),0,IF(AND(AI33=0,'Selected Data_Value'!AD35=0),1,IF(AI33*'Selected Data_Value'!AD35=0,0,1))) -> 1 | BH33: =IF(OR(ISERROR(AJ33*'Selected Data_Value'!AE35),ISNUMBER(AJ33)=FALSE,ISNUMBER('Selected Data_Value'!AE35)=FALSE),0,IF(AND(AJ33=0,'Selected Data_Value'!AE35=0),1,IF(AJ33*'Selected Data_Value'!AE35=0,0,1))) -> 1 | BI33: =IF(OR(ISERROR(AK33*'Selected Data_Value'!AF35),ISNUMBER(AK33)=FALSE,ISNUMBER('Selected Data_Value'!AF35)=FALSE),0,IF(AND(AK33=0,'Selected Data_Value'!AF35=0),1,IF(AK33*'Selected Data_Value'!AF35=0,0,1))) -> 1 | BJ33: 0 | BK33: 1
A34: 2001 | B34: ='Manual Data'!AQ27 -> . | C34: ='Manual Data'!AR27 -> . | D34: ='Manual Data'!AS27 -> . | E34: ='Manual Data'!AT27 -> . | F34: ='Manual Data'!AU27 -> . | G34: ='Manual Data'!AV27 -> . | H34: ='Manual Data'!AW27 -> . | I34: . | J34: ='Manual Data'!AX27 -> . | K34: ='Manual Data'!AY27 -> . | L34: ='Manual Data'!AZ27 -> . | M34: ='Manual Data'!BA27 -> . | N34: ='Manual Data'!BB27 -> . | O34: ='Manual Data'!BC27 -> . | Q34: 2001 | R34: ='Existing Data_WDI'!AP24 -> 8070.058404 | S34: ='Existing Data_WDI'!AQ24 -> 5611.192166 | T34: ='Existing Data_WDI'!AR24 -> 608.6437901 | U34: ='Existing Data_WDI'!AS24 -> 1850.222448 | V34: ='Existing Data_WDI'!AT24 -> 8333.049436 | W34: ='Existing Data_WDI'!AU24 -> 11712.934 | X34: ='Existing Data_WDI'!AV24 -> 24388.968 | Z34: 2001 | AA34: . | AB34: . | AC34: . | AD34: . | AE34: . | AF34: . | AG34: . | AH34: 8070.058404 | AI34: 5611.192166 | AJ34: 608.6437901 | AK34: 1850.222448 | AL34: 8333.049436 | AM34: 11712.934 | AN34: 24388.968 | AP34: =IF('Existing Data_WDI'!AP24=0,NA(),IF(ISNUMBER('Existing Data_WDI'!AP24)=FALSE,NA(),'Existing Data_WDI'!AP24)) -> 8070.058404 | AQ34: 11712.934 | AR34: 1 | AT34: 2001 | AU34: 2001 | AV34: 0 | AW34: 0 | AX34: 0 | AY34: 0 | AZ34: =IF(OR(ISERROR(AA34*'Selected Data_Value'!V36),ISNUMBER(AA34)=FALSE,ISNUMBER('Selected Data_Value'!V36)=FALSE),0,IF(AND(AA34=0,'Selected Data_Value'!V36=0),1,IF(AA34*'Selected Data_Value'!V36=0,0,1))) -> 0 | BA34: =IF(OR(ISERROR(AB34*'Selected Data_Value'!W36),ISNUMBER(AB34)=FALSE,ISNUMBER('Selected Data_Value'!W36)=FALSE),0,IF(AND(AB34=0,'Selected Data_Value'!W36=0),1,IF(AB34*'Selected Data_Value'!W36=0,0,1))) -> 0 | BB34: =IF(OR(ISERROR(AC34*'Selected Data_Value'!X36),ISNUMBER(AC34)=FALSE,ISNUMBER('Selected Data_Value'!X36)=FALSE),0,IF(AND(AC34=0,'Selected Data_Value'!X36=0),1,IF(AC34*'Selected Data_Value'!X36=0,0,1))) -> 0 | BC34: =IF(OR(ISERROR(AD34*'Selected Data_Value'!Y36),ISNUMBER(AD34)=FALSE,ISNUMBER('Selected Data_Value'!Y36)=FALSE),0,IF(AND(AD34=0,'Selected Data_Value'!Y36=0),1,IF(AD34*'Selected Data_Value'!Y36=0,0,1))) -> 0 | BD34: =IF(OR(ISERROR(AE34*'Selected Data_Value'!Z36),ISNUMBER(AE34)=FALSE,ISNUMBER('Selected Data_Value'!Z36)=FALSE),0,IF(AND(AE34=0,'Selected Data_Value'!Z36=0),1,IF(AE34*'Selected Data_Value'!Z36=0,0,1))) -> 0 | BE34: =IF(OR(ISERROR(AF34*'Selected Data_Value'!AA36),ISNUMBER(AF34)=FALSE,ISNUMBER('Selected Data_Value'!AA36)=FALSE),0,IF(AND(AF34=0,'Selected Data_Value'!AA36=0),1,IF(AF34*'Selected Data_Value'!AA36=0,0,1))) -> 0 | BF34: =IF(OR(ISERROR(AG34*'Selected Data_Value'!AB36),ISNUMBER(AG34)=FALSE,ISNUMBER('Selected Data_Value'!AB36)=FALSE),0,IF(AND(AG34=0,'Selected Data_Value'!AB36=0),1,IF(AG34*'Selected Data_Value'!AB36=0,0,1))) -> 0 | BG34: =IF(OR(ISERROR(AI34*'Selected Data_Value'!AD36),ISNUMBER(AI34)=FALSE,ISNUMBER('Selected Data_Value'!AD36)=FALSE),0,IF(AND(AI34=0,'Selected Data_Value'!AD36=0),1,IF(AI34*'Selected Data_Value'!AD36=0,0,1))) -> 1 | BH34: =IF(OR(ISERROR(AJ34*'Selected Data_Value'!AE36),ISNUMBER(AJ34)=FALSE,ISNUMBER('Selected Data_Value'!AE36)=FALSE),0,IF(AND(AJ34=0,'Selected Data_Value'!AE36=0),1,IF(AJ34*'Selected Data_Value'!AE36=0,0,1))) -> 1 | BI34: =IF(OR(ISERROR(AK34*'Selected Data_Value'!AF36),ISNUMBER(AK34)=FALSE,ISNUMBER('Selected Data_Value'!AF36)=FALSE),0,IF(AND(AK34=0,'Selected Data_Value'!AF36=0),1,IF(AK34*'Selected Data_Value'!AF36=0,0,1))) -> 1 | BJ34: 0 | BK34: 1
A35: 2002 | B35: ='Manual Data'!AQ28 -> . | C35: ='Manual Data'!AR28 -> . | D35: ='Manual Data'!AS28 -> . | E35: ='Manual Data'!AT28 -> . | F35: ='Manual Data'!AU28 -> . | G35: ='Manual Data'!AV28 -> . | H35: ='Manual Data'!AW28 -> . | I35: . | J35: ='Manual Data'!AX28 -> . | K35: ='Manual Data'!AY28 -> . | L35: ='Manual Data'!AZ28 -> . | M35: ='Manual Data'!BA28 -> . | N35: ='Manual Data'!BB28 -> . | O35: ='Manual Data'!BC28 -> . | Q35: 2002 | R35: ='Existing Data_WDI'!AP25 -> 8310.530325 | S35: ='Existing Data_WDI'!AQ25 -> 5720.304294 | T35: ='Existing Data_WDI'!AR25 -> 642.9857303 | U35: ='Existing Data_WDI'!AS25 -> 1947.240301 | V35: ='Existing Data_WDI'!AT25 -> 8611.948523 | W35: ='Existing Data_WDI'!AU25 -> 12093.056 | X35: ='Existing Data_WDI'!AV25 -> 25167.257 | Z35: 2002 | AA35: . | AB35: . | AC35: . | AD35: . | AE35: . | AF35: . | AG35: . | AH35: 8310.530325 | AI35: 5720.304294 | AJ35: 642.9857303 | AK35: 1947.240301 | AL35: 8611.948523 | AM35: 12093.056 | AN35: 25167.257 | AP35: =IF('Existing Data_WDI'!AP25=0,NA(),IF(ISNUMBER('Existing Data_WDI'!AP25)=FALSE,NA(),'Existing Data_WDI'!AP25)) -> 8310.530325 | AQ35: 12093.056 | AR35: 1 | AT35: 2002 | AU35: 2002 | AV35: 0 | AW35: 0 | AX35: 0 | AY35: 0 | AZ35: =IF(OR(ISERROR(AA35*'Selected Data_Value'!V37),ISNUMBER(AA35)=FALSE,ISNUMBER('Selected Data_Value'!V37)=FALSE),0,IF(AND(AA35=0,'Selected Data_Value'!V37=0),1,IF(AA35*'Selected Data_Value'!V37=0,0,1))) -> 0 | BA35: =IF(OR(ISERROR(AB35*'Selected Data_Value'!W37),ISNUMBER(AB35)=FALSE,ISNUMBER('Selected Data_Value'!W37)=FALSE),0,IF(AND(AB35=0,'Selected Data_Value'!W37=0),1,IF(AB35*'Selected Data_Value'!W37=0,0,1))) -> 0 | BB35: =IF(OR(ISERROR(AC35*'Selected Data_Value'!X37),ISNUMBER(AC35)=FALSE,ISNUMBER('Selected Data_Value'!X37)=FALSE),0,IF(AND(AC35=0,'Selected Data_Value'!X37=0),1,IF(AC35*'Selected Data_Value'!X37=0,0,1))) -> 0 | BC35: =IF(OR(ISERROR(AD35*'Selected Data_Value'!Y37),ISNUMBER(AD35)=FALSE,ISNUMBER('Selected Data_Value'!Y37)=FALSE),0,IF(AND(AD35=0,'Selected Data_Value'!Y37=0),1,IF(AD35*'Selected Data_Value'!Y37=0,0,1))) -> 0 | BD35: =IF(OR(ISERROR(AE35*'Selected Data_Value'!Z37),ISNUMBER(AE35)=FALSE,ISNUMBER('Selected Data_Value'!Z37)=FALSE),0,IF(AND(AE35=0,'Selected Data_Value'!Z37=0),1,IF(AE35*'Selected Data_Value'!Z37=0,0,1))) -> 0 | BE35: =IF(OR(ISERROR(AF35*'Selected Data_Value'!AA37),ISNUMBER(AF35)=FALSE,ISNUMBER('Selected Data_Value'!AA37)=FALSE),0,IF(AND(AF35=0,'Selected Data_Value'!AA37=0),1,IF(AF35*'Selected Data_Value'!AA37=0,0,1))) -> 0 | BF35: =IF(OR(ISERROR(AG35*'Selected Data_Value'!AB37),ISNUMBER(AG35)=FALSE,ISNUMBER('Selected Data_Value'!AB37)=FALSE),0,IF(AND(AG35=0,'Selected Data_Value'!AB37=0),1,IF(AG35*'Selected Data_Value'!AB37=0,0,1))) -> 0 | BG35: =IF(OR(ISERROR(AI35*'Selected Data_Value'!AD37),ISNUMBER(AI35)=FALSE,ISNUMBER('Selected Data_Value'!AD37)=FALSE),0,IF(AND(AI35=0,'Selected Data_Value'!AD37=0),1,IF(AI35*'Selected Data_Value'!AD37=0,0,1))) -> 1 | BH35: =IF(OR(ISERROR(AJ35*'Selected Data_Value'!AE37),ISNUMBER(AJ35)=FALSE,ISNUMBER('Selected Data_Value'!AE37)=FALSE),0,IF(AND(AJ35=0,'Selected Data_Value'!AE37=0),1,IF(AJ35*'Selected Data_Value'!AE37=0,0,1))) -> 1 | BI35: =IF(OR(ISERROR(AK35*'Selected Data_Value'!AF37),ISNUMBER(AK35)=FALSE,ISNUMBER('Selected Data_Value'!AF37)=FALSE),0,IF(AND(AK35=0,'Selected Data_Value'!AF37=0),1,IF(AK35*'Selected Data_Value'!AF37=0,0,1))) -> 1 | BJ35: 0 | BK35: 1
A36: 2003 | B36: ='Manual Data'!AQ29 -> . | C36: ='Manual Data'!AR29 -> . | D36: ='Manual Data'!AS29 -> . | E36: ='Manual Data'!AT29 -> . | F36: ='Manual Data'!AU29 -> . | G36: ='Manual Data'!AV29 -> . | H36: ='Manual Data'!AW29 -> . | I36: . | J36: ='Manual Data'!AX29 -> . | K36: ='Manual Data'!AY29 -> . | L36: ='Manual Data'!AZ29 -> . | M36: ='Manual Data'!BA29 -> . | N36: ='Manual Data'!BB29 -> . | O36: ='Manual Data'!BC29 -> . | Q36: 2003 | R36: ='Existing Data_WDI'!AP26 -> 8591.028539 | S36: ='Existing Data_WDI'!AQ26 -> 5902.036344 | T36: ='Existing Data_WDI'!AR26 -> 670.1002424 | U36: ='Existing Data_WDI'!AS26 -> 2018.891952 | V36: ='Existing Data_WDI'!AT26 -> 8911.855322 | W36: ='Existing Data_WDI'!AU26 -> 12501.55 | X36: ='Existing Data_WDI'!AV26 -> 25980.552 | Z36: 2003 | AA36: . | AB36: . | AC36: . | AD36: . | AE36: . | AF36: . | AG36: . | AH36: 8591.028539 | AI36: 5902.036344 | AJ36: 670.1002424 | AK36: 2018.891952 | AL36: 8911.855322 | AM36: 12501.55 | AN36: 25980.552 | AP36: =IF('Existing Data_WDI'!AP26=0,NA(),IF(ISNUMBER('Existing Data_WDI'!AP26)=FALSE,NA(),'Existing Data_WDI'!AP26)) -> 8591.028539 | AQ36: 12501.55 | AR36: 1 | AT36: 2003 | AU36: 2003 | AV36: 0 | AW36: 0 | AX36: 0 | AY36: 0 | AZ36: =IF(OR(ISERROR(AA36*'Selected Data_Value'!V38),ISNUMBER(AA36)=FALSE,ISNUMBER('Selected Data_Value'!V38)=FALSE),0,IF(AND(AA36=0,'Selected Data_Value'!V38=0),1,IF(AA36*'Selected Data_Value'!V38=0,0,1))) -> 0 | BA36: =IF(OR(ISERROR(AB36*'Selected Data_Value'!W38),ISNUMBER(AB36)=FALSE,ISNUMBER('Selected Data_Value'!W38)=FALSE),0,IF(AND(AB36=0,'Selected Data_Value'!W38=0),1,IF(AB36*'Selected Data_Value'!W38=0,0,1))) -> 0 | BB36: =IF(OR(ISERROR(AC36*'Selected Data_Value'!X38),ISNUMBER(AC36)=FALSE,ISNUMBER('Selected Data_Value'!X38)=FALSE),0,IF(AND(AC36=0,'Selected Data_Value'!X38=0),1,IF(AC36*'Selected Data_Value'!X38=0,0,1))) -> 0 | BC36: =IF(OR(ISERROR(AD36*'Selected Data_Value'!Y38),ISNUMBER(AD36)=FALSE,ISNUMBER('Selected Data_Value'!Y38)=FALSE),0,IF(AND(AD36=0,'Selected Data_Value'!Y38=0),1,IF(AD36*'Selected Data_Value'!Y38=0,0,1))) -> 0 | BD36: =IF(OR(ISERROR(AE36*'Selected Data_Value'!Z38),ISNUMBER(AE36)=FALSE,ISNUMBER('Selected Data_Value'!Z38)=FALSE),0,IF(AND(AE36=0,'Selected Data_Value'!Z38=0),1,IF(AE36*'Selected Data_Value'!Z38=0,0,1))) -> 0 | BE36: =IF(OR(ISERROR(AF36*'Selected Data_Value'!AA38),ISNUMBER(AF36)=FALSE,ISNUMBER('Selected Data_Value'!AA38)=FALSE),0,IF(AND(AF36=0,'Selected Data_Value'!AA38=0),1,IF(AF36*'Selected Data_Value'!AA38=0,0,1))) -> 0 | BF36: =IF(OR(ISERROR(AG36*'Selected Data_Value'!AB38),ISNUMBER(AG36)=FALSE,ISNUMBER('Selected Data_Value'!AB38)=FALSE),0,IF(AND(AG36=0,'Selected Data_Value'!AB38=0),1,IF(AG36*'Selected Data_Value'!AB38=0,0,1))) -> 0 | BG36: =IF(OR(ISERROR(AI36*'Selected Data_Value'!AD38),ISNUMBER(AI36)=FALSE,ISNUMBER('Selected Data_Value'!AD38)=FALSE),0,IF(AND(AI36=0,'Selected Data_Value'!AD38=0),1,IF(AI36*'Selected Data_Value'!AD38=0,0,1))) -> 1 | BH36: =IF(OR(ISERROR(AJ36*'Selected Data_Value'!AE38),ISNUMBER(AJ36)=FALSE,ISNUMBER('Selected Data_Value'!AE38)=FALSE),0,IF(AND(AJ36=0,'Selected Data_Value'!AE38=0),1,IF(AJ36*'Selected Data_Value'!AE38=0,0,1))) -> 1 | BI36: =IF(OR(ISERROR(AK36*'Selected Data_Value'!AF38),ISNUMBER(AK36)=FALSE,ISNUMBER('Selected Data_Value'!AF38)=FALSE),0,IF(AND(AK36=0,'Selected Data_Value'!AF38=0),1,IF(AK36*'Selected Data_Value'!AF38=0,0,1))) -> 1 | BJ36: 0 | BK36: 1
A37: 2004 | B37: ='Manual Data'!AQ30 -> . | C37: ='Manual Data'!AR30 -> . | D37: ='Manual Data'!AS30 -> . | E37: ='Manual Data'!AT30 -> . | F37: ='Manual Data'!AU30 -> . | G37: ='Manual Data'!AV30 -> . | H37: ='Manual Data'!AW30 -> . | I37: . | J37: ='Manual Data'!AX30 -> . | K37: ='Manual Data'!AY30 -> . | L37: ='Manual Data'!AZ30 -> . | M37: ='Manual Data'!BA30 -> . | N37: ='Manual Data'!BB30 -> . | O37: ='Manual Data'!BC30 -> . | Q37: 2004 | R37: ='Existing Data_WDI'!AP27 -> 8985.193049 | S37: ='Existing Data_WDI'!AQ27 -> 6255.311356 | T37: ='Existing Data_WDI'!AR27 -> 690.0628107 | U37: ='Existing Data_WDI'!AS27 -> 2039.818881 | V37: ='Existing Data_WDI'!AT27 -> 9229.30825 | W37: ='Existing Data_WDI'!AU27 -> 12933.991 | X37: ='Existing Data_WDI'!AV27 -> 26821.297 | Z37: 2004 | AA37: . | AB37: . | AC37: . | AD37: . | AE37: . | AF37: . | AG37: . | AH37: 8985.193049 | AI37: 6255.311356 | AJ37: 690.0628107 | AK37: 2039.818881 | AL37: 9229.30825 | AM37: 12933.991 | AN37: 26821.297 | AP37: =IF('Existing Data_WDI'!AP27=0,NA(),IF(ISNUMBER('Existing Data_WDI'!AP27)=FALSE,NA(),'Existing Data_WDI'!AP27)) -> 8985.193049 | AQ37: 12933.991 | AR37: 1 | AT37: 2004 | AU37: 2004 | AV37: 0 | AW37: 0 | AX37: 0 | AY37: 0 | AZ37: =IF(OR(ISERROR(AA37*'Selected Data_Value'!V39),ISNUMBER(AA37)=FALSE,ISNUMBER('Selected Data_Value'!V39)=FALSE),0,IF(AND(AA37=0,'Selected Data_Value'!V39=0),1,IF(AA37*'Selected Data_Value'!V39=0,0,1))) -> 0 | BA37: =IF(OR(ISERROR(AB37*'Selected Data_Value'!W39),ISNUMBER(AB37)=FALSE,ISNUMBER('Selected Data_Value'!W39)=FALSE),0,IF(AND(AB37=0,'Selected Data_Value'!W39=0),1,IF(AB37*'Selected Data_Value'!W39=0,0,1))) -> 0 | BB37: =IF(OR(ISERROR(AC37*'Selected Data_Value'!X39),ISNUMBER(AC37)=FALSE,ISNUMBER('Selected Data_Value'!X39)=FALSE),0,IF(AND(AC37=0,'Selected Data_Value'!X39=0),1,IF(AC37*'Selected Data_Value'!X39=0,0,1))) -> 0 | BC37: =IF(OR(ISERROR(AD37*'Selected Data_Value'!Y39),ISNUMBER(AD37)=FALSE,ISNUMBER('Selected Data_Value'!Y39)=FALSE),0,IF(AND(AD37=0,'Selected Data_Value'!Y39=0),1,IF(AD37*'Selected Data_Value'!Y39=0,0,1))) -> 0 | BD37: =IF(OR(ISERROR(AE37*'Selected Data_Value'!Z39),ISNUMBER(AE37)=FALSE,ISNUMBER('Selected Data_Value'!Z39)=FALSE),0,IF(AND(AE37=0,'Selected Data_Value'!Z39=0),1,IF(AE37*'Selected Data_Value'!Z39=0,0,1))) -> 0 | BE37: =IF(OR(ISERROR(AF37*'Selected Data_Value'!AA39),ISNUMBER(AF37)=FALSE,ISNUMBER('Selected Data_Value'!AA39)=FALSE),0,IF(AND(AF37=0,'Selected Data_Value'!AA39=0),1,IF(AF37*'Selected Data_Value'!AA39=0,0,1))) -> 0 | BF37: =IF(OR(ISERROR(AG37*'Selected Data_Value'!AB39),ISNUMBER(AG37)=FALSE,ISNUMBER('Selected Data_Value'!AB39)=FALSE),0,IF(AND(AG37=0,'Selected Data_Value'!AB39=0),1,IF(AG37*'Selected Data_Value'!AB39=0,0,1))) -> 0 | BG37: =IF(OR(ISERROR(AI37*'Selected Data_Value'!AD39),ISNUMBER(AI37)=FALSE,ISNUMBER('Selected Data_Value'!AD39)=FALSE),0,IF(AND(AI37=0,'Selected Data_Value'!AD39=0),1,IF(AI37*'Selected Data_Value'!AD39=0,0,1))) -> 1 | BH37: =IF(OR(ISERROR(AJ37*'Selected Data_Value'!AE39),ISNUMBER(AJ37)=FALSE,ISNUMBER('Selected Data_Value'!AE39)=FALSE),0,IF(AND(AJ37=0,'Selected Data_Value'!AE39=0),1,IF(AJ37*'Selected Data_Value'!AE39=0,0,1))) -> 1 | BI37: =IF(OR(ISERROR(AK37*'Selected Data_Value'!AF39),ISNUMBER(AK37)=FALSE,ISNUMBER('Selected Data_Value'!AF39)=FALSE),0,IF(AND(AK37=0,'Selected Data_Value'!AF39=0),1,IF(AK37*'Selected Data_Value'!AF39=0,0,1))) -> 1 | BJ37: 0 | BK37: 1
A38: 2005 | B38: ='Manual Data'!AQ31 -> . | C38: ='Manual Data'!AR31 -> . | D38: ='Manual Data'!AS31 -> . | E38: ='Manual Data'!AT31 -> . | F38: ='Manual Data'!AU31 -> . | G38: ='Manual Data'!AV31 -> . | H38: ='Manual Data'!AW31 -> . | I38: . | J38: ='Manual Data'!AX31 -> . | K38: ='Manual Data'!AY31 -> . | L38: ='Manual Data'!AZ31 -> . | M38: ='Manual Data'!BA31 -> . | N38: ='Manual Data'!BB31 -> . | O38: ='Manual Data'!BC31 -> . | Q38: 2005 | R38: ='Existing Data_WDI'!AP28 -> 9380.45527 | S38: ='Existing Data_WDI'!AQ28 -> 6640.98689 | T38: ='Existing Data_WDI'!AR28 -> 704.9412011 | U38: ='Existing Data_WDI'!AS28 -> 2034.527179 | V38: ='Existing Data_WDI'!AT28 -> 9562.135849 | W38: ='Existing Data_WDI'!AU28 -> 13387.659 | X38: ='Existing Data_WDI'!AV28 -> 27684.585 | Z38: 2005 | AA38: . | AB38: . | AC38: . | AD38: . | AE38: . | AF38: . | AG38: . | AH38: 9380.45527 | AI38: 6640.98689 | AJ38: 704.9412011 | AK38: 2034.527179 | AL38: 9562.135849 | AM38: 13387.659 | AN38: 27684.585 | AP38: =IF('Existing Data_WDI'!AP28=0,NA(),IF(ISNUMBER('Existing Data_WDI'!AP28)=FALSE,NA(),'Existing Data_WDI'!AP28)) -> 9380.45527 | AQ38: 13387.659 | AR38: 1 | AT38: 2005 | AU38: 2005 | AV38: 0 | AW38: 0 | AX38: 0 | AY38: 0 | AZ38: =IF(OR(ISERROR(AA38*'Selected Data_Value'!V40),ISNUMBER(AA38)=FALSE,ISNUMBER('Selected Data_Value'!V40)=FALSE),0,IF(AND(AA38=0,'Selected Data_Value'!V40=0),1,IF(AA38*'Selected Data_Value'!V40=0,0,1))) -> 0 | BA38: =IF(OR(ISERROR(AB38*'Selected Data_Value'!W40),ISNUMBER(AB38)=FALSE,ISNUMBER('Selected Data_Value'!W40)=FALSE),0,IF(AND(AB38=0,'Selected Data_Value'!W40=0),1,IF(AB38*'Selected Data_Value'!W40=0,0,1))) -> 0 | BB38: =IF(OR(ISERROR(AC38*'Selected Data_Value'!X40),ISNUMBER(AC38)=FALSE,ISNUMBER('Selected Data_Value'!X40)=FALSE),0,IF(AND(AC38=0,'Selected Data_Value'!X40=0),1,IF(AC38*'Selected Data_Value'!X40=0,0,1))) -> 0 | BC38: =IF(OR(ISERROR(AD38*'Selected Data_Value'!Y40),ISNUMBER(AD38)=FALSE,ISNUMBER('Selected Data_Value'!Y40)=FALSE),0,IF(AND(AD38=0,'Selected Data_Value'!Y40=0),1,IF(AD38*'Selected Data_Value'!Y40=0,0,1))) -> 0 | BD38: =IF(OR(ISERROR(AE38*'Selected Data_Value'!Z40),ISNUMBER(AE38)=FALSE,ISNUMBER('Selected Data_Value'!Z40)=FALSE),0,IF(AND(AE38=0,'Selected Data_Value'!Z40=0),1,IF(AE38*'Selected Data_Value'!Z40=0,0,1))) -> 0 | BE38: =IF(OR(ISERROR(AF38*'Selected Data_Value'!AA40),ISNUMBER(AF38)=FALSE,ISNUMBER('Selected Data_Value'!AA40)=FALSE),0,IF(AND(AF38=0,'Selected Data_Value'!AA40=0),1,IF(AF38*'Selected Data_Value'!AA40=0,0,1))) -> 0 | BF38: =IF(OR(ISERROR(AG38*'Selected Data_Value'!AB40),ISNUMBER(AG38)=FALSE,ISNUMBER('Selected Data_Value'!AB40)=FALSE),0,IF(AND(AG38=0,'Selected Data_Value'!AB40=0),1,IF(AG38*'Selected Data_Value'!AB40=0,0,1))) -> 0 | BG38: =IF(OR(ISERROR(AI38*'Selected Data_Value'!AD40),ISNUMBER(AI38)=FALSE,ISNUMBER('Selected Data_Value'!AD40)=FALSE),0,IF(AND(AI38=0,'Selected Data_Value'!AD40=0),1,IF(AI38*'Selected Data_Value'!AD40=0,0,1))) -> 1 | BH38: =IF(OR(ISERROR(AJ38*'Selected Data_Value'!AE40),ISNUMBER(AJ38)=FALSE,ISNUMBER('Selected Data_Value'!AE40)=FALSE),0,IF(AND(AJ38=0,'Selected Data_Value'!AE40=0),1,IF(AJ38*'Selected Data_Value'!AE40=0,0,1))) -> 1 | BI38: =IF(OR(ISERROR(AK38*'Selected Data_Value'!AF40),ISNUMBER(AK38)=FALSE,ISNUMBER('Selected Data_Value'!AF40)=FALSE),0,IF(AND(AK38=0,'Selected Data_Value'!AF40=0),1,IF(AK38*'Selected Data_Value'!AF40=0,0,1))) -> 1 | BJ38: 0 | BK38: 1
A39: 2006 | B39: ='Manual Data'!AQ32 -> . | C39: ='Manual Data'!AR32 -> . | D39: ='Manual Data'!AS32 -> . | E39: ='Manual Data'!AT32 -> . | F39: ='Manual Data'!AU32 -> . | G39: ='Manual Data'!AV32 -> . | H39: ='Manual Data'!AW32 -> . | I39: . | J39: ='Manual Data'!AX32 -> . | K39: ='Manual Data'!AY32 -> . | L39: ='Manual Data'!AZ32 -> . | M39: ='Manual Data'!BA32 -> . | N39: ='Manual Data'!BB32 -> . | O39: ='Manual Data'!BC32 -> . | Q39: 2006 | R39: ='Existing Data_WDI'!AP29 -> 9686.628362 | S39: ='Existing Data_WDI'!AQ29 -> 6898.913651 | T39: ='Existing Data_WDI'!AR29 -> 721.460076 | U39: ='Existing Data_WDI'!AS29 -> 2066.254635 | V39: ='Existing Data_WDI'!AT29 -> 9896.736059 | W39: ='Existing Data_WDI'!AU29 -> 13838.299 | X39: ='Existing Data_WDI'!AV29 -> 28571.475 | Z39: 2006 | AA39: . | AB39: . | AC39: . | AD39: . | AE39: . | AF39: . | AG39: . | AH39: 9686.628362 | AI39: 6898.913651 | AJ39: 721.460076 | AK39: 2066.254635 | AL39: 9896.736059 | AM39: 13838.299 | AN39: 28571.475 | AP39: =IF('Existing Data_WDI'!AP29=0,NA(),IF(ISNUMBER('Existing Data_WDI'!AP29)=FALSE,NA(),'Existing Data_WDI'!AP29)) -> 9686.628362 | AQ39: 13838.299 | AR39: 1 | AT39: 2006 | AU39: 2006 | AV39: 0 | AW39: 0 | AX39: 0 | AY39: 0 | AZ39: =IF(OR(ISERROR(AA39*'Selected Data_Value'!V41),ISNUMBER(AA39)=FALSE,ISNUMBER('Selected Data_Value'!V41)=FALSE),0,IF(AND(AA39=0,'Selected Data_Value'!V41=0),1,IF(AA39*'Selected Data_Value'!V41=0,0,1))) -> 0 | BA39: =IF(OR(ISERROR(AB39*'Selected Data_Value'!W41),ISNUMBER(AB39)=FALSE,ISNUMBER('Selected Data_Value'!W41)=FALSE),0,IF(AND(AB39=0,'Selected Data_Value'!W41=0),1,IF(AB39*'Selected Data_Value'!W41=0,0,1))) -> 0 | BB39: =IF(OR(ISERROR(AC39*'Selected Data_Value'!X41),ISNUMBER(AC39)=FALSE,ISNUMBER('Selected Data_Value'!X41)=FALSE),0,IF(AND(AC39=0,'Selected Data_Value'!X41=0),1,IF(AC39*'Selected Data_Value'!X41=0,0,1))) -> 0 | BC39: =IF(OR(ISERROR(AD39*'Selected Data_Value'!Y41),ISNUMBER(AD39)=FALSE,ISNUMBER('Selected Data_Value'!Y41)=FALSE),0,IF(AND(AD39=0,'Selected Data_Value'!Y41=0),1,IF(AD39*'Selected Data_Value'!Y41=0,0,1))) -> 0 | BD39: =IF(OR(ISERROR(AE39*'Selected Data_Value'!Z41),ISNUMBER(AE39)=FALSE,ISNUMBER('Selected Data_Value'!Z41)=FALSE),0,IF(AND(AE39=0,'Selected Data_Value'!Z41=0),1,IF(AE39*'Selected Data_Value'!Z41=0,0,1))) -> 0 | BE39: =IF(OR(ISERROR(AF39*'Selected Data_Value'!AA41),ISNUMBER(AF39)=FALSE,ISNUMBER('Selected Data_Value'!AA41)=FALSE),0,IF(AND(AF39=0,'Selected Data_Value'!AA41=0),1,IF(AF39*'Selected Data_Value'!AA41=0,0,1))) -> 0 | BF39: =IF(OR(ISERROR(AG39*'Selected Data_Value'!AB41),ISNUMBER(AG39)=FALSE,ISNUMBER('Selected Data_Value'!AB41)=FALSE),0,IF(AND(AG39=0,'Selected Data_Value'!AB41=0),1,IF(AG39*'Selected Data_Value'!AB41=0,0,1))) -> 0 | BG39: =IF(OR(ISERROR(AI39*'Selected Data_Value'!AD41),ISNUMBER(AI39)=FALSE,ISNUMBER('Selected Data_Value'!AD41)=FALSE),0,IF(AND(AI39=0,'Selected Data_Value'!AD41=0),1,IF(AI39*'Selected Data_Value'!AD41=0,0,1))) -> 1 | BH39: =IF(OR(ISERROR(AJ39*'Selected Data_Value'!AE41),ISNUMBER(AJ39)=FALSE,ISNUMBER('Selected Data_Value'!AE41)=FALSE),0,IF(AND(AJ39=0,'Selected Data_Value'!AE41=0),1,IF(AJ39*'Selected Data_Value'!AE41=0,0,1))) -> 1 | BI39: =IF(OR(ISERROR(AK39*'Selected Data_Value'!AF41),ISNUMBER(AK39)=FALSE,ISNUMBER('Selected Data_Value'!AF41)=FALSE),0,IF(AND(AK39=0,'Selected Data_Value'!AF41=0),1,IF(AK39*'Selected Data_Value'!AF41=0,0,1))) -> 1 | BJ39: 0 | BK39: 1
A40: 2007 | B40: ='Manual Data'!AQ33 -> . | C40: ='Manual Data'!AR33 -> . | D40: ='Manual Data'!AS33 -> . | E40: ='Manual Data'!AT33 -> . | F40: ='Manual Data'!AU33 -> . | G40: ='Manual Data'!AV33 -> . | H40: ='Manual Data'!AW33 -> . | I40: . | J40: ='Manual Data'!AX33 -> . | K40: ='Manual Data'!AY33 -> . | L40: ='Manual Data'!AZ33 -> . | M40: ='Manual Data'!BA33 -> . | N40: ='Manual Data'!BB33 -> . | O40: ='Manual Data'!BC33 -> . | Q40: 2007 | R40: ='Existing Data_WDI'!AP30 -> 10018.3344 | S40: ='Existing Data_WDI'!AQ30 -> 7207.991035 | T40: ='Existing Data_WDI'!AR30 -> 741.0561788 | U40: ='Existing Data_WDI'!AS30 -> 2069.287182 | V40: ='Existing Data_WDI'!AT30 -> 10249.56458 | W40: ='Existing Data_WDI'!AU30 -> 14314.635 | X40: ='Existing Data_WDI'!AV30 -> 29486.338 | Z40: 2007 | AA40: . | AB40: . | AC40: . | AD40: . | AE40: . | AF40: . | AG40: . | AH40: 10018.3344 | AI40: 7207.991035 | AJ40: 741.0561788 | AK40: 2069.287182 | AL40: 10249.56458 | AM40: 14314.635 | AN40: 29486.338 | AP40: =IF('Existing Data_WDI'!AP30=0,NA(),IF(ISNUMBER('Existing Data_WDI'!AP30)=FALSE,NA(),'Existing Data_WDI'!AP30)) -> 10018.3344 | AQ40: 14314.635 | AR40: 1 | AT40: 2007 | AU40: 2007 | AV40: 0 | AW40: 0 | AX40: 0 | AY40: 0 | AZ40: =IF(OR(ISERROR(AA40*'Selected Data_Value'!V42),ISNUMBER(AA40)=FALSE,ISNUMBER('Selected Data_Value'!V42)=FALSE),0,IF(AND(AA40=0,'Selected Data_Value'!V42=0),1,IF(AA40*'Selected Data_Value'!V42=0,0,1))) -> 0 | BA40: =IF(OR(ISERROR(AB40*'Selected Data_Value'!W42),ISNUMBER(AB40)=FALSE,ISNUMBER('Selected Data_Value'!W42)=FALSE),0,IF(AND(AB40=0,'Selected Data_Value'!W42=0),1,IF(AB40*'Selected Data_Value'!W42=0,0,1))) -> 0 | BB40: =IF(OR(ISERROR(AC40*'Selected Data_Value'!X42),ISNUMBER(AC40)=FALSE,ISNUMBER('Selected Data_Value'!X42)=FALSE),0,IF(AND(AC40=0,'Selected Data_Value'!X42=0),1,IF(AC40*'Selected Data_Value'!X42=0,0,1))) -> 0 | BC40: =IF(OR(ISERROR(AD40*'Selected Data_Value'!Y42),ISNUMBER(AD40)=FALSE,ISNUMBER('Selected Data_Value'!Y42)=FALSE),0,IF(AND(AD40=0,'Selected Data_Value'!Y42=0),1,IF(AD40*'Selected Data_Value'!Y42=0,0,1))) -> 0 | BD40: =IF(OR(ISERROR(AE40*'Selected Data_Value'!Z42),ISNUMBER(AE40)=FALSE,ISNUMBER('Selected Data_Value'!Z42)=FALSE),0,IF(AND(AE40=0,'Selected Data_Value'!Z42=0),1,IF(AE40*'Selected Data_Value'!Z42=0,0,1))) -> 0 | BE40: =IF(OR(ISERROR(AF40*'Selected Data_Value'!AA42),ISNUMBER(AF40)=FALSE,ISNUMBER('Selected Data_Value'!AA42)=FALSE),0,IF(AND(AF40=0,'Selected Data_Value'!AA42=0),1,IF(AF40*'Selected Data_Value'!AA42=0,0,1))) -> 0 | BF40: =IF(OR(ISERROR(AG40*'Selected Data_Value'!AB42),ISNUMBER(AG40)=FALSE,ISNUMBER('Selected Data_Value'!AB42)=FALSE),0,IF(AND(AG40=0,'Selected Data_Value'!AB42=0),1,IF(AG40*'Selected Data_Value'!AB42=0,0,1))) -> 0 | BG40: =IF(OR(ISERROR(AI40*'Selected Data_Value'!AD42),ISNUMBER(AI40)=FALSE,ISNUMBER('Selected Data_Value'!AD42)=FALSE),0,IF(AND(AI40=0,'Selected Data_Value'!AD42=0),1,IF(AI40*'Selected Data_Value'!AD42=0,0,1))) -> 1 | BH40: =IF(OR(ISERROR(AJ40*'Selected Data_Value'!AE42),ISNUMBER(AJ40)=FALSE,ISNUMBER('Selected Data_Value'!AE42)=FALSE),0,IF(AND(AJ40=0,'Selected Data_Value'!AE42=0),1,IF(AJ40*'Selected Data_Value'!AE42=0,0,1))) -> 1 | BI40: =IF(OR(ISERROR(AK40*'Selected Data_Value'!AF42),ISNUMBER(AK40)=FALSE,ISNUMBER('Selected Data_Value'!AF42)=FALSE),0,IF(AND(AK40=0,'Selected Data_Value'!AF42=0),1,IF(AK40*'Selected Data_Value'!AF42=0,0,1))) -> 1 | BJ40: 0 | BK40: 1
A41: 2008 | B41: ='Manual Data'!AQ34 -> . | C41: ='Manual Data'!AR34 -> . | D41: ='Manual Data'!AS34 -> . | E41: ='Manual Data'!AT34 -> . | F41: ='Manual Data'!AU34 -> . | G41: ='Manual Data'!AV34 -> . | H41: ='Manual Data'!AW34 -> . | I41: . | J41: ='Manual Data'!AX34 -> . | K41: ='Manual Data'!AY34 -> . | L41: ='Manual Data'!AZ34 -> . | M41: ='Manual Data'!BA34 -> . | N41: ='Manual Data'!BB34 -> . | O41: ='Manual Data'!BC34 -> . | Q41: 2008 | R41: ='Existing Data_WDI'!AP31 -> 10338.55026 | S41: ='Existing Data_WDI'!AQ31 -> 7527.601522 | T41: ='Existing Data_WDI'!AR31 -> 761.8477645 | U41: ='Existing Data_WDI'!AS31 -> 2049.100976 | V41: ='Existing Data_WDI'!AT31 -> 10621.28897 | W41: ='Existing Data_WDI'!AU31 -> 14816.82 | X41: ='Existing Data_WDI'!AV31 -> 30431.736 | Z41: 2008 | AA41: . | AB41: . | AC41: . | AD41: . | AE41: . | AF41: . | AG41: . | AH41: 10338.55026 | AI41: 7527.601522 | AJ41: 761.8477645 | AK41: 2049.100976 | AL41: 10621.28897 | AM41: 14816.82 | AN41: 30431.736 | AP41: =IF('Existing Data_WDI'!AP31=0,NA(),IF(ISNUMBER('Existing Data_WDI'!AP31)=FALSE,NA(),'Existing Data_WDI'!AP31)) -> 10338.55026 | AQ41: 14816.82 | AR41: 1 | AT41: 2008 | AU41: 2008 | AV41: 0 | AW41: 0 | AX41: 0 | AY41: 0 | AZ41: =IF(OR(ISERROR(AA41*'Selected Data_Value'!V43),ISNUMBER(AA41)=FALSE,ISNUMBER('Selected Data_Value'!V43)=FALSE),0,IF(AND(AA41=0,'Selected Data_Value'!V43=0),1,IF(AA41*'Selected Data_Value'!V43=0,0,1))) -> 0 | BA41: =IF(OR(ISERROR(AB41*'Selected Data_Value'!W43),ISNUMBER(AB41)=FALSE,ISNUMBER('Selected Data_Value'!W43)=FALSE),0,IF(AND(AB41=0,'Selected Data_Value'!W43=0),1,IF(AB41*'Selected Data_Value'!W43=0,0,1))) -> 0 | BB41: =IF(OR(ISERROR(AC41*'Selected Data_Value'!X43),ISNUMBER(AC41)=FALSE,ISNUMBER('Selected Data_Value'!X43)=FALSE),0,IF(AND(AC41=0,'Selected Data_Value'!X43=0),1,IF(AC41*'Selected Data_Value'!X43=0,0,1))) -> 0 | BC41: =IF(OR(ISERROR(AD41*'Selected Data_Value'!Y43),ISNUMBER(AD41)=FALSE,ISNUMBER('Selected Data_Value'!Y43)=FALSE),0,IF(AND(AD41=0,'Selected Data_Value'!Y43=0),1,IF(AD41*'Selected Data_Value'!Y43=0,0,1))) -> 0 | BD41: =IF(OR(ISERROR(AE41*'Selected Data_Value'!Z43),ISNUMBER(AE41)=FALSE,ISNUMBER('Selected Data_Value'!Z43)=FALSE),0,IF(AND(AE41=0,'Selected Data_Value'!Z43=0),1,IF(AE41*'Selected Data_Value'!Z43=0,0,1))) -> 0 | BE41: =IF(OR(ISERROR(AF41*'Selected Data_Value'!AA43),ISNUMBER(AF41)=FALSE,ISNUMBER('Selected Data_Value'!AA43)=FALSE),0,IF(AND(AF41=0,'Selected Data_Value'!AA43=0),1,IF(AF41*'Selected Data_Value'!AA43=0,0,1))) -> 0 | BF41: =IF(OR(ISERROR(AG41*'Selected Data_Value'!AB43),ISNUMBER(AG41)=FALSE,ISNUMBER('Selected Data_Value'!AB43)=FALSE),0,IF(AND(AG41=0,'Selected Data_Value'!AB43=0),1,IF(AG41*'Selected Data_Value'!AB43=0,0,1))) -> 0 | BG41: =IF(OR(ISERROR(AI41*'Selected Data_Value'!AD43),ISNUMBER(AI41)=FALSE,ISNUMBER('Selected Data_Value'!AD43)=FALSE),0,IF(AND(AI41=0,'Selected Data_Value'!AD43=0),1,IF(AI41*'Selected Data_Value'!AD43=0,0,1))) -> 1 | BH41: =IF(OR(ISERROR(AJ41*'Selected Data_Value'!AE43),ISNUMBER(AJ41)=FALSE,ISNUMBER('Selected Data_Value'!AE43)=FALSE),0,IF(AND(AJ41=0,'Selected Data_Value'!AE43=0),1,IF(AJ41*'Selected Data_Value'!AE43=0,0,1))) -> 1 | BI41: =IF(OR(ISERROR(AK41*'Selected Data_Value'!AF43),ISNUMBER(AK41)=FALSE,ISNUMBER('Selected Data_Value'!AF43)=FALSE),0,IF(AND(AK41=0,'Selected Data_Value'!AF43=0),1,IF(AK41*'Selected Data_Value'!AF43=0,0,1))) -> 1 | BJ41: 0 | BK41: 1
A42: 2009 | B42: ='Manual Data'!AQ35 -> . | C42: ='Manual Data'!AR35 -> . | D42: ='Manual Data'!AS35 -> . | E42: ='Manual Data'!AT35 -> . | F42: ='Manual Data'!AU35 -> . | G42: ='Manual Data'!AV35 -> . | H42: ='Manual Data'!AW35 -> . | I42: . | J42: ='Manual Data'!AX35 -> . | K42: ='Manual Data'!AY35 -> . | L42: ='Manual Data'!AZ35 -> . | M42: ='Manual Data'!BA35 -> . | N42: ='Manual Data'!BB35 -> . | O42: ='Manual Data'!BC35 -> . | Q42: 2009 | R42: ='Existing Data_WDI'!AP32 -> 10616.84589 | S42: ='Existing Data_WDI'!AQ32 -> 7833.427098 | T42: ='Existing Data_WDI'!AR32 -> 752.628229 | U42: ='Existing Data_WDI'!AS32 -> 2030.790562 | V42: ='Existing Data_WDI'!AT32 -> 11013.3256 | W42: ='Existing Data_WDI'!AU32 -> 15345.306 | X42: ='Existing Data_WDI'!AV32 -> 31411.096 | Z42: 2009 | AA42: . | AB42: . | AC42: . | AD42: . | AE42: . | AF42: . | AG42: . | AH42: 10616.84589 | AI42: 7833.427098 | AJ42: 752.628229 | AK42: 2030.790562 | AL42: 11013.3256 | AM42: 15345.306 | AN42: 31411.096 | AP42: =IF('Existing Data_WDI'!AP32=0,NA(),IF(ISNUMBER('Existing Data_WDI'!AP32)=FALSE,NA(),'Existing Data_WDI'!AP32)) -> 10616.84589 | AQ42: 15345.306 | AR42: 1 | AT42: 2009 | AU42: 2009 | AV42: 0 | AW42: 0 | AX42: 0 | AY42: 0 | AZ42: =IF(OR(ISERROR(AA42*'Selected Data_Value'!V44),ISNUMBER(AA42)=FALSE,ISNUMBER('Selected Data_Value'!V44)=FALSE),0,IF(AND(AA42=0,'Selected Data_Value'!V44=0),1,IF(AA42*'Selected Data_Value'!V44=0,0,1))) -> 0 | BA42: =IF(OR(ISERROR(AB42*'Selected Data_Value'!W44),ISNUMBER(AB42)=FALSE,ISNUMBER('Selected Data_Value'!W44)=FALSE),0,IF(AND(AB42=0,'Selected Data_Value'!W44=0),1,IF(AB42*'Selected Data_Value'!W44=0,0,1))) -> 0 | BB42: =IF(OR(ISERROR(AC42*'Selected Data_Value'!X44),ISNUMBER(AC42)=FALSE,ISNUMBER('Selected Data_Value'!X44)=FALSE),0,IF(AND(AC42=0,'Selected Data_Value'!X44=0),1,IF(AC42*'Selected Data_Value'!X44=0,0,1))) -> 0 | BC42: =IF(OR(ISERROR(AD42*'Selected Data_Value'!Y44),ISNUMBER(AD42)=FALSE,ISNUMBER('Selected Data_Value'!Y44)=FALSE),0,IF(AND(AD42=0,'Selected Data_Value'!Y44=0),1,IF(AD42*'Selected Data_Value'!Y44=0,0,1))) -> 0 | BD42: =IF(OR(ISERROR(AE42*'Selected Data_Value'!Z44),ISNUMBER(AE42)=FALSE,ISNUMBER('Selected Data_Value'!Z44)=FALSE),0,IF(AND(AE42=0,'Selected Data_Value'!Z44=0),1,IF(AE42*'Selected Data_Value'!Z44=0,0,1))) -> 0 | BE42: =IF(OR(ISERROR(AF42*'Selected Data_Value'!AA44),ISNUMBER(AF42)=FALSE,ISNUMBER('Selected Data_Value'!AA44)=FALSE),0,IF(AND(AF42=0,'Selected Data_Value'!AA44=0),1,IF(AF42*'Selected Data_Value'!AA44=0,0,1))) -> 0 | BF42: =IF(OR(ISERROR(AG42*'Selected Data_Value'!AB44),ISNUMBER(AG42)=FALSE,ISNUMBER('Selected Data_Value'!AB44)=FALSE),0,IF(AND(AG42=0,'Selected Data_Value'!AB44=0),1,IF(AG42*'Selected Data_Value'!AB44=0,0,1))) -> 0 | BG42: =IF(OR(ISERROR(AI42*'Selected Data_Value'!AD44),ISNUMBER(AI42)=FALSE,ISNUMBER('Selected Data_Value'!AD44)=FALSE),0,IF(AND(AI42=0,'Selected Data_Value'!AD44=0),1,IF(AI42*'Selected Data_Value'!AD44=0,0,1))) -> 1 | BH42: =IF(OR(ISERROR(AJ42*'Selected Data_Value'!AE44),ISNUMBER(AJ42)=FALSE,ISNUMBER('Selected Data_Value'!AE44)=FALSE),0,IF(AND(AJ42=0,'Selected Data_Value'!AE44=0),1,IF(AJ42*'Selected Data_Value'!AE44=0,0,1))) -> 1 | BI42: =IF(OR(ISERROR(AK42*'Selected Data_Value'!AF44),ISNUMBER(AK42)=FALSE,ISNUMBER('Selected Data_Value'!AF44)=FALSE),0,IF(AND(AK42=0,'Selected Data_Value'!AF44=0),1,IF(AK42*'Selected Data_Value'!AF44=0,0,1))) -> 1 | BJ42: 0 | BK42: 1
A43: 2010 | B43: ='Manual Data'!AQ36 -> . | C43: ='Manual Data'!AR36 -> . | D43: ='Manual Data'!AS36 -> . | E43: ='Manual Data'!AT36 -> . | F43: ='Manual Data'!AU36 -> . | G43: ='Manual Data'!AV36 -> . | H43: ='Manual Data'!AW36 -> . | I43: . | J43: ='Manual Data'!AX36 -> . | K43: ='Manual Data'!AY36 -> . | L43: ='Manual Data'!AZ36 -> . | M43: ='Manual Data'!BA36 -> . | N43: ='Manual Data'!BB36 -> . | O43: ='Manual Data'!BC36 -> . | Q43: 2010 | R43: ='Existing Data_WDI'!AP33 -> 11006.65324 | S43: ='Existing Data_WDI'!AQ33 -> 7792.820835 | T43: ='Existing Data_WDI'!AR33 -> 822.9674887 | U43: ='Existing Data_WDI'!AS33 -> 2390.864915 | V43: ='Existing Data_WDI'!AT33 -> 11427.17322 | W43: ='Existing Data_WDI'!AU33 -> 15901.552 | X43: ='Existing Data_WDI'!AV33 -> 32428.167 | Z43: 2010 | AA43: . | AB43: . | AC43: . | AD43: . | AE43: . | AF43: . | AG43: . | AH43: 11006.65324 | AI43: 7792.820835 | AJ43: 822.9674887 | AK43: 2390.864915 | AL43: 11427.17322 | AM43: 15901.552 | AN43: 32428.167 | AP43: =IF('Existing Data_WDI'!AP33=0,NA(),IF(ISNUMBER('Existing Data_WDI'!AP33)=FALSE,NA(),'Existing Data_WDI'!AP33)) -> 11006.65324 | AQ43: 15901.552 | AR43: 1 | AT43: 2010 | AU43: 2010 | AV43: 0 | AW43: 0 | AX43: 0 | AY43: 0 | AZ43: =IF(OR(ISERROR(AA43*'Selected Data_Value'!V45),ISNUMBER(AA43)=FALSE,ISNUMBER('Selected Data_Value'!V45)=FALSE),0,IF(AND(AA43=0,'Selected Data_Value'!V45=0),1,IF(AA43*'Selected Data_Value'!V45=0,0,1))) -> 0 | BA43: =IF(OR(ISERROR(AB43*'Selected Data_Value'!W45),ISNUMBER(AB43)=FALSE,ISNUMBER('Selected Data_Value'!W45)=FALSE),0,IF(AND(AB43=0,'Selected Data_Value'!W45=0),1,IF(AB43*'Selected Data_Value'!W45=0,0,1))) -> 0 | BB43: =IF(OR(ISERROR(AC43*'Selected Data_Value'!X45),ISNUMBER(AC43)=FALSE,ISNUMBER('Selected Data_Value'!X45)=FALSE),0,IF(AND(AC43=0,'Selected Data_Value'!X45=0),1,IF(AC43*'Selected Data_Value'!X45=0,0,1))) -> 0 | BC43: =IF(OR(ISERROR(AD43*'Selected Data_Value'!Y45),ISNUMBER(AD43)=FALSE,ISNUMBER('Selected Data_Value'!Y45)=FALSE),0,IF(AND(AD43=0,'Selected Data_Value'!Y45=0),1,IF(AD43*'Selected Data_Value'!Y45=0,0,1))) -> 0 | BD43: =IF(OR(ISERROR(AE43*'Selected Data_Value'!Z45),ISNUMBER(AE43)=FALSE,ISNUMBER('Selected Data_Value'!Z45)=FALSE),0,IF(AND(AE43=0,'Selected Data_Value'!Z45=0),1,IF(AE43*'Selected Data_Value'!Z45=0,0,1))) -> 0 | BE43: =IF(OR(ISERROR(AF43*'Selected Data_Value'!AA45),ISNUMBER(AF43)=FALSE,ISNUMBER('Selected Data_Value'!AA45)=FALSE),0,IF(AND(AF43=0,'Selected Data_Value'!AA45=0),1,IF(AF43*'Selected Data_Value'!AA45=0,0,1))) -> 0 | BF43: =IF(OR(ISERROR(AG43*'Selected Data_Value'!AB45),ISNUMBER(AG43)=FALSE,ISNUMBER('Selected Data_Value'!AB45)=FALSE),0,IF(AND(AG43=0,'Selected Data_Value'!AB45=0),1,IF(AG43*'Selected Data_Value'!AB45=0,0,1))) -> 0 | BG43: =IF(OR(ISERROR(AI43*'Selected Data_Value'!AD45),ISNUMBER(AI43)=FALSE,ISNUMBER('Selected Data_Value'!AD45)=FALSE),0,IF(AND(AI43=0,'Selected Data_Value'!AD45=0),1,IF(AI43*'Selected Data_Value'!AD45=0,0,1))) -> 1 | BH43: =IF(OR(ISERROR(AJ43*'Selected Data_Value'!AE45),ISNUMBER(AJ43)=FALSE,ISNUMBER('Selected Data_Value'!AE45)=FALSE),0,IF(AND(AJ43=0,'Selected Data_Value'!AE45=0),1,IF(AJ43*'Selected Data_Value'!AE45=0,0,1))) -> 1 | BI43: =IF(OR(ISERROR(AK43*'Selected Data_Value'!AF45),ISNUMBER(AK43)=FALSE,ISNUMBER('Selected Data_Value'!AF45)=FALSE),0,IF(AND(AK43=0,'Selected Data_Value'!AF45=0),1,IF(AK43*'Selected Data_Value'!AF45=0,0,1))) -> 1 | BJ43: 0 | BK43: 1
A44: 2011 | B44: ='Manual Data'!AQ37 -> . | C44: ='Manual Data'!AR37 -> . | D44: ='Manual Data'!AS37 -> . | E44: ='Manual Data'!AT37 -> . | F44: ='Manual Data'!AU37 -> . | G44: ='Manual Data'!AV37 -> . | H44: ='Manual Data'!AW37 -> . | I44: . | J44: ='Manual Data'!AX37 -> . | K44: ='Manual Data'!AY37 -> . | L44: ='Manual Data'!AZ37 -> . | M44: ='Manual Data'!BA37 -> . | N44: ='Manual Data'!BB37 -> . | O44: ='Manual Data'!BC37 -> . | Q44: 2011 | R44: ='Existing Data_WDI'!AP34 -> 11426.33539 | S44: ='Existing Data_WDI'!AQ34 -> 7825.325859 | T44: ='Existing Data_WDI'!AR34 -> 916.1635311 | U44: ='Existing Data_WDI'!AS34 -> 2684.845996 | V44: ='Existing Data_WDI'!AT34 -> 11852.43026 | W44: ='Existing Data_WDI'!AU34 -> 16468.57031 | X44: ='Existing Data_WDI'!AV34 -> 33476.919 | Z44: 2011 | AA44: . | AB44: . | AC44: . | AD44: . | AE44: . | AF44: . | AG44: . | AH44: 11426.33539 | AI44: 7825.325859 | AJ44: 916.1635311 | AK44: 2684.845996 | AL44: 11852.43026 | AM44: 16468.57031 | AN44: 33476.919 | AP44: =IF('Existing Data_WDI'!AP34=0,NA(),IF(ISNUMBER('Existing Data_WDI'!AP34)=FALSE,NA(),'Existing Data_WDI'!AP34)) -> 11426.33539 | AQ44: 16468.57031 | AR44: 1 | AT44: 2011 | AU44: 2011 | AV44: 0 | AW44: 0 | AX44: 0 | AY44: 0 | AZ44: =IF(OR(ISERROR(AA44*'Selected Data_Value'!V46),ISNUMBER(AA44)=FALSE,ISNUMBER('Selected Data_Value'!V46)=FALSE),0,IF(AND(AA44=0,'Selected Data_Value'!V46=0),1,IF(AA44*'Selected Data_Value'!V46=0,0,1))) -> 0 | BA44: =IF(OR(ISERROR(AB44*'Selected Data_Value'!W46),ISNUMBER(AB44)=FALSE,ISNUMBER('Selected Data_Value'!W46)=FALSE),0,IF(AND(AB44=0,'Selected Data_Value'!W46=0),1,IF(AB44*'Selected Data_Value'!W46=0,0,1))) -> 0 | BB44: =IF(OR(ISERROR(AC44*'Selected Data_Value'!X46),ISNUMBER(AC44)=FALSE,ISNUMBER('Selected Data_Value'!X46)=FALSE),0,IF(AND(AC44=0,'Selected Data_Value'!X46=0),1,IF(AC44*'Selected Data_Value'!X46=0,0,1))) -> 0 | BC44: =IF(OR(ISERROR(AD44*'Selected Data_Value'!Y46),ISNUMBER(AD44)=FALSE,ISNUMBER('Selected Data_Value'!Y46)=FALSE),0,IF(AND(AD44=0,'Selected Data_Value'!Y46=0),1,IF(AD44*'Selected Data_Value'!Y46=0,0,1))) -> 0 | BD44: =IF(OR(ISERROR(AE44*'Selected Data_Value'!Z46),ISNUMBER(AE44)=FALSE,ISNUMBER('Selected Data_Value'!Z46)=FALSE),0,IF(AND(AE44=0,'Selected Data_Value'!Z46=0),1,IF(AE44*'Selected Data_Value'!Z46=0,0,1))) -> 0 | BE44: =IF(OR(ISERROR(AF44*'Selected Data_Value'!AA46),ISNUMBER(AF44)=FALSE,ISNUMBER('Selected Data_Value'!AA46)=FALSE),0,IF(AND(AF44=0,'Selected Data_Value'!AA46=0),1,IF(AF44*'Selected Data_Value'!AA46=0,0,1))) -> 0 | BF44: =IF(OR(ISERROR(AG44*'Selected Data_Value'!AB46),ISNUMBER(AG44)=FALSE,ISNUMBER('Selected Data_Value'!AB46)=FALSE),0,IF(AND(AG44=0,'Selected Data_Value'!AB46=0),1,IF(AG44*'Selected Data_Value'!AB46=0,0,1))) -> 0 | BG44: =IF(OR(ISERROR(AI44*'Selected Data_Value'!AD46),ISNUMBER(AI44)=FALSE,ISNUMBER('Selected Data_Value'!AD46)=FALSE),0,IF(AND(AI44=0,'Selected Data_Value'!AD46=0),1,IF(AI44*'Selected Data_Value'!AD46=0,0,1))) -> 1 | BH44: =IF(OR(ISERROR(AJ44*'Selected Data_Value'!AE46),ISNUMBER(AJ44)=FALSE,ISNUMBER('Selected Data_Value'!AE46)=FALSE),0,IF(AND(AJ44=0,'Selected Data_Value'!AE46=0),1,IF(AJ44*'Selected Data_Value'!AE46=0,0,1))) -> 1 | BI44: =IF(OR(ISERROR(AK44*'Selected Data_Value'!AF46),ISNUMBER(AK44)=FALSE,ISNUMBER('Selected Data_Value'!AF46)=FALSE),0,IF(AND(AK44=0,'Selected Data_Value'!AF46=0),1,IF(AK44*'Selected Data_Value'!AF46=0,0,1))) -> 1 | BJ44: 0 | BK44: 1
A45: 2012 | B45: ='Manual Data'!AQ38 -> . | C45: ='Manual Data'!AR38 -> . | D45: ='Manual Data'!AS38 -> . | E45: ='Manual Data'!AT38 -> . | F45: ='Manual Data'!AU38 -> . | G45: ='Manual Data'!AV38 -> . | H45: ='Manual Data'!AW38 -> . | I45: . | J45: ='Manual Data'!AX38 -> . | K45: ='Manual Data'!AY38 -> . | L45: ='Manual Data'!AZ38 -> . | M45: ='Manual Data'!BA38 -> . | N45: ='Manual Data'!BB38 -> . | O45: ='Manual Data'!BC38 -> . | Q45: 2012 | R45: ='Existing Data_WDI'!AP35 -> 11865.79716 | S45: ='Existing Data_WDI'!AQ35 -> 7847.563801 | T45: ='Existing Data_WDI'!AR35 -> 951.0436834 | U45: ='Existing Data_WDI'!AS35 -> 3067.18968 | V45: ='Existing Data_WDI'!AT35 -> 12302.66481 | W45: ='Existing Data_WDI'!AU35 -> 17068.30616 | X45: ='Existing Data_WDI'!AV35 -> 34559.168 | Z45: 2012 | AA45: . | AB45: . | AC45: . | AD45: . | AE45: . | AF45: . | AG45: . | AH45: 11865.79716 | AI45: 7847.563801 | AJ45: 951.0436834 | AK45: 3067.18968 | AL45: 12302.66481 | AM45: 17068.30616 | AN45: 34559.168 | AP45: =IF('Existing Data_WDI'!AP35=0,NA(),IF(ISNUMBER('Existing Data_WDI'!AP35)=FALSE,NA(),'Existing Data_WDI'!AP35)) -> 11865.79716 | AQ45: 17068.30616 | AR45: 1 | AT45: 2012 | AU45: 2012 | AV45: 0 | AW45: 0 | AX45: 0 | AY45: 0 | AZ45: =IF(OR(ISERROR(AA45*'Selected Data_Value'!V47),ISNUMBER(AA45)=FALSE,ISNUMBER('Selected Data_Value'!V47)=FALSE),0,IF(AND(AA45=0,'Selected Data_Value'!V47=0),1,IF(AA45*'Selected Data_Value'!V47=0,0,1))) -> 0 | BA45: =IF(OR(ISERROR(AB45*'Selected Data_Value'!W47),ISNUMBER(AB45)=FALSE,ISNUMBER('Selected Data_Value'!W47)=FALSE),0,IF(AND(AB45=0,'Selected Data_Value'!W47=0),1,IF(AB45*'Selected Data_Value'!W47=0,0,1))) -> 0 | BB45: =IF(OR(ISERROR(AC45*'Selected Data_Value'!X47),ISNUMBER(AC45)=FALSE,ISNUMBER('Selected Data_Value'!X47)=FALSE),0,IF(AND(AC45=0,'Selected Data_Value'!X47=0),1,IF(AC45*'Selected Data_Value'!X47=0,0,1))) -> 0 | BC45: =IF(OR(ISERROR(AD45*'Selected Data_Value'!Y47),ISNUMBER(AD45)=FALSE,ISNUMBER('Selected Data_Value'!Y47)=FALSE),0,IF(AND(AD45=0,'Selected Data_Value'!Y47=0),1,IF(AD45*'Selected Data_Value'!Y47=0,0,1))) -> 0 | BD45: =IF(OR(ISERROR(AE45*'Selected Data_Value'!Z47),ISNUMBER(AE45)=FALSE,ISNUMBER('Selected Data_Value'!Z47)=FALSE),0,IF(AND(AE45=0,'Selected Data_Value'!Z47=0),1,IF(AE45*'Selected Data_Value'!Z47=0,0,1))) -> 0 | BE45: =IF(OR(ISERROR(AF45*'Selected Data_Value'!AA47),ISNUMBER(AF45)=FALSE,ISNUMBER('Selected Data_Value'!AA47)=FALSE),0,IF(AND(AF45=0,'Selected Data_Value'!AA47=0),1,IF(AF45*'Selected Data_Value'!AA47=0,0,1))) -> 0 | BF45: =IF(OR(ISERROR(AG45*'Selected Data_Value'!AB47),ISNUMBER(AG45)=FALSE,ISNUMBER('Selected Data_Value'!AB47)=FALSE),0,IF(AND(AG45=0,'Selected Data_Value'!AB47=0),1,IF(AG45*'Selected Data_Value'!AB47=0,0,1))) -> 0 | BG45: =IF(OR(ISERROR(AI45*'Selected Data_Value'!AD47),ISNUMBER(AI45)=FALSE,ISNUMBER('Selected Data_Value'!AD47)=FALSE),0,IF(AND(AI45=0,'Selected Data_Value'!AD47=0),1,IF(AI45*'Selected Data_Value'!AD47=0,0,1))) -> 1 | BH45: =IF(OR(ISERROR(AJ45*'Selected Data_Value'!AE47),ISNUMBER(AJ45)=FALSE,ISNUMBER('Selected Data_Value'!AE47)=FALSE),0,IF(AND(AJ45=0,'Selected Data_Value'!AE47=0),1,IF(AJ45*'Selected Data_Value'!AE47=0,0,1))) -> 1 | BI45: =IF(OR(ISERROR(AK45*'Selected Data_Value'!AF47),ISNUMBER(AK45)=FALSE,ISNUMBER('Selected Data_Value'!AF47)=FALSE),0,IF(AND(AK45=0,'Selected Data_Value'!AF47=0),1,IF(AK45*'Selected Data_Value'!AF47=0,0,1))) -> 1 | BJ45: 0 | BK45: 1
A46: 2013 | B46: ='Manual Data'!AQ39 -> . | C46: ='Manual Data'!AR39 -> . | D46: ='Manual Data'!AS39 -> . | E46: ='Manual Data'!AT39 -> . | F46: ='Manual Data'!AU39 -> . | G46: ='Manual Data'!AV39 -> . | H46: ='Manual Data'!AW39 -> . | I46: . | J46: ='Manual Data'!AX39 -> . | K46: ='Manual Data'!AY39 -> . | L46: ='Manual Data'!AZ39 -> . | M46: ='Manual Data'!BA39 -> . | N46: ='Manual Data'!BB39 -> . | O46: ='Manual Data'!BC39 -> . | Q46: 2013 | R46: ='Existing Data_WDI'!AP36 -> 12520.27493 | S46: ='Existing Data_WDI'!AQ36 -> 9004.206097 | T46: ='Existing Data_WDI'!AR36 -> 876.794826 | U46: ='Existing Data_WDI'!AS36 -> 2639.274005 | V46: ='Existing Data_WDI'!AT36 -> 12764.06863 | W46: ='Existing Data_WDI'!AU36 -> 17709.9177 | X46: ='Existing Data_WDI'!AV36 -> 35695.246 | Z46: 2013 | AA46: . | AB46: . | AC46: . | AD46: . | AE46: . | AF46: . | AG46: . | AH46: 12520.27493 | AI46: 9004.206097 | AJ46: 876.794826 | AK46: 2639.274005 | AL46: 12764.06863 | AM46: 17709.9177 | AN46: 35695.246 | AP46: =IF('Existing Data_WDI'!AP36=0,NA(),IF(ISNUMBER('Existing Data_WDI'!AP36)=FALSE,NA(),'Existing Data_WDI'!AP36)) -> 12520.27493 | AQ46: 17709.9177 | AR46: 1 | AT46: 2013 | AU46: 2013 | AV46: 0 | AW46: 0 | AX46: 0 | AY46: 0 | AZ46: =IF(OR(ISERROR(AA46*'Selected Data_Value'!V48),ISNUMBER(AA46)=FALSE,ISNUMBER('Selected Data_Value'!V48)=FALSE),0,IF(AND(AA46=0,'Selected Data_Value'!V48=0),1,IF(AA46*'Selected Data_Value'!V48=0,0,1))) -> 0 | BA46: =IF(OR(ISERROR(AB46*'Selected Data_Value'!W48),ISNUMBER(AB46)=FALSE,ISNUMBER('Selected Data_Value'!W48)=FALSE),0,IF(AND(AB46=0,'Selected Data_Value'!W48=0),1,IF(AB46*'Selected Data_Value'!W48=0,0,1))) -> 0 | BB46: =IF(OR(ISERROR(AC46*'Selected Data_Value'!X48),ISNUMBER(AC46)=FALSE,ISNUMBER('Selected Data_Value'!X48)=FALSE),0,IF(AND(AC46=0,'Selected Data_Value'!X48=0),1,IF(AC46*'Selected Data_Value'!X48=0,0,1))) -> 0 | BC46: =IF(OR(ISERROR(AD46*'Selected Data_Value'!Y48),ISNUMBER(AD46)=FALSE,ISNUMBER('Selected Data_Value'!Y48)=FALSE),0,IF(AND(AD46=0,'Selected Data_Value'!Y48=0),1,IF(AD46*'Selected Data_Value'!Y48=0,0,1))) -> 0 | BD46: =IF(OR(ISERROR(AE46*'Selected Data_Value'!Z48),ISNUMBER(AE46)=FALSE,ISNUMBER('Selected Data_Value'!Z48)=FALSE),0,IF(AND(AE46=0,'Selected Data_Value'!Z48=0),1,IF(AE46*'Selected Data_Value'!Z48=0,0,1))) -> 0 | BE46: =IF(OR(ISERROR(AF46*'Selected Data_Value'!AA48),ISNUMBER(AF46)=FALSE,ISNUMBER('Selected Data_Value'!AA48)=FALSE),0,IF(AND(AF46=0,'Selected Data_Value'!AA48=0),1,IF(AF46*'Selected Data_Value'!AA48=0,0,1))) -> 0 | BF46: =IF(OR(ISERROR(AG46*'Selected Data_Value'!AB48),ISNUMBER(AG46)=FALSE,ISNUMBER('Selected Data_Value'!AB48)=FALSE),0,IF(AND(AG46=0,'Selected Data_Value'!AB48=0),1,IF(AG46*'Selected Data_Value'!AB48=0,0,1))) -> 0 | BG46: =IF(OR(ISERROR(AI46*'Selected Data_Value'!AD48),ISNUMBER(AI46)=FALSE,ISNUMBER('Selected Data_Value'!AD48)=FALSE),0,IF(AND(AI46=0,'Selected Data_Value'!AD48=0),1,IF(AI46*'Selected Data_Value'!AD48=0,0,1))) -> 1 | BH46: =IF(OR(ISERROR(AJ46*'Selected Data_Value'!AE48),ISNUMBER(AJ46)=FALSE,ISNUMBER('Selected Data_Value'!AE48)=FALSE),0,IF(AND(AJ46=0,'Selected Data_Value'!AE48=0),1,IF(AJ46*'Selected Data_Value'!AE48=0,0,1))) -> 1 | BI46: =IF(OR(ISERROR(AK46*'Selected Data_Value'!AF48),ISNUMBER(AK46)=FALSE,ISNUMBER('Selected Data_Value'!AF48)=FALSE),0,IF(AND(AK46=0,'Selected Data_Value'!AF48=0),1,IF(AK46*'Selected Data_Value'!AF48=0,0,1))) -> 1 | BJ46: 0 | BK46: 1
A47: 2014 | B47: ='Manual Data'!AQ40 -> . | C47: ='Manual Data'!AR40 -> . | D47: ='Manual Data'!AS40 -> . | E47: ='Manual Data'!AT40 -> . | F47: ='Manual Data'!AU40 -> . | G47: ='Manual Data'!AV40 -> . | H47: ='Manual Data'!AW40 -> . | I47: . | J47: ='Manual Data'!AX40 -> . | K47: ='Manual Data'!AY40 -> . | L47: ='Manual Data'!AZ40 -> . | M47: ='Manual Data'!BA40 -> . | N47: ='Manual Data'!BB40 -> . | O47: ='Manual Data'!BC40 -> . | Q47: 2014 | R47: ='Existing Data_WDI'!AP37 -> 13010.43963 | S47: ='Existing Data_WDI'!AQ37 -> 9326.533328 | T47: ='Existing Data_WDI'!AR37 -> 915.9349447 | U47: ='Existing Data_WDI'!AS37 -> 2767.971353 | V47: ='Existing Data_WDI'!AT37 -> 13260.8036 | W47: ='Existing Data_WDI'!AU37 -> 18405.76865 | X47: ='Existing Data_WDI'!AV37 -> 36912.148 | Z47: 2014 | AA47: . | AB47: . | AC47: . | AD47: . | AE47: . | AF47: . | AG47: . | AH47: 13010.43963 | AI47: 9326.533328 | AJ47: 915.9349447 | AK47: 2767.971353 | AL47: 13260.8036 | AM47: 18405.76865 | AN47: 36912.148 | AP47: =IF('Existing Data_WDI'!AP37=0,NA(),IF(ISNUMBER('Existing Data_WDI'!AP37)=FALSE,NA(),'Existing Data_WDI'!AP37)) -> 13010.43963 | AQ47: 18405.76865 | AR47: 1 | AT47: 2014 | AU47: 2014 | AV47: 0 | AW47: 0 | AX47: 0 | AY47: 0 | AZ47: =IF(OR(ISERROR(AA47*'Selected Data_Value'!V49),ISNUMBER(AA47)=FALSE,ISNUMBER('Selected Data_Value'!V49)=FALSE),0,IF(AND(AA47=0,'Selected Data_Value'!V49=0),1,IF(AA47*'Selected Data_Value'!V49=0,0,1))) -> 0 | BA47: =IF(OR(ISERROR(AB47*'Selected Data_Value'!W49),ISNUMBER(AB47)=FALSE,ISNUMBER('Selected Data_Value'!W49)=FALSE),0,IF(AND(AB47=0,'Selected Data_Value'!W49=0),1,IF(AB47*'Selected Data_Value'!W49=0,0,1))) -> 0 | BB47: =IF(OR(ISERROR(AC47*'Selected Data_Value'!X49),ISNUMBER(AC47)=FALSE,ISNUMBER('Selected Data_Value'!X49)=FALSE),0,IF(AND(AC47=0,'Selected Data_Value'!X49=0),1,IF(AC47*'Selected Data_Value'!X49=0,0,1))) -> 0 | BC47: =IF(OR(ISERROR(AD47*'Selected Data_Value'!Y49),ISNUMBER(AD47)=FALSE,ISNUMBER('Selected Data_Value'!Y49)=FALSE),0,IF(AND(AD47=0,'Selected Data_Value'!Y49=0),1,IF(AD47*'Selected Data_Value'!Y49=0,0,1))) -> 0 | BD47: =IF(OR(ISERROR(AE47*'Selected Data_Value'!Z49),ISNUMBER(AE47)=FALSE,ISNUMBER('Selected Data_Value'!Z49)=FALSE),0,IF(AND(AE47=0,'Selected Data_Value'!Z49=0),1,IF(AE47*'Selected Data_Value'!Z49=0,0,1))) -> 0 | BE47: =IF(OR(ISERROR(AF47*'Selected Data_Value'!AA49),ISNUMBER(AF47)=FALSE,ISNUMBER('Selected Data_Value'!AA49)=FALSE),0,IF(AND(AF47=0,'Selected Data_Value'!AA49=0),1,IF(AF47*'Selected Data_Value'!AA49=0,0,1))) -> 0 | BF47: =IF(OR(ISERROR(AG47*'Selected Data_Value'!AB49),ISNUMBER(AG47)=FALSE,ISNUMBER('Selected Data_Value'!AB49)=FALSE),0,IF(AND(AG47=0,'Selected Data_Value'!AB49=0),1,IF(AG47*'Selected Data_Value'!AB49=0,0,1))) -> 0 | BG47: =IF(OR(ISERROR(AI47*'Selected Data_Value'!AD49),ISNUMBER(AI47)=FALSE,ISNUMBER('Selected Data_Value'!AD49)=FALSE),0,IF(AND(AI47=0,'Selected Data_Value'!AD49=0),1,IF(AI47*'Selected Data_Value'!AD49=0,0,1))) -> 1 | BH47: =IF(OR(ISERROR(AJ47*'Selected Data_Value'!AE49),ISNUMBER(AJ47)=FALSE,ISNUMBER('Selected Data_Value'!AE49)=FALSE),0,IF(AND(AJ47=0,'Selected Data_Value'!AE49=0),1,IF(AJ47*'Selected Data_Value'!AE49=0,0,1))) -> 1 | BI47: =IF(OR(ISERROR(AK47*'Selected Data_Value'!AF49),ISNUMBER(AK47)=FALSE,ISNUMBER('Selected Data_Value'!AF49)=FALSE),0,IF(AND(AK47=0,'Selected Data_Value'!AF49=0),1,IF(AK47*'Selected Data_Value'!AF49=0,0,1))) -> 1 | BJ47: 0 | BK47: 1
A48: 2015 | B48: ='Manual Data'!AQ41 -> . | C48: ='Manual Data'!AR41 -> . | D48: ='Manual Data'!AS41 -> . | E48: ='Manual Data'!AT41 -> . | F48: ='Manual Data'!AU41 -> . | G48: ='Manual Data'!AV41 -> . | H48: ='Manual Data'!AW41 -> . | I48: . | J48: ='Manual Data'!AX41 -> . | K48: ='Manual Data'!AY41 -> . | L48: ='Manual Data'!AZ41 -> . | M48: ='Manual Data'!BA41 -> . | N48: ='Manual Data'!BB41 -> . | O48: ='Manual Data'!BC41 -> . | Q48: 2015 | R48: ='Existing Data_WDI'!AP38 -> 13540.15977 | S48: ='Existing Data_WDI'!AQ38 -> 9659.143502 | T48: ='Existing Data_WDI'!AR38 -> 968.39222 | U48: ='Existing Data_WDI'!AS38 -> 2912.624047 | V48: ='Existing Data_WDI'!AT38 -> 13798.18584 | W48: ='Existing Data_WDI'!AU38 -> 19162.283 | X48: ='Existing Data_WDI'!AV38 -> 38225.453 | Z48: 2015 | AA48: . | AB48: . | AC48: . | AD48: . | AE48: . | AF48: . | AG48: . | AH48: 13540.15977 | AI48: 9659.143502 | AJ48: 968.39222 | AK48: 2912.624047 | AL48: 13798.18584 | AM48: 19162.283 | AN48: 38225.453 | AP48: =IF('Existing Data_WDI'!AP38=0,NA(),IF(ISNUMBER('Existing Data_WDI'!AP38)=FALSE,NA(),'Existing Data_WDI'!AP38)) -> 13540.15977 | AQ48: 19162.283 | AR48: 1 | AT48: 2015 | AU48: 2015 | AV48: 0 | AW48: 0 | AX48: 0 | AY48: 0 | AZ48: =IF(OR(ISERROR(AA48*'Selected Data_Value'!V50),ISNUMBER(AA48)=FALSE,ISNUMBER('Selected Data_Value'!V50)=FALSE),0,IF(AND(AA48=0,'Selected Data_Value'!V50=0),1,IF(AA48*'Selected Data_Value'!V50=0,0,1))) -> 0 | BA48: =IF(OR(ISERROR(AB48*'Selected Data_Value'!W50),ISNUMBER(AB48)=FALSE,ISNUMBER('Selected Data_Value'!W50)=FALSE),0,IF(AND(AB48=0,'Selected Data_Value'!W50=0),1,IF(AB48*'Selected Data_Value'!W50=0,0,1))) -> 0 | BB48: =IF(OR(ISERROR(AC48*'Selected Data_Value'!X50),ISNUMBER(AC48)=FALSE,ISNUMBER('Selected Data_Value'!X50)=FALSE),0,IF(AND(AC48=0,'Selected Data_Value'!X50=0),1,IF(AC48*'Selected Data_Value'!X50=0,0,1))) -> 0 | BC48: =IF(OR(ISERROR(AD48*'Selected Data_Value'!Y50),ISNUMBER(AD48)=FALSE,ISNUMBER('Selected Data_Value'!Y50)=FALSE),0,IF(AND(AD48=0,'Selected Data_Value'!Y50=0),1,IF(AD48*'Selected Data_Value'!Y50=0,0,1))) -> 0 | BD48: =IF(OR(ISERROR(AE48*'Selected Data_Value'!Z50),ISNUMBER(AE48)=FALSE,ISNUMBER('Selected Data_Value'!Z50)=FALSE),0,IF(AND(AE48=0,'Selected Data_Value'!Z50=0),1,IF(AE48*'Selected Data_Value'!Z50=0,0,1))) -> 0 | BE48: =IF(OR(ISERROR(AF48*'Selected Data_Value'!AA50),ISNUMBER(AF48)=FALSE,ISNUMBER('Selected Data_Value'!AA50)=FALSE),0,IF(AND(AF48=0,'Selected Data_Value'!AA50=0),1,IF(AF48*'Selected Data_Value'!AA50=0,0,1))) -> 0 | BF48: =IF(OR(ISERROR(AG48*'Selected Data_Value'!AB50),ISNUMBER(AG48)=FALSE,ISNUMBER('Selected Data_Value'!AB50)=FALSE),0,IF(AND(AG48=0,'Selected Data_Value'!AB50=0),1,IF(AG48*'Selected Data_Value'!AB50=0,0,1))) -> 0 | BG48: =IF(OR(ISERROR(AI48*'Selected Data_Value'!AD50),ISNUMBER(AI48)=FALSE,ISNUMBER('Selected Data_Value'!AD50)=FALSE),0,IF(AND(AI48=0,'Selected Data_Value'!AD50=0),1,IF(AI48*'Selected Data_Value'!AD50=0,0,1))) -> 1 | BH48: =IF(OR(ISERROR(AJ48*'Selected Data_Value'!AE50),ISNUMBER(AJ48)=FALSE,ISNUMBER('Selected Data_Value'!AE50)=FALSE),0,IF(AND(AJ48=0,'Selected Data_Value'!AE50=0),1,IF(AJ48*'Selected Data_Value'!AE50=0,0,1))) -> 1 | BI48: =IF(OR(ISERROR(AK48*'Selected Data_Value'!AF50),ISNUMBER(AK48)=FALSE,ISNUMBER('Selected Data_Value'!AF50)=FALSE),0,IF(AND(AK48=0,'Selected Data_Value'!AF50=0),1,IF(AK48*'Selected Data_Value'!AF50=0,0,1))) -> 1 | BJ48: 0 | BK48: 1
A49: 2016 | B49: ='Manual Data'!AQ42 -> . | C49: ='Manual Data'!AR42 -> . | D49: ='Manual Data'!AS42 -> . | E49: ='Manual Data'!AT42 -> . | F49: ='Manual Data'!AU42 -> . | G49: ='Manual Data'!AV42 -> . | H49: ='Manual Data'!AW42 -> . | I49: . | J49: ='Manual Data'!AX42 -> . | K49: ='Manual Data'!AY42 -> . | L49: ='Manual Data'!AZ42 -> . | M49: ='Manual Data'!BA42 -> . | N49: ='Manual Data'!BB42 -> . | O49: ='Manual Data'!BC42 -> . | Q49: 2016 | R49: ='Existing Data_WDI'!AP39 -> 14131.69789 | S49: ='Existing Data_WDI'!AQ39 -> 10087.91284 | T49: ='Existing Data_WDI'!AR39 -> 1012.253535 | U49: ='Existing Data_WDI'!AS39 -> 3031.531514 | V49: ='Existing Data_WDI'!AT39 -> 14389.55879 | W49: ='Existing Data_WDI'!AU39 -> 19992.16295 | X49: ='Existing Data_WDI'!AV39 -> 39647.506 | Z49: 2016 | AA49: . | AB49: . | AC49: . | AD49: . | AE49: . | AF49: . | AG49: . | AH49: 14131.69789 | AI49: 10087.91284 | AJ49: 1012.253535 | AK49: 3031.531514 | AL49: 14389.55879 | AM49: 19992.16295 | AN49: 39647.506 | AP49: =IF('Existing Data_WDI'!AP39=0,NA(),IF(ISNUMBER('Existing Data_WDI'!AP39)=FALSE,NA(),'Existing Data_WDI'!AP39)) -> 14131.69789 | AQ49: =IF(ISNUMBER(AM49)=FALSE,NA(),AM49) -> 19992.16295 | AR49: 1 | AT49: 2016 | AU49: 2016 | AV49: 0 | AW49: 0 | AX49: 0 | AY49: 0 | AZ49: =IF(OR(ISERROR(AA49*'Selected Data_Value'!V51),ISNUMBER(AA49)=FALSE,ISNUMBER('Selected Data_Value'!V51)=FALSE),0,IF(AND(AA49=0,'Selected Data_Value'!V51=0),1,IF(AA49*'Selected Data_Value'!V51=0,0,1))) -> 0 | BA49: =IF(OR(ISERROR(AB49*'Selected Data_Value'!W51),ISNUMBER(AB49)=FALSE,ISNUMBER('Selected Data_Value'!W51)=FALSE),0,IF(AND(AB49=0,'Selected Data_Value'!W51=0),1,IF(AB49*'Selected Data_Value'!W51=0,0,1))) -> 0 | BB49: =IF(OR(ISERROR(AC49*'Selected Data_Value'!X51),ISNUMBER(AC49)=FALSE,ISNUMBER('Selected Data_Value'!X51)=FALSE),0,IF(AND(AC49=0,'Selected Data_Value'!X51=0),1,IF(AC49*'Selected Data_Value'!X51=0,0,1))) -> 0 | BC49: =IF(OR(ISERROR(AD49*'Selected Data_Value'!Y51),ISNUMBER(AD49)=FALSE,ISNUMBER('Selected Data_Value'!Y51)=FALSE),0,IF(AND(AD49=0,'Selected Data_Value'!Y51=0),1,IF(AD49*'Selected Data_Value'!Y51=0,0,1))) -> 0 | BD49: =IF(OR(ISERROR(AE49*'Selected Data_Value'!Z51),ISNUMBER(AE49)=FALSE,ISNUMBER('Selected Data_Value'!Z51)=FALSE),0,IF(AND(AE49=0,'Selected Data_Value'!Z51=0),1,IF(AE49*'Selected Data_Value'!Z51=0,0,1))) -> 0 | BE49: =IF(OR(ISERROR(AF49*'Selected Data_Value'!AA51),ISNUMBER(AF49)=FALSE,ISNUMBER('Selected Data_Value'!AA51)=FALSE),0,IF(AND(AF49=0,'Selected Data_Value'!AA51=0),1,IF(AF49*'Selected Data_Value'!AA51=0,0,1))) -> 0 | BF49: =IF(OR(ISERROR(AG49*'Selected Data_Value'!AB51),ISNUMBER(AG49)=FALSE,ISNUMBER('Selected Data_Value'!AB51)=FALSE),0,IF(AND(AG49=0,'Selected Data_Value'!AB51=0),1,IF(AG49*'Selected Data_Value'!AB51=0,0,1))) -> 0 | BG49: =IF(OR(ISERROR(AI49*'Selected Data_Value'!AD51),ISNUMBER(AI49)=FALSE,ISNUMBER('Selected Data_Value'!AD51)=FALSE),0,IF(AND(AI49=0,'Selected Data_Value'!AD51=0),1,IF(AI49*'Selected Data_Value'!AD51=0,0,1))) -> 1 | BH49: =IF(OR(ISERROR(AJ49*'Selected Data_Value'!AE51),ISNUMBER(AJ49)=FALSE,ISNUMBER('Selected Data_Value'!AE51)=FALSE),0,IF(AND(AJ49=0,'Selected Data_Value'!AE51=0),1,IF(AJ49*'Selected Data_Value'!AE51=0,0,1))) -> 1 | BI49: =IF(OR(ISERROR(AK49*'Selected Data_Value'!AF51),ISNUMBER(AK49)=FALSE,ISNUMBER('Selected Data_Value'!AF51)=FALSE),0,IF(AND(AK49=0,'Selected Data_Value'!AF51=0),1,IF(AK49*'Selected Data_Value'!AF51=0,0,1))) -> 1 | BJ49: =IF(COUNTIF(AZ49:BF49,0)>0,0,1) -> 0 | BK49: =IF(COUNTIF(BG49:BI49,0)>0,0,1) -> 1
A50: 2017 | B50: ='Manual Data'!AQ43 -> . | C50: ='Manual Data'!AR43 -> . | D50: ='Manual Data'!AS43 -> . | E50: ='Manual Data'!AT43 -> . | F50: ='Manual Data'!AU43 -> . | G50: ='Manual Data'!AV43 -> . | H50: ='Manual Data'!AW43 -> . | I50: . | J50: ='Manual Data'!AX43 -> . | K50: ='Manual Data'!AY43 -> . | L50: ='Manual Data'!AZ43 -> . | M50: ='Manual Data'!BA43 -> . | N50: ='Manual Data'!BB43 -> . | O50: ='Manual Data'!BC43 -> . | Q50: 2017 | R50: ='Existing Data_WDI'!AP40 -> 14774.24828 | S50: ='Existing Data_WDI'!AQ40 -> 10500.05821 | T50: ='Existing Data_WDI'!AR40 -> 1075.860769 | U50: ='Existing Data_WDI'!AS40 -> 3198.329303 | V50: ='Existing Data_WDI'!AT40 -> 15029.4483 | W50: ='Existing Data_WDI'!AU40 -> 20893.96718 | X50: ='Existing Data_WDI'!AV40 -> 41162.465 | Z50: 2017 | AA50: . | AB50: . | AC50: . | AD50: . | AE50: . | AF50: . | AG50: . | AH50: 14774.24828 | AI50: 10500.05821 | AJ50: 1075.860769 | AK50: 3198.329303 | AL50: 15029.4483 | AM50: 20893.96718 | AN50: 41162.465 | AP50: =IF('Existing Data_WDI'!AP40=0,NA(),IF(ISNUMBER('Existing Data_WDI'!AP40)=FALSE,NA(),'Existing Data_WDI'!AP40)) -> 14774.24828 | AQ50: =IF(ISNUMBER(AM50)=FALSE,NA(),AM50) -> 20893.96718 | AR50: 1 | AT50: 2017 | AU50: =IF(AT50=".",".",IF(SUM(BJ50:BK50)=0,".",AT50)) -> 2017 | AV50: =IF(ISERROR(SUM(AI50:AK50,-AH50)),0,IF(SUM(AI50:AK50)=0,0,ROUND(SUM(AI50:AK50,-AH50),5))) -> 0 | AW50: =IF(ISERROR(SUM(AA50:AG50,-AH50)),0,IF(SUM(AA50:AG50)=0,0,SUM(AA50:AG50,-AH50))) -> 0 | AX50: 0 | AY50: 0 | AZ50: =IF(OR(ISERROR(AA50*'Selected Data_Value'!V52),ISNUMBER(AA50)=FALSE,ISNUMBER('Selected Data_Value'!V52)=FALSE),0,IF(AND(AA50=0,'Selected Data_Value'!V52=0),1,IF(AA50*'Selected Data_Value'!V52=0,0,1))) -> 0 | BA50: =IF(OR(ISERROR(AB50*'Selected Data_Value'!W52),ISNUMBER(AB50)=FALSE,ISNUMBER('Selected Data_Value'!W52)=FALSE),0,IF(AND(AB50=0,'Selected Data_Value'!W52=0),1,IF(AB50*'Selected Data_Value'!W52=0,0,1))) -> 0 | BB50: =IF(OR(ISERROR(AC50*'Selected Data_Value'!X52),ISNUMBER(AC50)=FALSE,ISNUMBER('Selected Data_Value'!X52)=FALSE),0,IF(AND(AC50=0,'Selected Data_Value'!X52=0),1,IF(AC50*'Selected Data_Value'!X52=0,0,1))) -> 0 | BC50: =IF(OR(ISERROR(AD50*'Selected Data_Value'!Y52),ISNUMBER(AD50)=FALSE,ISNUMBER('Selected Data_Value'!Y52)=FALSE),0,IF(AND(AD50=0,'Selected Data_Value'!Y52=0),1,IF(AD50*'Selected Data_Value'!Y52=0,0,1))) -> 0 | BD50: =IF(OR(ISERROR(AE50*'Selected Data_Value'!Z52),ISNUMBER(AE50)=FALSE,ISNUMBER('Selected Data_Value'!Z52)=FALSE),0,IF(AND(AE50=0,'Selected Data_Value'!Z52=0),1,IF(AE50*'Selected Data_Value'!Z52=0,0,1))) -> 0 | BE50: =IF(OR(ISERROR(AF50*'Selected Data_Value'!AA52),ISNUMBER(AF50)=FALSE,ISNUMBER('Selected Data_Value'!AA52)=FALSE),0,IF(AND(AF50=0,'Selected Data_Value'!AA52=0),1,IF(AF50*'Selected Data_Value'!AA52=0,0,1))) -> 0 | BF50: =IF(OR(ISERROR(AG50*'Selected Data_Value'!AB52),ISNUMBER(AG50)=FALSE,ISNUMBER('Selected Data_Value'!AB52)=FALSE),0,IF(AND(AG50=0,'Selected Data_Value'!AB52=0),1,IF(AG50*'Selected Data_Value'!AB52=0,0,1))) -> 0 | BG50: =IF(OR(ISERROR(AI50*'Selected Data_Value'!AD52),ISNUMBER(AI50)=FALSE,ISNUMBER('Selected Data_Value'!AD52)=FALSE),0,IF(AND(AI50=0,'Selected Data_Value'!AD52=0),1,IF(AI50*'Selected Data_Value'!AD52=0,0,1))) -> 1 | BH50: =IF(OR(ISERROR(AJ50*'Selected Data_Value'!AE52),ISNUMBER(AJ50)=FALSE,ISNUMBER('Selected Data_Value'!AE52)=FALSE),0,IF(AND(AJ50=0,'Selected Data_Value'!AE52=0),1,IF(AJ50*'Selected Data_Value'!AE52=0,0,1))) -> 1 | BI50: =IF(OR(ISERROR(AK50*'Selected Data_Value'!AF52),ISNUMBER(AK50)=FALSE,ISNUMBER('Selected Data_Value'!AF52)=FALSE),0,IF(AND(AK50=0,'Selected Data_Value'!AF52=0),1,IF(AK50*'Selected Data_Value'!AF52=0,0,1))) -> 1 | BJ50: =IF(COUNTIF(AZ50:BF50,0)>0,0,1) -> 0 | BK50: =IF(COUNTIF(BG50:BI50,0)>0,0,1) -> 1
A51: 2018 | B51: ='Manual Data'!AQ44 -> . | C51: ='Manual Data'!AR44 -> . | D51: ='Manual Data'!AS44 -> . | E51: ='Manual Data'!AT44 -> . | F51: ='Manual Data'!AU44 -> . | G51: ='Manual Data'!AV44 -> . | H51: ='Manual Data'!AW44 -> . | I51: . | J51: ='Manual Data'!AX44 -> . | K51: ='Manual Data'!AY44 -> . | L51: ='Manual Data'!AZ44 -> . | M51: ='Manual Data'!BA44 -> . | N51: ='Manual Data'!BB44 -> . | O51: ='Manual Data'!BC44 -> . | Q51: 2018 | R51: ='Existing Data_WDI'!AP41 -> 15452.84447 | S51: ='Existing Data_WDI'!AQ41 -> 10934.43308 | T51: ='Existing Data_WDI'!AR41 -> 1141.810668 | U51: ='Existing Data_WDI'!AS41 -> 3376.600724 | V51: ='Existing Data_WDI'!AT41 -> 15726.80542 | W51: ='Existing Data_WDI'!AU41 -> 21843.69495 | X51: ='Existing Data_WDI'!AV41 -> 42723.139 | Z51: 2018 | AA51: . | AB51: . | AC51: . | AD51: . | AE51: . | AF51: . | AG51: . | AH51: 15452.84447 | AI51: 10934.43308 | AJ51: 1141.810668 | AK51: 3376.600724 | AL51: 15726.80542 | AM51: 21843.69495 | AN51: 42723.139 | AP51: =IF('Existing Data_WDI'!AP41=0,NA(),IF(ISNUMBER('Existing Data_WDI'!AP41)=FALSE,NA(),'Existing Data_WDI'!AP41)) -> 15452.84447 | AQ51: =IF(ISNUMBER(AM51)=FALSE,NA(),AM51) -> 21843.69495 | AR51: 1 | AT51: 2018 | AU51: =IF(AT51=".",".",IF(SUM(BJ51:BK51)=0,".",AT51)) -> 2018 | AV51: =IF(ISERROR(SUM(AI51:AK51,-AH51)),0,IF(SUM(AI51:AK51)=0,0,ROUND(SUM(AI51:AK51,-AH51),5))) -> 0 | AW51: =IF(ISERROR(SUM(AA51:AG51,-AH51)),0,IF(SUM(AA51:AG51)=0,0,SUM(AA51:AG51,-AH51))) -> 0 | AX51: 0 | AY51: 0 | AZ51: =IF(OR(ISERROR(AA51*'Selected Data_Value'!V53),ISNUMBER(AA51)=FALSE,ISNUMBER('Selected Data_Value'!V53)=FALSE),0,IF(AND(AA51=0,'Selected Data_Value'!V53=0),1,IF(AA51*'Selected Data_Value'!V53=0,0,1))) -> 0 | BA51: =IF(OR(ISERROR(AB51*'Selected Data_Value'!W53),ISNUMBER(AB51)=FALSE,ISNUMBER('Selected Data_Value'!W53)=FALSE),0,IF(AND(AB51=0,'Selected Data_Value'!W53=0),1,IF(AB51*'Selected Data_Value'!W53=0,0,1))) -> 0 | BB51: =IF(OR(ISERROR(AC51*'Selected Data_Value'!X53),ISNUMBER(AC51)=FALSE,ISNUMBER('Selected Data_Value'!X53)=FALSE),0,IF(AND(AC51=0,'Selected Data_Value'!X53=0),1,IF(AC51*'Selected Data_Value'!X53=0,0,1))) -> 0 | BC51: =IF(OR(ISERROR(AD51*'Selected Data_Value'!Y53),ISNUMBER(AD51)=FALSE,ISNUMBER('Selected Data_Value'!Y53)=FALSE),0,IF(AND(AD51=0,'Selected Data_Value'!Y53=0),1,IF(AD51*'Selected Data_Value'!Y53=0,0,1))) -> 0 | BD51: =IF(OR(ISERROR(AE51*'Selected Data_Value'!Z53),ISNUMBER(AE51)=FALSE,ISNUMBER('Selected Data_Value'!Z53)=FALSE),0,IF(AND(AE51=0,'Selected Data_Value'!Z53=0),1,IF(AE51*'Selected Data_Value'!Z53=0,0,1))) -> 0 | BE51: =IF(OR(ISERROR(AF51*'Selected Data_Value'!AA53),ISNUMBER(AF51)=FALSE,ISNUMBER('Selected Data_Value'!AA53)=FALSE),0,IF(AND(AF51=0,'Selected Data_Value'!AA53=0),1,IF(AF51*'Selected Data_Value'!AA53=0,0,1))) -> 0 | BF51: =IF(OR(ISERROR(AG51*'Selected Data_Value'!AB53),ISNUMBER(AG51)=FALSE,ISNUMBER('Selected Data_Value'!AB53)=FALSE),0,IF(AND(AG51=0,'Selected Data_Value'!AB53=0),1,IF(AG51*'Selected Data_Value'!AB53=0,0,1))) -> 0 | BG51: =IF(OR(ISERROR(AI51*'Selected Data_Value'!AD53),ISNUMBER(AI51)=FALSE,ISNUMBER('Selected Data_Value'!AD53)=FALSE),0,IF(AND(AI51=0,'Selected Data_Value'!AD53=0),1,IF(AI51*'Selected Data_Value'!AD53=0,0,1))) -> 1 | BH51: =IF(OR(ISERROR(AJ51*'Selected Data_Value'!AE53),ISNUMBER(AJ51)=FALSE,ISNUMBER('Selected Data_Value'!AE53)=FALSE),0,IF(AND(AJ51=0,'Selected Data_Value'!AE53=0),1,IF(AJ51*'Selected Data_Value'!AE53=0,0,1))) -> 1 | BI51: =IF(OR(ISERROR(AK51*'Selected Data_Value'!AF53),ISNUMBER(AK51)=FALSE,ISNUMBER('Selected Data_Value'!AF53)=FALSE),0,IF(AND(AK51=0,'Selected Data_Value'!AF53=0),1,IF(AK51*'Selected Data_Value'!AF53=0,0,1))) -> 1 | BJ51: =IF(COUNTIF(AZ51:BF51,0)>0,0,1) -> 0 | BK51: =IF(COUNTIF(BG51:BI51,0)>0,0,1) -> 1
A52: 2019 | B52: ='Manual Data'!AQ45 -> . | C52: ='Manual Data'!AR45 -> . | D52: ='Manual Data'!AS45 -> . | E52: ='Manual Data'!AT45 -> . | F52: ='Manual Data'!AU45 -> . | G52: ='Manual Data'!AV45 -> . | H52: ='Manual Data'!AW45 -> . | I52: . | J52: ='Manual Data'!AX45 -> . | K52: ='Manual Data'!AY45 -> . | L52: ='Manual Data'!AZ45 -> . | M52: ='Manual Data'!BA45 -> . | N52: ='Manual Data'!BB45 -> . | O52: ='Manual Data'!BC45 -> . | Q52: 2019 | R52: ='Existing Data_WDI'!AP42 -> . | S52: ='Existing Data_WDI'!AQ42 -> . | T52: ='Existing Data_WDI'!AR42 -> . | U52: ='Existing Data_WDI'!AS42 -> . | V52: ='Existing Data_WDI'!AT42 -> . | W52: ='Existing Data_WDI'!AU42 -> . | X52: ='Existing Data_WDI'!AV42 -> . | Z52: 2019 | AA52: . | AB52: . | AC52: . | AD52: . | AE52: . | AF52: . | AG52: . | AH52: . | AI52: . | AJ52: . | AK52: . | AL52: . | AM52: . | AN52: . | AP52: =IF('Existing Data_WDI'!AP42=0,NA(),IF(ISNUMBER('Existing Data_WDI'!AP42)=FALSE,NA(),'Existing Data_WDI'!AP42)) ->  | AQ52: =IF(ISNUMBER(AM52)=FALSE,NA(),AM52) ->  | AR52: 0 | AT52: . | AU52: =IF(AT52=".",".",IF(SUM(BJ52:BK52)=0,".",AT52)) -> . | AV52: =IF(ISERROR(SUM(AI52:AK52,-AH52)),0,IF(SUM(AI52:AK52)=0,0,ROUND(SUM(AI52:AK52,-AH52),5))) -> 0 | AW52: =IF(ISERROR(SUM(AA52:AG52,-AH52)),0,IF(SUM(AA52:AG52)=0,0,SUM(AA52:AG52,-AH52))) -> 0 | AX52: 0 | AY52: 0 | AZ52: =IF(OR(ISERROR(AA52*'Selected Data_Value'!V54),ISNUMBER(AA52)=FALSE,ISNUMBER('Selected Data_Value'!V54)=FALSE),0,IF(AND(AA52=0,'Selected Data_Value'!V54=0),1,IF(AA52*'Selected Data_Value'!V54=0,0,1))) -> 0 | BA52: =IF(OR(ISERROR(AB52*'Selected Data_Value'!W54),ISNUMBER(AB52)=FALSE,ISNUMBER('Selected Data_Value'!W54)=FALSE),0,IF(AND(AB52=0,'Selected Data_Value'!W54=0),1,IF(AB52*'Selected Data_Value'!W54=0,0,1))) -> 0 | BB52: =IF(OR(ISERROR(AC52*'Selected Data_Value'!X54),ISNUMBER(AC52)=FALSE,ISNUMBER('Selected Data_Value'!X54)=FALSE),0,IF(AND(AC52=0,'Selected Data_Value'!X54=0),1,IF(AC52*'Selected Data_Value'!X54=0,0,1))) -> 0 | BC52: =IF(OR(ISERROR(AD52*'Selected Data_Value'!Y54),ISNUMBER(AD52)=FALSE,ISNUMBER('Selected Data_Value'!Y54)=FALSE),0,IF(AND(AD52=0,'Selected Data_Value'!Y54=0),1,IF(AD52*'Selected Data_Value'!Y54=0,0,1))) -> 0 | BD52: =IF(OR(ISERROR(AE52*'Selected Data_Value'!Z54),ISNUMBER(AE52)=FALSE,ISNUMBER('Selected Data_Value'!Z54)=FALSE),0,IF(AND(AE52=0,'Selected Data_Value'!Z54=0),1,IF(AE52*'Selected Data_Value'!Z54=0,0,1))) -> 0 | BE52: =IF(OR(ISERROR(AF52*'Selected Data_Value'!AA54),ISNUMBER(AF52)=FALSE,ISNUMBER('Selected Data_Value'!AA54)=FALSE),0,IF(AND(AF52=0,'Selected Data_Value'!AA54=0),1,IF(AF52*'Selected Data_Value'!AA54=0,0,1))) -> 0 | BF52: =IF(OR(ISERROR(AG52*'Selected Data_Value'!AB54),ISNUMBER(AG52)=FALSE,ISNUMBER('Selected Data_Value'!AB54)=FALSE),0,IF(AND(AG52=0,'Selected Data_Value'!AB54=0),1,IF(AG52*'Selected Data_Value'!AB54=0,0,1))) -> 0 | BG52: =IF(OR(ISERROR(AI52*'Selected Data_Value'!AD54),ISNUMBER(AI52)=FALSE,ISNUMBER('Selected Data_Value'!AD54)=FALSE),0,IF(AND(AI52=0,'Selected Data_Value'!AD54=0),1,IF(AI52*'Selected Data_Value'!AD54=0,0,1))) -> 0 | BH52: =IF(OR(ISERROR(AJ52*'Selected Data_Value'!AE54),ISNUMBER(AJ52)=FALSE,ISNUMBER('Selected Data_Value'!AE54)=FALSE),0,IF(AND(AJ52=0,'Selected Data_Value'!AE54=0),1,IF(AJ52*'Selected Data_Value'!AE54=0,0,1))) -> 0 | BI52: =IF(OR(ISERROR(AK52*'Selected Data_Value'!AF54),ISNUMBER(AK52)=FALSE,ISNUMBER('Selected Data_Value'!AF54)=FALSE),0,IF(AND(AK52=0,'Selected Data_Value'!AF54=0),1,IF(AK52*'Selected Data_Value'!AF54=0,0,1))) -> 0 | BJ52: =IF(COUNTIF(AZ52:BF52,0)>0,0,1) -> 0 | BK52: =IF(COUNTIF(BG52:BI52,0)>0,0,1) -> 0
A53: 2020 | B53: ='Manual Data'!AQ46 -> . | C53: ='Manual Data'!AR46 -> . | D53: ='Manual Data'!AS46 -> . | E53: ='Manual Data'!AT46 -> . | F53: ='Manual Data'!AU46 -> . | G53: ='Manual Data'!AV46 -> . | H53: ='Manual Data'!AW46 -> . | I53: . | J53: ='Manual Data'!AX46 -> . | K53: ='Manual Data'!AY46 -> . | L53: ='Manual Data'!AZ46 -> . | M53: ='Manual Data'!BA46 -> . | N53: ='Manual Data'!BB46 -> . | O53: ='Manual Data'!BC46 -> . | Q53: 2020 | R53: ='Existing Data_WDI'!AP43 -> . | S53: ='Existing Data_WDI'!AQ43 -> . | T53: ='Existing Data_WDI'!AR43 -> . | U53: ='Existing Data_WDI'!AS43 -> . | V53: ='Existing Data_WDI'!AT43 -> . | W53: ='Existing Data_WDI'!AU43 -> . | X53: ='Existing Data_WDI'!AV43 -> . | Z53: 2020 | AA53: . | AB53: . | AC53: . | AD53: . | AE53: . | AF53: . | AG53: . | AH53: . | AI53: . | AJ53: . | AK53: . | AL53: . | AM53: . | AN53: . | AP53: =IF('Existing Data_WDI'!AP43=0,NA(),IF(ISNUMBER('Existing Data_WDI'!AP43)=FALSE,NA(),'Existing Data_WDI'!AP43)) ->  | AQ53: =IF(ISNUMBER(AM53)=FALSE,NA(),AM53) ->  | AR53: 0 | AT53: . | AU53: =IF(AT53=".",".",IF(SUM(BJ53:BK53)=0,".",AT53)) -> . | AV53: =IF(ISERROR(SUM(AI53:AK53,-AH53)),0,IF(SUM(AI53:AK53)=0,0,ROUND(SUM(AI53:AK53,-AH53),5))) -> 0 | AW53: =IF(ISERROR(SUM(AA53:AG53,-AH53)),0,IF(SUM(AA53:AG53)=0,0,SUM(AA53:AG53,-AH53))) -> 0 | AX53: 0 | AY53: 0 | AZ53: =IF(OR(ISERROR(AA53*'Selected Data_Value'!V55),ISNUMBER(AA53)=FALSE,ISNUMBER('Selected Data_Value'!V55)=FALSE),0,IF(AND(AA53=0,'Selected Data_Value'!V55=0),1,IF(AA53*'Selected Data_Value'!V55=0,0,1))) -> 0 | BA53: =IF(OR(ISERROR(AB53*'Selected Data_Value'!W55),ISNUMBER(AB53)=FALSE,ISNUMBER('Selected Data_Value'!W55)=FALSE),0,IF(AND(AB53=0,'Selected Data_Value'!W55=0),1,IF(AB53*'Selected Data_Value'!W55=0,0,1))) -> 0 | BB53: =IF(OR(ISERROR(AC53*'Selected Data_Value'!X55),ISNUMBER(AC53)=FALSE,ISNUMBER('Selected Data_Value'!X55)=FALSE),0,IF(AND(AC53=0,'Selected Data_Value'!X55=0),1,IF(AC53*'Selected Data_Value'!X55=0,0,1))) -> 0 | BC53: =IF(OR(ISERROR(AD53*'Selected Data_Value'!Y55),ISNUMBER(AD53)=FALSE,ISNUMBER('Selected Data_Value'!Y55)=FALSE),0,IF(AND(AD53=0,'Selected Data_Value'!Y55=0),1,IF(AD53*'Selected Data_Value'!Y55=0,0,1))) -> 0 | BD53: =IF(OR(ISERROR(AE53*'Selected Data_Value'!Z55),ISNUMBER(AE53)=FALSE,ISNUMBER('Selected Data_Value'!Z55)=FALSE),0,IF(AND(AE53=0,'Selected Data_Value'!Z55=0),1,IF(AE53*'Selected Data_Value'!Z55=0,0,1))) -> 0 | BE53: =IF(OR(ISERROR(AF53*'Selected Data_Value'!AA55),ISNUMBER(AF53)=FALSE,ISNUMBER('Selected Data_Value'!AA55)=FALSE),0,IF(AND(AF53=0,'Selected Data_Value'!AA55=0),1,IF(AF53*'Selected Data_Value'!AA55=0,0,1))) -> 0 | BF53: =IF(OR(ISERROR(AG53*'Selected Data_Value'!AB55),ISNUMBER(AG53)=FALSE,ISNUMBER('Selected Data_Value'!AB55)=FALSE),0,IF(AND(AG53=0,'Selected Data_Value'!AB55=0),1,IF(AG53*'Selected Data_Value'!AB55=0,0,1))) -> 0 | BG53: =IF(OR(ISERROR(AI53*'Selected Data_Value'!AD55),ISNUMBER(AI53)=FALSE,ISNUMBER('Selected Data_Value'!AD55)=FALSE),0,IF(AND(AI53=0,'Selected Data_Value'!AD55=0),1,IF(AI53*'Selected Data_Value'!AD55=0,0,1))) -> 0 | BH53: =IF(OR(ISERROR(AJ53*'Selected Data_Value'!AE55),ISNUMBER(AJ53)=FALSE,ISNUMBER('Selected Data_Value'!AE55)=FALSE),0,IF(AND(AJ53=0,'Selected Data_Value'!AE55=0),1,IF(AJ53*'Selected Data_Value'!AE55=0,0,1))) -> 0 | BI53: =IF(OR(ISERROR(AK53*'Selected Data_Value'!AF55),ISNUMBER(AK53)=FALSE,ISNUMBER('Selected Data_Value'!AF55)=FALSE),0,IF(AND(AK53=0,'Selected Data_Value'!AF55=0),1,IF(AK53*'Selected Data_Value'!AF55=0,0,1))) -> 0 | BJ53: =IF(COUNTIF(AZ53:BF53,0)>0,0,1) -> 0 | BK53: =IF(COUNTIF(BG53:BI53,0)>0,0,1) -> 0
A54: 2021 | B54: ='Manual Data'!AQ47 -> . | C54: ='Manual Data'!AR47 -> . | D54: ='Manual Data'!AS47 -> . | E54: ='Manual Data'!AT47 -> . | F54: ='Manual Data'!AU47 -> . | G54: ='Manual Data'!AV47 -> . | H54: ='Manual Data'!AW47 -> . | I54: . | J54: ='Manual Data'!AX47 -> . | K54: ='Manual Data'!AY47 -> . | L54: ='Manual Data'!AZ47 -> . | M54: ='Manual Data'!BA47 -> . | N54: ='Manual Data'!BB47 -> . | O54: ='Manual Data'!BC47 -> . | Q54: 2021 | R54: ='Existing Data_WDI'!AP44 -> . | S54: ='Existing Data_WDI'!AQ44 -> . | T54: ='Existing Data_WDI'!AR44 -> . | U54: ='Existing Data_WDI'!AS44 -> . | V54: ='Existing Data_WDI'!AT44 -> . | W54: ='Existing Data_WDI'!AU44 -> . | X54: ='Existing Data_WDI'!AV44 -> . | Z54: 2021 | AA54: . | AB54: . | AC54: . | AD54: . | AE54: . | AF54: . | AG54: . | AH54: . | AI54: . | AJ54: . | AK54: . | AL54: . | AM54: . | AN54: . | AP54: =IF('Existing Data_WDI'!AP44=0,NA(),IF(ISNUMBER('Existing Data_WDI'!AP44)=FALSE,NA(),'Existing Data_WDI'!AP44)) ->  | AQ54: =IF(ISNUMBER(AM54)=FALSE,NA(),AM54) ->  | AR54: 0 | AT54: . | AU54: =IF(AT54=".",".",IF(SUM(BJ54:BK54)=0,".",AT54)) -> . | AV54: =IF(ISERROR(SUM(AI54:AK54,-AH54)),0,IF(SUM(AI54:AK54)=0,0,ROUND(SUM(AI54:AK54,-AH54),5))) -> 0 | AW54: =IF(ISERROR(SUM(AA54:AG54,-AH54)),0,IF(SUM(AA54:AG54)=0,0,SUM(AA54:AG54,-AH54))) -> 0 | AX54: 0 | AY54: 0 | AZ54: =IF(OR(ISERROR(AA54*'Selected Data_Value'!V56),ISNUMBER(AA54)=FALSE,ISNUMBER('Selected Data_Value'!V56)=FALSE),0,IF(AND(AA54=0,'Selected Data_Value'!V56=0),1,IF(AA54*'Selected Data_Value'!V56=0,0,1))) -> 0 | BA54: =IF(OR(ISERROR(AB54*'Selected Data_Value'!W56),ISNUMBER(AB54)=FALSE,ISNUMBER('Selected Data_Value'!W56)=FALSE),0,IF(AND(AB54=0,'Selected Data_Value'!W56=0),1,IF(AB54*'Selected Data_Value'!W56=0,0,1))) -> 0 | BB54: =IF(OR(ISERROR(AC54*'Selected Data_Value'!X56),ISNUMBER(AC54)=FALSE,ISNUMBER('Selected Data_Value'!X56)=FALSE),0,IF(AND(AC54=0,'Selected Data_Value'!X56=0),1,IF(AC54*'Selected Data_Value'!X56=0,0,1))) -> 0 | BC54: =IF(OR(ISERROR(AD54*'Selected Data_Value'!Y56),ISNUMBER(AD54)=FALSE,ISNUMBER('Selected Data_Value'!Y56)=FALSE),0,IF(AND(AD54=0,'Selected Data_Value'!Y56=0),1,IF(AD54*'Selected Data_Value'!Y56=0,0,1))) -> 0 | BD54: =IF(OR(ISERROR(AE54*'Selected Data_Value'!Z56),ISNUMBER(AE54)=FALSE,ISNUMBER('Selected Data_Value'!Z56)=FALSE),0,IF(AND(AE54=0,'Selected Data_Value'!Z56=0),1,IF(AE54*'Selected Data_Value'!Z56=0,0,1))) -> 0 | BE54: =IF(OR(ISERROR(AF54*'Selected Data_Value'!AA56),ISNUMBER(AF54)=FALSE,ISNUMBER('Selected Data_Value'!AA56)=FALSE),0,IF(AND(AF54=0,'Selected Data_Value'!AA56=0),1,IF(AF54*'Selected Data_Value'!AA56=0,0,1))) -> 0 | BF54: =IF(OR(ISERROR(AG54*'Selected Data_Value'!AB56),ISNUMBER(AG54)=FALSE,ISNUMBER('Selected Data_Value'!AB56)=FALSE),0,IF(AND(AG54=0,'Selected Data_Value'!AB56=0),1,IF(AG54*'Selected Data_Value'!AB56=0,0,1))) -> 0 | BG54: =IF(OR(ISERROR(AI54*'Selected Data_Value'!AD56),ISNUMBER(AI54)=FALSE,ISNUMBER('Selected Data_Value'!AD56)=FALSE),0,IF(AND(AI54=0,'Selected Data_Value'!AD56=0),1,IF(AI54*'Selected Data_Value'!AD56=0,0,1))) -> 0 | BH54: =IF(OR(ISERROR(AJ54*'Selected Data_Value'!AE56),ISNUMBER(AJ54)=FALSE,ISNUMBER('Selected Data_Value'!AE56)=FALSE),0,IF(AND(AJ54=0,'Selected Data_Value'!AE56=0),1,IF(AJ54*'Selected Data_Value'!AE56=0,0,1))) -> 0 | BI54: =IF(OR(ISERROR(AK54*'Selected Data_Value'!AF56),ISNUMBER(AK54)=FALSE,ISNUMBER('Selected Data_Value'!AF56)=FALSE),0,IF(AND(AK54=0,'Selected Data_Value'!AF56=0),1,IF(AK54*'Selected Data_Value'!AF56=0,0,1))) -> 0 | BJ54: =IF(COUNTIF(AZ54:BF54,0)>0,0,1) -> 0 | BK54: =IF(COUNTIF(BG54:BI54,0)>0,0,1) -> 0
A55: 2022 | B55: ='Manual Data'!AQ48 -> . | C55: ='Manual Data'!AR48 -> . | D55: ='Manual Data'!AS48 -> . | E55: ='Manual Data'!AT48 -> . | F55: ='Manual Data'!AU48 -> . | G55: ='Manual Data'!AV48 -> . | H55: ='Manual Data'!AW48 -> . | I55: . | J55: ='Manual Data'!AX48 -> . | K55: ='Manual Data'!AY48 -> . | L55: ='Manual Data'!AZ48 -> . | M55: ='Manual Data'!BA48 -> . | N55: ='Manual Data'!BB48 -> . | O55: ='Manual Data'!BC48 -> . | Q55: 2022 | R55: ='Existing Data_WDI'!AP45 -> . | S55: ='Existing Data_WDI'!AQ45 -> . | T55: ='Existing Data_WDI'!AR45 -> . | U55: ='Existing Data_WDI'!AS45 -> . | V55: ='Existing Data_WDI'!AT45 -> . | W55: ='Existing Data_WDI'!AU45 -> . | X55: ='Existing Data_WDI'!AV45 -> . | Z55: 2022 | AA55: . | AB55: . | AC55: . | AD55: . | AE55: . | AF55: . | AG55: . | AH55: . | AI55: . | AJ55: . | AK55: . | AL55: . | AM55: . | AN55: . | AP55: =IF('Existing Data_WDI'!AP45=0,NA(),IF(ISNUMBER('Existing Data_WDI'!AP45)=FALSE,NA(),'Existing Data_WDI'!AP45)) ->  | AQ55: =IF(ISNUMBER(AM55)=FALSE,NA(),AM55) ->  | AR55: 0 | AT55: . | AU55: =IF(AT55=".",".",IF(SUM(BJ55:BK55)=0,".",AT55)) -> . | AV55: =IF(ISERROR(SUM(AI55:AK55,-AH55)),0,IF(SUM(AI55:AK55)=0,0,ROUND(SUM(AI55:AK55,-AH55),5))) -> 0 | AW55: =IF(ISERROR(SUM(AA55:AG55,-AH55)),0,IF(SUM(AA55:AG55)=0,0,SUM(AA55:AG55,-AH55))) -> 0 | AX55: 0 | AY55: 0 | AZ55: =IF(OR(ISERROR(AA55*'Selected Data_Value'!V57),ISNUMBER(AA55)=FALSE,ISNUMBER('Selected Data_Value'!V57)=FALSE),0,IF(AND(AA55=0,'Selected Data_Value'!V57=0),1,IF(AA55*'Selected Data_Value'!V57=0,0,1))) -> 0 | BA55: =IF(OR(ISERROR(AB55*'Selected Data_Value'!W57),ISNUMBER(AB55)=FALSE,ISNUMBER('Selected Data_Value'!W57)=FALSE),0,IF(AND(AB55=0,'Selected Data_Value'!W57=0),1,IF(AB55*'Selected Data_Value'!W57=0,0,1))) -> 0 | BB55: =IF(OR(ISERROR(AC55*'Selected Data_Value'!X57),ISNUMBER(AC55)=FALSE,ISNUMBER('Selected Data_Value'!X57)=FALSE),0,IF(AND(AC55=0,'Selected Data_Value'!X57=0),1,IF(AC55*'Selected Data_Value'!X57=0,0,1))) -> 0 | BC55: =IF(OR(ISERROR(AD55*'Selected Data_Value'!Y57),ISNUMBER(AD55)=FALSE,ISNUMBER('Selected Data_Value'!Y57)=FALSE),0,IF(AND(AD55=0,'Selected Data_Value'!Y57=0),1,IF(AD55*'Selected Data_Value'!Y57=0,0,1))) -> 0 | BD55: =IF(OR(ISERROR(AE55*'Selected Data_Value'!Z57),ISNUMBER(AE55)=FALSE,ISNUMBER('Selected Data_Value'!Z57)=FALSE),0,IF(AND(AE55=0,'Selected Data_Value'!Z57=0),1,IF(AE55*'Selected Data_Value'!Z57=0,0,1))) -> 0 | BE55: =IF(OR(ISERROR(AF55*'Selected Data_Value'!AA57),ISNUMBER(AF55)=FALSE,ISNUMBER('Selected Data_Value'!AA57)=FALSE),0,IF(AND(AF55=0,'Selected Data_Value'!AA57=0),1,IF(AF55*'Selected Data_Value'!AA57=0,0,1))) -> 0 | BF55: =IF(OR(ISERROR(AG55*'Selected Data_Value'!AB57),ISNUMBER(AG55)=FALSE,ISNUMBER('Selected Data_Value'!AB57)=FALSE),0,IF(AND(AG55=0,'Selected Data_Value'!AB57=0),1,IF(AG55*'Selected Data_Value'!AB57=0,0,1))) -> 0 | BG55: =IF(OR(ISERROR(AI55*'Selected Data_Value'!AD57),ISNUMBER(AI55)=FALSE,ISNUMBER('Selected Data_Value'!AD57)=FALSE),0,IF(AND(AI55=0,'Selected Data_Value'!AD57=0),1,IF(AI55*'Selected Data_Value'!AD57=0,0,1))) -> 0 | BH55: =IF(OR(ISERROR(AJ55*'Selected Data_Value'!AE57),ISNUMBER(AJ55)=FALSE,ISNUMBER('Selected Data_Value'!AE57)=FALSE),0,IF(AND(AJ55=0,'Selected Data_Value'!AE57=0),1,IF(AJ55*'Selected Data_Value'!AE57=0,0,1))) -> 0 | BI55: =IF(OR(ISERROR(AK55*'Selected Data_Value'!AF57),ISNUMBER(AK55)=FALSE,ISNUMBER('Selected Data_Value'!AF57)=FALSE),0,IF(AND(AK55=0,'Selected Data_Value'!AF57=0),1,IF(AK55*'Selected Data_Value'!AF57=0,0,1))) -> 0 | BJ55: =IF(COUNTIF(AZ55:BF55,0)>0,0,1) -> 0 | BK55: =IF(COUNTIF(BG55:BI55,0)>0,0,1) -> 0
A56: 2023 | B56: ='Manual Data'!AQ49 -> . | C56: ='Manual Data'!AR49 -> . | D56: ='Manual Data'!AS49 -> . | E56: ='Manual Data'!AT49 -> . | F56: ='Manual Data'!AU49 -> . | G56: ='Manual Data'!AV49 -> . | H56: ='Manual Data'!AW49 -> . | I56: . | J56: ='Manual Data'!AX49 -> . | K56: ='Manual Data'!AY49 -> . | L56: ='Manual Data'!AZ49 -> . | M56: ='Manual Data'!BA49 -> . | N56: ='Manual Data'!BB49 -> . | O56: ='Manual Data'!BC49 -> . | Q56: 2023 | R56: ='Existing Data_WDI'!AP46 -> . | S56: ='Existing Data_WDI'!AQ46 -> . | T56: ='Existing Data_WDI'!AR46 -> . | U56: ='Existing Data_WDI'!AS46 -> . | V56: ='Existing Data_WDI'!AT46 -> . | W56: ='Existing Data_WDI'!AU46 -> . | X56: ='Existing Data_WDI'!AV46 -> . | Z56: 2023 | AA56: . | AB56: . | AC56: . | AD56: . | AE56: . | AF56: . | AG56: . | AH56: . | AI56: . | AJ56: . | AK56: . | AL56: . | AM56: . | AN56: . | AP56: =IF('Existing Data_WDI'!AP46=0,NA(),IF(ISNUMBER('Existing Data_WDI'!AP46)=FALSE,NA(),'Existing Data_WDI'!AP46)) ->  | AQ56: =IF(ISNUMBER(AM56)=FALSE,NA(),AM56) ->  | AR56: 0 | AT56: . | AU56: =IF(AT56=".",".",IF(SUM(BJ56:BK56)=0,".",AT56)) -> . | AV56: =IF(ISERROR(SUM(AI56:AK56,-AH56)),0,IF(SUM(AI56:AK56)=0,0,ROUND(SUM(AI56:AK56,-AH56),5))) -> 0 | AW56: =IF(ISERROR(SUM(AA56:AG56,-AH56)),0,IF(SUM(AA56:AG56)=0,0,SUM(AA56:AG56,-AH56))) -> 0 | AX56: 0 | AY56: 0 | AZ56: =IF(OR(ISERROR(AA56*'Selected Data_Value'!V58),ISNUMBER(AA56)=FALSE,ISNUMBER('Selected Data_Value'!V58)=FALSE),0,IF(AND(AA56=0,'Selected Data_Value'!V58=0),1,IF(AA56*'Selected Data_Value'!V58=0,0,1))) -> 0 | BA56: =IF(OR(ISERROR(AB56*'Selected Data_Value'!W58),ISNUMBER(AB56)=FALSE,ISNUMBER('Selected Data_Value'!W58)=FALSE),0,IF(AND(AB56=0,'Selected Data_Value'!W58=0),1,IF(AB56*'Selected Data_Value'!W58=0,0,1))) -> 0 | BB56: =IF(OR(ISERROR(AC56*'Selected Data_Value'!X58),ISNUMBER(AC56)=FALSE,ISNUMBER('Selected Data_Value'!X58)=FALSE),0,IF(AND(AC56=0,'Selected Data_Value'!X58=0),1,IF(AC56*'Selected Data_Value'!X58=0,0,1))) -> 0 | BC56: =IF(OR(ISERROR(AD56*'Selected Data_Value'!Y58),ISNUMBER(AD56)=FALSE,ISNUMBER('Selected Data_Value'!Y58)=FALSE),0,IF(AND(AD56=0,'Selected Data_Value'!Y58=0),1,IF(AD56*'Selected Data_Value'!Y58=0,0,1))) -> 0 | BD56: =IF(OR(ISERROR(AE56*'Selected Data_Value'!Z58),ISNUMBER(AE56)=FALSE,ISNUMBER('Selected Data_Value'!Z58)=FALSE),0,IF(AND(AE56=0,'Selected Data_Value'!Z58=0),1,IF(AE56*'Selected Data_Value'!Z58=0,0,1))) -> 0 | BE56: =IF(OR(ISERROR(AF56*'Selected Data_Value'!AA58),ISNUMBER(AF56)=FALSE,ISNUMBER('Selected Data_Value'!AA58)=FALSE),0,IF(AND(AF56=0,'Selected Data_Value'!AA58=0),1,IF(AF56*'Selected Data_Value'!AA58=0,0,1))) -> 0 | BF56: =IF(OR(ISERROR(AG56*'Selected Data_Value'!AB58),ISNUMBER(AG56)=FALSE,ISNUMBER('Selected Data_Value'!AB58)=FALSE),0,IF(AND(AG56=0,'Selected Data_Value'!AB58=0),1,IF(AG56*'Selected Data_Value'!AB58=0,0,1))) -> 0 | BG56: =IF(OR(ISERROR(AI56*'Selected Data_Value'!AD58),ISNUMBER(AI56)=FALSE,ISNUMBER('Selected Data_Value'!AD58)=FALSE),0,IF(AND(AI56=0,'Selected Data_Value'!AD58=0),1,IF(AI56*'Selected Data_Value'!AD58=0,0,1))) -> 0 | BH56: =IF(OR(ISERROR(AJ56*'Selected Data_Value'!AE58),ISNUMBER(AJ56)=FALSE,ISNUMBER('Selected Data_Value'!AE58)=FALSE),0,IF(AND(AJ56=0,'Selected Data_Value'!AE58=0),1,IF(AJ56*'Selected Data_Value'!AE58=0,0,1))) -> 0 | BI56: =IF(OR(ISERROR(AK56*'Selected Data_Value'!AF58),ISNUMBER(AK56)=FALSE,ISNUMBER('Selected Data_Value'!AF58)=FALSE),0,IF(AND(AK56=0,'Selected Data_Value'!AF58=0),1,IF(AK56*'Selected Data_Value'!AF58=0,0,1))) -> 0 | BJ56: =IF(COUNTIF(AZ56:BF56,0)>0,0,1) -> 0 | BK56: =IF(COUNTIF(BG56:BI56,0)>0,0,1) -> 0
A57: 2024 | B57: ='Manual Data'!AQ50 -> . | C57: ='Manual Data'!AR50 -> . | D57: ='Manual Data'!AS50 -> . | E57: ='Manual Data'!AT50 -> . | F57: ='Manual Data'!AU50 -> . | G57: ='Manual Data'!AV50 -> . | H57: ='Manual Data'!AW50 -> . | I57: . | J57: ='Manual Data'!AX50 -> . | K57: ='Manual Data'!AY50 -> . | L57: ='Manual Data'!AZ50 -> . | M57: ='Manual Data'!BA50 -> . | N57: ='Manual Data'!BB50 -> . | O57: ='Manual Data'!BC50 -> . | Q57: 2024 | R57: ='Existing Data_WDI'!AP47 -> . | S57: ='Existing Data_WDI'!AQ47 -> . | T57: ='Existing Data_WDI'!AR47 -> . | U57: ='Existing Data_WDI'!AS47 -> . | V57: ='Existing Data_WDI'!AT47 -> . | W57: ='Existing Data_WDI'!AU47 -> . | X57: ='Existing Data_WDI'!AV47 -> . | Z57: 2024 | AA57: . | AB57: . | AC57: . | AD57: . | AE57: . | AF57: . | AG57: . | AH57: . | AI57: . | AJ57: . | AK57: . | AL57: . | AM57: . | AN57: . | AP57: =IF('Existing Data_WDI'!AP47=0,NA(),IF(ISNUMBER('Existing Data_WDI'!AP47)=FALSE,NA(),'Existing Data_WDI'!AP47)) ->  | AQ57: =IF(ISNUMBER(AM57)=FALSE,NA(),AM57) ->  | AR57: 0 | AT57: . | AU57: =IF(AT57=".",".",IF(SUM(BJ57:BK57)=0,".",AT57)) -> . | AV57: =IF(ISERROR(SUM(AI57:AK57,-AH57)),0,IF(SUM(AI57:AK57)=0,0,ROUND(SUM(AI57:AK57,-AH57),5))) -> 0 | AW57: =IF(ISERROR(SUM(AA57:AG57,-AH57)),0,IF(SUM(AA57:AG57)=0,0,SUM(AA57:AG57,-AH57))) -> 0 | AX57: 0 | AY57: 0 | AZ57: =IF(OR(ISERROR(AA57*'Selected Data_Value'!V59),ISNUMBER(AA57)=FALSE,ISNUMBER('Selected Data_Value'!V59)=FALSE),0,IF(AND(AA57=0,'Selected Data_Value'!V59=0),1,IF(AA57*'Selected Data_Value'!V59=0,0,1))) -> 0 | BA57: =IF(OR(ISERROR(AB57*'Selected Data_Value'!W59),ISNUMBER(AB57)=FALSE,ISNUMBER('Selected Data_Value'!W59)=FALSE),0,IF(AND(AB57=0,'Selected Data_Value'!W59=0),1,IF(AB57*'Selected Data_Value'!W59=0,0,1))) -> 0 | BB57: =IF(OR(ISERROR(AC57*'Selected Data_Value'!X59),ISNUMBER(AC57)=FALSE,ISNUMBER('Selected Data_Value'!X59)=FALSE),0,IF(AND(AC57=0,'Selected Data_Value'!X59=0),1,IF(AC57*'Selected Data_Value'!X59=0,0,1))) -> 0 | BC57: =IF(OR(ISERROR(AD57*'Selected Data_Value'!Y59),ISNUMBER(AD57)=FALSE,ISNUMBER('Selected Data_Value'!Y59)=FALSE),0,IF(AND(AD57=0,'Selected Data_Value'!Y59=0),1,IF(AD57*'Selected Data_Value'!Y59=0,0,1))) -> 0 | BD57: =IF(OR(ISERROR(AE57*'Selected Data_Value'!Z59),ISNUMBER(AE57)=FALSE,ISNUMBER('Selected Data_Value'!Z59)=FALSE),0,IF(AND(AE57=0,'Selected Data_Value'!Z59=0),1,IF(AE57*'Selected Data_Value'!Z59=0,0,1))) -> 0 | BE57: =IF(OR(ISERROR(AF57*'Selected Data_Value'!AA59),ISNUMBER(AF57)=FALSE,ISNUMBER('Selected Data_Value'!AA59)=FALSE),0,IF(AND(AF57=0,'Selected Data_Value'!AA59=0),1,IF(AF57*'Selected Data_Value'!AA59=0,0,1))) -> 0 | BF57: =IF(OR(ISERROR(AG57*'Selected Data_Value'!AB59),ISNUMBER(AG57)=FALSE,ISNUMBER('Selected Data_Value'!AB59)=FALSE),0,IF(AND(AG57=0,'Selected Data_Value'!AB59=0),1,IF(AG57*'Selected Data_Value'!AB59=0,0,1))) -> 0 | BG57: =IF(OR(ISERROR(AI57*'Selected Data_Value'!AD59),ISNUMBER(AI57)=FALSE,ISNUMBER('Selected Data_Value'!AD59)=FALSE),0,IF(AND(AI57=0,'Selected Data_Value'!AD59=0),1,IF(AI57*'Selected Data_Value'!AD59=0,0,1))) -> 0 | BH57: =IF(OR(ISERROR(AJ57*'Selected Data_Value'!AE59),ISNUMBER(AJ57)=FALSE,ISNUMBER('Selected Data_Value'!AE59)=FALSE),0,IF(AND(AJ57=0,'Selected Data_Value'!AE59=0),1,IF(AJ57*'Selected Data_Value'!AE59=0,0,1))) -> 0 | BI57: =IF(OR(ISERROR(AK57*'Selected Data_Value'!AF59),ISNUMBER(AK57)=FALSE,ISNUMBER('Selected Data_Value'!AF59)=FALSE),0,IF(AND(AK57=0,'Selected Data_Value'!AF59=0),1,IF(AK57*'Selected Data_Value'!AF59=0,0,1))) -> 0 | BJ57: =IF(COUNTIF(AZ57:BF57,0)>0,0,1) -> 0 | BK57: =IF(COUNTIF(BG57:BI57,0)>0,0,1) -> 0
A58: 2025 | B58: ='Manual Data'!AQ51 -> . | C58: ='Manual Data'!AR51 -> . | D58: ='Manual Data'!AS51 -> . | E58: ='Manual Data'!AT51 -> . | F58: ='Manual Data'!AU51 -> . | G58: ='Manual Data'!AV51 -> . | H58: ='Manual Data'!AW51 -> . | I58: . | J58: ='Manual Data'!AX51 -> . | K58: ='Manual Data'!AY51 -> . | L58: ='Manual Data'!AZ51 -> . | M58: ='Manual Data'!BA51 -> . | N58: ='Manual Data'!BB51 -> . | O58: ='Manual Data'!BC51 -> . | Q58: 2025 | R58: ='Existing Data_WDI'!AP48 -> . | S58: ='Existing Data_WDI'!AQ48 -> . | T58: ='Existing Data_WDI'!AR48 -> . | U58: ='Existing Data_WDI'!AS48 -> . | V58: ='Existing Data_WDI'!AT48 -> . | W58: ='Existing Data_WDI'!AU48 -> . | X58: ='Existing Data_WDI'!AV48 -> . | Z58: 2025 | AA58: . | AB58: . | AC58: . | AD58: . | AE58: . | AF58: . | AG58: . | AH58: . | AI58: . | AJ58: . | AK58: . | AL58: . | AM58: . | AN58: . | AP58: =IF('Existing Data_WDI'!AP48=0,NA(),IF(ISNUMBER('Existing Data_WDI'!AP48)=FALSE,NA(),'Existing Data_WDI'!AP48)) ->  | AQ58: =IF(ISNUMBER(AM58)=FALSE,NA(),AM58) ->  | AR58: 0 | AT58: . | AU58: =IF(AT58=".",".",IF(SUM(BJ58:BK58)=0,".",AT58)) -> . | AV58: =IF(ISERROR(SUM(AI58:AK58,-AH58)),0,IF(SUM(AI58:AK58)=0,0,ROUND(SUM(AI58:AK58,-AH58),5))) -> 0 | AW58: =IF(ISERROR(SUM(AA58:AG58,-AH58)),0,IF(SUM(AA58:AG58)=0,0,SUM(AA58:AG58,-AH58))) -> 0 | AX58: 0 | AY58: 0 | AZ58: =IF(OR(ISERROR(AA58*'Selected Data_Value'!V60),ISNUMBER(AA58)=FALSE,ISNUMBER('Selected Data_Value'!V60)=FALSE),0,IF(AND(AA58=0,'Selected Data_Value'!V60=0),1,IF(AA58*'Selected Data_Value'!V60=0,0,1))) -> 0 | BA58: =IF(OR(ISERROR(AB58*'Selected Data_Value'!W60),ISNUMBER(AB58)=FALSE,ISNUMBER('Selected Data_Value'!W60)=FALSE),0,IF(AND(AB58=0,'Selected Data_Value'!W60=0),1,IF(AB58*'Selected Data_Value'!W60=0,0,1))) -> 0 | BB58: =IF(OR(ISERROR(AC58*'Selected Data_Value'!X60),ISNUMBER(AC58)=FALSE,ISNUMBER('Selected Data_Value'!X60)=FALSE),0,IF(AND(AC58=0,'Selected Data_Value'!X60=0),1,IF(AC58*'Selected Data_Value'!X60=0,0,1))) -> 0 | BC58: =IF(OR(ISERROR(AD58*'Selected Data_Value'!Y60),ISNUMBER(AD58)=FALSE,ISNUMBER('Selected Data_Value'!Y60)=FALSE),0,IF(AND(AD58=0,'Selected Data_Value'!Y60=0),1,IF(AD58*'Selected Data_Value'!Y60=0,0,1))) -> 0 | BD58: =IF(OR(ISERROR(AE58*'Selected Data_Value'!Z60),ISNUMBER(AE58)=FALSE,ISNUMBER('Selected Data_Value'!Z60)=FALSE),0,IF(AND(AE58=0,'Selected Data_Value'!Z60=0),1,IF(AE58*'Selected Data_Value'!Z60=0,0,1))) -> 0 | BE58: =IF(OR(ISERROR(AF58*'Selected Data_Value'!AA60),ISNUMBER(AF58)=FALSE,ISNUMBER('Selected Data_Value'!AA60)=FALSE),0,IF(AND(AF58=0,'Selected Data_Value'!AA60=0),1,IF(AF58*'Selected Data_Value'!AA60=0,0,1))) -> 0 | BF58: =IF(OR(ISERROR(AG58*'Selected Data_Value'!AB60),ISNUMBER(AG58)=FALSE,ISNUMBER('Selected Data_Value'!AB60)=FALSE),0,IF(AND(AG58=0,'Selected Data_Value'!AB60=0),1,IF(AG58*'Selected Data_Value'!AB60=0,0,1))) -> 0 | BG58: =IF(OR(ISERROR(AI58*'Selected Data_Value'!AD60),ISNUMBER(AI58)=FALSE,ISNUMBER('Selected Data_Value'!AD60)=FALSE),0,IF(AND(AI58=0,'Selected Data_Value'!AD60=0),1,IF(AI58*'Selected Data_Value'!AD60=0,0,1))) -> 0 | BH58: =IF(OR(ISERROR(AJ58*'Selected Data_Value'!AE60),ISNUMBER(AJ58)=FALSE,ISNUMBER('Selected Data_Value'!AE60)=FALSE),0,IF(AND(AJ58=0,'Selected Data_Value'!AE60=0),1,IF(AJ58*'Selected Data_Value'!AE60=0,0,1))) -> 0 | BI58: =IF(OR(ISERROR(AK58*'Selected Data_Value'!AF60),ISNUMBER(AK58)=FALSE,ISNUMBER('Selected Data_Value'!AF60)=FALSE),0,IF(AND(AK58=0,'Selected Data_Value'!AF60=0),1,IF(AK58*'Selected Data_Value'!AF60=0,0,1))) -> 0 | BJ58: =IF(COUNTIF(AZ58:BF58,0)>0,0,1) -> 0 | BK58: =IF(COUNTIF(BG58:BI58,0)>0,0,1) -> 0
A59: End

Sheet Projection
A1: =IF(OR(D188=FALSE,ProjectionChange_2_Check=FALSE,$Y$19=FALSE),FALSE,TRUE) -> TRUE | C1: ='Main Menu'!$A$1 -> World Bank Group - Jobs Group | Y1: ='Main Menu'!$P$14 -> Number of people in data
C2: ='Main Menu'!$A$2 -> JobStructure Tool | Y2: ='Main Menu'!$P$15 -> 1000
C3: ='Main Menu'!$C$6 -> Uganda | Y3: ='Main Menu'!$Q$7 -> constant 2010 USD
C4: Projection
C5: =IF(Macro_Overall_Structural_Check=TRUE,"No errors reported in structural check","Please check errors on Documentation sheet before proceeding") -> No errors reported in structural check
D7: Run Step 4 A and 4 B to review results here | H7: ='Main Menu'!$A$27&" A" -> Step 4 A | I7: Define the projection 'Base Case' | Q7: ='Main Menu'!$A$27&" B" -> Step 4 B | R7: Define the projection scenarios - and run macro | Y7: Min projection
R8: Macro last run at: | T8: 2019-10-03T14:13:49 | Y8: ='Main Menu'!$O$27 -> TRUE
R9: Last macro run time: | T9: 00:00:15 | U9: (mm:ss)
D10: ="Projection: "&E$12&" (actual) to "&F$12&" (projected)" -> Projection: 2018 (actual) to 2025 (projected) | J10: Set the Periods - Step 3 | N10: Enter Manually | O10: Go to Data | Q10: Select Scenario: | R10: =IF(ISERROR(CHOOSE($Q$11,T10,U10,V10,W10)),S10,CHOOSE($Q$11,T10,U10,V10,W10)) -> Base Case | S10: Base Case | T10: ="Increase productivity in one sector to reach growth target (ΔY = "&ROUND($T$14,2)&")" -> Increase productivity in one sector to reach growth target (ΔY = 5) | U10: ="Move labor between sectors to reach growth target (ΔY = "&ROUND($U$14,2)&"). Fixed Productivity: "&$O$64 -> Move labor between sectors to reach growth target (ΔY = 5). Fixed Productivity: Base Case | V10: ="Move labor between sectors to reach growth target (ΔY = "&ROUND($V$14,2)&"). Selected Productivity: "&$I$64 -> Move labor between sectors to reach growth target (ΔY = 5). Selected Productivity: Base Case | W10: ="Projected structural, productivity and demography change to reach growth target (ΔY = "&ROUND($W$14,2)&")."&" Projection assumptions: "&$I$78&" and "&$I$94&"."&IF(Macro_ProductivityBoost_Select=0,""," Sector productivity boost of "&ROUND(Macro_ProductivityBoost_Select,1)&"%")&IF(Macro_StructuralAcceleration_Select=1,""," Accelerated structural and productivity change of "&ROUND(Macro_StructuralAcceleration_Select,1)&" times the selected basis.") -> Projected structural, productivity and demography change to reach growth target (ΔY = 5). Projection assumptions: Base Case and Base Case.
H11: Select Population Growth Cases | I11: Population | J11: 1 | K11: =J11+1 -> 2 | L11: =K11+1 -> 3 | M11: =L11+1 -> 4 | N11: =M11+1 -> 5 | O11: =N11+1 -> 6 | Q11: 0 | R11: =$Q$11 -> 0 | S11: 0 | T11: 1 | U11: 2 | V11: 3 | W11: 4
D12: ="Aggregate Data"&CHAR(13)&" ("&'Selected Data_Value'!$V$22&" and "&'Selected Data_Employment'!$AA$20&")" -> Aggregate Data (million constant 2010 USD and 1000 people) | E12: =IF('Main Menu'!$O$27=FALSE,".",'Main Menu'!$C$20) -> 2018 | F12: =IF('Main Menu'!$O$27=FALSE,".",'Main Menu'!$G$27) -> 2025 | I12: Selected Growth Rates | J12: ="Total: "&CHAR(13)&Calculations!$A$6&" growth rates" -> Total: 2000-2018 growth rates | K12: ="Period 1: "&CHAR(13)&Calculations!$L$6&" growth rates" -> Period 1: 2000-2002 growth rates | L12: ="Period 2: "&CHAR(13)&Calculations!$W$6&" growth rates" -> Period 2: 2002-2012 growth rates | M12: ="Period 3: "&CHAR(13)&Calculations!$AH$6&" growth rates" -> Period 3: 2012-2018 growth rates | N12: ="Manual "&CHAR(13)&$E$12&"-"&$F$12&CHAR(13)&" growth rates" -> Manual 2018-2025 growth rates | O12: ="UN projection "&$E$12&"-"&$F$12&CHAR(10)&" growth rates" -> UN projection 2018-2025 growth rates | Q12: Aggregate Data | R12: Selected Scenario | S12: Base Case | T12: Increased productivity | U12: Move labor between sectors. Fixed Productivity | V12: Move labor between sectors. Select Productivity | W12: Project structural, productivity, and demography change | Y12: Check population | Z12: True = OK | AA12: Note
D13: ="Annual "&Calculations!A30&" (y)" -> Annual Change in per capita value added (y) | E13: =Calculations!BA30 -> 1.891857116 | I13: =E13 -> 1.891857116 | J13: =Tables!F159 -> 2.970919207 | K13: =Tables!C159 -> 3.670074144 | L13: =Tables!D159 -> 3.952224405 | M13: =Tables!E159 -> 1.127589241 | O13: Medium Fertility | Q13: Growth in y | R13: =E13 -> 1.891857116 | T13: ="Results: "&Table_11 -> Results: T11 | U13: ="Results: "&Table_12 -> Results: T12 | V13: ="Results: "&Table_13 -> Results: T13 | W13: ="Results: "&Table_14 -> Results: T14 | Y13: N < E | Z13: =IF(ISERROR($F$15),FALSE,IF(ISERROR($F18),FALSE,IF($F$15<$F18,FALSE,TRUE))) -> TRUE | AA13: =IF(Z13=TRUE,"",Y13) ->  | AC13: Sources | AD13: Source Dates
D14: Total Value Added (Y) | E14: =IF(E$12=".",".",INDEX('Selected Data_Value'!$AC$24:$AC$61,MATCH(E$12,'Selected Data_Value'!$U$24:$U$61,0),1)) -> 30319.15088 | F14: =F51 -> 42314.03555 | I14: =IF(ISERROR(((F14/E14)^(1/($F$12-$E$12))-1)*100),".",((F14/E14)^(1/($F$12-$E$12))-1)*100) -> 4.87719392 | J14: =IF(ISERROR(((Calculations!E10/Calculations!D10)^(1/(Calculations!E$8-Calculations!D$8))-1)),".",((Calculations!E10/Calculations!D10)^(1/(Calculations!E$8-Calculations!D$8))-1)*100) -> 6.41010191 | K14: =IF(ISERROR(((Calculations!P10/Calculations!O10)^(1/(Calculations!P$8-Calculations!O$8))-1)),".",((Calculations!P10/Calculations!O10)^(1/(Calculations!P$8-Calculations!O$8))-1)*100) -> 6.94345222 | L14: =IF(ISERROR(((Calculations!AA10/Calculations!Z10)^(1/(Calculations!AA$8-Calculations!Z$8))-1)),".",((Calculations!AA10/Calculations!Z10)^(1/(Calculations!AA$8-Calculations!Z$8))-1)*100) -> 7.301681165 | M14: =IF(ISERROR(((Calculations!AL10/Calculations!AK10)^(1/(Calculations!AL$8-Calculations!AK$8))-1)),".",((Calculations!AL10/Calculations!AK10)^(1/(Calculations!AL$8-Calculations!AK$8))-1)*100) -> 4.76582411 | Q14: Growth in Y | R14: =IF(ISNUMBER(CHOOSE($Q$11,T14,U14,V14,W14))=FALSE,S14,CHOOSE($Q$11,T14,U14,V14,W14)) -> 4.87719392 | S14: =IF($I14=".",".",$I14) -> 4.87719392 | T14: 5 | U14: 5 | V14: 5 | W14: 5 | Y14: N < L | Z14: =IF(ISERROR($F$15),FALSE,IF(ISERROR($F17),FALSE,IF($F$15<$F17,FALSE,TRUE))) -> TRUE | AA14: =IF(Z14=TRUE,"",Y14) ->  | AC14: =Q14 -> Growth in Y | AD14: =IF($H$51<$N$49,Tables!$F$27,"-") -> WDI Data Accessed 03 Oct 2019
D15: ='Selected Data_Employment'!$AN$19&" (N)" -> Population, total (N) | E15: =IF(E$12=".",".",INDEX('Selected Data_Employment'!$AN$22:$AN$59,MATCH(E$12,'Selected Data_Employment'!$Z$22:$Z$59,0),1)) -> 42723.139 | F15: =IF(F$12=".",".",((R15/100+1)/((1/E15)^(1/(F$12-E$12))))^(F$12-E$12)) -> 52294.284 | G15: N (Pop) | H15: 6 | I15: =IF(ISNUMBER(CHOOSE($H15,J15,K15,L15,M15,N15,O15))=FALSE,".",CHOOSE($H15,J15,K15,L15,M15,N15,O15)) -> 2.929907147 | J15: =IF(ISERROR(((Calculations!E11/Calculations!D11)^(1/(Calculations!E$8-Calculations!D$8))-1)),".",((Calculations!E11/Calculations!D11)^(1/(Calculations!E$8-Calculations!D$8))-1)*100) -> 3.339955329 | K15: =IF(ISERROR(((Calculations!P11/Calculations!O11)^(1/(Calculations!P$8-Calculations!O$8))-1)),".",((Calculations!P11/Calculations!O11)^(1/(Calculations!P$8-Calculations!O$8))-1)*100) -> 3.157495645 | L15: =IF(ISERROR(((Calculations!AA11/Calculations!Z11)^(1/(Calculations!AA$8-Calculations!Z$8))-1)),".",((Calculations!AA11/Calculations!Z11)^(1/(Calculations!AA$8-Calculations!Z$8))-1)*100) -> 3.222111676 | M15: =IF(ISERROR(((Calculations!AL11/Calculations!AK11)^(1/(Calculations!AL$8-Calculations!AK$8))-1)),".",((Calculations!AL11/Calculations!AK11)^(1/(Calculations!AL$8-Calculations!AK$8))-1)*100) -> 3.597667953 | O15: =IF(OR($E$12=".",$F$12="."),".",((INDEX('Existing Data_ProjUN'!$Q$12:$Q$34,MATCH($F$12,'Existing Data_ProjUN'!$O$12:$O$34,0),1)/$E15)^(1/($F$12-$E$12))-1)*100) -> 2.929907147 | Q15: Growth in N | R15: =IF(ISNUMBER(CHOOSE($Q$11,T15,U15,V15,W15)+S15)=FALSE,S15,CHOOSE($Q$11,T15,U15,V15,W15)+S15) -> 2.929907147 | S15: 2.929907147 | W15: =IFERROR((((S26+W26)/E15)^(1/(F$12-E$12))-1)*100-S15,".") -> 0 | Y15: N < A | Z15: =IF(ISERROR($F$15),FALSE,IF(ISERROR($F16),FALSE,IF($F$15<$F16,FALSE,TRUE))) -> TRUE | AC15: =Q15 -> Growth in N | AD15: =IF(H15=$O$11,'Existing Data_ProjUN'!$A$5,IF(H15<$N$11,'Selected Data_Employment'!$AU$15,"-")) -> Source: World Population Prospects: The 2019 Revision.
D16: ='Selected Data_Employment'!$AM$19&" (A)" -> Population ages 15-64 (A) | E16: =IF(E$12=".",".",INDEX('Selected Data_Employment'!$AM$22:$AM$59,MATCH(E$12,'Selected Data_Employment'!$Z$22:$Z$59,0),1)) -> 21843.69495 | F16: =IF(F$12=".",".",((R16/100+1)/((1/E16)^(1/(F$12-E$12))))^(F$12-E$12)) -> 28502.142 | G16: A (WAP) | H16: 6 | I16: =IF(ISNUMBER(CHOOSE($H16,J16,K16,L16,M16,N16,O16))=FALSE,".",CHOOSE($H16,J16,K16,L16,M16,N16,O16)) -> 3.874116363 | J16: =IF(ISERROR(((Calculations!E12/Calculations!D12)^(1/(Calculations!E$8-Calculations!D$8))-1)),".",((Calculations!E12/Calculations!D12)^(1/(Calculations!E$8-Calculations!D$8))-1)*100) -> 3.696678318 | K16: =IF(ISERROR(((Calculations!P12/Calculations!O12)^(1/(Calculations!P$8-Calculations!O$8))-1)),".",((Calculations!P12/Calculations!O12)^(1/(Calculations!P$8-Calculations!O$8))-1)*100) -> 3.154596703 | L16: =IF(ISERROR(((Calculations!AA12/Calculations!Z12)^(1/(Calculations!AA$8-Calculations!Z$8))-1)),".",((Calculations!AA12/Calculations!Z12)^(1/(Calculations!AA$8-Calculations!Z$8))-1)*100) -> 3.505978667 | M16: =IF(ISERROR(((Calculations!AL12/Calculations!AK12)^(1/(Calculations!AL$8-Calculations!AK$8))-1)),".",((Calculations!AL12/Calculations!AK12)^(1/(Calculations!AL$8-Calculations!AK$8))-1)*100) -> 4.197175461 | O16: =IF(OR($E$12=".",$F$12="."),".",((INDEX('Existing Data_ProjUN'!$P$12:$P$34,MATCH($F$12,'Existing Data_ProjUN'!$O$12:$O$34,0),1)/$E16)^(1/($F$12-$E$12))-1)*100) -> 3.874116363 | Q16: Growth in A | R16: =IF(ISNUMBER(CHOOSE($Q$11,T16,U16,V16,W16)+S16)=FALSE,S16,CHOOSE($Q$11,T16,U16,V16,W16)+S16) -> 3.874116363 | S16: 3.874116363 | W16: =IFERROR((((S27+W28)/E16)^(1/(F$12-E$12))-1)*100-S16,".") -> 0 | Y16: A < L | Z16: =IF(ISERROR($F$17),FALSE,IF(ISERROR($F16),FALSE,IF($F$17>$F16,FALSE,TRUE))) -> TRUE | AA16: =IF(Z16=TRUE,"",Y16) ->  | AC16: =Q16 -> Growth in A | AD16: =IF(H16=$O$11,'Existing Data_ProjUN'!$A$5,IF(H16<$N$11,'Selected Data_Employment'!$AU$15,"-")) -> Source: World Population Prospects: The 2019 Revision.
D17: ='Selected Data_Employment'!$AL$19&" (L)" -> Labor force ages 15-64 (L) | E17: =IF(E$12=".",".",INDEX('Selected Data_Employment'!$AL$22:$AL$59,MATCH(E$12,'Selected Data_Employment'!$Z$22:$Z$59,0),1)) -> 15726.80542 | F17: =IF(F$12=".",".",((R17/100+1)/((1/E17)^(1/(F$12-E$12))))^(F$12-E$12)) -> 21617.98156 | G17: L (Lab) | H17: 5 | I17: =IF(ISNUMBER(CHOOSE($H17,J17,K17,L17,M17,N17,O17))=FALSE,".",CHOOSE($H17,J17,K17,L17,M17,N17,O17)) -> 4.65 | J17: =IF(ISERROR(((Calculations!E13/Calculations!D13)^(1/(Calculations!E$8-Calculations!D$8))-1)),".",((Calculations!E13/Calculations!D13)^(1/(Calculations!E$8-Calculations!D$8))-1)*100) -> 3.770875616 | K17: =IF(ISERROR(((Calculations!P13/Calculations!O13)^(1/(Calculations!P$8-Calculations!O$8))-1)),".",((Calculations!P13/Calculations!O13)^(1/(Calculations!P$8-Calculations!O$8))-1)*100) -> 3.25469014 | L17: =IF(ISERROR(((Calculations!AA13/Calculations!Z13)^(1/(Calculations!AA$8-Calculations!Z$8))-1)),".",((Calculations!AA13/Calculations!Z13)^(1/(Calculations!AA$8-Calculations!Z$8))-1)*100) -> 3.631020921 | M17: =IF(ISERROR(((Calculations!AL13/Calculations!AK13)^(1/(Calculations!AL$8-Calculations!AK$8))-1)),".",((Calculations!AL13/Calculations!AK13)^(1/(Calculations!AL$8-Calculations!AK$8))-1)*100) -> 4.177409423 | N17: 4.65 | Q17: Growth in L | R17: =IF(ISNUMBER(CHOOSE($Q$11,T17,U17,V17,W17)+S17)=FALSE,S17,CHOOSE($Q$11,T17,U17,V17,W17)+S17) -> 4.65 | S17: 4.65 | W17: =IFERROR((((S28+W30)/E17)^(1/(F$12-E$12))-1)*100-S17,".") -> -1.776356839e-15 | Y17: A < E | Z17: =IF(ISERROR($F$18),FALSE,IF(ISERROR($F16),FALSE,IF($F$18>$F16,FALSE,TRUE))) -> TRUE | AC17: =Q17 -> Growth in L | AD17: =IF(H17=$O$11,'Existing Data_ProjUN'!$A$5,IF(H17<$N$11,'Selected Data_Employment'!$AU$15,"-")) -> -
D18: ='Selected Data_Employment'!$AH$19&" (E)" -> Employment ages 15-64 (E) | E18: =IF(E$12=".",".",INDEX('Selected Data_Employment'!$AH$22:$AH$59,MATCH(E$12,'Selected Data_Employment'!$Z$22:$Z$59,0),1)) -> 15452.84447 | F18: =F37 -> 21292.0583 | G18: E (Emp) | I18: =IF(ISERROR(((F18/E18)^(1/($F$12-$E$12))-1)*100),".",((F18/E18)^(1/($F$12-$E$12))-1)*100) -> 4.685620234 | J18: =IF(ISERROR(((Calculations!E14/Calculations!D14)^(1/(Calculations!E$8-Calculations!D$8))-1)),".",((Calculations!E14/Calculations!D14)^(1/(Calculations!E$8-Calculations!D$8))-1)*100) -> 3.835265375 | K18: =IF(ISERROR(((Calculations!P14/Calculations!O14)^(1/(Calculations!P$8-Calculations!O$8))-1)),".",((Calculations!P14/Calculations!O14)^(1/(Calculations!P$8-Calculations!O$8))-1)*100) -> 2.899685448 | L18: =IF(ISERROR(((Calculations!AA14/Calculations!Z14)^(1/(Calculations!AA$8-Calculations!Z$8))-1)),".",((Calculations!AA14/Calculations!Z14)^(1/(Calculations!AA$8-Calculations!Z$8))-1)*100) -> 3.625542733 | M18: =IF(ISERROR(((Calculations!AL14/Calculations!AK14)^(1/(Calculations!AL$8-Calculations!AK$8))-1)),".",((Calculations!AL14/Calculations!AK14)^(1/(Calculations!AL$8-Calculations!AK$8))-1)*100) -> 4.50055225 | Y18: L < E | Z18: =IF(ISERROR($F$18),FALSE,IF(ISERROR($F17),FALSE,IF($F$18>$F17,FALSE,TRUE))) -> TRUE | AA18: =IF(Z18=TRUE,"",Y18) ->  | AC18: =Q18 -> 0 | AD18: =IF($H$37<$N$35,Tables!$F$30,"-") -> WDI Data Accessed 03 Oct 2019
D19: ="Dependents "&Documentation!$C$582&" (D)" -> Dependents <15 and 65+ (D) | E19: =IF(E$12=".",".",IF(ISERROR(E15-E16),".",E15-E16)) -> 20879.44405 | F19: =IF(F$12=".",".",IF(ISERROR(F15-F16),".",F15-F16)) -> 23792.142 | G19: D (Dep) | I19: =IF(ISERROR(((F19/E19)^(1/($F$12-$E$12))-1)*100),".",((F19/E19)^(1/($F$12-$E$12))-1)*100) -> 1.883085158 | J19: =IF(ISERROR(((Calculations!E15/Calculations!D15)^(1/(Calculations!E$8-Calculations!D$8))-1)),".",((Calculations!E15/Calculations!D15)^(1/(Calculations!E$8-Calculations!D$8))-1)*100) -> 2.990222466 | K19: =IF(ISERROR(((Calculations!P15/Calculations!O15)^(1/(Calculations!P$8-Calculations!O$8))-1)),".",((Calculations!P15/Calculations!O15)^(1/(Calculations!P$8-Calculations!O$8))-1)*100) -> 3.160177255 | L19: =IF(ISERROR(((Calculations!AA15/Calculations!Z15)^(1/(Calculations!AA$8-Calculations!Z$8))-1)),".",((Calculations!AA15/Calculations!Z15)^(1/(Calculations!AA$8-Calculations!Z$8))-1)*100) -> 2.953141977 | M19: =IF(ISERROR(((Calculations!AL15/Calculations!AK15)^(1/(Calculations!AL$8-Calculations!AK$8))-1)),".",((Calculations!AL15/Calculations!AK15)^(1/(Calculations!AL$8-Calculations!AK$8))-1)*100) -> 2.995429636 | Y19: =COUNTIF(Z13:Z18,FALSE)=0 -> TRUE | Z19: =IF($Y$19=TRUE,"","NB! Check Projection Error: "&concatenaterange(AA13:AA18," , ")) ->  | AA19: =IF(Z19=TRUE,"",Y19) -> TRUE
D20: =IF($Y$19=TRUE,"",$Z$19) -> 
D21: Indicators: | H21: Indicator CAGRs: | Q21: Scenario 4 only: | S21: =S$12 -> Base Case | V21: Default if blank | W21: Select Initial Maximums
D22: =Calculations!A17 -> Employment elasticity to VA growth | F22: =I22 -> 0.9607205109 | H22: Elasticity E/Y | I22: =IFERROR(I18/I14,".") -> 0.9607205109 | J22: =Tables!P51 -> 0.5983158191 | K22: =Tables!Q51 -> 0.4176143733 | L22: =Tables!R51 -> 0.4965353391 | M22: =Tables!S51 -> 0.9443387221 | Q22: =D25 -> Share of Working Age Population | S22: =IFERROR(S27/S26*100,".") -> 54.50336025 | V22: =IFERROR(MIN(100,S22*(1+((S22/E25)^(1/(F$12-E$12))-1))^(F$12-E$12)),".") -> 58.10100007 | W22: 58.10100007
D23: =Calculations!A18 -> Value Added per Capita | E23: =IF(ISERROR(E14/E15*$Y$2),".",E14/E15*$Y$2) -> 709.6658061 | F23: =IF(ISERROR(F14/F15*$Y$2),".",F14/F15*$Y$2) -> 809.1522116 | H23: Growth Y/N | I23: =IF(ISERROR(((F23/E23)^(1/($F$12-$E$12))-1)*100),".",((F23/E23)^(1/($F$12-$E$12))-1)*100) -> 1.891857116 | J23: =Tables!P52 -> 2.970919207 | K23: =Tables!Q52 -> 3.670074144 | L23: =Tables!R52 -> 3.952224405 | M23: =Tables!S52 -> 1.127589241 | Q23: =D26 -> Labor Force Participation | S23: =IFERROR(S28/S27*100,".") -> 75.84686639 | V23: =IFERROR(MIN(100,S23*(1+((S23/E26)^(1/(F$12-E$12))-1))^(F$12-E$12)),".") -> 79.90259331 | W23: 79.90259331
D24: =Calculations!A19 -> Value Added per Worker | E24: =IF(ISERROR(E14/E18*$Y$2),".",E14/E18*$Y$2) -> 1962.04336 | F24: =IF(ISERROR(F14/F18*$Y$2),".",F14/F18*$Y$2) -> 1987.315409 | H24: Growth Y/E | I24: 0.1829990453 | J24: =Tables!P53 -> 2.479732224 | K24: =Tables!Q53 -> 3.929814513 | L24: =Tables!R53 -> 3.547521523 | M24: =Tables!S53 -> 0.2538473287 | Q24: =D27 -> Employment Rate | S24: =IFERROR(S29/S28*100,".") -> 98.49235111 | V24: =IFERROR(MIN(100,S24*(1+((S24/E27)^(1/(F$12-E$12))-1))^(F$12-E$12)),".") -> 98.72726115 | W24: 98.72726115
D25: =Calculations!A20 -> Share of Working Age Population | E25: =IF(ISERROR(E16/E15*100),".",E16/E15*100) -> 51.1284879 | F25: =IF(ISERROR(F16/F15*100),".",F16/F15*100) -> 54.50336025 | H25: Growth A/N | I25: =IF(ISERROR(((F25/E25)^(1/($F$12-$E$12))-1)*100),".",((F25/E25)^(1/($F$12-$E$12))-1)*100) -> 0.917332234 | J25: =Tables!P54 -> 0.3451936741 | K25: =Tables!Q54 -> -0.002810209508 | L25: =Tables!R54 -> 0.2750059911 | M25: =Tables!S54 -> 0.5786882274 | Q25: Demography: | U25: Change from Base Case | W25: =$Y$2&" people" -> 1000 people
D26: =Calculations!A21 -> Labor Force Participation | E26: =IF(ISERROR(E17/E16*100),".",E17/E16*100) -> 71.99700165 | F26: =IF(ISERROR(F17/F16*100),".",F17/F16*100) -> 75.84686639 | H26: Growth L/A | I26: =IF(ISERROR(((F26/E26)^(1/($F$12-$E$12))-1)*100),".",((F26/E26)^(1/($F$12-$E$12))-1)*100) -> 0.7469460765 | J26: =Tables!P55 -> 0.07155224171 | K26: =Tables!Q55 -> 0.09703245477 | L26: =Tables!R55 -> 0.1208067943 | M26: =Tables!S55 -> -0.01896984023 | Q26: =D15 -> Population, total (N) | S26: =E15*(1+S15/100)^(F$12-E$12) -> 52294.284 | U26: ="Change "&Q26 -> Change Population, total (N) | W26: =IFERROR(MAX(0,W28-W27),".") -> 0
D27: =Calculations!A22 -> Employment Rate | E27: =IF(ISERROR(100-E28),".",100-E28) -> 98.25800002 | F27: =IF(ISERROR(100-F28),".",100-F28) -> 98.49235111 | H27: Growth E/L | I27: 0.03403749091 | J27: =Tables!P56 -> 0.06204993367 | K27: =Tables!Q56 -> -0.343814593 | L27: =Tables!R56 -> -0.005286243667 | M27: =Tables!S56 -> 0.3101851237 | Q27: =D16 -> Population ages 15-64 (A) | S27: =E16*(1+S16/100)^(F$12-E$12) -> 28502.142 | U27: ="Take from Changed "&Q22 -> Take from Changed Share of Working Age Population | W27: =IF(W$32=0,0,IFERROR(MIN(W28,(IF(W22="",V22,W22)-S22)/100*S26),".")) -> 0
D28: =Calculations!A23 -> Unemployment Rate | E28: =IF(ISERROR(1-E18/E17),".",(1-E18/E17)*100) -> 1.741999984 | F28: =IF(ISERROR(1-F18/F17),".",(1-F18/F17)*100) -> 1.507648886 | H28: Growth U/L | I28: -2.042879752 | J28: =Tables!P57 -> -2.665510714 | K28: =Tables!Q57 -> 11.15032558 | L28: =Tables!R57 -> 0.1447678753 | M28: =Tables!S57 -> -11.19251388 | Q28: =D17 -> Labor force ages 15-64 (L) | S28: =E17*(1+S17/100)^(F$12-E$12) -> 21617.98156 | U28: ="Change "&Q27 -> Change Population ages 15-64 (A) | W28: =IFERROR(MAX(0,W30-W29),".") -> 0
D29: =Calculations!A24 -> Dependents / WAP | E29: =IF(ISERROR(E19/E16),".",E19/E16) -> 0.9558567858 | F29: =IF(ISERROR(F19/F16),".",F19/F16) -> 0.834749262 | H29: Growth D/A | I29: =IF(ISERROR(((F29/E29)^(1/($F$12-$E$12))-1)*100),".",((F29/E29)^(1/($F$12-$E$12))-1)*100) -> -1.916773182 | J29: =Tables!P58 -> -0.6812714379 | K29: =Tables!Q58 -> 0.005409891615 | L29: =Tables!R58 -> -0.5341108761 | M29: =Tables!S58 -> -1.153338197 | Q29: =D18 -> Employment ages 15-64 (E) | S29: =S37 -> 21292.0583 | U29: ="Take from Changed "&Q23 -> Take from Changed Labor Force Participation | W29: =IF(W$32=0,0,IFERROR(MIN(W30,(IF(W23="",V23,W23)-S23)/100*S27),".")) -> 0
D30: =Calculations!A25 -> Dependents / LF | E30: =IF(ISERROR(E19/E17),".",E19/E17) -> 1.327634157 | F30: =IF(ISERROR(F19/F17),".",F19/F17) -> 1.100571852 | H30: Growth D/L | I30: -2.643970227 | J30: =Tables!P59 -> -0.7522854026 | K30: =Tables!Q59 -> -0.09153374572 | L30: =Tables!R59 -> -0.6541274401 | M30: =Tables!S59 -> -1.134583585 | Q30: =D19 -> Dependents <15 and 65+ (D) | S30: =IF(ISERROR(S26-S27),".",S26-S27) -> 23792.142 | U30: ="Change "&Q28 -> Change Labor force ages 15-64 (L) | W30: =IFERROR(MAX(0,W32-W31),".") -> 0
D31: =Calculations!A26 -> Dependents / Employed | E31: =IF(ISERROR(E19/E18),".",E19/E18) -> 1.351171565 | F31: =IF(ISERROR(F19/F18),".",F19/F18) -> 1.117418601 | H31: Growth D/E | I31: =IF(ISERROR(((F31/E31)^(1/($F$12-$E$12))-1)*100),".",((F31/E31)^(1/($F$12-$E$12))-1)*100) -> -2.677096501 | J31: =Tables!P60 -> -0.8138303551 | K31: =Tables!Q60 -> 0.2531512181 | L31: =Tables!R60 -> -0.6488754975 | M31: =Tables!S60 -> -1.440301109 | U31: ="Take from Changed "&Q24 -> Take from Changed Employment Rate | W31: =IF(W$32=0,0,IFERROR(MIN(W32,(IF(W24="",V24,W24)-S24)/100*S28),".")) -> 0
D32: Average number of new jobs per year | F32: =IFERROR((F17-E17)/(F$12-E$12)*$Y$2,".") -> 841596.5924 | U32: Total Change | W32: =W37-S37 -> 0
D33: Average number of new employment per year | F33: =IFERROR((F18-E18)/(F$12-E$12)*$Y$2,".") -> 834173.4052
H35: Select Employment Data Growth Rates | I35: Sector Data | J35: =J$11 -> 1 | K35: =K$11 -> 2 | L35: 3 | M35: 4 | N35: 5
D36: ="Sectoral Employment Data ("&'Selected Data_Employment'!$AA$20&")" -> Sectoral Employment Data (1000 people) | E36: =E$12 -> 2018 | F36: =F$12 -> 2025 | I36: =I$12 -> Selected Growth Rates | J36: Total: 2000-2018 growth rates | K36: Period 1: 2000-2002 growth rates | L36: Period 2: 2002-2012 growth rates | M36: Period 3: 2012-2018 growth rates | N36: Manual 2018-2025 growth rates | Q36: Sector | R36: =R$12 -> Selected Scenario | S36: =S$12 -> Base Case | T36: Increased productivity | U36: Move labor between sectors. Fixed Productivity | V36: Move labor between sectors. Select Productivity | W36: Project structural, productivity, and demography change | Y36: Sources:
D37: Total Employment | E37: =IF(SUM(E38:E44)=0,SUM(E45:E47),SUM(E38:E44)) -> 15452.84447 | F37: =IF(SUM(F38:F44)=0,SUM(F45:F47),SUM(F38:F44)) -> 21292.0583 | H37: 4 | J37: ="Source: "&$Y37&" (see "&'Main Menu'!$A$8&" B)" -> Source: WDI (see Step 2 B) | N37: Major Sectors | O37: (CAGR help) | Q37: Total | R37: =IF(SUM(R38:R44)=0,SUM(R45:R47),SUM(R38:R44)) -> 21292.0583 | S37: =IF(SUM(S38:S44)=0,SUM(S45:S47),SUM(S38:S44)) -> 21292.0583 | W37: =S37*$W$97 -> 21292.0583 | Y37: =IF('Selected Data_Employment'!$D$8='Selected Data_Employment'!$D$7,'Selected Data_Employment'!$D$7,IF(AND(OR('Selected Data_Employment'!$D$7='Selected Data_Employment'!$AT$6,'Selected Data_Employment'!$D$7='Selected Data_Employment'!$AT$7),'Selected Data_Employment'!$D$8='Selected Data_Employment'!$AT$11),'Selected Data_Employment'!$D$7,'Selected Data_Employment'!$D$7&", "&'Selected Data_Employment'!$D$8)) -> WDI
D38: ='Selected Data_Employment'!$AA$19 -> Agriculture | E38: =IF('Main Menu'!$O$32=FALSE,".",IF(E$12=".",".",INDEX('Selected Data_Employment'!$AA$22:$AA$59,MATCH(E$12,'Selected Data_Employment'!$Z$22:$Z$59,0),1))) -> . | F38: =R38 -> . | H38: =INDEX(Documentation!$C$589:$F$598,MATCH(Projection!$D38,Documentation!$C$589:$C$598,0),MATCH(Documentation!$D$589,Documentation!$C$589:$F$589,0)) -> Agric | I38: =IF(SUM($E$38:$E$44)=0,".",IF($H$37=$N$35,IF($N$37=$Y$40,".",N38),IF(ISNUMBER(CHOOSE($H$37,J38,K38,L38,M38,N38))=FALSE,0,CHOOSE($H$37,J38,K38,L38,M38,N38)))) -> . | J38: =IF(ISERROR(((Calculations!E49/Calculations!D49)^(1/(Calculations!E$8-Calculations!D$8))-1)),".",((Calculations!E49/Calculations!D49)^(1/(Calculations!E$8-Calculations!D$8))-1)*100) -> . | K38: =IF(ISERROR(((Calculations!P49/Calculations!O49)^(1/(Calculations!P$8-Calculations!O$8))-1)),".",((Calculations!P49/Calculations!O49)^(1/(Calculations!P$8-Calculations!O$8))-1)*100) -> . | L38: =IF(ISERROR(((Calculations!AA49/Calculations!Z49)^(1/(Calculations!AA$8-Calculations!Z$8))-1)),".",((Calculations!AA49/Calculations!Z49)^(1/(Calculations!AA$8-Calculations!Z$8))-1)*100) -> . | M38: =IF(ISERROR(((Calculations!AL49/Calculations!AK49)^(1/(Calculations!AL$8-Calculations!AK$8))-1)),".",((Calculations!AL49/Calculations!AK49)^(1/(Calculations!AL$8-Calculations!AK$8))-1)*100) -> . | Q38: =H38 -> Agric | R38: =IF(ISNUMBER(CHOOSE($Q$11,T38,U38,V38,W38)+S38)=FALSE,S38,CHOOSE($Q$11,T38,U38,V38,W38)+S38) -> . | S38: =IF($I38=".",".",IF(ISERROR(((I38/100+1)/((1/E38)^(1/(F$12-E$12))))^(F$12-E$12)),0,((I38/100+1)/((1/E38)^(1/(F$12-E$12))))^(F$12-E$12))) -> . | W38: =IFERROR(W$37*W98/W$97-S38,".") -> .
D39: ='Selected Data_Employment'!$AB$19 -> Mining & Utilities | E39: =IF('Main Menu'!$O$32=FALSE,".",IF(E$12=".",".",INDEX('Selected Data_Employment'!$AB$22:$AB$59,MATCH(E$12,'Selected Data_Employment'!$Z$22:$Z$59,0),1))) -> . | F39: =R39 -> . | H39: =INDEX(Documentation!$C$589:$F$598,MATCH(Projection!$D39,Documentation!$C$589:$C$598,0),MATCH(Documentation!$D$589,Documentation!$C$589:$F$589,0)) -> Min | I39: =IF(SUM($E$38:$E$44)=0,".",IF($H$37=$N$35,IF($N$37=$Y$40,".",N39),IF(ISNUMBER(CHOOSE($H$37,J39,K39,L39,M39,N39))=FALSE,0,CHOOSE($H$37,J39,K39,L39,M39,N39)))) -> . | J39: =IF(ISERROR(((Calculations!E50/Calculations!D50)^(1/(Calculations!E$8-Calculations!D$8))-1)),".",((Calculations!E50/Calculations!D50)^(1/(Calculations!E$8-Calculations!D$8))-1)*100) -> . | K39: =IF(ISERROR(((Calculations!P50/Calculations!O50)^(1/(Calculations!P$8-Calculations!O$8))-1)),".",((Calculations!P50/Calculations!O50)^(1/(Calculations!P$8-Calculations!O$8))-1)*100) -> . | L39: =IF(ISERROR(((Calculations!AA50/Calculations!Z50)^(1/(Calculations!AA$8-Calculations!Z$8))-1)),".",((Calculations!AA50/Calculations!Z50)^(1/(Calculations!AA$8-Calculations!Z$8))-1)*100) -> . | M39: =IF(ISERROR(((Calculations!AL50/Calculations!AK50)^(1/(Calculations!AL$8-Calculations!AK$8))-1)),".",((Calculations!AL50/Calculations!AK50)^(1/(Calculations!AL$8-Calculations!AK$8))-1)*100) -> . | Q39: =H39 -> Min | R39: . | S39: =IF($I39=".",".",IF(ISERROR(((I39/100+1)/((1/E39)^(1/(F$12-E$12))))^(F$12-E$12)),0,((I39/100+1)/((1/E39)^(1/(F$12-E$12))))^(F$12-E$12))) -> . | W39: =IFERROR(W$37*W99/W$97-S39,".") -> . | Y39: Manual Options
D40: ='Selected Data_Employment'!$AC$19 -> Manufacturing | E40: =IF('Main Menu'!$O$32=FALSE,".",IF(E$12=".",".",INDEX('Selected Data_Employment'!$AC$22:$AC$59,MATCH(E$12,'Selected Data_Employment'!$Z$22:$Z$59,0),1))) -> . | F40: . | H40: =INDEX(Documentation!$C$589:$F$598,MATCH(Projection!$D40,Documentation!$C$589:$C$598,0),MATCH(Documentation!$D$589,Documentation!$C$589:$F$589,0)) -> Man | I40: . | J40: =IF(ISERROR(((Calculations!E51/Calculations!D51)^(1/(Calculations!E$8-Calculations!D$8))-1)),".",((Calculations!E51/Calculations!D51)^(1/(Calculations!E$8-Calculations!D$8))-1)*100) -> . | K40: =IF(ISERROR(((Calculations!P51/Calculations!O51)^(1/(Calculations!P$8-Calculations!O$8))-1)),".",((Calculations!P51/Calculations!O51)^(1/(Calculations!P$8-Calculations!O$8))-1)*100) -> . | L40: =IF(ISERROR(((Calculations!AA51/Calculations!Z51)^(1/(Calculations!AA$8-Calculations!Z$8))-1)),".",((Calculations!AA51/Calculations!Z51)^(1/(Calculations!AA$8-Calculations!Z$8))-1)*100) -> . | M40: =IF(ISERROR(((Calculations!AL51/Calculations!AK51)^(1/(Calculations!AL$8-Calculations!AK$8))-1)),".",((Calculations!AL51/Calculations!AK51)^(1/(Calculations!AL$8-Calculations!AK$8))-1)*100) -> . | Q40: Man | R40: . | S40: . | W40: . | Y40: Major Sectors
C41: ` | D41: ='Selected Data_Employment'!$AD$19 -> Construction | E41: =IF('Main Menu'!$O$32=FALSE,".",IF(E$12=".",".",INDEX('Selected Data_Employment'!$AD$22:$AD$59,MATCH(E$12,'Selected Data_Employment'!$Z$22:$Z$59,0),1))) -> . | F41: . | H41: =INDEX(Documentation!$C$589:$F$598,MATCH(Projection!$D41,Documentation!$C$589:$C$598,0),MATCH(Documentation!$D$589,Documentation!$C$589:$F$589,0)) -> Con | I41: . | J41: =IF(ISERROR(((Calculations!E52/Calculations!D52)^(1/(Calculations!E$8-Calculations!D$8))-1)),".",((Calculations!E52/Calculations!D52)^(1/(Calculations!E$8-Calculations!D$8))-1)*100) -> . | K41: =IF(ISERROR(((Calculations!P52/Calculations!O52)^(1/(Calculations!P$8-Calculations!O$8))-1)),".",((Calculations!P52/Calculations!O52)^(1/(Calculations!P$8-Calculations!O$8))-1)*100) -> . | L41: =IF(ISERROR(((Calculations!AA52/Calculations!Z52)^(1/(Calculations!AA$8-Calculations!Z$8))-1)),".",((Calculations!AA52/Calculations!Z52)^(1/(Calculations!AA$8-Calculations!Z$8))-1)*100) -> . | M41: =IF(ISERROR(((Calculations!AL52/Calculations!AK52)^(1/(Calculations!AL$8-Calculations!AK$8))-1)),".",((Calculations!AL52/Calculations!AK52)^(1/(Calculations!AL$8-Calculations!AK$8))-1)*100) -> . | Q41: Con | R41: . | S41: . | W41: . | Y41: Sub Sectors
D42: ='Selected Data_Employment'!$AE$19 -> Wholesale & Retail | E42: =IF('Main Menu'!$O$32=FALSE,".",IF(E$12=".",".",INDEX('Selected Data_Employment'!$AE$22:$AE$59,MATCH(E$12,'Selected Data_Employment'!$Z$22:$Z$59,0),1))) -> . | F42: . | H42: =INDEX(Documentation!$C$589:$F$598,MATCH(Projection!$D42,Documentation!$C$589:$C$598,0),MATCH(Documentation!$D$589,Documentation!$C$589:$F$589,0)) -> W&R | I42: . | J42: =IF(ISERROR(((Calculations!E53/Calculations!D53)^(1/(Calculations!E$8-Calculations!D$8))-1)),".",((Calculations!E53/Calculations!D53)^(1/(Calculations!E$8-Calculations!D$8))-1)*100) -> . | K42: =IF(ISERROR(((Calculations!P53/Calculations!O53)^(1/(Calculations!P$8-Calculations!O$8))-1)),".",((Calculations!P53/Calculations!O53)^(1/(Calculations!P$8-Calculations!O$8))-1)*100) -> . | L42: =IF(ISERROR(((Calculations!AA53/Calculations!Z53)^(1/(Calculations!AA$8-Calculations!Z$8))-1)),".",((Calculations!AA53/Calculations!Z53)^(1/(Calculations!AA$8-Calculations!Z$8))-1)*100) -> . | M42: =IF(ISERROR(((Calculations!AL53/Calculations!AK53)^(1/(Calculations!AL$8-Calculations!AK$8))-1)),".",((Calculations!AL53/Calculations!AK53)^(1/(Calculations!AL$8-Calculations!AK$8))-1)*100) -> . | Q42: W&R | R42: . | S42: . | W42: .
D43: ='Selected Data_Employment'!$AF$19 -> Transport & Communications | E43: =IF('Main Menu'!$O$32=FALSE,".",IF(E$12=".",".",INDEX('Selected Data_Employment'!$AF$22:$AF$59,MATCH(E$12,'Selected Data_Employment'!$Z$22:$Z$59,0),1))) -> . | F43: . | H43: =INDEX(Documentation!$C$589:$F$598,MATCH(Projection!$D43,Documentation!$C$589:$C$598,0),MATCH(Documentation!$D$589,Documentation!$C$589:$F$589,0)) -> T&C | I43: . | J43: =IF(ISERROR(((Calculations!E54/Calculations!D54)^(1/(Calculations!E$8-Calculations!D$8))-1)),".",((Calculations!E54/Calculations!D54)^(1/(Calculations!E$8-Calculations!D$8))-1)*100) -> . | K43: =IF(ISERROR(((Calculations!P54/Calculations!O54)^(1/(Calculations!P$8-Calculations!O$8))-1)),".",((Calculations!P54/Calculations!O54)^(1/(Calculations!P$8-Calculations!O$8))-1)*100) -> . | L43: =IF(ISERROR(((Calculations!AA54/Calculations!Z54)^(1/(Calculations!AA$8-Calculations!Z$8))-1)),".",((Calculations!AA54/Calculations!Z54)^(1/(Calculations!AA$8-Calculations!Z$8))-1)*100) -> . | M43: =IF(ISERROR(((Calculations!AL54/Calculations!AK54)^(1/(Calculations!AL$8-Calculations!AK$8))-1)),".",((Calculations!AL54/Calculations!AK54)^(1/(Calculations!AL$8-Calculations!AK$8))-1)*100) -> . | Q43: T&C | R43: . | S43: . | W43: .
D44: ='Selected Data_Employment'!$AG$19 -> Other Activities etc. | E44: =IF('Main Menu'!$O$32=FALSE,".",IF(E$12=".",".",INDEX('Selected Data_Employment'!$AG$22:$AG$59,MATCH(E$12,'Selected Data_Employment'!$Z$22:$Z$59,0),1))) -> . | F44: . | H44: =INDEX(Documentation!$C$589:$F$598,MATCH(Projection!$D44,Documentation!$C$589:$C$598,0),MATCH(Documentation!$D$589,Documentation!$C$589:$F$589,0)) -> Other etc. | I44: . | J44: =IF(ISERROR(((Calculations!E55/Calculations!D55)^(1/(Calculations!E$8-Calculations!D$8))-1)),".",((Calculations!E55/Calculations!D55)^(1/(Calculations!E$8-Calculations!D$8))-1)*100) -> . | K44: =IF(ISERROR(((Calculations!P55/Calculations!O55)^(1/(Calculations!P$8-Calculations!O$8))-1)),".",((Calculations!P55/Calculations!O55)^(1/(Calculations!P$8-Calculations!O$8))-1)*100) -> . | L44: =IF(ISERROR(((Calculations!AA55/Calculations!Z55)^(1/(Calculations!AA$8-Calculations!Z$8))-1)),".",((Calculations!AA55/Calculations!Z55)^(1/(Calculations!AA$8-Calculations!Z$8))-1)*100) -> . | M44: =IF(ISERROR(((Calculations!AL55/Calculations!AK55)^(1/(Calculations!AL$8-Calculations!AK$8))-1)),".",((Calculations!AL55/Calculations!AK55)^(1/(Calculations!AL$8-Calculations!AK$8))-1)*100) -> . | Q44: Other etc. | R44: . | S44: . | W44: . | AA44: Sum of Sub Sectors
D45: ='Selected Data_Employment'!$AI$19 -> Agriculture | E45: =IF(E$12=".",".",IF(E$12=".",".",INDEX('Selected Data_Employment'!$AI$22:$AI$59,MATCH(E$12,'Selected Data_Employment'!$Z$22:$Z$59,0),1))) -> 10934.43308 | F45: 16101.5588 | H45: =$D45 -> Agriculture | I45: =IF($H$37=$N$35,IF($N$37=$Y$41,".",N45),IF(ISNUMBER(CHOOSE($H$37,J45,K45,L45,M45,N45))=FALSE,0,CHOOSE($H$37,J45,K45,L45,M45,N45))) -> 5.684241776 | J45: =IF(ISERROR(((Calculations!E56/Calculations!D56)^(1/(Calculations!E$8-Calculations!D$8))-1)),".",((Calculations!E56/Calculations!D56)^(1/(Calculations!E$8-Calculations!D$8))-1)*100) -> 3.900876885 | K45: =IF(ISERROR(((Calculations!P56/Calculations!O56)^(1/(Calculations!P$8-Calculations!O$8))-1)),".",((Calculations!P56/Calculations!O56)^(1/(Calculations!P$8-Calculations!O$8))-1)*100) -> 2.066764114 | L45: =IF(ISERROR(((Calculations!AA56/Calculations!Z56)^(1/(Calculations!AA$8-Calculations!Z$8))-1)),".",((Calculations!AA56/Calculations!Z56)^(1/(Calculations!AA$8-Calculations!Z$8))-1)*100) -> 3.212327635 | M45: =IF(ISERROR(((Calculations!AL56/Calculations!AK56)^(1/(Calculations!AL$8-Calculations!AK$8))-1)),".",((Calculations!AL56/Calculations!AK56)^(1/(Calculations!AL$8-Calculations!AK$8))-1)*100) -> 5.684241776 | Q45: =$D45 -> Agriculture | R45: 16101.5588 | S45: =IF(S38=".",IF(ISNUMBER($I45)=FALSE,0,IF(ISERROR(((I45/100+1)/((1/E45)^(1/(F$12-E$12))))^(F$12-E$12)),0,((I45/100+1)/((1/E45)^(1/(F$12-E$12))))^(F$12-E$12))),S38) -> 16101.5588 | W45: -5.456968211e-12 | Y45: =IF(OR(SUM($R$38:$R$44)=0,SUM($R$52:$R$58)=0),$Y$40,$Y$41) -> Major Sectors | AA45: =IF(ISERROR(((F45/E45)^(1/(F$36-E$36))-1)*100),0,((F45/E45)^(1/(F$36-E$36))-1)*100) -> 5.684241776
D46: ='Selected Data_Employment'!$AJ$19 -> Industry | E46: =IF(E$12=".",".",IF(E$12=".",".",INDEX('Selected Data_Employment'!$AJ$22:$AJ$59,MATCH(E$12,'Selected Data_Employment'!$Z$22:$Z$59,0),1))) -> 1141.810668 | F46: 1413.253271 | H46: =$D46 -> Industry | I46: =IF($H$37=$N$35,IF($N$37=$Y$41,".",N46),IF(ISNUMBER(CHOOSE($H$37,J46,K46,L46,M46,N46))=FALSE,0,CHOOSE($H$37,J46,K46,L46,M46,N46))) -> 3.093734476 | J46: =IF(ISERROR(((Calculations!E57/Calculations!D57)^(1/(Calculations!E$8-Calculations!D$8))-1)),".",((Calculations!E57/Calculations!D57)^(1/(Calculations!E$8-Calculations!D$8))-1)*100) -> 3.777023819 | K46: =IF(ISERROR(((Calculations!P57/Calculations!O57)^(1/(Calculations!P$8-Calculations!O$8))-1)),".",((Calculations!P57/Calculations!O57)^(1/(Calculations!P$8-Calculations!O$8))-1)*100) -> 4.764591367 | L46: =IF(ISERROR(((Calculations!AA57/Calculations!Z57)^(1/(Calculations!AA$8-Calculations!Z$8))-1)),".",((Calculations!AA57/Calculations!Z57)^(1/(Calculations!AA$8-Calculations!Z$8))-1)*100) -> 3.991995767 | M46: =IF(ISERROR(((Calculations!AL57/Calculations!AK57)^(1/(Calculations!AL$8-Calculations!AK$8))-1)),".",((Calculations!AL57/Calculations!AK57)^(1/(Calculations!AL$8-Calculations!AK$8))-1)*100) -> 3.093734476 | Q46: =$D46 -> Industry | R46: 1413.253271 | S46: =IF(SUM(S39:S41)=0,IF(ISNUMBER($I46)=FALSE,0,IF(ISERROR(((I46/100+1)/((1/E46)^(1/(F$12-E$12))))^(F$12-E$12)),0,((I46/100+1)/((1/E46)^(1/(F$12-E$12))))^(F$12-E$12))),SUM(S39:S41)) -> 1413.253271 | W46: 0 | Y46: Check E and Y total in start year | AA46: =IF(ISERROR(((F46/E46)^(1/(F$36-E$36))-1)*100),0,((F46/E46)^(1/(F$36-E$36))-1)*100) -> 3.093734476
